Workbook

Sheet AER only (hidden)
B1: Data in these columns used for data validation and database purposes.
B2: Date last modified: | C2: 2017-01-16 | D2: added (Albury and Victora) for AGN
C3: 2016-10-17 | D3: updated TransGrid's correct legal name, corrected TasNetworks (T) to June financial year
C4: 2017-02-01 | D4: inserted Power and Water, added NRs (dms_FeederCat_1 and dms_FeederCat_2)
C5: 2017-03-03 | D5: inserted AEMO as a business | AC5: FOR ELECTRICITY BUSINESSES ONLY
AC6: Feeder Types | AG6: TasNetworks (D) | AH6: MAIFI flag | AI6: Feeder Names
AC7: CBD | AD7: Urban | AE7: Short rural | AF7: long rural | AG7: EXTRA
B8: dms_TradingName_List | C8: dms_TradingNameFull_List | D8: dms_ABN_List | E8: dms_JurisdictionList | F8: dms_Sector_List | G8: dms_Segment_List | H8: dms_FormControl_List | I8: dms_RPT_List | J8: dms_RPTMonth_List | K8: dms_CRCPlength_List | L8: dms_FRCPlength_List | M8: dms_663_List | N8: dms_DeterminationRef_List | O8: dms_Addr1_List | P8: dms_Addr2_List | Q8: dms_Suburb_List | R8: dms_State_List | S8: dms_PostCode_List | T8: dms_PAddr1_List | U8: dms_PAddr2_List | V8: dms_PSuburb_List | W8: dms_PState_List | X8: dms_PPostCode_List | Y8: dms_ContactName1_List | Z8: dms_ContactPh1_List | AA8: dms_ContactEmail_List | AB8: Column1 | AC8: dms_CBD_flag | AD8: dms_Urban_flag | AE8: dms_ShortRural_flag | AF8: dms_LongRural_flag | AG8: dms_FeederType_5_flag | AH8: dms_MAIFI_flag_List | AI8: dms_FeederName_1 | AJ8: dms_FeederName_2 | AK8: dms_FeederName_3 | AL8: dms_FeederName_4 | AM8: dms_FeederName_5
B9: ActewAGL Distribution | C9: ActewAGL Distribution | D9: 76670568688 | E9: ACT | F9: Electricity | G9: Distribution | H9: Revenue cap | I9: Financial | J9: June | K9: 5 | L9: 5 | M9: 5 | N9: 2014-19 Distribution Determination | O9: 40 Bunda Street | Q9: CANBERRA | R9: ACT | S9: 2600 | T9: GPO BOX 366 | V9: CANBERRA | W9: ACT | X9: 2601 | Y9: Robert Walker | Z9: 02 6248 3847 | AA9: robert.walker@actewagle.com.au | AC9: NO | AD9: YES | AE9: YES | AF9: NO | AG9: NO | AI9: CBD | AJ9: Urban | AK9: Short rural | AL9: Long rural | AN9: ActewAGL Distribution
B10: ActewAGL Distribution (Tx Assets) | C10: ActewAGL Distribution (Tx Assets) | D10: 76670568688 | E10: ACT | F10: Electricity | G10: Distribution | H10: Revenue cap | I10: Financial | J10: June | K10: 5 | L10: 5 | M10: 5 | N10: distribution determination | O10: 40 Bunda Street | Q10: CANBERRA | R10: ACT | S10: 2600 | T10: GPO BOX 366 | V10: CANBERRA | W10: ACT | X10: 2601 | Y10: Robert Walker | Z10: 02 6248 3847 | AA10: robert.walker@actewagle.com.au | AI10: CBD | AJ10: Urban | AK10: Short rural | AL10: Long rural | AN10: ActewAGL Distribution (Tx Assets)
B11: ActewAGL Gas | C11: ActewAGL Gas | D11: 76670568688 | E11: ACT | F11: Gas | G11: Distribution | H11: Weighted average price cap | I11: Financial | J11: June | K11: 5 | L11: 5 | M11: x | O11: 40 Bunda Street | Q11: CANBERRA | R11: ACT | S11: 2600 | T11: GPO BOX 366 | V11: CANBERRA | W11: ACT | X11: 2601 | Y11: Philip Deamer | Z11: 02 6248 3438 | AA11: GasAAReview@actewagl.com.au | AN11: ActewAGL Gas
B12: AEMO | C12: Australian Energy Market Operator Ltd | D12: 94072010327 | E12: Vic | F12: Electricity | G12: Transmission | H12: - | I12: Financial | J12: March | K12: 5 | L12: 5 | M12: x | N12: - | O12: Level 22 | P12: 530 Collins Street | Q12: MELBOURNE | R12: VIC | S12: 3000 | T12: GPO Box 2008 | V12: MELBOURNE | W12: VIC | X12: 3001 | AI12: CBD | AJ12: Urban | AK12: Short rural | AL12: Long rural | AN12: AEMO
B13: AGN (Albury and Victoria) | C13: Australian Gas Networks Limited (reporting data for Albury and Victoria) | D13: 19078551685 | E13: Vic | F13: Gas | G13: Distribution | H13: Weighted average price cap | I13: Calendar | J13: December | K13: 5 | L13: 5 | M13: x | O13: Level 6 | P13: 400 King William Street | Q13: ADELAIDE | R13: SA | S13: 5000 | T13: PO Box 6468 | U13: Halifax Street | V13: ADELAIDE | W13: SA | X13: 5000 | Y13: Craig de Laine | Z13: 08 8418 1129 | AA13: craig.delaine@agn.com.au | AI13: CBD | AJ13: Urban | AK13: Short rural | AL13: Long rural | AN13: AGN (Albury)
B14: AGN (Albury) | C14: Australian Gas Networks Limited (reporting data for Albury) | D14: 19078551685 | E14: Vic | F14: Gas | G14: Distribution | H14: Weighted average price cap | I14: Calendar | J14: December | K14: 5 | L14: 5 | M14: x | O14: Level 6 | P14: 400 King William Street | Q14: ADELAIDE | R14: SA | S14: 5000 | T14: PO Box 6468 | U14: Halifax Street | V14: ADELAIDE | W14: SA | X14: 5000 | Y14: Craig de Laine | Z14: 08 8418 1129 | AA14: craig.delaine@agn.com.au | AI14: CBD | AJ14: Urban | AK14: Short rural | AL14: Long rural
B15: AGN (SA) | C15: Australian Gas Networks Limited (reporting data for SA) | D15: 19078551685 | E15: SA | F15: Gas | G15: Distribution | H15: Weighted average price cap | I15: Financial | J15: June | K15: 5 | L15: 5 | M15: 5 | N15: distribution determination | O15: Level 6 | P15: 400 King William Street | Q15: ADELAIDE | R15: SA | S15: 5000 | T15: PO Box 6468 | U15: Halifax Street | V15: ADELAIDE | W15: SA | X15: 5000 | Y15: Craig de Laine | Z15: 08 8418 1129 | AA15: craig.delaine@agn.com.au | AN15: AGN (SA)
B16: AGN (Victoria) | C16: Australian Gas Networks Limited (reporting data for Victoria) | D16: 19078551685 | E16: Vic | F16: Gas | G16: Distribution | H16: Weighted average price cap | I16: Calendar | J16: December | K16: 5 | L16: 5 | M16: x | AN16: AGN (Victoria)
B17: Amadeus | C17: APT Pipelines (NT) Pty Ltd | D17: 39009737393 | E17: NT | F17: Gas | G17: Transmission | H17: Weighted average price cap | I17: Financial | J17: June | K17: 5 | L17: 5 | M17: x | N17: n/a | O17: Level 19, HSBC Building | P17: 580 George Street | Q17: SYDNEY | R17: NSW | S17: 2000 | T17: Level 19, HSBC Building | U17: 580 George Street | V17: SYDNEY | W17: NSW | X17: 2000 | Y17: Alexandra Curran | Z17: 02 9275 0020 | AA17: alexandra.curran@apa.com.au | AN17: Amadeus
B18: APA GasNet | C18: APA GasNet Australia (Operations) Pty Ltd | D18: 065083009 | E18: Vic | F18: Gas | G18: Transmission | H18: Weighted average price cap | I18: Calendar | J18: December | K18: 5 | L18: 5 | M18: x | O18: Level 19, HSBC Building | P18: 580 George Street | Q18: SYDNEY | R18: NSW | S18: 2000 | T18: PO Box R41 | V18: ROYAL EXCHANGE | W18: NSW | X18: 1225 | Z18: 02 9693 0000 | AN18: APA GasNet
B19: Ausgrid | C19: Ausgrid | D19: 78508211731 | E19: NSW | F19: Electricity | G19: Distribution | H19: Revenue cap | I19: Financial | J19: June | K19: 5 | L19: 5 | M19: 5 | N19: 2014-19 Distribution Determination | O19: 570 George St | Q19: SYDNEY | R19: NSW | S19: 2000 | T19: GPO Box 4009 | V19: SYDNEY | W19: NSW | X19: 2001 | Y19: John Thomson | Z19: (02) 9269 2312 | AA19: john.thomson@ausgrid.com.au | AC19: YES | AD19: YES | AE19: YES | AF19: YES | AG19: NO | AI19: CBD | AJ19: Urban | AK19: Short rural | AL19: Long rural | AN19: Ausgrid
B20: Ausgrid (Tx Assets) | C20: Ausgrid (Tx Assets) | D20: 67505337385 | E20: NSW | F20: Electricity | G20: Distribution | H20: Revenue cap | I20: Financial | J20: June | K20: 5 | L20: 5 | M20: 5 | N20: distribution determination | R20: NSW | AI20: CBD | AJ20: Urban | AK20: Short rural | AL20: Long rural | AN20: Ausgrid (Tx Assets)
B21: AusNet (D) | C21: AusNet Electricity Services Pty Ltd | D21: 91064651118 | E21: Vic | F21: Electricity | G21: Distribution | H21: Revenue cap | I21: Calendar | J21: December | K21: 5 | L21: 5 | M21: 2 | N21: 2016-20 Distribution Determination | O21: Level 32 | P21: 2 Southbank Boulevard | Q21: SOUTHBANK | R21: Vic | S21: 3006 | T21: Locked Bag 14051 | V21: MELBOURNE CITY MAIL CENTRE | W21: VIC | X21: 8001 | AD21: YES | AE21: YES | AF21: YES | AG21: NO | AI21: CBD | AJ21: Urban | AK21: Short rural | AL21: Long rural | AN21: AusNet (D)
B22: AusNet (Gas) | C22: AusNet Gas Services | D22: 086015036 | E22: Vic | F22: Gas | G22: Distribution | H22: Weighted average price cap | I22: Calendar | J22: December | K22: 5 | L22: 5 | M22: X | O22: Level 19, HSBC Building | P22: 580 George Street | Q22: SYDNEY | R22: NSW | S22: 2000 | T22: PO Box R41 | V22: ROYAL EXCHANGE | W22: NSW | X22: 1225 | Y22: Alexandra Curran | Z22: 02 9275 0020 | AA22: alexandra.curran@apa.com.au | AN22: AusNet (Gas)
B23: AusNet (T) | C23: Ausnet Services (Transmission) Ltd | D23: 48116124362 | E23: Vic | F23: Electricity | G23: Transmission | H23: Revenue cap | I23: Financial | J23: March | K23: 5 | L23: 5 | M23: 2 | N23: transmission determination | O23: Level 32 | P23: 2 Southbank Boulevard | Q23: SOUTHBANK | R23: Vic | S23: 3006 | T23: Locked Bag 14051 | V23: MELBOURNE CITY MAIL CENTRE | W23: Vic | X23: 8001 | Y23: Clare Thompson | Z23: 03 9695 6670 | AA23: clare.e.thompson@ausnetservices.com.au | AI23: CBD | AJ23: Urban | AK23: Short rural | AL23: Long rural | AN23: AusNet (T)
B24: Australian Distribution Co. | C24: Australian Distribution Co. | D24: 11222333444 | E24: - | F24: Electricity | G24: Distribution | H24: Revenue cap | I24: Financial | J24: June | K24: 5 | L24: 5 | M24: 2 | N24: distribution determination | O24: 123 Straight Street | Q24: SYDNEY | R24: NSW | S24: 2000 | T24: PO Box 123 | V24: SYDNEY | W24: NSW | X24: 2000 | Y24: Bob Smith | Z24: 02 1234 5678 | AA24: bob@auselec.net.au | AI24: CBD | AJ24: Urban | AK24: Short rural | AL24: Long rural | AN24: Australian Distribution Co.
B25: Australian Distribution Co. (Vic) | C25: Australian Distribution Co. (Victoria) | D25: 11222333444 | E25: Vic | F25: Electricity | G25: Distribution | H25: Revenue cap | I25: Calendar | J25: December | K25: 5 | L25: 5 | M25: 2 | N25: distribution determination | O25: 123 Straight Street | Q25: MELBOURNE | R25: Vic | S25: 3000 | T25: PO Box 123 | V25: MELBOURNE | W25: VIC | X25: 3000 | Y25: Bob Smith | Z25: 02 1234 5678 | AA25: bob@auselec.net.au | AI25: CBD | AJ25: Urban | AK25: Short rural | AL25: Long rural | AN25: Australian Distribution Co. (Vic)
B26: Australian Transmission Co. | C26: Australian Transmission Co. | D26: 11222333444 | E26: - | F26: Electricity | G26: Transmission | H26: Revenue cap | I26: Financial | J26: June | K26: 5 | L26: 5 | M26: 5 | N26: transmission determination | O26: 123 Straight Street | Q26: SYDNEY | R26: NSW | S26: 2000 | T26: PO Box 123 | V26: SYDNEY | W26: NSW | X26: 2000 | Y26: Bob Smith | Z26: 02 1234 5678 | AA26: bob@auselec.net.au | AI26: CBD | AJ26: Urban | AK26: Short rural | AL26: Long rural | AN26: Australian Transmission Co.
B27: CitiPower | C27: CitiPower | D27: 76064651056 | E27: Vic | F27: Electricity | G27: Distribution | H27: Revenue cap | I27: Calendar | J27: December | K27: 5 | L27: 5 | M27: 2 | N27: 2016-20 Distribution Determination | O27: 40 Market Street | Q27: MELBOURNE | R27: Vic | S27: 3000 | T27: Locked Bag 14090 | V27: MELBOURNE | W27: VIC | X27: 8001 | Y27: Hannah Williams | Z27: 03 9683 4088 | AA27: hwilliams@powercor.com.au | AC27: YES | AD27: YES | AE27: NO | AF27: NO | AG27: NO | AI27: CBD | AJ27: Urban | AK27: Short rural | AL27: Long rural | AN27: CitiPower
B28: Directlink | C28: Directlink | D28: 16779340889 | E28: Qld | F28: Electricity | G28: Transmission | H28: Revenue cap | I28: Financial | J28: June | K28: 9 | L28: 5 | M28: 5 | N28: transmission determination | O28: Level 19, HSBC Building | P28: 580 George Street | Q28: SYDNEY | R28: NSW | S28: 2000 | T28: PO Box R41 | V28: ROYAL EXCHANGE | W28: NSW | X28: 1225 | Y28: Scott Young | Z28: 02 9275 0031 | AA28: scott.young@apa.com.au | AI28: CBD | AJ28: Urban | AK28: Short rural | AL28: Long rural | AN28: Directlink
B29: ElectraNet | C29: ElectraNet | D29: 41094482416 | E29: SA | F29: Electricity | G29: Transmission | H29: Revenue cap | I29: Financial | J29: June | K29: 5 | L29: 5 | M29: 5 | N29: transmission determination | O29: 52-55 East Terrace | P29: Rymill Park | Q29: ADELAIDE | R29: SA | S29: 5000 | T29: PO Box 7096 | U29: Hutt Street Post Office | V29: ADELAIDE | W29: SA | X29: 5000 | Y29: Bill Jackson | Z29: 08 8404 7969 | AA29: jackson.bill@electranet.com.au | AI29: CBD | AJ29: Urban | AK29: Short rural | AL29: Long rural | AN29: ElectraNet
B30: Endeavour Energy | C30: Endeavour Energy | D30: 11247365823 | E30: NSW | F30: Electricity | G30: Distribution | H30: Revenue cap | I30: Financial | J30: June | K30: 5 | L30: 5 | M30: 5 | N30: 2014-19 Distribution Determination | O30: 51 Huntingwood Drive | Q30: HUNTINGWOOD | R30: NSW | S30: 2148 | T30: PO Box 811 | V30: SEVEN HILLS | W30: NSW | X30: 1730 | Y30: Jon Hocking | Z30: 02 9853 4386 / 0407 348 156 | AA30: Jon.Hocking@Endeavourenergy.com.au | AC30: NO | AD30: YES | AE30: YES | AF30: YES | AG30: NO | AI30: CBD | AJ30: Urban | AK30: Short rural | AL30: Long rural | AN30: Endeavour Energy
B31: Energex | C31: Energex | D31: 40078849055 | E31: Qld | F31: Electricity | G31: Distribution | H31: Revenue cap | I31: Financial | J31: June | K31: 5 | L31: 5 | M31: 5 | N31: 2015-20 Distribution Determination | O31: 26 Reddacliff Street | Q31: NEWSTEAD | R31: Qld | S31: 4006 | T31: 26 Reddacliff Street | V31: NEWSTEAD | W31: QLD | X31: 4006 | Y31: Nicola Roscoe | Z31: 07 3664 5891 | AA31: nicolaroscoe@energex.com.au | AC31: YES | AD31: YES | AE31: YES | AF31: NO | AG31: NO | AI31: CBD | AJ31: Urban | AK31: Short rural | AL31: Long rural | AN31: Energex
B32: Ergon Energy | C32: Ergon Energy | D32: 50087646062 | E32: Qld | F32: Electricity | G32: Distribution | H32: Revenue cap | I32: Financial | J32: June | K32: 5 | L32: 5 | M32: 5 | N32: 2015-20 Distribution Determination | O32: 22 Walker Street | Q32: TOWNSVILLE | R32: Qld | S32: 4810 | T32: Po Box 264 | V32: FORTITUDE VALLEY | W32: QLD | X32: 4006 | Y32: Jenny Doyle, Group Manager Regulatory Affairs | Z32: (07) 3851 6416 | AA32: jenny.doyle@ergon.com.au | AC32: NO | AD32: YES | AE32: YES | AF32: YES | AG32: NO | AI32: CBD | AJ32: Urban | AK32: Short rural | AL32: Long rural | AN32: Ergon Energy
B33: Essential Energy | C33: Essential Energy | D33: 37428185226 | E33: NSW | F33: Electricity | G33: Distribution | H33: Revenue cap | I33: Financial | J33: June | K33: 5 | L33: 5 | M33: 5 | N33: 2014-19 Distribution Determination | O33: 8 Buller Street | Q33: PORT MACQUARIE | R33: NSW | S33: 2444 | T33: PO Box 5730 | V33: PORT MACQUARIE | W33: NSW | X33: 2444 | Y33: Catherine Waddell | Z33: 02 6338 3553 | AA33: catherine.waddell@essentialenergy.com.au | AE33: YES | AF33: YES | AG33: NO | AI33: CBD | AJ33: Urban | AK33: Short rural | AL33: Long rural | AN33: Essential Energy
B34: Jemena Electricity | C34: Jemena Electricity | D34: 82064651083 | E34: Vic | F34: Electricity | G34: Distribution | H34: Revenue cap | I34: Calendar | J34: December | K34: 5 | L34: 5 | M34: 2 | N34: 2016-20 Distribution Determination | O34: Level 16 | P34: 567 Collins Street | Q34: MELBOURNE | R34: VIC | S34: 3000 | T34: PO Box 16182 | V34: MELBOURNE | W34: VIC | X34: 8001 | Y34: Matthew Serpell | Z34: 03 9173 8231 | AA34: matthew.serpell@jemena.com.au | AE34: YES | AF34: NO | AG34: NO | AI34: CBD | AJ34: Urban | AK34: Short rural | AL34: Long rural | AN34: Jemena Electricity
B35: JGN | C35: Jemena Gas Networks (NSW) Ltd | D35: 003 004 322 | E35: NSW | F35: Gas | G35: Distribution | H35: Weighted average price cap | I35: Financial | J35: June | K35: 5 | L35: 5 | AN35: JGN
B36: Multinet Gas | C36: Multinet Gas (DB No.1) Pty Ltd (ACN 086 026 986), Multinet Gas (DB No.2) Pty Ltd (ACN 086 230 122) | D36: 086026986 | E36: Vic | F36: Gas | G36: Distribution | H36: Weighted average price cap | I36: Calendar | J36: December | K36: 5 | L36: 5 | M36: x | O36: 6 Nexus Court | Q36: MULGRAVE | R36: Vic | S36: 3149 | Y36: Stephanie McDougall | Z36: 03 8846 9538 | AA36: Stephanie.McDougall@ue.com.au | AN36: Multinet Gas
B37: Murraylink | C37: Murraylink | D37: 79181207909 | E37: SA | F37: Electricity | G37: Transmission | H37: Revenue cap | I37: Financial | J37: June | K37: 5 | L37: 5 | M37: 5 | N37: transmission determination | O37: Level 19 | P37: 580 George Street | Q37: SYDNEY | R37: NSW | S37: 2000 | Y37: Scott Young | Z37: 02 9275 0031 | AA37: scott.young@apa.com.au | AI37: CBD | AJ37: Urban | AK37: Short rural | AL37: Long rural | AN37: Murraylink
B38: Power and Water | C38: Power and Water Corporation | D38: 15947352360 | E38: NT | F38: Electricity | G38: Distribution | H38: Revenue cap | I38: Financial | J38: June | K38: 5 | L38: 5 | M38: x | N38: distribution determination | O38: GPO Box 1921 | Q38: DARWIN | R38: NT | S38: 0801 | T38: GPO Box 1921 | V38: DARWIN | W38: NT | X38: 0801 | Y38: Lucy Moon | Z38: 08 8924 5822 | AA38: Lucy.Moon@powerwater.com.au | AC38: YES | AD38: YES | AE38: YES | AF38: YES | AG38: NO | AI38: CBD | AJ38: Urban | AK38: Short rural | AL38: Long rural
B39: Powercor Australia | C39: Powercor Australia | D39: 89064651109 | E39: Vic | F39: Electricity | G39: Distribution | H39: Revenue cap | I39: Calendar | J39: December | K39: 5 | L39: 5 | M39: 2 | N39: 2016-20 Distribution Determination | O39: 40 Market Street | Q39: MELBOURNE | R39: Vic | S39: 3000 | T39: Locked bag 14090 | V39: MELBOURNE | W39: VIC | X39: 8001 | Y39: Hannah Williams | Z39: 03 9683 4088 | AA39: hwilliams@powercor.com.au | AE39: YES | AF39: YES | AG39: NO | AI39: CBD | AJ39: Urban | AK39: Short rural | AL39: Long rural | AN39: Powercor Australia
B40: Powerlink | C40: Queensland Electricity Transmission Corporation Limited trading as Powerlink Queensland | D40: 82078849233 | E40: Qld | F40: Electricity | G40: Transmission | H40: Revenue cap | I40: Financial | J40: June | K40: 5 | L40: 5 | M40: 5 | N40: transmission determination | O40: 33 Harold St | Q40: VIRGINIA | R40: Qld | S40: 4014 | T40: PO Box 1193 | V40: VIRGINIA | W40: QLD | X40: 4014 | Y40: Jennifer Harris | Z40: 07 3860 2667 | AA40: jharris@powerlink.com.au | AI40: CBD | AJ40: Urban | AK40: Short rural | AL40: Long rural | AN40: Powerlink
B41: Roma to Brisbane Pipeline | C41: APT Petroleum Pipelines Limited t/a Roma to Brisbane Pipeline | D41: 009 737 393 | E41: Qld | F41: Gas | G41: Transmission | H41: Weighted average price cap | I41: Financial | J41: June | K41: 5 | L41: 5 | M41: x | N41: n/a | O41: 580 George Street | Q41: SYDNEY | R41: NSW | S41: 2000 | T41: PO Box R41 | V41: ROYAL EXCHANGE | W41: NSW | X41: 1225 | Y41: Mark Allen | Z41: 02 9275 0010 | AA41: mark.allen@apa.com.au | AI41: CBD | AJ41: Urban | AK41: Short rural | AL41: Long rural | AN41: Roma to Brisbane Pipeline
B42: SA Power Networks | C42: SA Power Networks | D42: 13332330749 | E42: SA | F42: Electricity | G42: Distribution | H42: Revenue cap | I42: Financial | J42: June | K42: 5 | L42: 5 | M42: 5 | N42: 2015-20 Distribution Determination | O42: 1 Anzac Highway | Q42: KESWICK | R42: SA | S42: 5035 | T42: GPO Box 77 | V42: ADELAIDE | W42: SA | X42: 5000 | Y42: Richard Sibly | Z42: 08 8404 5613 | AA42: richard.sibly@sapowernetworks.com.au | AE42: YES | AF42: YES | AG42: NO | AI42: CBD | AJ42: Urban | AK42: Short rural | AL42: Long rural | AN42: SA Power Networks
B43: TasNetworks (D) | C43: TasNetworks (D) | D43: 24167357299 | E43: Tas | F43: Electricity | G43: Distribution | H43: Revenue cap | I43: Financial | J43: June | K43: 5 | L43: 5 | M43: 5 | N43: distribution determination | O43: 1-7 Maria Street | Q43: LENAH VALLEY | R43: Tas | S43: 7008 | T43: PO Box 606 | V43: MOONAH | W43: Tas | X43: 7009 | Y43: John Sayers | Z43: 03 6271 6469 | AA43: john.sayers@tasnetworks.com.au | AC43: YES | AD43: YES | AE43: YES | AF43: YES | AG43: YES | AI43: Critical Infrastructure | AJ43: High density commercial | AK43: Urban | AL43: High density rural | AM43: Low density rural | AN43: TasNetworks (D)
B44: TasNetworks (T) | C44: TasNetworks (T) | D44: 24167357299 | E44: Tas | F44: Electricity | G44: Transmission | H44: Revenue cap | I44: Financial | J44: June | K44: 5 | L44: 5 | M44: 5 | N44: transmission determination | O44: 1-7 Maria Street | Q44: LENAH VALLEY | R44: Tas | S44: 7008 | T44: PO Box 606 | V44: MOONAH | W44: Tas | X44: 7009 | Y44: John Sayers | Z44: 03 6271 6469 | AA44: john.sayers@tasnetworks.com.au | AI44: CBD | AJ44: Urban | AK44: Short rural | AL44: Long rural | AN44: TasNetworks (T)
B45: TransGrid | C45: NSW Electricity Networks Operations Pty Ltd trading as TransGrid | D45: 609169959 | E45: NSW | F45: Electricity | G45: Transmission | H45: Revenue cap | I45: Financial | J45: June | K45: 5 | L45: 4 | M45: 5 | N45: transmission determination | O45: 180 Thomas Street | Q45: SYDNEY | R45: NSW | S45: 2000 | T45: PO Box A1000 | V45: SYDNEY SOUTH | W45: NSW | X45: 1235 | Y45: Garrie Chubb | Z45: 0408 210 221 | AA45: garrie.chubb@transgrid.com.au | AI45: CBD | AJ45: Urban | AK45: Short rural | AL45: Long rural | AN45: TransGrid
B46: United Energy | C46: United Energy | D46: 70064651029 | E46: Vic | F46: Electricity | G46: Distribution | H46: Revenue cap | I46: Calendar | J46: December | K46: 5 | L46: 5 | M46: 2 | N46: 2016-20 Distribution Determination | O46: Level 3 | P46: 6 Nexus Court | Q46: MULGRAVE | R46: Vic | S46: 3149 | T46: PO Box 449 | V46: MOUNT WAVERLEY | W46: VIC | X46: 3170 | Y46: Mathew Abraham | Z46: 03 8846 9758 | AA46: mathew.abraham@ue.com.au | AE46: YES | AF46: NO | AG46: NO | AI46: CBD | AJ46: Urban | AK46: Short rural | AL46: Long rural | AN46: United Energy
B47: Western Power (D) | C47: Western Power (D) | D47: 18540492861 | E47: WA | F47: Electricity | G47: Distribution | H47: Revenue cap | I47: Financial | J47: June | K47: 12 | L47: 4 | M47: x | N47: distribution determination | O47: 363 Wellington Street | Q47: PERTH | R47: WA | S47: 6000 | T47: GPO Box L921 | V47: PERTH | W47: WA | X47: 6842 | Y47: Judy Hunter | Z47: 08 9326 6239 | AA47: judy.hunter@westernpower.com.au | AE47: YES | AF47: YES | AG47: NO | AH47: NO | AI47: CBD | AJ47: Urban | AK47: Short rural | AL47: Long rural | AN47: Western Power (D)
B48: Western Power (T) | C48: Western Power (T) | D48: 18540492861 | E48: WA | F48: Electricity | G48: Transmission | H48: Revenue cap | I48: Financial | J48: June | K48: 12 | L48: 4 | M48: x | N48: transmission determination | O48: 363 Wellington Street | Q48: PERTH | R48: WA | S48: 6000 | T48: GPO Box L921 | V48: PERTH | W48: WA | X48: 6842 | Y48: Judy Hunter | Z48: 08 9326 6239 | AA48: judy.hunter@westernpower.com.au | AE48: YES | AF48: YES | AG48: NO | AI48: CBD | AJ48: Urban | AK48: Short rural | AL48: Long rural | AN48: Western Power (T)
W51: For EB & Reset RINs only | AC51: For AARs only
B52: The Reg Year Ending (dms_RYE) must be set to the last year of the regulatory period. For forecast data is is usually (FRCP_y5) for actual it is a single year (CRY). For historical actual data the RYE will need to be set manually in the business details sheet by setting the dms_Multiyear_flag to 1 and putting the correct value in 'dms_Specified_FinalYear. See cells C67:C68 | G52: =IF(dms_RPT="financial",VALUE(LEFT(CRCP_y1,4)-1)&"-"&TEXT(VALUE(RIGHT(CRCP_y1,2)-1),"00"),VALUE(LEFT(CRCP_y1,4)-1)) -> 2013-14 | N52: Drop down selector box for CA & Reset RINs. | O52: For CA & Reset RINs only | W52: for DNSP only | AC52: For DNSPs only | AI52: Reason for interruption | AJ52: dms_Reason_Interruption_Detailed | AK52: dms_Reason_Interruption
B53: dms_Model_List | C53: DELETE NR 'CRY' IF NOT AN ANNUAL RIN (EB, CA , ARR) | E53: dms_RYE_Formula_Result | N53: dms_0203_ProjectType | O53: dms_020303_01_UOM | P53: dms_020501_01_UOM | Q53: dms_020501_02_UOM | R53: dms_020501_03_UOM | S53: dms_020501_04_UOM | T53: dms_020603_01_UOM | U53: dms_040102_01_UOM | V53: dms_040102_04_UOM | W53: dms_030601_01_UOM | X53: dms_030601_02_UOM | Y53: dms_030701_01_UOM | Z53: dms_030702_01_UOM | AA53: dms_030703_01_UOM | AC53: dms_030605_UOM | AD53: dms_03060703_UOM | AI53: Animal | AJ53: Animal impact | AK53: Animal
B54: ARR | C54: ANNUAL REPORTING STATEMENT | E54: =LEFT(dms_SingleYear_FinalYear_Result,2)&RIGHT(dms_SingleYear_FinalYear_Result,2) ->  | F54: =LEFT(dms_SingleYear_FinalYear_Result,2)&RIGHT(dms_SingleYear_FinalYear_Result,2) | H54: Formula errors are OK | N54: New line on new route - single circuit | O54: Circuit line length in km | P54: 0's | Q54: 0's | R54: 0's | S54: 0's | T54: 0's | U54: 0's | V54: days | W54: minutes/customer | X54: minutes/customer | Y54: Customer / km | Z54: % | AA54: km | AC54: number | AD54: number | AJ54: Animal nesting/burrowing, etc and other | AK54: Asset failure
B55: CA | C55: CATEGORY ANALYSIS | E55: =LEFT(dms_SingleYear_FinalYear_Result,2)&RIGHT(dms_SingleYear_FinalYear_Result,2) ->  | F55: =LEFT(dms_SingleYear_FinalYear_Result,2)&RIGHT(dms_SingleYear_FinalYear_Result,2) | H55: Formula errors are OK | N55: New line on new route - dual circuit | O55: Circuit line length in km | P55: 0's | Q55: 0's | R55: 0's | S55: 0's | T55: 0's | U55: 0's | V55: 0's | W55: minutes/customer | X55: minutes/customer | Y55: MWh/customer | Z55: Number of spans | AC55: number | AD55: number | AJ55: Other | AK55: Other
B56: CPI | C56: CPI | N56: New line on new route - other | O56: Circuit line length in km | P56: MVA added | Q56: MVA added | R56: MVA added | S56: MVA added | T56: 0's | U56: 0's | V56: $0s | W56: interruptions/customer | X56: interruptions/customer | Y56: kVA / customer | Z56: Number of spans | AC56: number | AD56: number | AI56: Asset failure | AJ56: LV | AK56: Overloads
B57: EB | C57: ECONOMIC BENCHMARKING | E57: =LEFT(dms_SingleYear_FinalYear_Result,2)&RIGHT(dms_SingleYear_FinalYear_Result,2) ->  | F57: =LEFT(dms_SingleYear_FinalYear_Result,2)&RIGHT(dms_SingleYear_FinalYear_Result,2) | H57: Formula errors are OK | N57: Line rebuild over existing route - single circuit | O57: Circuit line length in km | P57: 0's | Q57: 0's | R57: 0's | S57: 0's | T57: 0's | U57: $0s | V57: 0's | W57: interruptions/customer | X57: interruptions/customer | Z57: Number of spans | AC57: number | AD57: number | AJ57: Distribution substation | AK57: Planned
B58: PTRM | C58: POST TAX REVENUE MODEL | E58: =LEFT(dms_MultiYear_FinalYear_Result,2)&RIGHT(dms_MultiYear_FinalYear_Result,2) -> 2024 | F58: =LEFT(dms_MultiYear_FinalYear_Result,2)&RIGHT(dms_MultiYear_FinalYear_Result,2) | N58: Line rebuild over existing route - dual circuit | O58: Number | P58: total spend $0s | Q58: total spend $0s | R58: total spend $0s | S58: total spend $0s | T58: (per cent) | Z58: Number of spans | AC58: number | AD58: (per cent) | AJ58: HV | AK58: Network business
B59: Reset | C59: REGULATORY REPORTING STATEMENT | E59: =LEFT(dms_MultiYear_FinalYear_Result,2)&RIGHT(dms_MultiYear_FinalYear_Result,2) -> 2024 | F59: =LEFT(dms_MultiYear_FinalYear_Result,2)&RIGHT(dms_MultiYear_FinalYear_Result,2) | H59: Formula errors are OK | N59: Reconductor - Single circuit | O59: Number | P59: net circuit km added | Q59: net circuit km added | R59: net circuit km added | S59: net circuit km added | Z59: Years | AC59: number | AJ59: Zone substation | AK59: Third party
B60: RFM | C60: ROLL FORWARD MODEL | E60: =LEFT(dms_CRCP_FinalYear_Result,2)&RIGHT(dms_CRCP_FinalYear_Result,2) -> 2019 | F60: =LEFT(dms_CRCP_FinalYear_Result,2)&RIGHT(dms_CRCP_FinalYear_Result,2) | N60: Reconductor - Dual circuit | O60: Number | P60: total spend $0s | Q60: total spend $0s | R60: total spend $0s | S60: total spend $0s | Z60: Years | AC60: number | AJ60: Subtransmission | AK60: Unknown
B61: WACC | C61: WEIGHTED AVERAGE COST OF CAPITAL | E61: =LEFT(dms_MultiYear_FinalYear_Result,2)&RIGHT(dms_MultiYear_FinalYear_Result,2) -> 2024 | F61: =LEFT(dms_MultiYear_FinalYear_Result,2)&RIGHT(dms_MultiYear_FinalYear_Result,2) | N61: Other | P61: net circuit km added | Q61: net circuit km added | R61: net circuit km added | S61: net circuit km added | Z61: Trees | AC61: number | AI61: Other | AJ61: insert description of 'other' | AK61: Vegetation
P62: total spend $0s | Q62: total spend $0s | R62: total spend $0s | S62: total spend $0s | Z62: Trees | AC62: number | AI62: Overloads | AJ62: - | AK62: Weather
B63: dms_DataQuality_List | P63: 0's | R63: $0s | Z63: Defects | AC63: number | AI63: Planned | AJ63: - | AK63: 2 - STPIS Exclusion (3.3)(a)
B64: Actual | P64: 0's | Z64: Defects | AC64: number | AI64: Network business | AJ64: Network error | AK64: 3 - STPIS Exclusion (3.3)(a)
B65: Estimate | P65: 0's | Z65: Spans | AC65: number | AJ65: Switching and protection error | AK65: 4 - STPIS Exclusion (3.3)(a)
B66: Consolidated | P66: $0s | Z66: km | AC66: (per cent) | AI66: Third party | AJ66: Fire | AK66: 5 - STPIS Exclusion (3.3)(a)
B67: Recast | Z67: Spans | AC67: (per cent) | AJ67: Other | AK67: 6 - STPIS Exclusion (3.3)(a)
B68: Public | AJ68: Dig-in | AK68: 7 - STPIS Exclusion (3.3)(a)
AJ69: Unauthorised access
B70: For all files either AER or business needs to be able to specify the type of submission | C70: For PTRM & RFM templates we must provide a choice in case they change their form of control - otherwise it is drawn from the business specific lookup table above. | O70: For PTRM files - this field set the text for the named range "DMS_Xfactor" which in all cases is simply the text "x factors" - this saves putting in each old gas PTRM file | W70: for TNSP only | AJ70: Vehicle impact
B71: dms_SourceList | C71: dms_FormControl_Choices | O71: DMS_Xfactor | W71: dms_030601_01_UOM | Y71: dms_030701_01_UOM | Z71: dms_030702_01_UOM | AI71: Unknown | AJ71: Unknown
B72: After appeal | C72: Revenue cap | O72: x factors | W72: % | Y72: Number of spans | Z72: km | AI72: Vegetation | AJ72: Blow-in/Fall-in - NSP responsibility
B73: Draft decision | C73: Revenue yield | W73: number | Y73: Years | Z73: % | AJ73: Grow-in - NSP responsibility
B74: Final decision | C74: Weighted average price cap | W74: number | Y74: Trees | Z74: km | AJ74: Blow-in/Fall-in - Other responsible party
B75: PTRM update 1 | W75: % | Y75: Defects | Z75: number | AJ75: Grow-in - Other responsible party
B76: PTRM update 2 | W76: number | Y76: Number of spans | AI76: Weather
B77: PTRM update 3 | W77: number | Y77: km | AI77: 2 - STPIS Exclusion (3.3)(a)
B78: PTRM update 4 | W78: % | Y78: km | AI78: 3 - STPIS Exclusion (3.3)(a)
B79: PTRM update 5 | W79: number | Y79: Number of spans | AI79: 4 - STPIS Exclusion (3.3)(a)
B80: PTRM update 6 | W80: number | AI80: 5 - STPIS Exclusion (3.3)(a)
B81: PTRM update 7 | W81: % | AI81: 6 - STPIS Exclusion (3.3)(a)
B82: Regulatory proposal | W82: number | AI82: 7 - STPIS Exclusion (3.3)(a)
B83: Reporting | W83: %
B84: Revised regulatory proposal | W84: number
W85: %
W86: number
B90: These are indeces and lookup values for various dates. All step from the value placed in FRCP_y1 on the business and other details worksheet | L90: These date tables are currently used in the Recast templates to provide column headings and conditional formatting
B91: dms_FRCPlength_Num_List | C91: dms_FinalYear_List | D91: dms_CRCPlength_Num_List | E91: dms_CFinalYear_List | F91: dms_FRCP_years | H91: dms_CRCP_years | J91: dms_CRCP_index | L91: CRY from input cell on business sheet | M91: CRY - financial | N91: dms_FinYears | O91: CRY calendar | P91: dms_CalYears
B92: 1 | C92: dms_FRCP_y1 | D92: 1 | E92: CRCP_y1 | F92: =FRCP_y1 -> 2019-20 | G92: dms_FRCP_y1 | H92: =IF(dms_RPT="financial",VALUE(LEFT(dms_FRCP_y1,4)-1)&"-"&TEXT(VALUE(MID(dms_FRCP_y1,3,2)),"00"),VALUE(LEFT(dms_FRCP_y1,4)-1)) -> 2018-19 | I92: dms_CRCP_yZ | J92: 1 | L92: =CRY ->  | M92: =VALUE(LEFT(CRY,4))&"-"&TEXT(MID(CRY,3,2)+1,"00") ->  | N92: dms_CRYf_y1 | O92: =VALUE(LEFT(CRY,4)+1) ->  | P92: dms_CRYc_y1
B93: 2 | C93: dms_FRCP_y2 | D93: 2 | E93: CRCP_y2 | F93: =IF(dms_RPT="financial",VALUE(LEFT(dms_FRCP_y1,4)+1)&"-"&TEXT(VALUE(RIGHT(dms_FRCP_y1,2)+1),"00"),VALUE(LEFT(dms_FRCP_y1,4)+1)) -> 2020-21 | G93: dms_FRCP_y2 | H93: =IF(dms_RPT="financial",VALUE(LEFT(dms_CRCP_yZ,4)-1)&"-"&TEXT(VALUE(MID(dms_CRCP_yZ,3,2)),"00"),VALUE(LEFT(dms_CRCP_yZ,4)-1)) -> 2017-18 | I93: dms_CRCP_yY | J93: 2 | M93: =VALUE(LEFT(dms_CRYf_y1,4)+1)&"-"&TEXT(MID(dms_CRYf_y1,3,2)+2,"00") ->  | N93: dms_CRYf_y2 | O93: =VALUE(LEFT(dms_CRYc_y1,4)+1) ->  | P93: dms_CRYc_y2
B94: 3 | C94: dms_FRCP_y3 | D94: 3 | E94: CRCP_y3 | F94: =IF(dms_RPT="financial",VALUE(LEFT(dms_FRCP_y2,4)+1)&"-"&TEXT(VALUE(RIGHT(dms_FRCP_y2,2)+1),"00"),VALUE(LEFT(dms_FRCP_y2,4)+1)) -> 2021-22 | G94: dms_FRCP_y3 | H94: =IF(dms_RPT="financial",VALUE(LEFT(dms_CRCP_yY,4)-1)&"-"&TEXT(VALUE(MID(dms_CRCP_yY,3,2)),"00"),VALUE(LEFT(dms_CRCP_yY,4)-1)) -> 2016-17 | I94: dms_CRCP_yX | J94: 3 | M94: =VALUE(LEFT(dms_CRYf_y2,4)+1)&"-"&TEXT(MID(dms_CRYf_y2,3,2)+2,"00") ->  | N94: dms_CRYf_y3 | O94: =VALUE(LEFT(dms_CRYc_y2,4)+1) ->  | P94: dms_CRYc_y3
B95: 4 | C95: dms_FRCP_y4 | D95: 4 | E95: CRCP_y4 | F95: =IF(dms_RPT="financial",VALUE(LEFT(dms_FRCP_y3,4)+1)&"-"&TEXT(VALUE(RIGHT(dms_FRCP_y3,2)+1),"00"),VALUE(LEFT(dms_FRCP_y3,4)+1)) -> 2022-23 | G95: dms_FRCP_y4 | H95: =IF(dms_RPT="financial",VALUE(LEFT(dms_CRCP_yX,4)-1)&"-"&TEXT(VALUE(MID(dms_CRCP_yX,3,2)),"00"),VALUE(LEFT(dms_CRCP_yX,4)-1)) -> 2015-16 | I95: dms_CRCP_yW | J95: 4 | M95: =VALUE(LEFT(dms_CRYf_y3,4)+1)&"-"&TEXT(MID(dms_CRYf_y3,3,2)+2,"00") ->  | N95: dms_CRYf_y4 | O95: =VALUE(LEFT(dms_CRYc_y3,4)+1) ->  | P95: dms_CRYc_y4
B96: 5 | C96: dms_FRCP_y5 | D96: 5 | E96: CRCP_y5 | F96: =IF(dms_RPT="financial",VALUE(LEFT(dms_FRCP_y4,4)+1)&"-"&TEXT(VALUE(RIGHT(dms_FRCP_y4,2)+1),"00"),VALUE(LEFT(dms_FRCP_y4,4)+1)) -> 2023-24 | G96: dms_FRCP_y5 | H96: =IF(dms_RPT="financial",VALUE(LEFT(dms_CRCP_yW,4)-1)&"-"&TEXT(VALUE(MID(dms_CRCP_yW,3,2)),"00"),VALUE(LEFT(dms_CRCP_yW,4)-1)) -> 2014-15 | I96: dms_CRCP_yV | J96: 5 | M96: =VALUE(LEFT(dms_CRYf_y4,4)+1)&"-"&TEXT(MID(dms_CRYf_y4,3,2)+2,"00") ->  | N96: dms_CRYf_y5 | O96: =VALUE(LEFT(dms_CRYc_y4,4)+1) ->  | P96: dms_CRYc_y5
B97: 6 | C97: dms_FRCP_y6 | D97: 6 | E97: CRCP_y6 | F97: =IF(dms_RPT="financial",VALUE(LEFT(dms_FRCP_y5,4)+1)&"-"&TEXT(VALUE(RIGHT(dms_FRCP_y5,2)+1),"00"),VALUE(LEFT(dms_FRCP_y5,4)+1)) -> 2024-25 | G97: dms_FRCP_y6 | H97: =IF(dms_RPT="financial",VALUE(LEFT(dms_CRCP_yV,4)-1)&"-"&TEXT(VALUE(MID(dms_CRCP_yV,3,2)),"00"),VALUE(LEFT(dms_CRCP_yV,4)-1)) -> 2013-14 | I97: dms_CRCP_yU | J97: 6 | M97: =VALUE(LEFT(dms_CRYf_y5,4)+1)&"-"&TEXT(MID(dms_CRYf_y5,3,2)+2,"00") ->  | N97: dms_CRYf_y6 | O97: =VALUE(LEFT(dms_CRYc_y5,4)+1) ->  | P97: dms_CRYc_y6
B98: 7 | C98: dms_FRCP_y7 | D98: 7 | E98: CRCP_y7 | F98: =IF(dms_RPT="financial",VALUE(LEFT(dms_FRCP_y6,4)+1)&"-"&TEXT(VALUE(RIGHT(dms_FRCP_y6,2)+1),"00"),VALUE(LEFT(dms_FRCP_y6,4)+1)) -> 2025-26 | G98: dms_FRCP_y7 | H98: =IF(dms_RPT="financial",VALUE(LEFT(dms_CRCP_yU,4)-1)&"-"&TEXT(VALUE(MID(dms_CRCP_yU,3,2)),"00"),VALUE(LEFT(dms_CRCP_yU,4)-1)) -> 2012-13 | I98: dms_CRCP_yT | J98: 7 | M98: =VALUE(LEFT(dms_CRYf_y6,4)+1)&"-"&TEXT(MID(dms_CRYf_y6,3,2)+2,"00") ->  | N98: dms_CRYf_y7 | O98: =VALUE(LEFT(dms_CRYc_y6,4)+1) ->  | P98: dms_CRYc_y7
B99: 8 | C99: dms_FRCP_y8 | D99: 8 | E99: CRCP_y8 | F99: =IF(dms_RPT="financial",VALUE(LEFT(dms_FRCP_y7,4)+1)&"-"&TEXT(VALUE(RIGHT(dms_FRCP_y7,2)+1),"00"),VALUE(LEFT(dms_FRCP_y7,4)+1)) -> 2026-27 | G99: dms_FRCP_y8 | H99: =IF(dms_RPT="financial",VALUE(LEFT(dms_CRCP_yT,4)-1)&"-"&TEXT(VALUE(MID(dms_CRCP_yT,3,2)),"00"),VALUE(LEFT(dms_CRCP_yT,4)-1)) -> 2011-12 | I99: dms_CRCP_yS | J99: 8 | M99: =VALUE(LEFT(dms_CRYf_y7,4)+1)&"-"&TEXT(MID(dms_CRYf_y7,3,2)+2,"00") ->  | N99: dms_CRYf_y8 | O99: =VALUE(LEFT(dms_CRYc_y7,4)+1) ->  | P99: dms_CRYc_y8
B100: 9 | C100: dms_FRCP_y9 | D100: 9 | E100: CRCP_y9 | F100: =IF(dms_RPT="financial",VALUE(LEFT(dms_FRCP_y8,4)+1)&"-"&TEXT(VALUE(RIGHT(dms_FRCP_y8,2)+1),"00"),VALUE(LEFT(dms_FRCP_y8,4)+1)) -> 2027-28 | G100: dms_FRCP_y9 | H100: =IF(dms_RPT="financial",VALUE(LEFT(dms_CRCP_yS,4)-1)&"-"&TEXT(VALUE(MID(dms_CRCP_yS,3,2)),"00"),VALUE(LEFT(dms_CRCP_yS,4)-1)) -> 2010-11 | I100: dms_CRCP_yR | J100: 9 | M100: =VALUE(LEFT(dms_CRYf_y8,4)+1)&"-"&TEXT(MID(dms_CRYf_y8,3,2)+2,"00") ->  | N100: dms_CRYf_y9 | O100: =VALUE(LEFT(dms_CRYc_y8,4)+1) ->  | P100: dms_CRYc_y9
B101: 10 | C101: dms_FRCP_y10 | D101: 10 | E101: CRCP_y10 | F101: =IF(dms_RPT="financial",VALUE(LEFT(dms_FRCP_y9,4)+1)&"-"&TEXT(VALUE(RIGHT(dms_FRCP_y9,2)+1),"00"),VALUE(LEFT(dms_FRCP_y9,4)+1)) -> 2028-29 | G101: dms_FRCP_y10 | H101: =IF(dms_RPT="financial",VALUE(LEFT(dms_CRCP_yR,4)-1)&"-"&TEXT(VALUE(MID(dms_CRCP_yR,3,2)),"00"),VALUE(LEFT(dms_CRCP_yR,4)-1)) -> 2009-10 | I101: dms_CRCP_yQ | J101: 10 | M101: =VALUE(LEFT(dms_CRYf_y9,4)+1)&"-"&TEXT(MID(dms_CRYf_y9,3,2)+2,"00") ->  | N101: dms_CRYf_y10 | O101: =VALUE(LEFT(dms_CRYc_y9,4)+1) ->  | P101: dms_CRYc_y10
B102: 11 | C102: dms_FRCP_y11 | D102: 11 | E102: CRCP_y11 | F102: =IF(dms_RPT="financial",VALUE(LEFT(dms_FRCP_y10,4)+1)&"-"&TEXT(VALUE(RIGHT(dms_FRCP_y10,2)+1),"00"),VALUE(LEFT(dms_FRCP_y10,4)+1)) -> 2029-30 | G102: dms_FRCP_y11 | H102: =IF(dms_RPT="financial",VALUE(LEFT(dms_CRCP_yQ,4)-1)&"-"&TEXT(VALUE(MID(dms_CRCP_yQ,3,2)),"00"),VALUE(LEFT(dms_CRCP_yQ,4)-1)) -> 2008-09 | I102: dms_CRCP_yP | J102: 11 | M102: =VALUE(LEFT(dms_CRYf_y10,4)+1)&"-"&TEXT(MID(dms_CRYf_y10,3,2)+2,"00") ->  | N102: dms_CRYf_y11 | O102: =VALUE(LEFT(dms_CRYc_y10,4)+1) ->  | P102: dms_CRYc_y11
B103: 12 | C103: dms_FRCP_y12 | D103: 12 | E103: CRCP_y12 | F103: =IF(dms_RPT="financial",VALUE(LEFT(dms_FRCP_y11,4)+1)&"-"&TEXT(VALUE(RIGHT(dms_FRCP_y11,2)+1),"00"),VALUE(LEFT(dms_FRCP_y11,4)+1)) -> 2030-31 | G103: dms_FRCP_y12 | H103: =IF(dms_RPT="financial",VALUE(LEFT(dms_CRCP_yP,4)-1)&"-"&TEXT(VALUE(MID(dms_CRCP_yP,3,2)),"00"),VALUE(LEFT(dms_CRCP_yP,4)-1)) -> 2007-08 | I103: dms_CRCP_yO | J103: 12 | M103: =VALUE(LEFT(dms_CRYf_y11,4)+1)&"-"&TEXT(MID(dms_CRYf_y11,3,2)+2,"00") ->  | N103: dms_CRYf_y12 | O103: =VALUE(LEFT(dms_CRYc_y11,4)+1) ->  | P103: dms_CRYc_y12
B104: 13 | C104: dms_FRCP_y13 | D104: 13 | E104: CRCP_y13 | F104: =IF(dms_RPT="financial",VALUE(LEFT(dms_FRCP_y12,4)+1)&"-"&TEXT(VALUE(RIGHT(dms_FRCP_y12,2)+1),"00"),VALUE(LEFT(dms_FRCP_y12,4)+1)) -> 2031-32 | G104: dms_FRCP_y13 | H104: =IF(dms_RPT="financial",VALUE(LEFT(dms_CRCP_yO,4)-1)&"-"&TEXT(VALUE(MID(dms_CRCP_yO,3,2)),"00"),VALUE(LEFT(dms_CRCP_yO,4)-1)) -> 2006-07 | I104: dms_CRCP_yN | J104: 13 | M104: =VALUE(LEFT(dms_CRYf_y12,4)+1)&"-"&TEXT(MID(dms_CRYf_y12,3,2)+2,"00") ->  | N104: dms_CRYf_y13 | O104: =VALUE(LEFT(dms_CRYc_y12,4)+1) ->  | P104: dms_CRYc_y13
B105: 14 | C105: dms_FRCP_y14 | D105: 14 | E105: CRCP_y14 | F105: =IF(dms_RPT="financial",VALUE(LEFT(dms_FRCP_y13,4)+1)&"-"&TEXT(VALUE(RIGHT(dms_FRCP_y13,2)+1),"00"),VALUE(LEFT(dms_FRCP_y13,4)+1)) -> 2032-33 | G105: dms_FRCP_y14 | H105: =IF(dms_RPT="financial",VALUE(LEFT(dms_CRCP_yN,4)-1)&"-"&TEXT(VALUE(MID(dms_CRCP_yN,3,2)),"00"),VALUE(LEFT(dms_CRCP_yN,4)-1)) -> 2005-06 | I105: dms_CRCP_yM | J105: 14 | M105: =VALUE(LEFT(dms_CRYf_y13,4)+1)&"-"&TEXT(MID(dms_CRYf_y13,3,2)+2,"00") ->  | N105: dms_CRYf_y14 | O105: =VALUE(LEFT(dms_CRYc_y13,4)+1) ->  | P105: dms_CRYc_y14
B106: 15 | C106: dms_FRCP_y15 | D106: 15 | E106: CRCP_y15 | F106: =IF(dms_RPT="financial",VALUE(LEFT(dms_FRCP_y14,4)+1)&"-"&TEXT(VALUE(RIGHT(dms_FRCP_y14,2)+1),"00"),VALUE(LEFT(dms_FRCP_y14,4)+1)) -> 2033-34 | G106: dms_FRCP_y15 | H106: =IF(dms_RPT="financial",VALUE(LEFT(dms_CRCP_yM,4)-1)&"-"&TEXT(VALUE(MID(dms_CRCP_yM,3,2)),"00"),VALUE(LEFT(dms_CRCP_yM,4)-1)) -> 2004-05 | I106: dms_CRCP_yL | J106: 15 | M106: =VALUE(LEFT(dms_CRYf_y14,4)+1)&"-"&TEXT(MID(dms_CRYf_y14,3,2)+2,"00") ->  | N106: dms_CRYf_y15 | O106: =VALUE(LEFT(dms_CRYc_y14,4)+1) ->  | P106: dms_CRYc_y15
M107: =VALUE(LEFT(dms_CRYf_y15,4)+1)&"-"&TEXT(MID(dms_CRYf_y15,3,2)+2,"00") ->  | N107: dms_CRYf_y16 | O107: =VALUE(LEFT(dms_CRYc_y15,4)+1) ->  | P107: dms_CRYc_y16
B108: These are drop down lists for businesses to select the correct FRCP_y1 on the business and other details worksheet. This also populates the column headings in the worksheets | M108: =VALUE(LEFT(dms_CRYf_y16,4)+1)&"-"&TEXT(MID(dms_CRYf_y16,3,2)+2,"00") ->  | N108: dms_CRYf_y17 | O108: =VALUE(LEFT(dms_CRYc_y16,4)+1) ->  | P108: dms_CRYc_y17
B109: dms_RCP_fyear_list | C109: dms_CRY_ListF | D109: dms_CRY_ListC | E109: dms_RCP_cyear_list | F109: dms_FRCP_fyear_list | G109: dms_FRCP_ListF | H109: dms_FRCP_ListC | I109: dms_FRCP_cyear_list | M109: =VALUE(LEFT(dms_CRYf_y17,4)+1)&"-"&TEXT(MID(dms_CRYf_y17,3,2)+2,"00") ->  | N109: dms_CRYf_y18 | O109: =VALUE(LEFT(dms_CRYc_y17,4)+1) ->  | P109: dms_CRYc_y18
B110: dms_fy1 | C110: 2006-07 | D110: 2007 | E110: dms_cy1 | F110: dms_frcp_fy1 | G110: 2015-16 | H110: 2016 | I110: dms_crcp_cy1 | M110: =VALUE(LEFT(dms_CRYf_y18,4)+1)&"-"&TEXT(MID(dms_CRYf_y18,3,2)+2,"00") ->  | N110: dms_CRYf_y19 | O110: =VALUE(LEFT(dms_CRYc_y18,4)+1) ->  | P110: dms_CRYc_y19
B111: dms_fy2 | C111: 2007-08 | D111: 2008 | E111: dms_cy2 | F111: dms_frcp_fy2 | G111: 2016-17 | H111: 2017 | I111: dms_crcp_cy2 | M111: =VALUE(LEFT(dms_CRYf_y19,4)+1)&"-"&TEXT(MID(dms_CRYf_y19,3,2)+2,"00") ->  | N111: dms_CRYf_y20 | O111: =VALUE(LEFT(dms_CRYc_y19,4)+1) ->  | P111: dms_CRYc_y20
B112: dms_fy3 | C112: 2008-09 | D112: 2009 | E112: dms_cy3 | F112: dms_frcp_fy3 | G112: 2017-18 | H112: 2018 | I112: dms_crcp_cy3
B113: dms_fy4 | C113: 2009-10 | D113: 2010 | E113: dms_cy4 | F113: dms_frcp_fy4 | G113: 2018-19 | H113: 2019 | I113: dms_crcp_cy4
B114: dms_fy5 | C114: 2010-11 | D114: 2011 | E114: dms_cy5 | F114: dms_frcp_fy5 | G114: 2019-20 | H114: 2020 | I114: dms_crcp_cy5
B115: dms_fy6 | C115: 2011-12 | D115: 2012 | E115: dms_cy6 | F115: dms_frcp_fy6 | G115: 2020-21 | H115: 2021 | I115: dms_crcp_cy6
B116: dms_fy7 | C116: 2012-13 | D116: 2013 | E116: dms_cy7 | F116: dms_frcp_fy7 | G116: 2021-22 | H116: 2022 | I116: dms_crcp_cy7
B117: dms_fy8 | C117: 2013-14 | D117: 2014 | E117: dms_cy8 | F117: dms_frcp_fy8 | G117: 2022-23 | H117: 2023 | I117: dms_crcp_cy8 | L117: 2005-06 | M117: 2006
B118: dms_fy9 | C118: 2014-15 | D118: 2015 | E118: dms_cy9 | F118: dms_frcp_fy9 | G118: 2023-24 | H118: 2024 | I118: dms_crcp_cy9 | L118: 2006-07 | M118: 2007
B119: dms_fy10 | C119: 2015-16 | D119: 2016 | E119: dms_cy10 | F119: dms_frcp_fy10 | G119: 2024-25 | H119: 2025 | I119: dms_crcp_cy10 | L119: 2007-08 | M119: 2008
B120: dms_fy11 | C120: 2016-17 | D120: 2017 | E120: dms_cy11 | F120: dms_frcp_fy11 | G120: 2025-26 | H120: 2026 | I120: dms_crcp_cy11 | L120: 2008-09 | M120: 2009
B121: dms_fy12 | C121: 2017-18 | D121: 2018 | E121: dms_cy12 | F121: dms_frcp_fy12 | G121: 2026-27 | H121: 2027 | I121: dms_crcp_cy12 | L121: 2009-10 | M121: 2010
B122: dms_fy13 | C122: 2018-19 | D122: 2019 | E122: dms_cy13 | F122: dms_frcp_fy13 | G122: 2027-28 | H122: 2028 | I122: dms_crcp_cy13 | L122: 2010-11 | M122: 2011
B123: dms_fy14 | C123: 2019-20 | D123: 2020 | E123: dms_cy14 | F123: dms_frcp_fy14 | G123: 2028-29 | H123: 2029 | I123: dms_crcp_cy14 | L123: 2011-12 | M123: 2012
B124: dms_fy15 | C124: 2019-20 | D124: 2020 | E124: dms_cy15 | F124: dms_frcp_fy15 | G124: 2029-30 | H124: 2030 | I124: dms_crcp_cy15 | L124: 2012-13 | M124: 2013
B125: dms_fy16 | C125: 2020-21 | D125: 2021 | E125: dms_cy16 | L125: 2013-14 | M125: 2014
B126: dms_fy17 | C126: 2021-22 | D126: 2022 | E126: dms_cy17 | L126: 2014-15 | M126: 2015
B127: dms_fy18 | C127: 2022-23 | D127: 2023 | E127: dms_cy18 | L127: 2015-16 | M127: 2016
B128: dms_fy19 | C128: 2023-24 | D128: 2024 | E128: dms_cy19 | L128: 2016-17 | M128: 2017
B129: dms_fy20 | C129: 2024-25 | D129: 2025 | E129: dms_cy20 | L129: 2017-18 | M129: 2018
L130: 2018-19 | M130: 2019
L131: 2019-20 | M131: 2020
L132: 2020-21 | M132: 2021
L133: 2021-22 | M133: 2022
L134: 2022-23 | M134: 2023
L135: 2023-24 | M135: 2024
L136: 2024-25 | M136: 2025
L137: 2025-26 | M137: 2026
L138: 2026-27 | M138: 2027
L139: 2027-28 | M139: 2028
L140: 2028-29 | M140: 2029
L141: 2029-30 | M141: 2030
L142: 2030-31 | M142: 2031
L143: 2031-32 | M143: 2032
L144: 2032-33 | M144: 2033
L145: 2033-34 | M145: 2034
L146: 2034-35 | M146: 2035
L147: 2035-36 | M147: 2036

Sheet Contents
B1: =SheetHeader -> REGULATORY REPORTING STATEMENT
B2: =dms_TradingName -> TasNetworks (D)
B3: =CONCATENATE(FRCP_y1," to ",FRCP_y5) -> 2019-20 to 2023-24
B4: CONTENTS
E7: 1. Business and other details | L7: 2. Expenditure | S7: 3. Economic benchmarking
E27: 4. Alternative control services | L27: 5. Network information | S27: 6. Service & quality
E34: 7. Other templates

Sheet Instructions
B2: =CONCATENATE(dms_Segment," Network Service Provider") -> Distribution Network Service Provider
B3: =IF(dms_Model="Reset","Regulatory Proposal RIN Template","Annual Reporting RIN") -> Regulatory Proposal RIN Template
C4: =CONCATENATE("This template is to be used by ",dms_TradingName," to fulfil its reporting obligations to the AER.") -> This template is to be used by TasNetworks (D) to fulfil its reporting obligations to the AER.
C5: INSTRUCTIONS
C6: Complete the Business & other details worksheet before entering data or values in any other worksheets. The Business & other details worksheet is linked to other worksheets within the workbook and automatically generates certain column headings and conditional formatting.
C8: Identifying CONFIDENTIAL INFORMATION: Please use the macro at the top of each worksheet to identify confidential information. See Returning completed responses below, for how to deal with confidential and public information.
C9: -Do this by selecting the cell or cells that contain confidential information and then run the Mark selected cells as CONFIDENTIAL macro. This will format the cells a specific colour that is identified by the AER's database which in turn marks that information as confidential. -To reverse this, select the cell or cells and run the Return cells to NON-CONFIDENTIAL macro.
C11: UNITS OF MEASURE All amounts are to be unrounded and reported on a one for one basis: that is 1000 is to be entered as '1000'. Applicable units of measure may be identified in the table column headings or row descriptors.
C13: COLOUR CODING OF INPUT / NON-INPUT CELLS:
D14: Yellow = Input cell (mandatory)
D15: Darker yellow = input cell (mandatory)
D16: Orange = input cell (if data available)
D17: Grey = Not applicable/No inputs required
D18: PLEASE DO NOT ENTER TEXT into cells that are to contain numeric data.
C21: WORKSHEET NAVIGATION Many tables in the worksheets have been "grouped" to allow for easy navigation. To ungroup or group data use the outline symbols in the left margin (for Row groupings) or above the columns (for column groupings).
C23: RETURNING COMPLETED RESPONSES Please return two (2) files to the AER: 1. A confidential version which must contain a complete set of all responses with confidential information marked using the Mark selection CONFIDENTIAL macro and which has been completed using the locked template file provided by the AER. 2. A public version with confidential information either removed completely or aggregated in some form together with writtten consent to disclose the public version of the response. Use the drop down box on the Business and other details worksheet to identify the file as either confidential ('consolidated') or public.
C25: SUBMITTING AMENDED DATA TO THE AER If an NSP wishes to correct data previously submitted to the AER it should resubmit that data using the original completed submission as the starting point. Please make any necessary changes to the data. Data that is not being amended should be left unchanged. NSPs must identify the reason for the amendments in the Amendment Reason box on the Business and other details worksheet. NSPs may provide further details regarding any amendments in the Amendments worksheet. .
C26: NSP may use Amended Data macro to highlight cells that contain amended data. NB: if data is also CONFIDENTIAL, re-apply the Confidentiality macro after applying the Amended macro
C27: Please resubmit two (2) files - a confidential version and a public version of the amended submission to the AER

Sheet Business & other details
B1: =IF(dms_DataQuality="backcast",INDEX(dms_Worksheet_List,MATCH(dms_Model,dms_Model_List))&" BACKCAST",INDEX(dms_Worksheet_List,MATCH(dms_Model,dms_Model_List))) -> REGULATORY REPORTING STATEMENT
B2: =INDEX(dms_TradingNameFull_List,MATCH(dms_TradingName,dms_TradingName_List)) -> TasNetworks (D)
B3: =IF(SUM(dms_SingleYear_Model)>0,CONCATENATE(CRY," to ",FRY),CONCATENATE(FRCP_y1," to ",dms_MultiYear_FinalYear_Result)) -> 2019-20 to 2023-24
B4: BUSINESS & OTHER DETAILS
B7: Instructions
B8: Complete the following business details regulatory template before entering data or values in any other regulatory template. This regulatory template is linked to other cells within the spreadsheet and automatically generates column headings and conditional formatting to distinguish business specific input and non-input cells.
B10: SUBMISSION PARTICULARS INPUT SHEETS
B12: ENTITY DETAILS
B14: Short name | C14: TasNetworks (D) | F14: Select business name from drop down list first
B15: ACN / ABN | C15: =INDEX(dms_ABN_List,MATCH(dms_TradingName,dms_TradingName_List)) -> 24167357299
B18: Business address | C18: Address 1 | E18: =INDEX(dms_Addr1_List,MATCH(dms_TradingName,dms_TradingName_List)) -> 1-7 Maria Street
D19: Address 2 | E19: =IF(ISBLANK(INDEX(dms_Addr2_List,MATCH(dms_TradingName,dms_TradingName_List))),"",INDEX(dms_Addr2_List,MATCH(dms_TradingName,dms_TradingName_List))) -> 
C20: Suburb | E20: =INDEX(dms_Suburb_List,MATCH(dms_TradingName,dms_TradingName_List)) -> LENAH VALLEY
D21: State | E21: =INDEX(dms_State_List,MATCH(dms_TradingName,dms_TradingName_List)) -> Tas | F21: p/code | G21: =INDEX(dms_PostCode_List,MATCH(dms_TradingName,dms_TradingName_List)) -> 7008
B23: Postal address | C23: Address 1 | E23: =INDEX(dms_PAddr1_List,MATCH(dms_TradingName,dms_TradingName_List)) -> PO Box 606
D24: Address 2 | E24: =IF(ISBLANK(INDEX(dms_PAddr2_List,MATCH(dms_TradingName,dms_TradingName_List))),"",INDEX(dms_PAddr2_List,MATCH(dms_TradingName,dms_TradingName_List))) -> 
C25: Suburb | E25: =INDEX(dms_PSuburb_List,MATCH(dms_TradingName,dms_TradingName_List)) -> MOONAH
D26: State | E26: =INDEX(dms_PState_List,MATCH(dms_TradingName,dms_TradingName_List)) -> Tas | F26: p/code | G26: =INDEX(dms_PPostCode_List,MATCH(dms_TradingName,dms_TradingName_List)) -> 7009
B29: Contact name/s | C29: =INDEX(dms_ContactName1_List,MATCH(dms_TradingName,dms_TradingName_List)) -> John Sayers
B30: Contact phone/s | C30: =INDEX(dms_ContactPh1_List,MATCH(dms_TradingName,dms_TradingName_List)) -> 03 6271 6469
B31: Contact email address/s | C31: =INDEX(dms_ContactEmail_List,MATCH(dms_TradingName,dms_TradingName_List)) -> john.sayers@tasnetworks.com.au
B33: REGULATORY CONTROL PERIODS
B35: Forthcoming regulatory control period | C35: 2019-20 | D35: =dms_FRCP_y2 -> 2020-21 | E35: =dms_FRCP_y3 -> 2021-22 | F35: =dms_FRCP_y4 -> 2022-23 | G35: =dms_FRCP_y5 -> 2023-24 | H35: =dms_FRCP_y6 -> 2024-25 | I35: =dms_FRCP_y7 -> 2025-26 | J35: =dms_FRCP_y8 -> 2026-27 | K35: =dms_FRCP_y9 -> 2027-28 | L35: =dms_FRCP_y10 -> 2028-29
B38: Current regulatory control period | C38: =dms_CRCP_FirstYear_Result -> 2014-15 | D38: =IF(dms_RPT="financial",VALUE(LEFT(CRCP_y1,4)+1)&"-"&TEXT(MID(CRCP_y1,3,2)+2,"00"),VALUE(LEFT(CRCP_y1,4)+1)) -> 2015-16 | E38: =IF(dms_RPT="financial",VALUE(LEFT(CRCP_y2,4)+1)&"-"&TEXT(VALUE(MID(CRCP_y2,3,2)+2),"00"),VALUE(LEFT(CRCP_y2,4)+1)) -> 2016-17 | F38: =IF(dms_RPT="financial",VALUE(LEFT(CRCP_y3,4)+1)&"-"&TEXT(VALUE(MID(CRCP_y3,3,2)+2),"00"),VALUE(LEFT(CRCP_y3,4)+1)) -> 2017-18 | G38: =IF(dms_RPT="financial",VALUE(LEFT(CRCP_y4,4)+1)&"-"&TEXT(VALUE(MID(CRCP_y4,3,2)+2),"00"),VALUE(LEFT(CRCP_y4,4)+1)) -> 2018-19 | H38: =IF(dms_RPT="financial",VALUE(LEFT(CRCP_y5,4)+1)&"-"&TEXT(VALUE(MID(CRCP_y5,3,2)+2),"00"),VALUE(LEFT(CRCP_y5,4)+1)) -> 2019-20 | I38: =IF(dms_RPT="financial",VALUE(LEFT(CRCP_y6,4)+1)&"-"&TEXT(VALUE(MID(CRCP_y6,3,2)+2),"00"),VALUE(LEFT(CRCP_y6,4)+1)) -> 2020-21 | J38: =IF(dms_RPT="financial",VALUE(LEFT(CRCP_y7,4)+1)&"-"&TEXT(VALUE(MID(CRCP_y7,3,2)+2),"00"),VALUE(LEFT(CRCP_y7,4)+1)) -> 2021-22 | K38: =IF(dms_RPT="financial",VALUE(LEFT(CRCP_y8,4)+1)&"-"&TEXT(VALUE(MID(CRCP_y8,3,2)+2),"00"),VALUE(LEFT(CRCP_y8,4)+1)) -> 2022-23 | L38: =IF(dms_RPT="financial",VALUE(LEFT(CRCP_y9,4)+1)&"-"&TEXT(VALUE(MID(CRCP_y9,3,2)+2),"00"),VALUE(LEFT(CRCP_y9,4)+1)) -> 2023-24
B41: Previous regulatory control period | C41: =IF(dms_RPT="financial",VALUE(LEFT(PRCP_y2,4)-1)&"-"&TEXT(VALUE(MID(PRCP_y2,3,2)),"00"),VALUE(LEFT(PRCP_y2,4)-1)) -> 2009-10 | D41: =IF(dms_RPT="financial",VALUE(LEFT(PRCP_y3,4)-1)&"-"&TEXT(VALUE(MID(PRCP_y3,3,2)),"00"),VALUE(LEFT(PRCP_y3,4)-1)) -> 2010-11 | E41: =IF(dms_RPT="financial",VALUE(LEFT(PRCP_y4,4)-1)&"-"&TEXT(VALUE(MID(PRCP_y4,3,2)),"00"),VALUE(LEFT(PRCP_y4,4)-1)) -> 2011-12 | F41: =IF(dms_RPT="financial",VALUE(LEFT(PRCP_y5,4)-1)&"-"&TEXT(VALUE(RIGHT(PRCP_y5,2)-1),"00"),VALUE(LEFT(PRCP_y5,4)-1)) -> 2012-13 | G41: =IF(dms_RPT="financial",VALUE(LEFT(CRCP_y1,4)-1)&"-"&TEXT(VALUE(RIGHT(CRCP_y1,2)-1),"00"),VALUE(LEFT(CRCP_y1,4)-1)) -> 2013-14
B44: Commencing regulatory year | C44: 2019-20 | D44: CRY
B46: Last completed regulatory year | C46: 2023-24 | D46: dms_FinalYear
B52: Source | C52: Reporting | E52: Please select the correct submission type from the dropdown list.
B53: Data quality (actual, estimate, public, consolidated) | C53: Consolidated
B54: Amended RIN submission - amendment reason
B55: Submission Date | C55: dd/mm/yyyy | D55: dms_SubmissionDate | E55: Please enter date this file submitted to AER (dd/mm/yyyy)
B56: EBSS - First application of scheme in forthcoming period? | C56: No
B57: Sector | C57: =INDEX(dms_Sector_List,MATCH(dms_TradingName,dms_TradingName_List)) -> Electricity | D57: dms_Sector | E57: =INDEX(dms_Sector_List,MATCH(dms_TradingName,dms_TradingName_List))
B58: Segment | C58: =INDEX(dms_Segment_List,MATCH(dms_TradingName,dms_TradingName_List)) -> Distribution | D58: dms_Segment | E58: =INDEX(dms_Segment_List,MATCH(dms_TradingName,dms_TradingName_List))
B59: Regulatory Year Ending | C59: =IF(dms_MultiYear_Flag=1,LEFT(dms_Specified_FinalYear,2)&RIGHT(dms_Specified_FinalYear,2),INDEX(dms_RYE_Formula_Result,MATCH(dms_Model,dms_Model_List))) -> 2024 | D59: dms_RYE | E59: =IF(dms_MultiYear_Flag=1,LEFT(dms_Specified_FinalYear,2)&RIGHT(dms_Specified_FinalYear,2),INDEX(dms_RYE_Formula_Result,MATCH(dms_Model,dms_Model_List)))
B60: Reporting Period Type | C60: =INDEX(dms_RPT_List,MATCH(dms_TradingName,dms_TradingName_List)) -> Financial | D60: dms_RPT | E60: =INDEX(dms_RPT_List,MATCH(dms_TradingName,dms_TradingName_List))
B61: Model or RIN Type | C61: Reset | D61: dms_Model | E61: Drop down selection
B62: Security Classification | C62: Public | D62: dms_Classification | E62: Always Public
B63: Template - version no. | C63: 5 | D63: dms_TemplateNumber
B64: Dollar $ real month | C64: =INDEX(dms_RPTMonth_List,MATCH(dms_TradingName,dms_TradingName_List)) -> June | D64: dms_RPTMonth | E64: =INDEX(dms_RPTMonth_List,MATCH(dms_TradingName,dms_TradingName_List))
B65: Dollar $ real (the last month before the FRCP_y1) | C65: =CONCATENATE(dms_RPTMonth)&" "&VALUE((LEFT(dms_CRCP_FinalYear_Result,2)&RIGHT(dms_CRCP_FinalYear_Result,2))) -> June 2019 | D65: dms_DollarReal | E65: =IF(SUM(dms_SingleYear_Model)>0,CONCATENATE(dms_RPTMonth)&" "&VALUE((LEFT(CRY,2))&RIGHT(CRY,2)),CONCATENATE(dms_RPTMonth)&" "&VALUE((LEFT(dms_CRCP_FinalYear_Result,2)&RIGHT(dms_CRCP_FinalYear_Result,2))))
B66: Form of control | C66: =INDEX(dms_FormControl_List,MATCH(dms_TradingName,dms_TradingName_List)) -> Revenue cap | D66: dms_FormControl | E66: =INDEX(dms_FormControl_List,MATCH(dms_TradingName,dms_TradingName_List))
B67: RIN response - version no. | C67: 1 | D67: dms_RINversion
B68: Jurisdiction | C68: =INDEX(dms_JurisdictionList,MATCH(dms_TradingName,dms_TradingName_List)) -> Tas | D68: dms_Jurisdiction | E68: =INDEX(dms_JurisdictionList,MATCH(dms_TradingName,dms_TradingName_List))
B69: Backcast Multiyear EB, CA or ARR? | C69: 0 | D69: dms_MultiYear_Flag | E69: 1=y, 0-n
C70: 2013 | D70: dms_Specified_FinalYear | E70: The result here is returned to dms_CRCP_FinalYear_Result if dms_MultiYear_Flag is set to 1
B71: Single Year Model T/F | C71: =IF(dms_Model="EB",1,0) -> 0 | D71: dms_EB
C72: =IF(dms_Model="CA",1,0) -> 0 | D72: dms_CA | E72: =dms_SingleYear_Model
C73: =IF(dms_Model="ARR",1,0) -> 0 | D73: dms_ARR
B74: Single Year Final Year Reference | C74: CRY | D74: dms_SingleYear_FinalYear_Ref | E74: This is the reference for EB, CA & ARR RINs
B75: Single Year Final Year Result | C75: =INDIRECT(dms_SingleYear_FinalYear_Ref) ->  | D75: dms_SingleYear_FinalYear_Result | E75: =INDIRECT(dms_SingleYear_FinalYear_Ref) | I75: Formula errors OK
B76: FRCP length in years | C76: =INDEX(dms_FRCPlength_List,MATCH(dms_TradingName,dms_TradingName_List)) -> 5 | D76: dms_FRCPlength_Num | E76: =INDEX(dms_FRCPlength_List,MATCH(dms_TradingName,dms_TradingName_List))
B77: Multi Year Final Year Reference | C77: =INDEX(dms_FinalYear_List,MATCH(dms_FRCPlength_Num,dms_FRCPlength_Num_List)) -> dms_FRCP_y5 | D77: dms_MultiYear_FinalYear_Ref | E77: =INDEX(dms_FinalYear_List,MATCH(dms_FRCPlength_Num,dms_FRCPlength_Num_List))
B78: Multi Year Final Year Result | C78: =IF(dms_MultiYear_Flag=0,INDIRECT(dms_MultiYear_FinalYear_Ref),dms_Specified_FinalYear) -> 2023-24 | D78: dms_MultiYear_FinalYear_Result | E78: =IF(dms_MultiYear_Flag=0,INDIRECT(dms_MultiYear_FinalYear_Ref),dms_Specified_FinalYear) | I78: Formula errors OK
B79: CRCP length in years | C79: =INDEX(dms_CRCPlength_List,MATCH(dms_TradingName,dms_TradingName_List)) -> 5 | D79: dms_CRCPlength_Num | E79: =INDEX(dms_CRCPlength_List,MATCH(dms_TradingName,dms_TradingName_List))
B80: CRCP Final Year Reference | C80: =INDEX(dms_CFinalYear_List,MATCH(dms_CRCPlength_Num,dms_CRCPlength_Num_List)) -> CRCP_y5 | D80: dms_CRCP_FinalYear_Ref | E80: =INDEX(dms_CFinalYear_List,MATCH(dms_CRCPlength_Num,dms_CRCPlength_Num_List))
B81: CRCP First Year Result | C81: =INDEX(dms_CRCP_years,MATCH(dms_CRCPlength_Num,dms_CRCP_index)) -> 2014-15 | D81: dms_CRCP_FirstYear_Result | E81: =INDEX(dms_CRCP_years,MATCH(dms_CRCPlength_Num,dms_CRCP_index))
B82: CRCP Final Year Result | C82: =IF(dms_MultiYear_Flag=0,(IF(SUM(dms_SingleYear_Model)>0,CRY,dms_CRCP_yZ)),dms_Specified_FinalYear) -> 2018-19 | D82: dms_CRCP_FinalYear_Result | E82: =IF(dms_MultiYear_Flag=0,(IF(SUM(dms_SingleYear_Model)>0,CRY,dms_CRCP_yZ)),dms_Specified_FinalYear)
B83: Table 6.6.3 - Public lighting repair - no. business days | C83: =INDEX(dms_663_List,MATCH(dms_TradingName,dms_TradingName_List)) -> 5 | D83: dms_663
B84: Distribution Determination Reference | C84: =INDEX(dms_DeterminationRef_List,MATCH(dms_TradingName,dms_TradingName_List)) -> distribution determination | D84: dms_DeterminationRef
B85: Backcast templates only - unit of measure | C85: $0s | D85: dms_Backcast_UOM | E85: If the cover sheet is for Backcast data ensure to apply dms_Backcast_UOM named range to this field. Otherwise, do not apply this named range.
B86: EB/CA Unit of Measure for Monetary Values | C86: $0s | D86: dms_dollar_nom_UOM | E86: If the cover sheet is attached to an EB files make sure this field is set
B88: discard this record? | C88: NO | D88: dms_DISCARD | E88: If record is to be discarded from DB set this flag to YES
B89: CBD Feeder for this business | C89: =INDEX(dms_CBD_flag,MATCH(dms_TradingName,dms_TradingName_List)) -> YES | D89: dms_CBD_flag_NSP
B90: Urban Feeder for this business | C90: =INDEX(dms_Urban_flag,MATCH(dms_TradingName,dms_TradingName_List)) -> YES | D90: dms_Urban_flag_NSP
B91: Short rural Feeder for this business | C91: =INDEX(dms_ShortRural_flag,MATCH(dms_TradingName,dms_TradingName_List)) -> YES | D91: dms_ShortRural_flag_NSP
B92: Long rural Feeder for this business | C92: =INDEX(dms_LongRural_flag,MATCH(dms_TradingName,dms_TradingName_List)) -> YES | D92: dms_LongRural_flag_NSP
B95: USES NAMED RANGES FLAG | C95: yes | D95: dms_Defined_Names_Used

Sheet CPI series
B1: =SheetHeader -> REGULATORY REPORTING STATEMENT
B2: =dms_TradingName -> TasNetworks (D)
B3: =dms_Reg_Year_Span -> 2019-20 to 2023-24
B4: CPI SERIES
B8: NOMINATED CPI SERIES
B10: Name of CPI series | C10: ABS CPI Index - June (rebased)
C12: =CRCP_y1 -> 2014-15 | D12: =CRCP_y2 -> 2015-16 | E12: =CRCP_y3 -> 2016-17 | F12: =CRCP_y4 -> 2017-18 | G12: =CRCP_y5 -> 2018-19 | H12: =FRCP_y1 -> 2019-20 | I12: =FRCP_y2 -> 2020-21 | J12: =FRCP_y3 -> 2021-22 | K12: =FRCP_y4 -> 2022-23 | L12: =FRCP_y5 -> 2023-24
B13: Series data | C13: 107.5 | D13: 108.6 | E13: 110.7 | F13: =ROUND(113.41215,1) -> 113.4 | G13: =ROUND(116.190747675,1) -> 116.2 | H13: =ROUND(119.037420993038,1) -> 119 | I13: =ROUND(121.953837807367,1) -> 122 | J13: =ROUND(124.941706833647,1) -> 124.9 | K13: =ROUND(128.002778651072,1) -> 128 | L13: =ROUND(131.138846728023,1) -> 131.1

Sheet 2.1 Expenditure summary
B1: =SheetHeader -> REGULATORY REPORTING STATEMENT
B2: =dms_TradingName -> TasNetworks (D)
B3: =dms_Reg_Year_Span -> 2019-20 to 2023-24
B4: 2.1 EXPENDITURE SUMMARY & RECONCILIATION
B8: 2.1.1 - STANDARD CONTROL SERVICES CAPEX
C9: =CONCATENATE("Forecast ($0's, real ", dms_DollarReal, ")") -> Forecast ($0's, real June 2019)
C10: =CRCP_y4 -> 2017-18 | D10: =CRCP_y5 -> 2018-19 | E10: =FRCP_y1 -> 2019-20 | F10: =FRCP_y2 -> 2020-21 | G10: =FRCP_y3 -> 2021-22 | H10: =FRCP_y4 -> 2022-23 | I10: =FRCP_y5 -> 2023-24
B11: Replacement expenditure | C11: 55302194 | D11: 47959170 | E11: 74058300.6 | F11: 75456245.34 | G11: 69628355.59 | H11: 65490032.07 | I11: 64532988.86
B12: Connections | C12: 20015045.89 | D12: 19996179.75 | E12: 17257473.47 | F12: 18659045.73 | G12: 18887191.05 | H12: 19673052.1 | I12: 20001119.76
B13: Augmentation Expenditure | C13: 10555875.04 | D13: 9080178.477 | E13: 8461450.167 | F13: 7494667.572 | G13: 8610963.897 | H13: 8511012.411 | I13: 7713831.628
B14: Non-network | C14: 19482539.67 | D14: 17680983.67 | E14: 31859695.2 | F14: 25346280.6 | G14: 17661372.22 | H14: 33277115.91 | I14: 34982933.22
B15: Capitalised network overheads | C15: 22114482.25 | D15: 21602938.74 | E15: 19754029.78 | F15: 19630620.94 | G15: 19385037.37 | H15: 19141909.63 | I15: 18901213.16
B16: Capitalised corporate overheads | C16: 1778616.055 | D16: 1737473.807 | E16: 9243972.02 | F16: 9186222.396 | G16: 9071300.644 | H16: 8957528.109 | I16: 8844893.3
B17: capcons (included in the above) | C17: 11720738.4 | D17: 11596803.32 | E17: 6003147.796 | F17: 6047957.313 | G17: 6308243.637 | H17: 6452937.987 | I17: 6581975.678
B20: 2.1.2 - STANDARD CONTROL SERVICES OPEX BY CATEGORY
C21: =CONCATENATE("Forecast ($0's, real ", dms_DollarReal, ")") -> Forecast ($0's, real June 2019)
C22: =CRCP_y4 -> 2017-18 | D22: =CRCP_y5 -> 2018-19
B23: Vegetation management | C23: 21073396.6 | D23: 20569445.2
B24: Maintenance | C24: 11056643.13 | D24: 10792233.41
B25: Emergency response | C25: 7950322.767 | D25: 7760197.918
B26: Non-network | C26: 20597119.3 | D26: 20597119.3
B27: Metering
B28: Network overheads | C28: 18438053.33 | D28: 18416865.53
B29: Corporate overheads | C29: 23626405.66 | D29: 23061401.32
B30: Balancing Item | C30: -20597119.3 | D30: -20597119.3
B31: Total Opex | C31: =SUM(C23:C30) -> 82144821.49 | D31: =SUM(D23:D30) -> 80600143.38
B34: 2.1.3 - ALTERNATIVE CONTROL SERVICES CAPEX
C35: =CONCATENATE("Forecast ($0's, real ", dms_DollarReal, ")") -> Forecast ($0's, real June 2019)
C36: =CRCP_y4 -> 2017-18 | D36: =CRCP_y5 -> 2018-19 | E36: =FRCP_y1 -> 2019-20 | F36: =FRCP_y2 -> 2020-21 | G36: =FRCP_y3 -> 2021-22 | H36: =FRCP_y4 -> 2022-23 | I36: =FRCP_y5 -> 2023-24
B37: Connections
B38: Metering | C38: ='[3]4.2 Metering'!E49+'[3]4.2 Metering'!E46+'[3]4.2 Metering'!E31 -> 1535044.564 | D38: ='[3]4.2 Metering'!F49+'[3]4.2 Metering'!F46+'[3]4.2 Metering'!F31 -> 0 | E38: ='[3]4.2 Metering'!G49+'[3]4.2 Metering'!G46+'[3]4.2 Metering'!G31 -> 0 | F38: ='[3]4.2 Metering'!H49+'[3]4.2 Metering'!H46+'[3]4.2 Metering'!H31 -> 0 | G38: ='[3]4.2 Metering'!I49+'[3]4.2 Metering'!I46+'[3]4.2 Metering'!I31 -> 0 | H38: ='[3]4.2 Metering'!J49+'[3]4.2 Metering'!J46+'[3]4.2 Metering'!J31 -> 0 | I38: ='[3]4.2 Metering'!K49+'[3]4.2 Metering'!K46+'[3]4.2 Metering'!K31 -> 0
B39: Public lighting | C39: =SUM('[3]4.1 Public lighting'!D14,'[3]4.1 Public lighting'!D18) -> 3519834.138 | D39: =SUM('[3]4.1 Public lighting'!E14,'[3]4.1 Public lighting'!E18) -> 3513698.811 | E39: =SUM('[3]4.1 Public lighting'!F14,'[3]4.1 Public lighting'!F18) -> 3600352.916 | F39: =SUM('[3]4.1 Public lighting'!G14,'[3]4.1 Public lighting'!G18) -> 3390101.79 | G39: =SUM('[3]4.1 Public lighting'!H14,'[3]4.1 Public lighting'!H18) -> 1812103.071 | H39: =SUM('[3]4.1 Public lighting'!I14,'[3]4.1 Public lighting'!I18) -> 1806086.153 | I39: =SUM('[3]4.1 Public lighting'!J14,'[3]4.1 Public lighting'!J18) -> 1835221.482
B40: Fee and quoted
B41: Total Capex | C41: =SUM(C37:C40) -> 5054878.702 | D41: 3513698.811 | E41: 3600352.916 | F41: 3390101.79 | G41: 1812103.071 | H41: 1806086.153 | I41: 1835221.482
B44: 2.1.4 - ALTERNATIVE CONTROL SERVICES OPEX
C45: =CONCATENATE("Forecast ($0's, real ", dms_DollarReal, ")") -> Forecast ($0's, real June 2019)
C46: =CRCP_y4 -> 2017-18 | D46: =CRCP_y5 -> 2018-19 | E46: =FRCP_y1 -> 2019-20 | F46: =FRCP_y2 -> 2020-21 | G46: =FRCP_y3 -> 2021-22 | H46: =FRCP_y4 -> 2022-23 | I46: =FRCP_y5 -> 2023-24
B47: Connections
B48: Metering | C48: ='[3]4.2 Metering'!E34+'[3]4.2 Metering'!E37+'[3]4.2 Metering'!E40+'[3]4.2 Metering'!E43+'[3]4.2 Metering'!E52 -> 2501285.562 | D48: ='[3]4.2 Metering'!F34+'[3]4.2 Metering'!F37+'[3]4.2 Metering'!F40+'[3]4.2 Metering'!F43+'[3]4.2 Metering'!F52 -> 2464985.138 | E48: ='[3]4.2 Metering'!G34+'[3]4.2 Metering'!G37+'[3]4.2 Metering'!G40+'[3]4.2 Metering'!G43+'[3]4.2 Metering'!G52 -> 2031153.215 | F48: ='[3]4.2 Metering'!H34+'[3]4.2 Metering'!H37+'[3]4.2 Metering'!H40+'[3]4.2 Metering'!H43+'[3]4.2 Metering'!H52 -> 1985408.635 | G48: ='[3]4.2 Metering'!I34+'[3]4.2 Metering'!I37+'[3]4.2 Metering'!I40+'[3]4.2 Metering'!I43+'[3]4.2 Metering'!I52 -> 1867750.273 | H48: ='[3]4.2 Metering'!J34+'[3]4.2 Metering'!J37+'[3]4.2 Metering'!J40+'[3]4.2 Metering'!J43+'[3]4.2 Metering'!J52 -> 1978989.783 | I48: ='[3]4.2 Metering'!K34+'[3]4.2 Metering'!K37+'[3]4.2 Metering'!K40+'[3]4.2 Metering'!K43+'[3]4.2 Metering'!K52 -> 1898443.712
B49: Public lighting | C49: =SUM('[3]4.1 Public lighting'!D22) -> 2149047.499 | D49: =SUM('[3]4.1 Public lighting'!E22) -> 2222219.603 | E49: =SUM('[3]4.1 Public lighting'!F22) -> 2310204.651 | F49: =SUM('[3]4.1 Public lighting'!G22) -> 2326399.122 | G49: =SUM('[3]4.1 Public lighting'!H22) -> 2160374.257 | H49: =SUM('[3]4.1 Public lighting'!I22) -> 2176568.728 | I49: =SUM('[3]4.1 Public lighting'!J22) -> 2192542.941
B50: Fee and quoted | C50: =SUM('[3]4.3 Fee-based services'!C16:C81)+SUM('[3]4.4 Quoted services'!C11:C36) -> 5824307.146 | D50: =SUM('[3]4.3 Fee-based services'!D16:D81)+SUM('[3]4.4 Quoted services'!D11:D36) -> 5826365.412 | E50: =SUM('[3]4.3 Fee-based services'!E16:E81)+SUM('[3]4.4 Quoted services'!E11:E36) -> 6984920.089 | F50: =SUM('[3]4.3 Fee-based services'!F16:F81)+SUM('[3]4.4 Quoted services'!F11:F36) -> 6910991.618 | G50: =SUM('[3]4.3 Fee-based services'!G16:G81)+SUM('[3]4.4 Quoted services'!G11:G36) -> 6836809.383 | H50: =SUM('[3]4.3 Fee-based services'!H16:H81)+SUM('[3]4.4 Quoted services'!H11:H36) -> 6762298.324 | I50: =SUM('[3]4.3 Fee-based services'!I16:I81)+SUM('[3]4.4 Quoted services'!I11:I36) -> 6687662.833
B51: Total Opex | C51: =SUM(C47:C50) -> 10474640.21 | D51: 10513570.15 | E51: 11326277.96 | F51: 11222799.37 | G51: 10864933.91 | H51: 10917856.84 | I51: 10778649.49
B54: 2.1.5 - DUAL FUNCTION ASSETS CAPEX
C55: =CONCATENATE("Forecast ($0's, real ", dms_DollarReal, ")") -> Forecast ($0's, real June 2019)
C56: =CRCP_y4 -> 2017-18 | D56: =CRCP_y5 -> 2018-19 | E56: =FRCP_y1 -> 2019-20 | F56: =FRCP_y2 -> 2020-21 | G56: =FRCP_y3 -> 2021-22 | H56: =FRCP_y4 -> 2022-23 | I56: =FRCP_y5 -> 2023-24
B57: Replacement expenditure
B58: Connections
B59: Augmentation Expenditure
B60: Non-network
B61: Capitalised network overheads
B62: Capitalised corporate overheads
B63: capcons (included in the above)
B66: 2.1.6 - DUAL FUNCTION ASSETS OPEX BY CATEGORY
C67: =CONCATENATE("Forecast ($0's, real ", dms_DollarReal, ")") -> Forecast ($0's, real June 2019)
C68: =CRCP_y4 -> 2017-18 | D68: =CRCP_y5 -> 2018-19
B69: Vegetation management
B70: Maintenance
B71: Emergency response
B72: Non-network
B73: Metering
B74: Network overheads
B75: Corporate overheads
B90: Total Opex | C90: =SUM(C69:C89) -> 0 | D90: =SUM(D69:D89) -> 0
B93: 2.1.7 - STANDARD CONTROL SERVICES CAPCONS
C94: =CONCATENATE("Forecast ($0's, real ", dms_DollarReal, ")") -> Forecast ($0's, real June 2019)
C95: =CRCP_y4 -> 2017-18 | D95: =CRCP_y5 -> 2018-19 | E95: =FRCP_y1 -> 2019-20 | F95: =FRCP_y2 -> 2020-21 | G95: =FRCP_y3 -> 2021-22 | H95: =FRCP_y4 -> 2022-23 | I95: =FRCP_y5 -> 2023-24
B96: Replacement expenditure
B97: Connections | C97: 11720738.4 | D97: 11596803.32 | E97: 6003147.796 | F97: 6047957.313 | G97: 6308243.637 | H97: 6452937.987 | I97: 6581975.678
B98: Augmentation Expenditure
B99: Non-network
B100: Capitalised network overheads
B101: Capitalised corporate overheads
B102: Total Capcons | C102: =SUM(C96:C101) -> 11720738.4 | D102: =SUM(D96:D101) -> 11596803.32 | E102: 6003147.796 | F102: 6047957.313 | G102: 6308243.637 | H102: 6452937.987 | I102: 6581975.678
B105: 2.1.8 - STANDARD CONTROL SERVICES CAPITALISED OVERHEADS
C106: =CONCATENATE("Forecast ($0's, real ", dms_DollarReal, ")") -> Forecast ($0's, real June 2019)
C107: =CRCP_y4 -> 2017-18 | D107: =CRCP_y5 -> 2018-19 | E107: =FRCP_y1 -> 2019-20 | F107: =FRCP_y2 -> 2020-21 | G107: =FRCP_y3 -> 2021-22 | H107: =FRCP_y4 -> 2022-23 | I107: =FRCP_y5 -> 2023-24
B108: Replacement expenditure | C108: 14929439.42 | D108: 13987299.24 | E108: 20764242.22 | F108: 20643317.44 | G108: 19681445.48 | H108: 18909672.5 | I108: 18759207.11
B109: Connections | C109: 5651142.153 | D109: 6133544.339 | E109: 5060553.984 | F109: 5368784.807 | G109: 5612936.962 | H109: 5941453.84 | I109: 6210215.731
B110: Augmentation Expenditure | C110: 2832669.537 | D110: 2672654.07 | E110: 2358238.245 | F110: 2069297.011 | G110: 2401598.253 | H110: 2464800.322 | I110: 2273155.718
B111: Non-network | C111: 479847.1894 | D111: 546914.8934 | E111: 814967.3475 | F111: 735444.0796 | G111: 760357.3184 | H111: 783511.0703 | I111: 503527.9067
B112: capcons (included in the above)
B113: Total Capitalised Overheads | C113: =SUM(C108:C111) -> 23893098.3 | D113: =SUM(D108:D111) -> 23340412.55 | E113: 28998001.8 | F113: 28816843.34 | G113: 28456338.01 | H113: 28099437.73 | I113: 27746106.46

Sheet 2.2 Repex
B1: =SheetHeader -> REGULATORY REPORTING STATEMENT
B2: =dms_TradingName -> TasNetworks (D)
B3: =dms_Reg_Year_Span -> 2019-20 to 2023-24
B4: 2.2 REPEX
B6: There is ONE table on this worksheet. The table has been sub-grouped for easy navigation. See the Instructions sheet on how to group or ungroup tables.
B8: 2.2.1 - REPLACEMENT EXPENDITURE, VOLUMES AND ASSET FAILURES BY ASSET CATEGORY
B9: EXPENDITURE
E10: =CONCATENATE("EXPENDITURE ($0's, real ", dms_DollarReal,")") -> EXPENDITURE ($0's, real June 2019)
B11: ASSET GROUP | C11: ASSET CATEGORY | E11: =CRCP_y4 -> 2017-18 | F11: =CRCP_y5 -> 2018-19 | G11: =FRCP_y1 -> 2019-20 | H11: =FRCP_y2 -> 2020-21 | I11: =FRCP_y3 -> 2021-22 | J11: =FRCP_y4 -> 2022-23 | K11: =FRCP_y5 -> 2023-24
B12: POLES BY: HIGHEST OPERATING VOLTAGE ; MATERIAL TYPE | C12: ˂ = 1 kV; Wood - replacement of staked pole | E12: 1074441.438 | F12: 1075835.905 | G12: 2481588.149 | H12: 2625618.699 | I12: 2675951.598 | J12: 2611328.007 | K12: 2698398.966
C13: ˂ = 1 kV; Wood - replacement of unstaked pole | E13: 403801.068 | F13: 401960.6676 | G13: 1122997.169 | H13: 1258527.799 | I13: 1313500.632 | J13: 1317606.052 | K13: 1472601.875
C14: > 1 kV & < = 11 kV; Wood - replacement of staked pole | E14: 390517.9074 | F14: 390400.1018 | G14: 855990.849 | H14: 904692.5072 | I14: 921897.9592 | J14: 899634.3437 | K14: 929631.3511
C15: > 1 kV & < = 11 kV; Wood - replacement of unstaked pole | E15: 222795.4728 | F15: 222728.2632 | G15: 588984.5291 | H15: 659420.3164 | I15: 689383.8721 | J15: 692638.831 | K15: 769208.2419
C16: ˃ 11 kV & < = 22 kV; Wood - replacement of staked pole | E16: 1472703.952 | F16: 1469917.192 | G16: 3863738.511 | H16: 4085189.277 | I16: 4164857.594 | J16: 4064277.279 | K16: 4199794.732
C17: ˃ 11 kV & < = 22 kV; Wood - replacement of unstaked pole | E17: 1137809.409 | F17: 1139808.67 | G17: 3584952.501 | H17: 4012813.876 | I17: 4185253.567 | J17: 4199620.498 | K17: 4693404.299
C18: > 22 kV & < = 66 kV; Wood - replacement of staked pole | E18: 13656.77567 | F18: 13652.6559 | G18: 62825.01644 | H18: 64333.6894 | I18: 69346.30666 | J18: 67671.60993 | K18: 69928.02199
C19: > 22 kV & < = 66 kV; Wood - replacement of unstaked pole | E19: 9932.200489 | F19: 9929.204293 | G19: 54971.88939 | H19: 60312.83381 | I19: 61187.91764 | J19: 59710.24405 | K19: 69928.02199
C20: > 66 kV & < = 132 kV; Wood - replacement of staked pole | E20: 0 | F20: 0 | G20: 0 | H20: 0 | I20: 0 | J20: 0 | K20: 0
C21: > 66 kV & < = 132 kV; Wood - replacement of unstaked pole | E21: 0 | F21: 0 | G21: 0 | H21: 0 | I21: 0 | J21: 0 | K21: 0
C22: > 132 kV; Wood - replacement of staked pole | E22: 0 | F22: 0 | G22: 0 | H22: 0 | I22: 0 | J22: 0 | K22: 0
C23: > 132 kV; Wood - replacement of unstaked pole | E23: 0 | F23: 0 | G23: 0 | H23: 0 | I23: 0 | J23: 0 | K23: 0
C24: ˂ = 1 kV; Concrete | E24: 15725.98411 | F24: 15721.24013 | G24: 0 | H24: 0 | I24: 0 | J24: 0 | K24: 0
C25: > 1 kV & < = 11 kV; Concrete | E25: 0 | F25: 0 | G25: 51045.32586 | H25: 52271.12264 | I25: 53029.52863 | J25: 51748.87818 | K25: 53474.36976
C26: ˃ 11 kV & < = 22 kV; Concrete | E26: 0 | F26: 0 | G26: 310198.5187 | H26: 317647.5914 | I26: 322256.3663 | J26: 314473.952 | K26: 324959.6316
C27: > 22 kV & < = 66 kV; Concrete | E27: 0 | F27: 0 | G27: 0 | H27: 0 | I27: 0 | J27: 0 | K27: 0
C28: > 66 kV & < = 132 kV; Concrete | E28: 0 | F28: 0 | G28: 0 | H28: 0 | I28: 0 | J28: 0 | K28: 0
C29: > 132 kV; Concrete | E29: 0 | F29: 0 | G29: 0 | H29: 0 | I29: 0 | J29: 0 | K29: 0
C30: ˂ = 1 kV; Steel | E30: 1714132.268 | F30: 1713615.174 | G30: 0 | H30: 0 | I30: 0 | J30: 0 | K30: 0
C31: > 1 kV & < = 11 kV; Steel | E31: 0 | F31: 0 | G31: 0 | H31: 0 | I31: 0 | J31: 0 | K31: 0
C32: ˃ 11 kV & < = 22 kV; Steel | E32: 0 | F32: 0 | G32: 0 | H32: 0 | I32: 0 | J32: 0 | K32: 0
C33: > 22 kV & < = 66 kV; Steel | E33: 0 | F33: 0 | G33: 0 | H33: 0 | I33: 0 | J33: 0 | K33: 0
C34: > 66 kV & < = 132 kV; Steel | E34: 0 | F34: 0 | G34: 0 | H34: 0 | I34: 0 | J34: 0 | K34: 0
C35: > 132 kV; Steel | E35: 0 | F35: 0 | G35: 0 | H35: 0 | I35: 0 | J35: 0 | K35: 0
C36: Other | E36: 0 | F36: 0 | G36: 0 | H36: 0 | I36: 0 | J36: 0 | K36: 0
B37: POLE TOP STRUCTURES BY: HIGHEST OPERATING VOLTAGE | C37: ˂ = 1 kV | E37: 523019.8108 | F37: 522867.926 | G37: 2955555.736 | H37: 1575670.24 | I37: 1580200.658 | J37: 1583639.05 | K37: 1580553.75
C38: > 1 kV & < = 11 kV | E38: 104992.8245 | F38: 104962.3346 | G38: 0 | H38: 0 | I38: 0 | J38: 0 | K38: 0
C39: ˃ 11 kV & < = 22 kV | E39: 444383.2097 | F39: 444254.161 | G39: 0 | H39: 0 | I39: 0 | J39: 0 | K39: 0
C40: > 22 kV & < = 66 kV | E40: 4320.692365 | F40: 4319.437638 | G40: 0 | H40: 0 | I40: 0 | J40: 0 | K40: 0
C41: > 66 kV & < = 132 kV | E41: 0 | F41: 0 | G41: 0 | H41: 0 | I41: 0 | J41: 0 | K41: 0
C42: > 132 kV | E42: 0 | F42: 0 | G42: 0 | H42: 0 | I42: 0 | J42: 0 | K42: 0
C43: Other | E43: 0 | F43: 0 | G43: 0 | H43: 0 | I43: 0 | J43: 0 | K43: 0
B44: STAKING WOODEN POLES BY: HIGHEST OPERATING VOLTAGE | C44: ˂ = 1 Kv | D44: for year wooden pole staked | E44: 1074441.438 | F44: 1075835.905 | G44: 505145.7917 | H44: 569723.8562 | I44: 528125.9711 | J44: 530391.5973 | K44: 528358.6303
C45: > 1 kV & < = 11 kV | D45: for year wooden pole staked | E45: 390517.9074 | F45: 390400.1018 | G45: 174243.3269 | H45: 196306.076 | I45: 181945.8376 | J45: 182726.3735 | K45: 182025.9915
C46: ˃ 11 kV & < = 22 kV | D46: for year wooden pole staked | E46: 1472703.952 | F46: 1469917.192 | G46: 786492.8149 | H46: 886430.9921 | I46: 821976.5495 | J46: 825502.7756 | K46: 822338.6609
C47: > 22 kV & < = 66 kV | D47: for year wooden pole staked | E47: 13656.77567 | F47: 13652.6559 | G47: 12788.50105 | H47: 13959.54318 | I47: 13686.19132 | J47: 13744.9042 | K47: 13692.2206
C48: > 66 kV & < = 132 kV | D48: for year wooden pole staked | E48: 0 | F48: 0 | G48: 0 | H48: 0 | I48: 0 | J48: 0 | K48: 0
C49: > 132 kV | D49: for year wooden pole staked | E49: 0 | F49: 0 | G49: 0 | H49: 0 | I49: 0 | J49: 0 | K49: 0
B50: OVERHEAD CONDUCTORS BY: Highest operating voltage; Number of phases (at HV) | C50: ˂ = 1 kV | D50: per km | E50: 5384015.856 | F50: 5382394.858 | G50: 5781365.953 | H50: 3790754.858 | I50: 3806655.347 | J50: 3370456.128 | K50: 3360689.636
C51: > 1 kV & < = 11 kV | D51: per km | E51: 345719.9637 | F51: 345602.9858 | G51: 1574353.612 | H51: 1586793.914 | I51: 1592348.242 | J51: 966196.2119 | K51: 963907.0857
C52: ˃ 11 kV & < = 22 kV ; SWER | D52: per km | E52: 13824.71579 | F52: 13820.03806 | G52: 106831.138 | H52: 89818.52342 | I52: 90132.91937 | J52: 44168.96969 | K52: 44064.32392
C53: ˃ 11 kV & < = 22 kV ; Single-Phase | D53: per km | E53: 116955.1837 | F53: 116915.6107 | G53: 0 | H53: 0 | I53: 0 | J53: 0 | K53: 0
C54: ˃ 11 kV & < = 22 kV ; Multiple-Phase | D54: per km | E54: 4736517.483 | F54: 4735655.892 | G54: 17125081.09 | H54: 17145688.07 | I54: 16976765.29 | J54: 10479990.44 | K54: 10683606.21
C55: > 22 kV & < = 66 kV | D55: per km | E55: 0 | F55: 0 | G55: 16868.07441 | H55: 17963.70468 | I55: 18026.58387 | J55: 11042.24242 | K55: 11016.08098
C56: > 66 kV & < = 132 kV | D56: per km | E56: 0 | F56: 0 | G56: 0 | H56: 0 | I56: 0 | J56: 0 | K56: 0
C57: > 132 kV | D57: per km | E57: 0 | F57: 0 | G57: 0 | H57: 0 | I57: 0 | J57: 0 | K57: 0
C58: Other | D58: per km | E58: 0 | F58: 0 | G58: 0 | H58: 0 | I58: 0 | J58: 0 | K58: 0
B59: UNDERGROUND CABLES BY: Highest operating voltage | C59: ˂ = 1 kV | D59: per km | E59: 2526164.24 | F59: 2525951.016 | G59: 6568567.917 | H59: 6572714.518 | I59: 6587954.252 | J59: 6599520.552 | K59: 6416716.514
C60: > 1 kV & < = 11 kV | D60: per km | E60: 1078250.386 | F60: 1018468.329 | G60: 89025.19353 | H60: 342565.4611 | I60: 89849.52437 | J60: 90341.33767 | K60: 89900.02913
C61: > 11 kV & < = 22 kV | D61: per km | E61: 652626.6159 | F61: 652891.6439 | G61: 153770.7888 | H61: 441620.5341 | I61: 155194.633 | J61: 156044.1287 | K61: 155281.8685
C62: > 22 kV & < = 33 kV | D62: per km | E62: 0 | F62: 0 | G62: 0 | H62: 0 | I62: 0 | J62: 0 | K62: 0
C63: > 33 kV & < = 66 kV | D63: per km | E63: 0 | F63: 0 | G63: 0 | H63: 0 | I63: 0 | J63: 0 | K63: 0
C64: > 66 kV & < = 132 kV | D64: per km | E64: 0 | F64: 0 | G64: 0 | H64: 0 | I64: 0 | J64: 0 | K64: 0
C65: > 132 kV | D65: per km | E65: 0 | F65: 0 | G65: 0 | H65: 0 | I65: 0 | J65: 0 | K65: 0
C66: Other | D66: per km | E66: 0 | F66: 0 | G66: 536645.5997 | H66: 537355.1322 | I66: 539962.8311 | J66: 541941.9619 | K66: 540166.0699
B67: SERVICE LINES BY: Connection voltage; Customer type; Connection complexity | C67: ˂ = 11 kV ; Residential ; Simple Type | D67: per number of spans | E67: 2566683.314 | F67: 2479621.496 | G67: 5800855.693 | H67: 5558941.409 | I67: 5477151.453 | J67: 5511558.6 | K67: 5353560.01
C68: ˂ = 11 kV ; Commercial & Industrial ; Simple Type | D68: per number of spans | E68: 613020.5061 | F68: 597602.9168 | G68: 1127979.403 | H68: 1085389.255 | I68: 1071385.894 | J68: 1077791.436 | K68: 1049600.395
C69: ˂ = 11 kV ; Residential ; Complex Type | D69: per number of spans | E69: 0 | F69: 0 | G69: 0 | H69: 0 | I69: 0 | J69: 0 | K69: 0
C70: ˂ = 11 kV ; Commercial & Industrial ; Complex Type | D70: per number of spans | E70: 0 | F70: 0 | G70: 0 | H70: 0 | I70: 0 | J70: 0 | K70: 0
C71: ˂ = 11 kV ; Subdivision ; Complex Type | D71: per number of spans | E71: 0 | F71: 0 | G71: 0 | H71: 0 | I71: 0 | J71: 0 | K71: 0
C72: > 11 kV & < = 22 kV ; Commercial & Industrial | D72: per number of spans | E72: 0 | F72: 0 | G72: 0 | H72: 0 | I72: 0 | J72: 0 | K72: 0
C73: > 11 kV & < = 22 kV ; Subdivision | D73: per number of spans | E73: 0 | F73: 0 | G73: 0 | H73: 0 | I73: 0 | J73: 0 | K73: 0
C74: > 22 kV & < = 33 kV ; Commercial & Industrial | D74: per number of spans | E74: 0 | F74: 0 | G74: 0 | H74: 0 | I74: 0 | J74: 0 | K74: 0
C75: > 22 kV & < = 33 kV ; Subdivision | D75: per number of spans | E75: 0 | F75: 0 | G75: 0 | H75: 0 | I75: 0 | J75: 0 | K75: 0
C76: > 33 kV & < = 66 kV ; Commercial & Industrial | D76: per number of spans | E76: 0 | F76: 0 | G76: 0 | H76: 0 | I76: 0 | J76: 0 | K76: 0
C77: > 33 kV & < = 66 kV ; Subdivision | D77: per number of spans | E77: 0 | F77: 0 | G77: 0 | H77: 0 | I77: 0 | J77: 0 | K77: 0
C78: > 66 kV & < = 132 kV ; Commercial & Industrial | D78: per number of spans | E78: 0 | F78: 0 | G78: 0 | H78: 0 | I78: 0 | J78: 0 | K78: 0
C79: > 66 kV & < = 132 kV ; Subdivision | D79: per number of spans | E79: 0 | F79: 0 | G79: 0 | H79: 0 | I79: 0 | J79: 0 | K79: 0
C80: > 132 kV ; Commercial & Industrial | D80: per number of spans | E80: 0 | F80: 0 | G80: 0 | H80: 0 | I80: 0 | J80: 0 | K80: 0
C81: > 132 kV ; Subdivision | D81: per number of spans | E81: 0 | F81: 0 | G81: 0 | H81: 0 | I81: 0 | J81: 0 | K81: 0
C82: Other | D82: per number of spans | E82: 0 | F82: 0 | G82: 0 | H82: 0 | I82: 0 | J82: 0 | K82: 0
B83: TRANSFORMERS BY: Mounting type; Highest operating voltage; Ampere rating; Number of phases (at LV) | C83: Pole Mounted ; < = 22kV ; < = 60 kVA ; Single Phase | E83: 1076019.457 | F83: 1069800.377 | G83: 1211389.748 | H83: 4403403.16 | I83: 1479408.254 | J83: 4820611.893 | K83: 1631454.488
C84: Pole Mounted ; < = 22kV ; > 60 kVA and < = 600 kVA ; Single Phase | E84: 13762.80251 | F84: 13678.30005 | G84: 0 | H84: 0 | I84: 22464.61221 | J84: 0 | K84: 0
C85: Pole Mounted ; < = 22kV ; > 600 kVA ; Single Phase | E85: 0 | F85: 0 | G85: 0 | H85: 0 | I85: 0 | J85: 0 | K85: 0
C86: Pole Mounted ; < = 22kV ; < = 60 kVA ; Multiple Phase | E86: 155905.8371 | F86: 155004.7466 | G86: 173055.6783 | H86: 581581.5494 | I86: 214406.9933 | J86: 781720.8475 | K86: 296628.0887
C87: Pole Mounted ; < = 22kV ; > 60 kVA and < = 600 kVA ; Multiple Phase | E87: 1420440.216 | F87: 1411718.831 | G87: 1445278.044 | H87: 1670718.601 | I87: 2044279.711 | J87: 1898954.926 | K87: 2278674.659
C88: Pole Mounted ; < = 22kV ; > 600 kVA ; Multiple Phase | E88: 0 | F88: 0 | G88: 0 | H88: 0 | I88: 0 | J88: 0 | K88: 0
C89: Kiosk Mounted ; < = 22kV ; < = 60 kVA ; Single Phase | E89: 0 | F89: 0 | G89: 0 | H89: 0 | I89: 0 | J89: 0 | K89: 0
C90: Kiosk Mounted ; < = 22kV ; > 60 kVA and < = 600 kVA ; Single Phase | E90: 0 | F90: 0 | G90: 0 | H90: 0 | I90: 0 | J90: 0 | K90: 0
C91: Kiosk Mounted ; < = 22kV ; > 600 kVA ; Single Phase | E91: 0 | F91: 0 | G91: 0 | H91: 0 | I91: 0 | J91: 0 | K91: 0
C92: Kiosk Mounted ; < = 22kV ; < = 60 kVA ; Multiple Phase | E92: 0 | F92: 0 | G92: 0 | H92: 0 | I92: 0 | J92: 0 | K92: 0
C93: Kiosk Mounted ; < = 22kV ; > 60 kVA and < = 600 kVA ; Multiple Phase | E93: 66249.16472 | F93: 82303.00045 | G93: 0 | H93: 0 | I93: 0 | J93: 0 | K93: 0
C94: Kiosk Mounted ; < = 22kV ; > 600 kVA ; Multiple Phase | E94: 66249.16472 | F94: 65842.40036 | G94: 0 | H94: 0 | I94: 0 | J94: 0 | K94: 0
C95: Ground Outdoor / Indoor Chamber Mounted; ˂ 22 kV ; < = 60 kVA ; Single Phase | E95: 0 | F95: 0 | G95: 0 | H95: 0 | I95: 0 | J95: 0 | K95: 0
C96: Ground Outdoor / Indoor Chamber Mounted; ˂ 22 kV ; > 60 kVA and < = 600 kVA ; Single Phase | E96: 0 | F96: 0 | G96: 0 | H96: 0 | I96: 0 | J96: 0 | K96: 0
C97: Ground Outdoor / Indoor Chamber Mounted; ˂ 22 kV ; > 600 kVA ; Single Phase | E97: 0 | F97: 0 | G97: 0 | H97: 0 | I97: 0 | J97: 0 | K97: 0
C98: Ground Outdoor / Indoor Chamber Mounted; ˂ 22 kV ; < = 60 kVA ; Multiple Phase | E98: 0 | F98: 0 | G98: 0 | H98: 0 | I98: 0 | J98: 0 | K98: 0
C99: Ground Outdoor / Indoor Chamber Mounted; ˂ 22 kV ; > 60 kVA and < = 600 kVA ; Multiple Phase | E99: 2379509.315 | F99: 2504384.225 | G99: 5465512.904 | H99: 5225646.333 | I99: 5864455.03 | J99: 5449872.121 | K99: 5952493.255
C100: Ground Outdoor / Indoor Chamber Mounted; ˂ 22 kV ; > 600 kVA ; Multiple Phase | E100: 3786789.231 | F100: 6903968.35 | G100: 0 | H100: 0 | I100: 0 | J100: 0 | K100: 0
C101: Ground Outdoor / Indoor Chamber Mounted; > = 22 kV & < = 33 kV ; < = 15 MVA | E101: 0 | F101: 0 | G101: 0 | H101: 2513.788752 | I101: 0 | J101: 0 | K101: 0
C102: Ground Outdoor / Indoor Chamber Mounted; > = 22 kV & < = 33 kV ; > 15 MVA and < = 40 MVA | E102: 0 | F102: 0 | G102: 0 | H102: 2513.788752 | I102: 0 | J102: 1946.360692 | K102: 0
C103: Ground Outdoor / Indoor Chamber Mounted; > = 22 kV & < = 33 kV ; > 40 MVA | E103: 0 | F103: 0 | G103: 0 | H103: 0 | I103: 0 | J103: 0 | K103: 0
C104: Ground Outdoor / Indoor Chamber Mounted; > 33 kV & < = 66 kV ; < = 15 MVA | E104: 0 | F104: 0 | G104: 0 | H104: 0 | I104: 0 | J104: 0 | K104: 0
C105: Ground Outdoor / Indoor Chamber Mounted; > 33 kV & < = 66 kV ; > 15 MVA and < = 40 MVA | E105: 0 | F105: 0 | G105: 0 | H105: 0 | I105: 0 | J105: 0 | K105: 0
C106: Ground Outdoor / Indoor Chamber Mounted; > 33 kV & < = 66 kV ; > 40 MVA | E106: 0 | F106: 0 | G106: 0 | H106: 0 | I106: 0 | J106: 0 | K106: 0
C107: Ground Outdoor / Indoor Chamber Mounted; > 66 kV & < = 132 kV ; < = 100 MVA | E107: 0 | F107: 0 | G107: 0 | H107: 0 | I107: 0 | J107: 0 | K107: 0
C108: Ground Outdoor / Indoor Chamber Mounted; > 66 kV & < = 132 kV ; > 100 MVA | E108: 0 | F108: 0 | G108: 0 | H108: 0 | I108: 0 | J108: 0 | K108: 0
C109: Ground Outdoor / Indoor Chamber Mounted; > 132 kV ; < = 100 MVA | E109: 0 | F109: 0 | G109: 0 | H109: 0 | I109: 0 | J109: 0 | K109: 0
C110: Ground Outdoor / Indoor Chamber Mounted; > 132 kV ; > 100 MVA | E110: 0 | F110: 0 | G110: 0 | H110: 0 | I110: 0 | J110: 0 | K110: 0
C111: Other | E111: 0 | F111: 0 | G111: 0 | H111: 0 | I111: 0 | J111: 0 | K111: 0
B112: SWITCHGEAR BY: Highest operating voltage; Switch function | C112: ˂ = 11 kV ; Fuse | E112: 17638.4676 | F112: 17629.01392 | G112: 29387.5662 | H112: 29387.5662 | I112: 29387.5662 | J112: 5870.461635 | K112: 5870.461635
C113: ˂ = 11 kV ; Switch | E113: 363295.3459 | F113: 363191.9029 | G113: 5127664.719 | H113: 4723000.52 | I113: 1200448.056 | J113: 1280536.653 | K113: 1261439.375
C114: ˂ = 11 kV ; Circuit Breaker | E114: 903875.2482 | F114: 903798.3994 | G114: 1396208.795 | H114: 1397890.435 | I114: 2284569.491 | J114: 2411334.788 | K114: 2422977.697
C115: > 11 kV & < = 22 kV ; Switch | E115: 2792832.972 | F115: 2792037.753 | G115: 1156523.512 | H115: 574899.0442 | I115: 575572.3628 | J115: 431266.8206 | K115: 335005.501
C116: > 11 kV & < = 22 kV ; Circuit Breaker | E116: 225968.8121 | F116: 225949.5999 | G116: 126928.0723 | H116: 127080.9486 | I116: 276917.514 | J116: 283686.4456 | K116: 276911.7368
C117: > 22 kV & < = 33 kV ; Switch | E117: 0 | F117: 0 | G117: 0 | H117: 0 | I117: 0 | J117: 0 | K117: 0
C118: > 22 kV & < = 33 kV ; Circuit Breaker | E118: 0 | F118: 0 | G118: 0 | H118: 0 | I118: 0 | J118: 0 | K118: 0
C119: > 33 kV & < = 66 kV ; Switch | E119: 0 | F119: 0 | G119: 0 | H119: 0 | I119: 0 | J119: 0 | K119: 0
C120: > 33 kV & < = 66 kV ; Circuit Breaker | E120: 0 | F120: 0 | G120: 0 | H120: 0 | I120: 0 | J120: 0 | K120: 0
C121: > 66 kV & < = 132 kV ; Switch | E121: 0 | F121: 0 | G121: 0 | H121: 0 | I121: 0 | J121: 0 | K121: 0
C122: > 66 kV & < = 132 kV ; Circuit Breaker | E122: 0 | F122: 0 | G122: 0 | H122: 0 | I122: 0 | J122: 0 | K122: 0
C123: > 132 kV ; Switch | E123: 0 | F123: 0 | G123: 0 | H123: 0 | I123: 0 | J123: 0 | K123: 0
C124: > 132 kV ; Circuit Breaker | E124: 0 | F124: 0 | G124: 0 | H124: 0 | I124: 0 | J124: 0 | K124: 0
C125: Other | E125: 0 | F125: 0 | G125: 0 | H125: 0 | I125: 0 | J125: 0 | K125: 0
B126: PUBLIC LIGHTING BY: Asset type ; Lighting obligation | C126: Luminaires | E126: 1207593.052 | F126: 1207169.401 | G126: 1231678.935 | H126: 1232364.368 | I126: 233722.667 | J126: 228627.8713 | K126: 225751.3084
C127: Brackets | E127: 0 | F127: 0 | G127: 0 | H127: 0 | I127: 0 | J127: 0 | K127: 0
C128: Lamps | E128: 2003923.394 | F128: 1997865.359 | G128: 1667004.482 | H128: 1697792.865 | I128: 946090.4931 | J128: 945082.1322 | K128: 946583.8091
C129: Poles / Columns | E129: 307487.6993 | F129: 307554.926 | G129: 389245.9989 | H129: 399477.5411 | I129: 464528.8334 | J129: 465155.1838 | K129: 502776.1679
C130: Other | E130: 0 | F130: 0 | G130: 0 | H130: 0 | I130: 0 | J130: 0 | K130: 0
B131: SCADA, NETWORK CONTROL AND PROTECTION SYSTEMS BY: Function | C131: Field Devices | E131: 758514.6127 | F131: 758514.6127 | G131: 0 | H131: 0 | I131: 0 | J131: 0 | K131: 0
C132: Local Network Wiring Assets | E132: 0 | F132: 0 | G132: 0 | H132: 0 | I132: 0 | J132: 0 | K132: 0
C133: Communications Network Assets | E133: 1172480.683 | F133: 9446.40225 | G133: 638655.2331 | H133: 675629.6973 | I133: 628339.2106 | J133: 407141.4115 | K133: 1997261.919
C134: Master Station Assets | E134: 0 | F134: 0 | G134: 0 | H134: 0 | I134: 0 | J134: 0 | K134: 0
C135: Communications Site Infrastructure | E135: 0 | F135: 0 | G135: 0 | H135: 0 | I135: 0 | J135: 0 | K135: 0
C136: Communications Linear Assets | E136: 0 | F136: 10496.0025 | G136: 0 | H136: 0 | I136: 0 | J136: 0 | K136: 0
C137: AFLC | E137: 0 | F137: 0 | G137: 0 | H137: 0 | I137: 0 | J137: 0 | K137: 0
C138: Telecommunications Network Assets | E138: 0 | F138: 0 | G138: 272464.688 | H138: 0 | I138: 378581.1521 | J138: 0 | K138: 142214.8748
C139: Other | E139: 0 | F139: 0 | G139: 0 | H139: 0 | I139: 0 | J139: 0 | K139: 0
B140: OTHER BY: enter DNSP defined asset group here | C140: Other | E140: 0 | F140: 0 | G140: 243750.8411 | H140: 1110838.399 | I140: 162880.3999 | J140: 974705.2263 | K140: 376632.1054
C141: Cabil PI | E141: 330820.8788 | F141: 330820.8788 | G141: 478617.714 | H141: 478617.714 | I141: 478617.714 | J141: 478617.714 | K141: 478617.714
C143: Ajilis (system related expenditure) | E143: 7029436.643 | F143: 0 | G143: 0 | H143: 0 | I143: 0 | J143: 0 | K143: 0
C144: Asset Management Information System (AMIS), SCADA and communications | E144: 7202753.884 | F144: 4012264.989 | G144: 0 | H144: 0 | I144: 0 | J144: 0 | K144: 0
B184: ASSET REPLACEMENTS
E185: ASSET REPLACEMENTS (0's)
B186: ASSET GROUP | C186: ASSET CATEGORY | E186: =CRCP_y4 -> 2017-18 | F186: =CRCP_y5 -> 2018-19 | G186: =FRCP_y1 -> 2019-20 | H186: =FRCP_y2 -> 2020-21 | I186: =FRCP_y3 -> 2021-22 | J186: =FRCP_y4 -> 2022-23 | K186: =FRCP_y5 -> 2023-24
B187: POLES BY: HIGHEST OPERATING VOLTAGE ; MATERIAL TYPE | C187: ˂ = 1 kV; Wood - replacement of staked pole | E187: 455 | F187: 455 | G187: 632 | H187: 653 | I187: 656 | J187: 656 | K187: 656
C188: ˂ = 1 kV; Wood - replacement of unstaked pole | E188: 171 | F188: 170 | G188: 286 | H188: 313 | I188: 322 | J188: 331 | K188: 358
C189: > 1 kV & < = 11 kV; Wood - replacement of staked pole | E189: 156 | F189: 156 | G189: 218 | H189: 225 | I189: 226 | J189: 226 | K189: 226
C190: > 1 kV & < = 11 kV; Wood - replacement of unstaked pole | E190: 89 | F190: 89 | G190: 150 | H190: 164 | I190: 169 | J190: 174 | K190: 187
C191: ˃ 11 kV & < = 22 kV; Wood - replacement of staked pole | E191: 708 | F191: 708 | G191: 984 | H191: 1016 | I191: 1021 | J191: 1021 | K191: 1021
C192: ˃ 11 kV & < = 22 kV; Wood - replacement of unstaked pole | E192: 547 | F192: 549 | G192: 913 | H192: 998 | I192: 1026 | J192: 1055 | K192: 1141
C193: > 22 kV & < = 66 kV; Wood - replacement of staked pole | E193: 11 | F193: 11 | G193: 16 | H193: 16 | I193: 17 | J193: 17 | K193: 17
C194: > 22 kV & < = 66 kV; Wood - replacement of unstaked pole | E194: 8 | F194: 8 | G194: 14 | H194: 15 | I194: 15 | J194: 15 | K194: 17
C195: > 66 kV & < = 132 kV; Wood - replacement of staked pole | E195: 0 | F195: 0 | G195: 0 | H195: 0 | I195: 0 | J195: 0 | K195: 0
C196: > 66 kV & < = 132 kV; Wood - replacement of unstaked pole | E196: 0 | F196: 0 | G196: 0 | H196: 0 | I196: 0 | J196: 0 | K196: 0
C197: > 132 kV; Wood - replacement of staked pole | E197: 0 | F197: 0 | G197: 0 | H197: 0 | I197: 0 | J197: 0 | K197: 0
C198: > 132 kV; Wood - replacement of unstaked pole | E198: 0 | F198: 0 | G198: 0 | H198: 0 | I198: 0 | J198: 0 | K198: 0
C199: ˂ = 1 kV; Concrete
C200: > 1 kV & < = 11 kV; Concrete | G200: 13 | H200: 13 | I200: 13 | J200: 13 | K200: 13
C201: ˃ 11 kV & < = 22 kV; Concrete | G201: 79 | H201: 79 | I201: 79 | J201: 79 | K201: 79
C202: > 22 kV & < = 66 kV; Concrete
C203: > 66 kV & < = 132 kV; Concrete
C204: > 132 kV; Concrete
C205: ˂ = 1 kV; Steel
C206: > 1 kV & < = 11 kV; Steel
C207: ˃ 11 kV & < = 22 kV; Steel
C208: > 22 kV & < = 66 kV; Steel
C209: > 66 kV & < = 132 kV; Steel
C210: > 132 kV; Steel
C211: Other
B212: POLE TOP STRUCTURES BY: HIGHEST OPERATING VOLTAGE | C212: ˂ = 1 kV | E212: 780 | F212: 780 | G212: 1540 | H212: 797 | I212: 797 | J212: 797 | K212: 797
C213: > 1 kV & < = 11 kV | E213: 0 | F213: 0 | G213: 0 | H213: 0 | I213: 0 | J213: 0 | K213: 0
C214: ˃ 11 kV & < = 22 kV | E214: 0 | F214: 0 | G214: 0 | H214: 0 | I214: 0 | J214: 0 | K214: 0
C215: > 22 kV & < = 66 kV | E215: 0 | F215: 0 | G215: 0 | H215: 0 | I215: 0 | J215: 0 | K215: 0
C216: > 66 kV & < = 132 kV | E216: 0 | F216: 0 | G216: 0 | H216: 0 | I216: 0 | J216: 0 | K216: 0
C217: > 132 kV | E217: 0 | F217: 0 | G217: 0 | H217: 0 | I217: 0 | J217: 0 | K217: 0
C218: Other
B219: STAKING WOODEN POLES BY: HIGHEST OPERATING VOLTAGE | C219: ˂ = 1 Kv | D219: for year wooden pole staked | E219: 455 | F219: 455 | G219: 632 | H219: 653 | I219: 656 | J219: 656 | K219: 656
C220: > 1 kV & < = 11 kV | D220: for year wooden pole staked | E220: 156 | F220: 156 | G220: 218 | H220: 225 | I220: 226 | J220: 226 | K220: 226
C221: ˃ 11 kV & < = 22 kV | D221: for year wooden pole staked | E221: 708 | F221: 708 | G221: 984 | H221: 1016 | I221: 1021 | J221: 1021 | K221: 1021
C222: > 22 kV & < = 66 kV | D222: for year wooden pole staked | E222: 11 | F222: 11 | G222: 16 | H222: 16 | I222: 17 | J222: 17 | K222: 17
C223: > 66 kV & < = 132 kV | D223: for year wooden pole staked | E223: 0 | F223: 0 | G223: 0 | H223: 0 | I223: 0 | J223: 0 | K223: 0
C224: > 132 kV | D224: for year wooden pole staked | E224: 0 | F224: 0 | G224: 0 | H224: 0 | I224: 0 | J224: 0 | K224: 0
B225: OVERHEAD CONDUCTORS BY: Highest operating voltage; Number of phases (at HV) | C225: ˂ = 1 kV | D225: per km | E225: 20 | F225: 20 | G225: 20 | H225: 20 | I225: 20 | J225: 20 | K225: 20
C226: > 1 kV & < = 11 kV | D226: per km | E226: 24 | F226: 24 | G226: 56 | H226: 53 | I226: 53 | J226: 35 | K226: 35
C227: ˃ 11 kV & < = 22 kV ; SWER | D227: per km | E227: 0.7 | F227: 0.7 | G227: 3.8 | H227: 3 | I227: 3 | J227: 1.6 | K227: 1.6
C228: ˃ 11 kV & < = 22 kV ; Single-Phase | D228: per km | E228: 0 | F228: 0 | G228: 0 | H228: 0 | I228: 0 | J228: 0 | K228: 0
C229: ˃ 11 kV & < = 22 kV ; Multiple-Phase | D229: per km | E229: 45 | F229: 45 | G229: 106 | H229: 99.8 | I229: 99.8 | J229: 65.8 | K229: 65.8
C230: > 22 kV & < = 66 kV | D230: per km | E230: 0.2 | F230: 0.2 | G230: 0.6 | H230: 0.6 | I230: 0.6 | J230: 0.4 | K230: 0.4
C231: > 66 kV & < = 132 kV | D231: per km | E231: 0 | F231: 0 | G231: 0 | H231: 0 | I231: 0 | J231: 0 | K231: 0
C232: > 132 kV | D232: per km | E232: 0 | F232: 0 | G232: 0 | H232: 0 | I232: 0 | J232: 0 | K232: 0
C233: Other | D233: per km | E233: 0 | F233: 0 | G233: 0 | H233: 0 | I233: 0 | J233: 0 | K233: 0
B234: UNDERGROUND CABLES BY: Highest operating voltage | C234: ˂ = 1 kV | D234: per km | E234: 5.91 | F234: 5.91 | G234: 15.41 | H234: 15.41 | I234: 15.41 | J234: 15.41 | K234: 15.41
C235: > 1 kV & < = 11 kV | D235: per km | E235: 0.33 | F235: 0.33 | G235: 0.33 | H235: 0.83 | I235: 0.33 | J235: 0.33 | K235: 0.33
C236: > 11 kV & < = 22 kV | D236: per km | E236: 0.57 | F236: 0.57 | G236: 0.57 | H236: 1.07 | I236: 0.57 | J236: 0.57 | K236: 0.57
C237: > 22 kV & < = 33 kV | D237: per km | E237: - | F237: - | G237: - | H237: - | I237: - | J237: - | K237: -
C238: > 33 kV & < = 66 kV | D238: per km | E238: - | F238: - | G238: - | H238: - | I238: - | J238: - | K238: -
C239: > 66 kV & < = 132 kV | D239: per km | E239: - | F239: - | G239: - | H239: - | I239: - | J239: - | K239: -
C240: > 132 kV | D240: per km | E240: - | F240: - | G240: - | H240: - | I240: - | J240: - | K240: -
C241: Other | D241: per km | E241: - | F241: - | G241: - | H241: - | I241: - | J241: - | K241: -
B242: SERVICE LINES BY: Connection voltage; Customer type; Connection complexity | C242: ˂ = 11 kV ; Residential ; Simple Type | D242: per number of spans | E242: 1530 | F242: 1530 | G242: 7862 | H242: 7862 | I242: 7862 | J242: 7862 | K242: 7862
... 211 more rows

Sheet 2.3 Augex (a)
B1: =SheetHeader -> REGULATORY REPORTING STATEMENT
B2: =dms_TradingName -> TasNetworks (D)
B3: =dms_Reg_Year_Span -> 2019-20 to 2023-24
B4: 2.3 AUGEX PROJECT DATA
B6: There are TWO tables on this worksheet - each has been 'grouped' (and sub-grouped) for easy navigation. Both ROWS and COLUMNS have been grouped. See the Instructions sheet on how to group or ungroup tables.
B8: NOTE: DNSP must provide expenditure information on an 'as incurred' basis.
B9: 2.3.1 - AUGEX ASSET DATA - SUBTRANSMISSION SUBSTATIONS, SWITCHING STATIONS AND ZONE SUBSTATIONS
B10: PROJECT DESCRIPTION AND CHANGES | L10: PLANT AND EQUIPMENT EXPENDITURE AND VOLUME | X10: OTHER EXPENDITURE | Z10: TOTAL DIRECT EXPENDITURE ($0's) | AA10: YEARS INCURRED | AB10: ALL RELATED PARTY CONTRACTS | AD10: ALL NON-RELATED PARTY CONTRACTS | AE10: LAND AND EASEMENTS
B11: SUBSTATION ID | C11: SUBSTATION TYPE | D11: PROJECT ID | E11: PROJECT TYPE | F11: PROJECT TRIGGER | G11: VOLTAGE (KV) | H11: SUBSTATION RATING NORMAL CYCLIC (MVA) | J11: SUBSTATION RATING N-1 EMERGENCY (MVA) | L11: TRANSFORMERS | O11: SWITCHGEAR | R11: CAPACITORS | U11: OTHER PLANT ITEM | V11: INSTALLATION (LABOUR) | X11: CIVIL WORKS | Y11: OTHER DIRECT | AB11: RELATED PARTY MARGINS | AC11: TOTAL | AE11: LAND PURCHASE | AF11: EASEMENTS
H12: PRE | I12: POST | J12: PRE | K12: POST | L12: UNITS ADDED | M12: MVA ADDED | N12: =CONCATENATE("EXPENDITURE ($0's, real ", dms_DollarReal,")") -> EXPENDITURE ($0's, real June 2019) | O12: UNITS ADDED | Q12: =CONCATENATE("EXPENDITURE ($0's, real ", dms_DollarReal,")") -> EXPENDITURE ($0's, real June 2019) | R12: MVAR ADDED | T12: =CONCATENATE("EXPENDITURE ($0's, real ", dms_DollarReal,")") -> EXPENDITURE ($0's, real June 2019) | U12: =CONCATENATE("EXPENDITURE ($0's, real ", dms_DollarReal,")") -> EXPENDITURE ($0's, real June 2019) | V12: VOLUME | W12: =CONCATENATE("EXPENDITURE ($0's, real ", dms_DollarReal,")") -> EXPENDITURE ($0's, real June 2019) | X12: =CONCATENATE("EXPENDITURE ($0's, real ", dms_DollarReal,")") -> EXPENDITURE ($0's, real June 2019) | AB12: =CONCATENATE("EXPENDITURE ($0's, real ", dms_DollarReal,")") -> EXPENDITURE ($0's, real June 2019) | AE12: =CONCATENATE("EXPENDITURE ($0's, real ", dms_DollarReal,")") -> EXPENDITURE ($0's, real June 2019)
Z13: =SUM(N13,Q13,T13,U13,W13,X13,Y13) -> 0
Z14: 0
Z15: 0
Z16: 0
Z17: 0
Z18: 0
Z19: 0
Z20: 0
Z21: 0
Z22: 0
Z23: 0
Z24: 0
Z25: 0
Z26: 0
Z27: 0
Z28: 0
Z29: 0
Z30: 0
Z31: 0
Z32: 0
Z33: 0
Z34: 0
Z35: 0
Z36: 0
Z37: 0
Z38: 0
Z39: 0
Z40: 0
Z41: 0
Z42: 0
Z43: 0
Z44: 0
Z45: =SUM(N45,Q45,T45,U45,W45,X45,Y45) -> 0
Z46: 0
Z47: 0
Z48: 0
Z49: 0
Z50: 0
Z51: 0
Z52: 0
Z53: 0
Z54: 0
Z55: 0
Z56: 0
Z57: 0
Z58: 0
Z59: 0
Z60: 0
Z61: 0
Z62: 0
Z63: 0
Z64: 0
D65: Non material projects - [forecast]
B67: NOTE: DNSP must provide expenditure information on an 'as incurred' basis.
B68: 2.3.2 - AUGEX ASSET DATA - SUBTRANSMISSION LINES
B69: PROJECT DESCRIPTION AND CHANGES | L69: PLANT AND EQUIPMENT EXPENDITURE AND VOLUME | X69: OTHER EXPENDITURE | Z69: TOTAL DIRECT EXPENDITURE ($0's) | AA69: YEARS INCURRED | AB69: ALL RELATED PARTY CONTRACTS | AD69: ALL NON RELATED PARTY CONTRACTS | AE69: LAND AND EASEMENTS
B70: LINE ID | D70: PROJECT ID | E70: PROJECT TYPE | F70: PROJECT TRIGGER | G70: VOLTAGE (KV) | H70: ROUTE LINE LENGTH ADDED | L70: POLES/TOWERS (INCLUDING STRUCTURES, AND CIVIL WORKS) | O70: OVERHEAD LINES | R70: UNDERGROUND CABLES | U70: OTHER PLANT ITEM | V70: INSTALLATION (LABOUR) | X70: CIVIL WORKS | Y70: OTHER DIRECT | AB70: RELATED PARTY MARGINS | AC70: TOTAL | AE70: LAND PURCHASE | AF70: EASEMENTS
H71: KM ADDED | L71: POLES/TOWERS ADDED | M71: POLES/TOWERS UPGRADED | N71: =CONCATENATE("EXPENDITURE ($0's, real ", dms_DollarReal,")") -> EXPENDITURE ($0's, real June 2019) | O71: CIRCUIT KM ADDED | P71: CIRCUIT KM UPGRADED | Q71: =CONCATENATE("EXPENDITURE ($0's, real ", dms_DollarReal,")") -> EXPENDITURE ($0's, real June 2019) | R71: CIRCUIT KM ADDED | S71: CIRCUIT KM UPGRADED | T71: =CONCATENATE("EXPENDITURE ($0's, real ", dms_DollarReal,")") -> EXPENDITURE ($0's, real June 2019) | U71: =CONCATENATE("EXPENDITURE ($0's, real ", dms_DollarReal,")") -> EXPENDITURE ($0's, real June 2019) | V71: VOLUME | W71: =CONCATENATE("EXPENDITURE ($0's, real ", dms_DollarReal,")") -> EXPENDITURE ($0's, real June 2019) | X71: =CONCATENATE("EXPENDITURE ($0's, real ", dms_DollarReal,")") -> EXPENDITURE ($0's, real June 2019) | AB71: =CONCATENATE("EXPENDITURE ($0's, real ", dms_DollarReal,")") -> EXPENDITURE ($0's, real June 2019) | AE71: =CONCATENATE("EXPENDITURE ($0's, real ", dms_DollarReal,")") -> EXPENDITURE ($0's, real June 2019)
Z72: =SUM(N72,Q72,T72,U72,W72,X72,Y72) -> 0
Z73: 0
Z74: 0
Z75: 0
Z76: 0
Z77: 0
Z78: 0
Z79: 0
Z80: 0
Z81: 0
Z82: 0
Z83: 0
Z84: 0
Z85: 0
Z86: 0
Z87: 0
Z88: 0
Z89: 0
Z90: 0
Z91: 0
Z92: 0
Z93: 0
Z94: 0
Z95: 0
Z96: 0
Z97: 0
Z98: 0
Z99: 0
Z100: 0
Z101: 0
Z102: 0
Z103: 0
Z104: =SUM(N104,Q104,T104,U104,W104,X104,Y104) -> 0
Z105: 0
Z106: 0
Z107: 0
Z108: 0
Z109: 0
Z110: 0
Z111: 0
Z112: 0
Z113: 0
Z114: 0
Z115: 0
Z116: 0
Z117: 0
Z118: 0
Z119: 0
Z120: 0
Z121: 0
Z122: 0
Z123: 0
Z124: 0
Z125: 0
D126: Non material projects - [forecast] | Z126: 1073500.38 | AA126: 2019,2020,2021,2022,2023,2024 | AE126: 1091034 | AF126: 2020,2021,2022,2023

Sheet 2.3 Augex (b)
B1: =SheetHeader -> REGULATORY REPORTING STATEMENT
B2: =dms_TradingName -> TasNetworks (D)
B3: =dms_Reg_Year_Span -> 2019-20 to 2023-24
B4: 2.3 AUGEX PROJECT DATA
B6: There are FOUR tables on this worksheet. These tables have been 'grouped' (and sub-grouped) for easy navigation. See the Instructions sheet on how to group or ungroup tables.
B8: NOTE: DNSP must provide expenditure information on an 'as incurred' basis.
B9: 2.3.3 - AUGEX DATA - HV/LV FEEDERS AND DISTRIBUTION SUBSTATIONS
B10: PROJECT TYPE | C10: Units | D10: VOLUMES (0's)
D11: =CRCP_y4 -> 2017-18 | E11: =CRCP_y5 -> 2018-19 | F11: =FRCP_y1 -> 2019-20 | G11: =FRCP_y2 -> 2020-21 | H11: =FRCP_y3 -> 2021-22 | I11: =FRCP_y4 -> 2022-23 | J11: =FRCP_y5 -> 2023-24
B12: DESCRIPTOR METRICS - UNITS ADDED
B13: HV Feeder Augmentations - Overhead Lines | C13: Circuit Line Length in KM | D13: 0 | E13: 0 | F13: 0 | G13: 0 | H13: 0 | I13: 0 | J13: 0
B14: HV Feeder Augmentations - Underground Cables | C14: Circuit Line Length in KM | D14: 0 | E14: 0 | F14: 0.5 | G14: 14 | H14: 0 | I14: 16 | J14: 0
B15: LV Feeder Augmentations - Overhead Lines | C15: Circuit Line Length in KM | D15: 0 | E15: 0 | F15: 0 | G15: 0 | H15: 0 | I15: 0 | J15: 0
B16: LV Feeder Augmentations - Underground Cables | C16: Circuit Line Length in KM | D16: 0 | E16: 0 | F16: 0 | G16: 0 | H16: 0 | I16: 0 | J16: 0
B17: Distribution Substation Augmentations - Pole Mounted | C17: Number | D17: 0 | E17: 0 | F17: 0 | G17: 0 | H17: 0 | I17: 0 | J17: 0
B18: Distribution Substation Augmentations - Ground Mounted | C18: Number | D18: 0 | E18: 0 | F18: 0 | G18: 0 | H18: 0 | I18: 0 | J18: 0
B19: Distribution Substation Augmentations - Indoor | C19: Number | D19: 0 | E19: 0 | F19: 0 | G19: 0 | H19: 0 | I19: 0 | J19: 0
B20: DESCRIPTOR METRICS - UNITS UPGRADED
B21: HV Feeder Augmentations - Overhead Lines | C21: Circuit Line Length in KM | D21: 34 | E21: 23 | F21: 16.5 | G21: 17.2 | H21: 17.1 | I21: 17 | J21: 17
B22: HV Feeder Augmentations - Underground Cables | C22: Circuit Line Length in KM | D22: 0 | E22: 0 | F22: 0.2 | G22: 0 | H22: 0 | I22: 0 | J22: 0
B23: LV Feeder Augmentations - Overhead Lines | C23: Circuit Line Length in KM | D23: 3 | E23: 3 | F23: 3 | G23: 3 | H23: 3 | I23: 3 | J23: 3
B24: LV Feeder Augmentations - Underground Cables | C24: Circuit Line Length in KM | D24: 0 | E24: 0 | F24: 0 | G24: 0 | H24: 0 | I24: 0 | J24: 0
B25: Distribution Substation Augmentations - Pole Mounted | C25: Number | D25: 10 | E25: 10 | F25: 10 | G25: 10 | H25: 10 | I25: 10 | J25: 10
B26: Distribution Substation Augmentations - Ground Mounted | C26: Number | D26: 3 | E26: 3 | F26: 3 | G26: 3 | H26: 3 | I26: 3 | J26: 3
B27: Distribution Substation Augmentations - Indoor | C27: Number | D27: 0 | E27: 0 | F27: 0 | G27: 0 | H27: 0 | I27: 0 | J27: 0
B29: COST METRICS
B30: PROJECT TYPE | D30: =CONCATENATE("TOTAL DIRECT EXPENDITURE ($0's, real ", dms_DollarReal,")") -> TOTAL DIRECT EXPENDITURE ($0's, real June 2019)
D31: =CRCP_y4 -> 2017-18 | E31: =CRCP_y5 -> 2018-19 | F31: =FRCP_y1 -> 2019-20 | G31: =FRCP_y2 -> 2020-21 | H31: =FRCP_y3 -> 2021-22 | I31: =FRCP_y4 -> 2022-23 | J31: =FRCP_y5 -> 2023-24
B32: HV Feeder Augmentations - Overhead Lines | D32: 0 | E32: 0 | F32: 1050140 | G32: 1082412 | H32: 1074344 | I32: 1050140 | J32: 1050140
B33: HV Feeder Augmentations - Underground Cables | D33: 0 | E33: 0 | F33: 72612 | G33: 0 | H33: 0 | I33: 0 | J33: 0
B34: HV Feeder Non-Material Projects | D34: 5962812 | E34: 4980302 | F34: 2207834.82 | G34: 1925760.28 | H34: 2115223.17 | I34: 2030523.9 | J34: 2061195.76
B35: LV Feeder Augmentations - Overhead Lines | D35: 0 | E35: 0 | F35: 195648 | G35: 195648 | H35: 195648 | I35: 195648 | J35: 195648
B36: LV Feeder Augmentations - Underground Cables | D36: 0 | E36: 0 | F36: 0 | G36: 0 | H36: 0 | I36: 0 | J36: 0
B37: LV Feeder Non-Material Projects | D37: 1213068 | E37: 1276350 | F37: 1361291.4 | G37: 1234246.1 | H37: 1312812.7 | I37: 1397792.9 | J37: 1489988.4
B38: Distribution Substation Augmentations - Pole Mounted | D38: 452333 | E38: 452333 | F38: 481630.99 | G38: 481630.99 | H38: 481630.99 | I38: 481630.99 | J38: 481630.99
B39: Distribution Substation Augmentations - Ground Mounted | D39: 136010 | E39: 136010 | F39: 453213.06 | G39: 453213.06 | H39: 453213.06 | I39: 453213.06 | J39: 453213.06
B40: Distribution Substation Augmentations - Indoor | D40: 0 | E40: 0 | F40: 0 | G40: 0 | H40: 0 | I40: 0 | J40: 0
B45: 2.3.4 - AUGEX - TOTAL EXPENDITURE
D46: =CONCATENATE("TOTAL DIRECT EXPENDITURE ($0's, real ", dms_DollarReal,")") -> TOTAL DIRECT EXPENDITURE ($0's, real June 2019)
D47: =CRCP_y4 -> 2017-18 | E47: =CRCP_y5 -> 2018-19 | F47: =FRCP_y1 -> 2019-20 | G47: =FRCP_y2 -> 2020-21 | H47: =FRCP_y3 -> 2021-22 | I47: =FRCP_y4 -> 2022-23 | J47: =FRCP_y5 -> 2023-24
B48: Subtransmission Substations, Switching Stations, Zone Substations | D48: 1304903.347 | E48: 1150340.403 | F48: 662831.4042 | G48: 199376.2173 | H48: 665366.5998 | I48: 201528.6193 | J48: 433610.6528
B49: Subtransmission Lines | D49: 0 | E49: 0 | F49: 0 | G49: 0 | H49: 0 | I49: 0 | J49: 0
B50: HV Feeders | D50: 7110679.668 | E50: 5772931.545 | F50: 5311510.619 | G50: 4825119.28 | H50: 5272999.514 | I50: 5632603.424 | J50: 4412636.59
B51: HV Feeders - Land Purchases and Easements | D51: 0 | E51: 0 | F51: 0 | G51: 0 | H51: 0 | I51: 0 | J51: 0
B52: Distribution Substations | D52: 690172.4688 | E52: 671948.148 | F52: 949084.8292 | G52: 912610.4544 | H52: 957820.2153 | I52: 924283.5125 | J52: 958355.4114
B53: Distribution Substations - Land Purchases and Easements | D53: 0 | E53: 0 | F53: 0 | G53: 0 | H53: 0 | I53: 0 | J53: 0
B54: LV Feeders | D54: 1450119.56 | E54: 1484958.382 | F54: 1538023.315 | G54: 1557561.62 | H54: 1714777.568 | I54: 1752596.855 | J54: 1909228.973
B55: LV Feeders - Land Purchases and Easements | D55: 0 | E55: 0 | F55: 0 | G55: 0 | H55: 0 | I55: 0 | J55: 0
B56: Other Assets | D56: 0 | E56: 0 | F56: 0 | G56: 0 | H56: 0 | I56: 0 | J56: 0
B60: 2.3.5 - AUGEX - BY DRIVER
D61: =CONCATENATE("TOTAL DIRECT EXPENDITURE ($0's, real ", dms_DollarReal,")") -> TOTAL DIRECT EXPENDITURE ($0's, real June 2019)
D62: =CRCP_y4 -> 2017-18 | E62: =CRCP_y5 -> 2018-19 | F62: =FRCP_y1 -> 2019-20 | G62: =FRCP_y2 -> 2020-21 | H62: =FRCP_y3 -> 2021-22 | I62: =FRCP_y4 -> 2022-23 | J62: =FRCP_y5 -> 2023-24
B63: "Greenfield" driven augex (network expansion capex) | D63: 1803920.335 | E63: 1551734.795 | F63: 1509004.051 | G63: 1849273.16 | H63: 147033.6623 | I63: 2352577.866 | J63: 935384.9193
B64: Reinforcement driven augex (augmentation of the existing network) | D64: 8751954.71 | E64: 7528443.682 | F64: 6611164.822 | G64: 5645394.412 | H64: 8120033.715 | I64: 6158434.545 | J64: 6434389.961
B68: 2.3.6 - AUGEX - GREENFIELDS DRIVEN
D69: =CONCATENATE("TOTAL DIRECT EXPENDITURE ($0's, real ", dms_DollarReal,")") -> TOTAL DIRECT EXPENDITURE ($0's, real June 2019)
D70: =CRCP_y4 -> 2017-18 | E70: =CRCP_y5 -> 2018-19 | F70: =FRCP_y1 -> 2019-20 | G70: =FRCP_y2 -> 2020-21 | H70: =FRCP_y3 -> 2021-22 | I70: =FRCP_y4 -> 2022-23 | J70: =FRCP_y5 -> 2023-24
B71: Subtransmission Substations, Switching Stations, Zone Substations | D71: 1803920.335 | E71: 1551734.795 | F71: 0 | G71: 772293.8482 | H71: 0 | I71: 662907.1626 | J71: 0
B72: Subtransmission Lines | D72: 0 | E72: 0 | F72: 0 | G72: 0 | H72: 0 | I72: 0 | J72: 0
B73: HV Feeders | D73: 0 | E73: 0 | F73: 1509004.051 | G73: 1076979.312 | H73: 147033.6623 | I73: 1689670.703 | J73: 935384.9193
B74: HV Feeders - Land Purchases and Easements | D74: 0 | E74: 0 | F74: 0 | G74: 0 | H74: 0 | I74: 0 | J74: 0
B75: Distribution Substations | D75: 0 | E75: 0 | F75: 0 | G75: 0 | H75: 0 | I75: 0 | J75: 0
B76: Distribution Substations - Land Purchases and Easements | D76: 0 | E76: 0 | F76: 0 | G76: 0 | H76: 0 | I76: 0 | J76: 0
B77: LV Feeders | D77: 0 | E77: 0 | F77: 0 | G77: 0 | H77: 0 | I77: 0 | J77: 0
B78: LV Feeders - Land Purchases and Easements | D78: 0 | E78: 0 | F78: 0 | G78: 0 | H78: 0 | I78: 0 | J78: 0
B79: Other Assets | D79: 0 | E79: 0 | F79: 0 | G79: 0 | H79: 0 | I79: 0 | J79: 0

Sheet 2.4 Augex model
B1: =SheetHeader -> REGULATORY REPORTING STATEMENT
B2: =dms_TradingName -> TasNetworks (D)
B3: =dms_Reg_Year_Span -> 2019-20 to 2023-24
B4: 2.4 AUGEX MODEL
B6: There are SIX tables on this worksheet. These tables have been 'grouped' (and sub-grouped) for easy navigation. See the Instructions sheet on how to group or ungroup tables.
B8: 2.4.1 - AUGEX MODEL INPUTS - ASSET STATUS - SUBTRANSMISSION LINES
B9: Line ID | C9: Primary type of area supplied by line | D9: Line voltage | E9: Originating substation | F9: Terminating substation | G9: =CRCP_y4 -> 2017-18 | L9: =PRCP_y5 -> 2013-14 | Q9: =CONCATENATE("Average per annum growth rate in annual line maximum demand (50% PoE) from ", CRCP_y4, " to ", dms_CRCP_FinalYear_Result) -> Average per annum growth rate in annual line maximum demand (50% PoE) from 2017-18 to 2018-19 | R9: Network Segment ID
G10: =CONCATENATE(IF(dms_RPT="Financial","Route line length as at 30 June ","Route line length as at 31 December ")) -> Route line length as at 30 June | H10: Maximum demand (weather corrected at 50% PoE) | J10: Line rating | L10: =CONCATENATE(IF(dms_RPT="Financial","Route line length as at 30 June ","Route line length as at 31 December ")) -> Route line length as at 30 June | M10: Maximum demand (weather corrected at 50% PoE) | O10: Line rating
J11: Thermal | K11: N-1 emergency | O11: Thermal | P11: N-1 emergency
C12: CBD, urban, long rural, or short rural | D12: kV | E12: name | F12: name | G12: km | H12: MVA | I12: MW | J12: MVA | K12: MVA | L12: km | M12: MVA | N12: MW | O12: MVA | P12: MVA | Q12: %
B13: 10001 | C13: Urban | D13: 33 | E13: Risdon | F13: East Hobart | G13: 6.018 | H13: 11.931 | I13: 11.667 | J13: 23.663 | K13: 23.663 | L13: 6.018 | M13: 12.82 | N13: 12.306 | O13: 23.663 | P13: 23.663 | Q13: -0.0184
B14: 10002 | C14: Urban | D14: 33 | E14: Risdon | F14: East Hobart | G14: 5.922 | H14: 12.434 | I14: 12.158 | J14: 23.663 | K14: 23.663 | L14: 5.922 | M14: 13.222 | N14: 12.692 | O14: 23.663 | P14: 23.663 | Q14: -0.0184
B15: 10003 | C15: Urban | D15: 33 | E15: Risdon | F15: East Hobart | G15: 5.522 | H15: 13.231 | I15: 12.938 | J15: 23.663 | K15: 23.663 | L15: 5.522 | M15: 13.122 | N15: 12.596 | O15: 23.663 | P15: 23.663 | Q15: -0.0184
B16: 10007 | C16: Urban | D16: 33 | E16: Risdon | F16: Derwent Park | G16: 9.852 | H16: 9.753 | I16: 9.538 | J16: 21.434 | K16: 21.434 | L16: 9.852 | M16: 9.374 | N16: 8.998 | O16: 21.434 | P16: 21.434 | Q16: -0.0184
B17: 10008 | C17: Urban | D17: 33 | E17: Risdon | F17: New Town | G17: 7.658 | H17: 12.846 | I17: 12.562 | J17: 21.434 | K17: 21.434 | L17: 7.658 | M17: 11.374 | N17: 10.918 | O17: 21.434 | P17: 21.434 | Q17: -0.0184
B18: 10022 | C18: Urban | D18: 33 | E18: Risdon | F18: Derwent Park | G18: 8.278 | H18: 12.607 | I18: 12.328 | J18: 23.663 | K18: 23.663 | L18: 8.278 | M18: 11.07 | N18: 10.626 | O18: 23.663 | P18: 23.663 | Q18: -0.0184
B19: 10024 | C19: Urban | D19: 33 | E19: Risdon | F19: New Town | G19: 8.692 | H19: 12.684 | I19: 12.403 | J19: 21.434 | K19: 21.434 | L19: 8.692 | M19: 14.135 | N19: 13.568 | O19: 21.434 | P19: 21.434 | Q19: -0.0184
B20: 10026 | C20: Urban | D20: 33 | E20: Creek Rd | F20: West Hobart | G20: 12.854 | H20: 9.219 | I20: 9.015 | J20: 22.634 | K20: 22.634 | L20: 12.854 | M20: 8.859 | N20: 8.705 | O20: 22.634 | P20: 22.634 | Q20: -0.0184
B21: 11004 | C21: Urban | D21: 33 | E21: Creek Rd | F21: West Hobart | G21: 6.497 | H21: 8.365 | I21: 7.881 | J21: 22.634 | K21: 22.634 | L21: 6.497 | M21: 9.933 | N21: 9.76 | O21: 22.634 | P21: 22.634 | Q21: 0.0127
B22: 11005 | C22: Urban | D22: 33 | E22: Creek Rd | F22: West Hobart | G22: 7.112 | H22: 9.243 | I22: 8.709 | J22: 22.634 | K22: 22.634 | L22: 7.112 | M22: 9.511 | N22: 9.345 | O22: 22.634 | P22: 22.634 | Q22: 0.0127
B23: 11006 | C23: Urban | D23: 33 | E23: Creek Rd | F23: Claremont | G23: 6.083 | H23: 9.937 | I23: 9.363 | J23: 22.634 | K23: 22.634 | L23: 6.083 | M23: 9.511 | N23: 9.345 | O23: 22.634 | P23: 22.634 | Q23: 0.0127
B24: 11021 | C24: Urban | D24: 33 | E24: Creek Rd | F24: Sandy Bay | G24: 3.193 | H24: 9.397 | I24: 8.854 | J24: 23.663 | K24: 23.663 | L24: 3.193 | M24: 8.747 | N24: 8.594 | O24: 23.663 | P24: 23.663 | Q24: 0.0127
B25: 11023 | C25: Urban | D25: 33 | E25: Creek Rd | F25: Sandy Bay | G25: 2.15 | H25: 12.407 | I25: 11.69 | J25: 23.663 | K25: 23.663 | L25: 2.15 | M25: 10.718 | N25: 10.53 | O25: 23.663 | P25: 23.663 | Q25: 0.0127
B26: 11025 | C26: Urban | D26: 33 | E26: Creek Rd | F26: Sandy Bay | G26: 2.741 | H26: 9.502 | I26: 8.952 | J26: 23.663 | K26: 23.663 | L26: 2.741 | M26: 8.646 | N26: 8.495 | O26: 23.663 | P26: 23.663 | Q26: 0.0127
B27: 11027 | C27: Urban | D27: 33 | E27: Creek Rd | F27: Claremont | G27: 3.192 | H27: 9.687 | I27: 9.127 | J27: 22.463 | K27: 22.463 | L27: 3.192 | M27: 9.773 | N27: 9.602 | O27: 22.463 | P27: 22.463 | Q27: 0.0127
B28: 24401 | C28: Urban | D28: 33 | E28: Mornington | F28: Howrah | G28: 4.63 | H28: 14.172 | I28: 14.149 | J28: 20.005 | K28: 20.005 | L28: 4.63 | M28: 7.413 | N28: 7.356 | O28: 20.005 | P28: 20.005 | Q28: 0.0016
B29: 24402 | C29: Urban | D29: 33 | E29: Mornington | F29: Cambridge | G29: 8.812 | H29: 10.364 | I29: 10.347 | J29: 19.491 | K29: 19.491 | L29: 8.812 | M29: 6.064 | N29: 6.017 | O29: 19.491 | P29: 19.491 | Q29: 0.0016
B30: 24406 | C30: Urban | D30: 33 | E30: Mornington | F30: Howrah | G30: 4.619 | H30: 14.132 | I30: 28.241 | J30: 22.634 | K30: 22.634 | L30: 4.619 | M30: 7.39 | N30: 7.333 | O30: 22.634 | P30: 22.634 | Q30: 0.0016
B31: 24405 | C31: Urban | D31: 33 | E31: Mornington | F31: Rosny Park | G31: 5 | H31: 28.538 | I31: 28.49 | J31: 22.634 | K31: 22.634 | L31: 0 | M31: 0 | N31: 0 | O31: 0 | P31: 0 | Q31: 0.0016
B32: 25305 | C32: Urban | D32: 33 | E32: Lindisfarne | F32: Geilston Bay | G32: 5.852 | H32: 3.391 | I32: 3.365 | J32: 23.663 | K32: 23.663 | L32: 5.852 | M32: 7.36 | N32: 7.302 | O32: 23.663 | P32: 23.663 | Q32: -0.0008
B33: 25307 | C33: Urban | D33: 33 | E33: Lindisfarne | F33: Bellerive | G33: 2.006 | H33: 8.162 | I33: 8.07 | J33: 20.005 | K33: 20.005 | L33: 2.006 | M33: 10.744 | N33: 10.661 | O33: 20.005 | P33: 20.005 | Q33: -0.0008
B34: 25308 | C34: Urban | D34: 33 | E34: Lindisfarne | F34: Howrah | G34: 2.41 | H34: 3.717 | I34: 3.675 | J34: 23.663 | K34: 23.663 | L34: 2.41 | M34: 10.51 | N34: 10.509 | O34: 23.663 | P34: 23.663 | Q34: -0.0008
B35: 25309 | C35: Urban | D35: 33 | E35: Lindisfarne | F35: Cambridge | G35: 12.674 | H35: 5.316 | I35: 5.256 | J35: 21.434 | K35: 21.434 | L35: 12.674 | M35: 6.549 | N35: 6.549 | O35: 21.434 | P35: 21.434 | Q35: -0.0008
B36: 25310 | C36: Urban | D36: 33 | E36: Lindisfarne | F36: Howrah | G36: 5.543 | H36: 3.391 | I36: 3.353 | J36: 21.434 | K36: 21.434 | L36: 5.543 | M36: 8.392 | N36: 8.391 | O36: 21.434 | P36: 21.434 | Q36: -0.0008
B37: 36240 | C37: Urban | D37: 33 | E37: Kingston 33 | F37: Summerleas | G37: 3.067 | H37: 11.428 | I37: 11.325 | J37: 20.863 | K37: 20.863 | L37: 3.067 | M37: 0 | N37: 0 | O37: 20.863 | P37: 20.863 | Q37: 0.0084
B38: 97013 | C38: Long rural | D38: 44 | E38: Rosebery | F38: Trial Harbour | G38: 36.958 | H38: 2.082 | I38: 1.921 | J38: 18.138 | K38: 18.138 | L38: 36.958 | M38: 1.837 | N38: 1.74 | O38: 18.138 | P38: 18.138 | Q38: 0.0031
B1275: 2.4.2 - AUGEX MODEL INPUTS - ASSET STATUS - HIGH VOLTAGE FEEDERS
B1276: High voltage feeder ID | C1276: High voltage feeder type | D1276: Voltage level | E1276: Originating substation | G1276: =CRCP_y4 -> 2017-18 | L1276: =PRCP_y5 -> 2013-14 | Q1276: =CONCATENATE("Average per annum growth rate in annual high voltage feeder maximum demand (50% PoE) from ", CRCP_y4, " to ",dms_CRCP_FinalYear_Result) -> Average per annum growth rate in annual high voltage feeder maximum demand (50% PoE) from 2017-18 to 2018-19 | R1276: Network segment ID
G1277: =CONCATENATE(IF(dms_RPT="Financial","Route line length as at 30 June ","Route line length as at 31 December ")) -> Route line length as at 30 June | H1277: Maximum demand (weather corrected at 50% PoE) | J1277: Rating | L1277: =CONCATENATE(IF(dms_RPT="Financial","Route line length as at 30 June ","Route line length as at 31 December ")) -> Route line length as at 30 June | M1277: Maximum demand (weather corrected at 50% PoE) | O1277: Rating
J1278: Thermal | K1278: Operational | O1278: Thermal | P1278: Operational
C1279: CBD, urban, short rural, or long rural | D1279: kV | E1279: name | G1279: km | H1279: MVA | I1279: MW | J1279: MVA | K1279: MVA | L1279: km | M1279: MVA | N1279: MW | O1279: MVA | P1279: MVA | Q1279: %
B1280: 12017 | C1280: Urban | D1280: 11 | E1280: 12 | F1280: Sandy Bay | G1280: 9.688 | H1280: 3.316 | I1280: 3.282 | J1280: 4.553 | K1280: 5.906 | L1280: 9.24 | M1280: 3.343 | N1280: 3.326 | O1280: 5.906 | P1280: 5.906 | Q1280: -0.0184
B1281: 12018 | C1281: Urban | D1281: 11 | E1281: 12 | F1281: Sandy Bay | G1281: 4.444 | H1281: 3.351 | I1281: 3.317 | J1281: 5.315 | K1281: 5.716 | L1281: 4.89 | M1281: 2.834 | N1281: 2.821 | O1281: 5.716 | P1281: 5.716 | Q1281: -0.0184
B1282: 12019 | C1282: Urban | D1282: 11 | E1282: 12 | F1282: Sandy Bay | G1282: 5.757 | H1282: 3.832 | I1282: 3.794 | J1282: 5.144 | K1282: 5.449 | L1282: 5.75 | M1282: 4.071 | N1282: 4.052 | O1282: 5.449 | P1282: 5.449 | Q1282: -0.0184
B1283: 12030 | C1283: Short Rural | D1283: 11 | E1283: 12 | F1283: Sandy Bay | G1283: 11.427 | H1283: 3.546 | I1283: 3.511 | J1283: 5.296 | K1283: 6.402 | L1283: 11.42 | M1283: 3.356 | N1283: 3.34 | O1283: 6.402 | P1283: 6.402 | Q1283: -0.0184
B1284: 12031 | C1284: Short Rural | D1284: 11 | E1284: 12 | F1284: Sandy Bay | G1284: 14.293 | H1284: 4.108 | I1284: 4.066 | J1284: 5.621 | K1284: 5.621 | L1284: 14.26 | M1284: 3.924 | N1284: 3.905 | O1284: 5.621 | P1284: 5.621 | Q1284: -0.0184
B1285: 12032 | C1285: Short Rural | D1285: 11 | E1285: 12 | F1285: Sandy Bay | G1285: 6.749 | H1285: 2.024 | I1285: 2.004 | J1285: 5.315 | K1285: 5.182 | L1285: 0 | M1285: 2.132 | N1285: 2.122 | O1285: 5.182 | P1285: 5.182 | Q1285: -0.0184
B1286: 12033 | C1286: Urban | D1286: 11 | E1286: 12 | F1286: Sandy Bay | G1286: 3.072 | H1286: 1.278 | I1286: 1.265 | J1286: 4.553 | K1286: 5.335 | L1286: 3.07 | M1286: 1.143 | N1286: 1.138 | O1286: 5.335 | P1286: 5.335 | Q1286: -0.0184
B1287: 12035 | C1287: Urban | D1287: 11 | E1287: 12 | F1287: Sandy Bay | G1287: 5.595 | H1287: 4.077 | I1287: 4.036 | J1287: 5.602 | K1287: 5.297 | L1287: 5.59 | M1287: 3.309 | N1287: 3.293 | O1287: 5.297 | P1287: 5.297 | Q1287: -0.0184
B1288: 12036 | C1288: Urban | D1288: 11 | E1288: 12 | F1288: Sandy Bay | G1288: 3.807 | H1288: 4.417 | I1288: 4.372 | J1288: 5.621 | K1288: 5.411 | L1288: 3.8 | M1288: 4.994 | N1288: 4.97 | O1288: 5.411 | P1288: 5.411 | Q1288: -0.0184
B1289: 12037 | C1289: Urban | D1289: 11 | E1289: 12 | F1289: Sandy Bay | G1289: 2.849 | H1289: 2.78 | I1289: 2.752 | J1289: 5.602 | K1289: 6.097 | L1289: 2.74 | M1289: 2.847 | N1289: 2.833 | O1289: 6.097 | P1289: 6.097 | Q1289: -0.0184
B1290: 12038 | C1290: Short Rural | D1290: 11 | E1290: 12 | F1290: Sandy Bay | G1290: 31.708 | H1290: 2.896 | I1290: 2.866 | J1290: 4.553 | K1290: 6.002 | L1290: 30.29 | M1290: 2.915 | N1290: 2.901 | O1290: 6.002 | P1290: 6.002 | Q1290: -0.0184
B1291: 12039 | C1291: Urban | D1291: 11 | E1291: 12 | F1291: Sandy Bay | G1291: 5.321 | H1291: 3.648 | I1291: 3.611 | J1291: 5.031 | K1291: 6.535 | L1291: 0 | M1291: 4.125 | N1291: 4.105 | O1291: 6.535 | P1291: 6.535 | Q1291: -0.0184
B1292: 13043 | C1292: Urban | D1292: 11 | E1292: 13 | F1292: West Hobart | G1292: 1.471 | H1292: 1.637 | I1292: 1.564 | J1292: 5.602 | K1292: 6.383 | L1292: 1.47 | M1292: 1.932 | N1292: 1.904 | O1292: 6.383 | P1292: 6.383 | Q1292: -0.0184
B1293: 13044 | C1293: Urban | D1293: 11 | E1293: 13 | F1293: West Hobart | G1293: 3.363 | H1293: 3.505 | I1293: 3.35 | J1293: 5.602 | K1293: 6.383 | L1293: 0.06 | M1293: 3.704 | N1293: 3.65 | O1293: 6.383 | P1293: 6.383 | Q1293: -0.0184
B1294: 13045 | C1294: Short Rural | D1294: 11 | E1294: 13 | F1294: West Hobart | G1294: 15.191 | H1294: 4.233 | I1294: 4.045 | J1294: 5.621 | K1294: 6.383 | L1294: 14.82 | M1294: 4.646 | N1294: 4.579 | O1294: 6.383 | P1294: 6.383 | Q1294: -0.0184
B1295: 13046 | C1295: Urban | D1295: 11 | E1295: 13 | F1295: West Hobart | G1295: 0.895 | H1295: 1.601 | I1295: 1.53 | J1295: 5.602 | K1295: 6.383 | L1295: 0 | M1295: 0 | N1295: 0 | O1295: 6.383 | P1295: 6.383 | Q1295: -0.0184
B1296: 13047 | C1296: Urban | D1296: 11 | E1296: 13 | F1296: West Hobart | G1296: 1.971 | H1296: 1.147 | I1296: 1.096 | J1296: 5.316 | K1296: 5.906 | L1296: 1.93 | M1296: 1.812 | N1296: 1.785 | O1296: 5.906 | P1296: 5.906 | Q1296: -0.0184
B1297: 13048 | C1297: Urban | D1297: 11 | E1297: 13 | F1297: West Hobart | G1297: 2.636 | H1297: 2.576 | I1297: 2.461 | J1297: 5.602 | K1297: 6.383 | L1297: 1.83 | M1297: 3.175 | N1297: 3.129 | O1297: 6.383 | P1297: 6.383 | Q1297: -0.0184
B1298: 13049 | C1298: Urban | D1298: 11 | E1298: 13 | F1298: West Hobart | G1298: 4.297 | H1298: 2.948 | I1298: 2.817 | J1298: 5.315 | K1298: 6.383 | L1298: 4.27 | M1298: 2.607 | N1298: 2.569 | O1298: 6.383 | P1298: 6.383 | Q1298: -0.0184
B1299: 13050 | C1299: Urban | D1299: 11 | E1299: 13 | F1299: West Hobart | G1299: 2.875 | H1299: 1.43 | I1299: 1.366 | J1299: 5.601 | K1299: 5.906 | L1299: 2.91 | M1299: 1.41 | N1299: 1.39 | O1299: 5.906 | P1299: 5.906 | Q1299: -0.0184
B1300: 13052 | C1300: Urban | D1300: 11 | E1300: 13 | F1300: West Hobart | G1300: 6.084 | H1300: 5.031 | I1300: 4.807 | J1300: 5.602 | K1300: 6.383 | L1300: 6 | M1300: 3.864 | N1300: 3.808 | O1300: 6.383 | P1300: 6.383 | Q1300: -0.0184
B1301: 13053 | C1301: Urban | D1301: 11 | E1301: 13 | F1301: West Hobart | G1301: 3.734 | H1301: 2.965 | I1301: 2.834 | J1301: 5.602 | K1301: 6.383 | L1301: 3.73 | M1301: 3.59 | N1301: 3.538 | O1301: 6.383 | P1301: 6.383 | Q1301: -0.0184
B1302: 13054 | C1302: Urban | D1302: 11 | E1302: 13 | F1302: West Hobart | G1302: 2.084 | H1302: 2.795 | I1302: 2.671 | J1302: 5.602 | K1302: 6.383 | L1302: 2.08 | M1302: 3.563 | N1302: 3.512 | O1302: 6.383 | P1302: 6.383 | Q1302: -0.0184
B1303: 13055 | C1303: Urban | D1303: 11 | E1303: 13 | F1303: West Hobart | G1303: 4.62 | H1303: 3.397 | I1303: 3.246 | J1303: 5.621 | K1303: 6.383 | L1303: 4.63 | M1303: 3.59 | N1303: 3.538 | O1303: 6.383 | P1303: 6.383 | Q1303: -0.0184
B1304: 13056 | C1304: Urban | D1304: 11 | E1304: 13 | F1304: West Hobart | G1304: 2.665 | H1304: 1.568 | I1304: 1.498 | J1304: 5.601 | K1304: 5.621 | L1304: 9.52 | M1304: 1.584 | N1304: 1.561 | O1304: 5.621 | P1304: 5.621 | Q1304: -0.0184
B1305: 13057 | C1305: Short Rural | D1305: 11 | E1305: 13 | F1305: West Hobart | G1305: 40.037 | H1305: 3.085 | I1305: 2.948 | J1305: 4.725 | K1305: 6.23 | L1305: 39.8 | M1305: 3.068 | N1305: 3.024 | O1305: 6.23 | P1305: 6.23 | Q1305: -0.0184
B1306: 13058 | C1306: Urban | D1306: 11 | E1306: 13 | F1306: West Hobart | G1306: 1.303 | H1306: 1.801 | I1306: 1.721 | J1306: 5.316 | K1306: 5.316 | L1306: 0 | M1306: 0 | N1306: 0 | O1306: 0 | P1306: 0 | Q1306: -0.0184
B1307: 14060 | C1307: Urban | D1307: 11 | E1307: 14 | F1307: East Hobart | G1307: 0.249 | H1307: 1.827 | I1307: 1.737 | J1307: 5.316 | K1307: 6.002 | L1307: 0 | M1307: 0 | N1307: 0 | O1307: 6.002 | P1307: 6.002 | Q1307: 0.0127
B1308: 14061 | C1308: Urban | D1308: 11 | E1308: 14 | F1308: East Hobart | G1308: 3.124 | H1308: 1.839 | I1308: 1.748 | J1308: 5.602 | K1308: 5.716 | L1308: 7.68 | M1308: 4.593 | N1308: 4.436 | O1308: 5.716 | P1308: 5.716 | Q1308: 0.0127
B1309: 14062 | C1309: Urban | D1309: 11 | E1309: 14 | F1309: East Hobart | G1309: 4.417 | H1309: 0.599 | I1309: 0.569 | J1309: 5.601 | K1309: 5.335 | L1309: 0 | M1309: 0 | N1309: 0 | O1309: 5.335 | P1309: 5.335 | Q1309: 0.0127
B1310: 14063 | C1310: Urban | D1310: 11 | E1310: 14 | F1310: East Hobart | G1310: 2.452 | H1310: 2.554 | I1310: 2.428 | J1310: 5.601 | K1310: 5.601 | L1310: 2.45 | M1310: 2.955 | N1310: 2.854 | O1310: 0 | P1310: 0 | Q1310: 0.0127
B1311: 14064 | C1311: Urban | D1311: 11 | E1311: 14 | F1311: East Hobart | G1311: 1.228 | H1311: 3.037 | I1311: 2.887 | J1311: 5.602 | K1311: 6.002 | L1311: 0.77 | M1311: 2.534 | N1311: 2.447 | O1311: 6.002 | P1311: 6.002 | Q1311: 0.0127
B1312: 14065 | C1312: Urban | D1312: 11 | E1312: 14 | F1312: East Hobart | G1312: 1.28 | H1312: 3.004 | I1312: 2.856 | J1312: 5.601 | K1312: 6.192 | L1312: 1.86 | M1312: 3.724 | N1312: 3.596 | O1312: 6.192 | P1312: 6.192 | Q1312: 0.0127
B1313: 14066 | C1313: Urban | D1313: 11 | E1313: 14 | F1313: East Hobart | G1313: 0.64 | H1313: 2.099 | I1313: 1.996 | J1313: 5.601 | K1313: 5.525 | L1313: 0 | M1313: 0 | N1313: 0 | O1313: 5.525 | P1313: 5.525 | Q1313: 0.0127
B1314: 14067 | C1314: Urban | D1314: 11 | E1314: 14 | F1314: East Hobart | G1314: 1.878 | H1314: 3.71 | I1314: 3.527 | J1314: 5.544 | K1314: 5.906 | L1314: 2.51 | M1314: 3.516 | N1314: 3.396 | O1314: 5.906 | P1314: 5.906 | Q1314: 0.0127
B1315: 14068 | C1315: Urban | D1315: 11 | E1315: 14 | F1315: East Hobart | G1315: 1.603 | H1315: 3.464 | I1315: 3.293 | J1315: 5.621 | K1315: 6.002 | L1315: 1.6 | M1315: 4.867 | N1315: 4.7 | O1315: 6.002 | P1315: 6.002 | Q1315: 0.0127
B1316: 14069 | C1316: Urban | D1316: 11 | E1316: 14 | F1316: East Hobart | G1316: 1.58 | H1316: 2.908 | I1316: 2.765 | J1316: 5.316 | K1316: 6.287 | L1316: 0.98 | M1316: 3.49 | N1316: 3.37 | O1316: 6.287 | P1316: 6.287 | Q1316: 0.0127
B1317: 14070 | C1317: Urban | D1317: 11 | E1317: 14 | F1317: East Hobart | G1317: 3.064 | H1317: 4.239 | I1317: 4.029 | J1317: 6.478 | K1317: 5.716 | L1317: 1.75 | M1317: 4.579 | N1317: 4.423 | O1317: 5.716 | P1317: 5.716 | Q1317: 0.0127
B1318: 16091 | C1318: Urban | D1318: 11 | E1318: 16 | F1318: New Town | G1318: 5.243 | H1318: 3.35 | I1318: 3.283 | J1318: 4.953 | K1318: 6.192 | L1318: 5.25 | M1318: 3.336 | N1318: 3.277 | O1318: 6.192 | P1318: 6.192 | Q1318: 0.0127
B1319: 16092 | C1319: Urban | D1319: 11 | E1319: 16 | F1319: New Town | G1319: 2.589 | H1319: 1.994 | I1319: 1.954 | J1319: 4.611 | K1319: 5.43 | L1319: 2.19 | M1319: 2.186 | N1319: 2.147 | O1319: 5.43 | P1319: 5.43 | Q1319: 0.0127
B1320: 16093 | C1320: Urban | D1320: 11 | E1320: 16 | F1320: New Town | G1320: 3.461 | H1320: 2.201 | I1320: 2.157 | J1320: 5.315 | K1320: 6.573 | L1320: 3.48 | M1320: 2.748 | N1320: 2.699 | O1320: 6.573 | P1320: 6.573 | Q1320: 0.0127
B1321: 16094 | C1321: Urban | D1321: 11 | E1321: 16 | F1321: New Town | G1321: 5.467 | H1321: 3.633 | I1321: 3.56 | J1321: 3.753 | K1321: 6.668 | L1321: 5.46 | M1321: 4.018 | N1321: 3.946 | O1321: 6.668 | P1321: 6.668 | Q1321: 0.0127
B1322: 16095 | C1322: Urban | D1322: 11 | E1322: 16 | F1322: New Town | G1322: 4.166 | H1322: 1.649 | I1322: 1.615 | J1322: 6.268 | K1322: 6.097 | L1322: 4.25 | M1322: 1.972 | N1322: 1.937 | O1322: 6.097 | P1322: 6.097 | Q1322: 0.0127
B1323: 16096 | C1323: Urban | D1323: 11 | E1323: 16 | F1323: New Town | G1323: 9.827 | H1323: 3.886 | I1323: 3.808 | J1323: 5.601 | K1323: 5.811 | L1323: 10.1 | M1323: 3.877 | N1323: 3.808 | O1323: 5.811 | P1323: 5.811 | Q1323: 0.0127
B1324: 16097 | C1324: Urban | D1324: 11 | E1324: 16 | F1324: New Town | G1324: 1.25 | H1324: 1.088 | I1324: 1.066 | J1324: 5.602 | K1324: 5.602 | L1324: 1.25 | M1324: 1.27 | N1324: 1.248 | O1324: 0 | P1324: 0 | Q1324: 0.0127
B1325: 16098 | C1325: Urban | D1325: 11 | E1325: 16 | F1325: New Town | G1325: 9.876 | H1325: 3.613 | I1325: 3.54 | J1325: 5.602 | K1325: 6.097 | L1325: 9.43 | M1325: 3.951 | N1325: 3.881 | O1325: 6.097 | P1325: 6.097 | Q1325: 0.0127
B1326: 17100 | C1326: Urban | D1326: 11 | E1326: 17 | F1326: Derwent Park | G1326: 4.69 | H1326: 4.156 | I1326: 3.948 | J1326: 5.031 | K1326: 5.716 | L1326: 4.69 | M1326: 2.54 | N1326: 2.453 | O1326: 5.716 | P1326: 5.716 | Q1326: 0.0127
B1327: 17101 | C1327: Short Rural | D1327: 11 | E1327: 17 | F1327: Derwent Park | G1327: 16.506 | H1327: 2.142 | I1327: 2.035 | J1327: 5.315 | K1327: 6.383 | L1327: 16.64 | M1327: 2.193 | N1327: 2.117 | O1327: 6.383 | P1327: 6.383 | Q1327: 0.0127
B1328: 17102 | C1328: Urban | D1328: 11 | E1328: 17 | F1328: Derwent Park | G1328: 0.82 | H1328: 0.317 | I1328: 0.301 | J1328: 3.315 | K1328: 5.621 | L1328: 0.88 | M1328: 0.468 | N1328: 0.452 | O1328: 5.621 | P1328: 5.621 | Q1328: 0.0127
B1329: 17103 | C1329: Urban | D1329: 11 | E1329: 17 | F1329: Derwent Park | G1329: 6.97 | H1329: 3.079 | I1329: 2.925 | J1329: 5.621 | K1329: 5.525 | L1329: 6.85 | M1329: 2.654 | N1329: 2.562 | O1329: 5.525 | P1329: 5.525 | Q1329: 0.0127
B1330: 17104 | C1330: Urban | D1330: 11 | E1330: 17 | F1330: Derwent Park | G1330: 1.862 | H1330: 1.775 | I1330: 1.686 | J1330: 5.601 | K1330: 6.097 | L1330: 1.86 | M1330: 2.112 | N1330: 2.039 | O1330: 6.097 | P1330: 6.097 | Q1330: 0.0127
B1331: 17105 | C1331: Urban | D1331: 11 | E1331: 17 | F1331: Derwent Park | G1331: 6.616 | H1331: 3.814 | I1331: 3.623 | J1331: 5.602 | K1331: 5.525 | L1331: 6.67 | M1331: 4.526 | N1331: 4.369 | O1331: 5.525 | P1331: 5.525 | Q1331: 0.0127
B1332: 17106 | C1332: Urban | D1332: 11 | E1332: 17 | F1332: Derwent Park | G1332: 5.981 | H1332: 3.401 | I1332: 3.231 | J1332: 4.553 | K1332: 6.573 | L1332: 6.34 | M1332: 3.49 | N1332: 3.369 | O1332: 6.573 | P1332: 6.573 | Q1332: 0.0127
B1333: 17107 | C1333: Urban | D1333: 11 | E1333: 17 | F1333: Derwent Park | G1333: 3.158 | H1333: 2.713 | I1333: 2.578 | J1333: 5.316 | K1333: 5.43 | L1333: 3.16 | M1333: 2.714 | N1333: 2.62 | O1333: 5.43 | P1333: 5.43 | Q1333: 0.0127
B1334: 17108 | C1334: Urban | D1334: 11 | E1334: 17 | F1334: Derwent Park | G1334: 1.445 | H1334: 0.781 | I1334: 0.741 | J1334: 5.602 | K1334: 6.287 | L1334: 1.45 | M1334: 0.909 | N1334: 0.878 | O1334: 6.287 | P1334: 6.287 | Q1334: 0.0127
B1335: 17109 | C1335: Urban | D1335: 11 | E1335: 17 | F1335: Derwent Park | G1335: 1.526 | H1335: 1.05 | I1335: 0.997 | J1335: 5.601 | K1335: 6.097 | L1335: 1.42 | M1335: 1.197 | N1335: 1.155 | O1335: 6.097 | P1335: 6.097 | Q1335: 0.0127
B1336: 18131 | C1336: Urban | D1336: 11 | E1336: 18 | F1336: North Hobart | G1336: 4.132 | H1336: 5.998 | I1336: 5.749 | J1336: 5.316 | K1336: 5.43 | L1336: 4.67 | M1336: 3.409 | N1336: 3.29 | O1336: 5.43 | P1336: 5.43 | Q1336: 0.0107
B1337: 18132 | C1337: Urban | D1337: 11 | E1337: 18 | F1337: North Hobart | G1337: 2.241 | H1337: 0.701 | I1337: 0.672 | J1337: 5.316 | K1337: 5.335 | L1337: 0 | M1337: 0 | N1337: 0 | O1337: 5.335 | P1337: 5.335 | Q1337: 0.0107
B1338: 18133 | C1338: Urban | D1338: 11 | E1338: 18 | F1338: North Hobart | G1338: 3.134 | H1338: 4.627 | I1338: 4.435 | J1338: 5.601 | K1338: 6.287 | L1338: 3.84 | M1338: 2.76 | N1338: 2.663 | O1338: 6.287 | P1338: 6.287 | Q1338: 0.0107
B1339: 18134 | C1339: Urban | D1339: 11 | E1339: 18 | F1339: North Hobart | G1339: 3.906 | H1339: 6.967 | I1339: 6.678 | J1339: 5.316 | K1339: 4.858 | L1339: 10.47 | M1339: 4.015 | N1339: 3.874 | O1339: 4.858 | P1339: 4.858 | Q1339: 0.0107
B1340: 18135 | C1340: Urban | D1340: 11 | E1340: 18 | F1340: North Hobart | G1340: 3.239 | H1340: 0.165 | I1340: 0.159 | J1340: 5.335 | K1340: 5.144 | L1340: 3.25 | M1340: 0 | N1340: 0 | O1340: 5.144 | P1340: 5.144 | Q1340: 0.0107
B1341: 18136 | C1341: Urban | D1341: 11 | E1341: 18 | F1341: North Hobart | G1341: 4.332 | H1341: 3.865 | I1341: 3.705 | J1341: 5.621 | K1341: 6.097 | L1341: 3.89 | M1341: 2.29 | N1341: 2.21 | O1341: 6.097 | P1341: 6.097 | Q1341: 0.0107
B1342: 18141 | C1342: Urban | D1342: 11 | E1342: 18 | F1342: North Hobart | G1342: 2.975 | H1342: 0 | I1342: 0 | J1342: 5.335 | K1342: 5.335 | L1342: 3.15 | M1342: 0 | N1342: 0 | O1342: 0 | P1342: 0 | Q1342: 0.0107
B1343: 18142 | C1343: Urban | D1343: 11 | E1343: 18 | F1343: North Hobart | G1343: 2.293 | H1343: 7.775 | I1343: 7.454 | J1343: 5.316 | K1343: 4.954 | L1343: 5.2 | M1343: 0.598 | N1343: 0.577 | O1343: 4.954 | P1343: 4.954 | Q1343: 0.0107
B1344: 18143 | C1344: Urban | D1344: 11 | E1344: 18 | F1344: North Hobart | G1344: 7.264 | H1344: 0 | I1344: 0 | J1344: 5.621 | K1344: 5.716 | L1344: 7.23 | M1344: 2.896 | N1344: 2.794 | O1344: 5.716 | P1344: 5.716 | Q1344: 0.0107
B1345: 18144 | C1345: Urban | D1345: 11 | E1345: 18 | F1345: North Hobart | G1345: 10.267 | H1345: 3.63 | I1345: 3.479 | J1345: 5.601 | K1345: 5.43 | L1345: 10.26 | M1345: 3.345 | N1345: 3.228 | O1345: 5.43 | P1345: 5.43 | Q1345: 0.0107
B1346: 18145 | C1346: Urban | D1346: 11 | E1346: 18 | F1346: North Hobart | G1346: 3.835 | H1346: 2.196 | I1346: 2.105 | J1346: 5.849 | K1346: 6.668 | L1346: 3.87 | M1346: 1.32 | N1346: 1.273 | O1346: 6.668 | P1346: 6.668 | Q1346: 0.0107
B1347: 18146 | C1347: Urban | D1347: 11 | E1347: 18 | F1347: North Hobart | G1347: 15.784 | H1347: 7.139 | I1347: 6.844 | J1347: 5.621 | K1347: 6.859 | L1347: 9.84 | M1347: 4.151 | N1347: 4.006 | O1347: 6.859 | P1347: 6.859 | Q1347: 0.0107
B1348: 20534 | C1348: Short Rural | D1348: 11 | E1348: 20 | F1348: Chapel Street | G1348: 3.62 | H1348: 0.878 | I1348: 0.871 | J1348: 5.315 | K1348: 5.049 | L1348: 3.62 | M1348: 1.079 | N1348: 1.073 | O1348: 5.049 | P1348: 5.049 | Q1348: 0.006
B1349: 20535 | C1349: Urban | D1349: 11 | E1349: 20 | F1349: Chapel Street | G1349: 10.138 | H1349: 4.501 | I1349: 4.466 | J1349: 5.317 | K1349: 5.335 | L1349: 10.44 | M1349: 4.321 | N1349: 4.298 | O1349: 5.335 | P1349: 5.335 | Q1349: 0.006
B1350: 20536 | C1350: Urban | D1350: 11 | E1350: 20 | F1350: Chapel Street | G1350: 5.134 | H1350: 2.375 | I1350: 2.356 | J1350: 5.315 | K1350: 5.144 | L1350: 4.99 | M1350: 2.494 | N1350: 2.481 | O1350: 5.144 | P1350: 5.144 | Q1350: 0.006
B1351: 20537 | C1351: Short Rural | D1351: 11 | E1351: 20 | F1351: Chapel Street | G1351: 7.448 | H1351: 2.168 | I1351: 2.152 | J1351: 3.448 | K1351: 4.954 | L1351: 7.69 | M1351: 2.376 | N1351: 2.363 | O1351: 4.954 | P1351: 4.954 | Q1351: 0.006
B1352: 20539 | C1352: Short Rural | D1352: 11 | E1352: 20 | F1352: Chapel Street | G1352: 3.902 | H1352: 0.495 | I1352: 0.491 | J1352: 4.553 | K1352: 5.621 | L1352: 4.03 | M1352: 0.543 | N1352: 0.54 | O1352: 5.621 | P1352: 5.621 | Q1352: 0.006
B1353: 20540 | C1353: Urban | D1353: 11 | E1353: 20 | F1353: Chapel Street | G1353: 2.873 | H1353: 2.459 | I1353: 2.44 | J1353: 4.553 | K1353: 5.049 | L1353: 3.43 | M1353: 2.716 | N1353: 2.702 | O1353: 5.049 | P1353: 5.049 | Q1353: 0.006
B1354: 20541 | C1354: Urban | D1354: 11 | E1354: 20 | F1354: Chapel Street | G1354: 11.239 | H1354: 3.941 | I1354: 3.91 | J1354: 5.315 | K1354: 5.335 | L1354: 10.51 | M1354: 5.263 | N1354: 5.236 | O1354: 5.335 | P1354: 5.335 | Q1354: 0.006
B1355: 20542 | C1355: Urban | D1355: 11 | E1355: 20 | F1355: Chapel Street | G1355: 0.024 | H1355: 0 | I1355: 0 | J1355: 5.316 | K1355: 5.335 | L1355: 0 | M1355: 0 | N1355: 0 | O1355: 5.335 | P1355: 5.335 | Q1355: 0.006
B1356: 20544 | C1356: Urban | D1356: 11 | E1356: 20 | F1356: Chapel Street | G1356: 3.155 | H1356: 2.847 | I1356: 2.825 | J1356: 5.83 | K1356: 5.43 | L1356: 6.98 | M1356: 2.792 | N1356: 2.777 | O1356: 5.43 | P1356: 5.43 | Q1356: 0.006
B1357: 20545 | C1357: Urban | D1357: 11 | E1357: 20 | F1357: Chapel Street | G1357: 6.287 | H1357: 0.765 | I1357: 0.759 | J1357: 5.315 | K1357: 5.811 | L1357: 1.9 | M1357: 0.779 | N1357: 0.774 | O1357: 5.811 | P1357: 5.811 | Q1357: 0.006
B1358: 20547 | C1358: Urban | D1358: 11 | E1358: 20 | F1358: Chapel Street | G1358: 4.729 | H1358: 2.271 | I1358: 2.254 | J1358: 5.315 | K1358: 6.097 | L1358: 4.56 | M1358: 2.353 | N1358: 2.341 | O1358: 6.097 | P1358: 6.097 | Q1358: 0.006
B1359: 20548 | C1359: Short Rural | D1359: 11 | E1359: 20 | F1359: Chapel Street | G1359: 18.588 | H1359: 4.88 | I1359: 4.843 | J1359: 5.335 | K1359: 5.716 | L1359: 18.73 | M1359: 5.435 | N1359: 5.407 | O1359: 5.716 | P1359: 5.716 | Q1359: 0.006
B1360: 20549 | C1360: Urban | D1360: 11 | E1360: 20 | F1360: Chapel Street | G1360: 8.625 | H1360: 2.763 | I1360: 2.742 | J1360: 4.764 | K1360: 5.335 | L1360: 10.84 | M1360: 3.048 | N1360: 3.032 | O1360: 5.335 | P1360: 5.335 | Q1360: 0.006
B1361: 20551 | C1361: Urban | D1361: 11 | E1361: 20 | F1361: Chapel Street | G1361: 2.931 | H1361: 1.208 | I1361: 1.199 | J1361: 4.515 | K1361: 5.43 | L1361: 2.93 | M1361: 1.5 | N1361: 1.492 | O1361: 5.43 | P1361: 5.43 | Q1361: 0.006
B1362: 20552 | C1362: Urban | D1362: 11 | E1362: 20 | F1362: Chapel Street | G1362: 8.444 | H1362: 2.993 | I1362: 2.97 | J1362: 5.564 | K1362: 5.716 | L1362: 8.45 | M1362: 3.143 | N1362: 3.127 | O1362: 5.716 | P1362: 5.716 | Q1362: 0.006
B1363: 20553 | C1363: Short Rural | D1363: 11 | E1363: 20 | F1363: Chapel Street | G1363: 50.056 | H1363: 2.532 | I1363: 2.513 | J1363: 4.552 | K1363: 6.383 | L1363: 49.92 | M1363: 2.669 | N1363: 2.655 | O1363: 6.383 | P1363: 6.383 | Q1363: 0.006
B1364: 20554 | C1364: Urban | D1364: 11 | E1364: 20 | F1364: Chapel Street | G1364: 3.341 | H1364: 2.594 | I1364: 2.574 | J1364: 5.315 | K1364: 5.144 | L1364: 3.35 | M1364: 2.902 | N1364: 2.886 | O1364: 5.144 | P1364: 5.144 | Q1364: 0.006
B1365: 21081 | C1365: Urban | D1365: 11 | E1365: 21 | F1365: Claremont | G1365: 6.798 | H1365: 2.524 | I1365: 2.507 | J1365: 4.764 | K1365: 5.144 | L1365: 6.87 | M1365: 2.634 | N1365: 2.617 | O1365: 5.144 | P1365: 5.144 | Q1365: -0.0184
B1366: 21082 | C1366: Urban | D1366: 11 | E1366: 21 | F1366: Claremont | G1366: 1.669 | H1366: 0.818 | I1366: 0.813 | J1366: 5.316 | K1366: 5.049 | L1366: 0 | M1366: 0 | N1366: 0 | O1366: 5.049 | P1366: 5.049 | Q1366: -0.0184
B1367: 21083 | C1367: Urban | D1367: 11 | E1367: 21 | F1367: Claremont | G1367: 3.875 | H1367: 2.972 | I1367: 2.953 | J1367: 4.972 | K1367: 5.621 | L1367: 4.04 | M1367: 3.503 | N1367: 3.48 | O1367: 5.621 | P1367: 5.621 | Q1367: -0.0184
B1368: 21084 | C1368: Urban | D1368: 11 | E1368: 21 | F1368: Claremont | G1368: 2.529 | H1368: 2.368 | I1368: 2.353 | J1368: 5.316 | K1368: 5.144 | L1368: 2.53 | M1368: 2.828 | N1368: 2.809 | O1368: 5.144 | P1368: 5.144 | Q1368: -0.0184
B1369: 21085 | C1369: Urban | D1369: 11 | E1369: 21 | F1369: Claremont | G1369: 5.5 | H1369: 4.901 | I1369: 4.869 | J1369: 5.621 | K1369: 5.621 | L1369: 5.51 | M1369: 3.008 | N1369: 2.989 | O1369: 5.621 | P1369: 5.621 | Q1369: -0.0184
B1370: 21086 | C1370: Urban | D1370: 11 | E1370: 21 | F1370: Claremont | G1370: 5.026 | H1370: 2.468 | I1370: 2.452 | J1370: 5.525 | K1370: 5.144 | L1370: 5.04 | M1370: 2.714 | N1370: 2.696 | O1370: 5.144 | P1370: 5.144 | Q1370: -0.0184
B1371: 21087 | C1371: Urban | D1371: 11 | E1371: 21 | F1371: Claremont | G1371: 4.793 | H1371: 1.723 | I1371: 1.711 | J1371: 5.315 | K1371: 6.383 | L1371: 2.59 | M1371: 1.818 | N1371: 1.807 | O1371: 6.383 | P1371: 6.383 | Q1371: -0.0184
B1372: 21088 | C1372: Urban | D1372: 11 | E1372: 21 | F1372: Claremont | G1372: 2.322 | H1372: 0.978 | I1372: 0.971 | J1372: 6.266 | K1372: 6.383 | L1372: 2.32 | M1372: 1.063 | N1372: 1.056 | O1372: 6.383 | P1372: 6.383 | Q1372: -0.0184
B1373: 21089 | C1373: Short Rural | D1373: 11 | E1373: 21 | F1373: Claremont | G1373: 16.838 | H1373: 0.339 | I1373: 0.336 | J1373: 4.553 | K1373: 7.049 | L1373: 18.71 | M1373: 3.015 | N1373: 2.995 | O1373: 7.049 | P1373: 7.049 | Q1373: -0.0184
B1374: 22323 | C1374: Urban | D1374: 11 | E1374: 22 | F1374: Howrah | G1374: 4.551 | H1374: 3.207 | I1374: 3.205 | J1374: 4.553 | K1374: 4.553 | L1374: 4.61 | M1374: 1.972 | N1374: 1.972 | O1374: 0 | P1374: 0 | Q1374: 0.0016
B1375: 22324 | C1375: Short Rural | D1375: 11 | E1375: 22 | F1375: Howrah | G1375: 14.375 | H1375: 2.695 | I1375: 2.694 | J1375: 5.331 | K1375: 5.331 | L1375: 13.6 | M1375: 2.193 | N1375: 2.193 | O1375: 0 | P1375: 0 | Q1375: 0.0016
B1376: 22325 | C1376: Urban | D1376: 11 | E1376: 22 | F1376: Howrah | G1376: 6.092 | H1376: 4.688 | I1376: 4.685 | J1376: 5.316 | K1376: 5.316 | L1376: 5.59 | M1376: 1.277 | N1376: 1.277 | O1376: 0 | P1376: 0 | Q1376: 0.0016
B1377: 22326 | C1377: Urban | D1377: 11 | E1377: 22 | F1377: Howrah | G1377: 2.778 | H1377: 1.626 | I1377: 1.625 | J1377: 5.315 | K1377: 5.315 | L1377: 2.77 | M1377: 0.882 | N1377: 0.882 | O1377: 0 | P1377: 0 | Q1377: 0.0016
B1378: 22328 | C1378: Urban | D1378: 11 | E1378: 22 | F1378: Howrah | G1378: 7.723 | H1378: 5.208 | I1378: 5.205 | J1378: 4.554 | K1378: 4.554 | L1378: 7.43 | M1378: 1.444 | N1378: 1.444 | O1378: 0 | P1378: 0 | Q1378: 0.0016
B1379: 22329 | C1379: Short Rural | D1379: 11 | E1379: 22 | F1379: Howrah | G1379: 11.255 | H1379: 5.802 | I1379: 5.798 | J1379: 4.554 | K1379: 4.554 | L1379: 11.36 | M1379: 3.008 | N1379: 3.008 | O1379: 0 | P1379: 0 | Q1379: 0.0016
B1380: 22330 | C1380: Short Rural | D1380: 11 | E1380: 22 | F1380: Howrah | G1380: 0.969 | H1380: 0.327 | I1380: 0.326 | J1380: 3.095 | K1380: 3.095 | L1380: 0.98 | M1380: 0.207 | N1380: 0.207 | O1380: 0 | P1380: 0 | Q1380: 0.0016
B1381: 22331 | C1381: Urban | D1381: 11 | E1381: 22 | F1381: Howrah | G1381: 6.657 | H1381: 5.857 | I1381: 5.853 | J1381: 4.553 | K1381: 4.553 | L1381: 6.65 | M1381: 3.289 | N1381: 3.289 | O1381: 0 | P1381: 0 | Q1381: 0.0016
B1382: 23341 | C1382: Urban | D1382: 11 | E1382: 23 | F1382: Rosny Park | G1382: 4.006 | H1382: 5.908 | I1382: 5.908 | J1382: 5.621 | K1382: 5.621 | L1382: 0 | M1382: 0 | N1382: 0 | O1382: 0 | P1382: 0 | Q1382: 0.0016
B1383: 23342 | C1383: Urban | D1383: 11 | E1383: 23 | F1383: Rosny Park | G1383: 0.695 | H1383: 4.924 | I1383: 4.923 | J1383: 6.478 | K1383: 6.478 | L1383: 0 | M1383: 0 | N1383: 0 | O1383: 0 | P1383: 0 | Q1383: 0.0016
B1384: 23343 | C1384: Urban | D1384: 11 | E1384: 23 | F1384: Rosny Park | G1384: 4.301 | H1384: 4.924 | I1384: 4.923 | J1384: 5.716 | K1384: 5.716 | L1384: 0 | M1384: 0 | N1384: 0 | O1384: 0 | P1384: 0 | Q1384: 0.0016
B1385: 23347 | C1385: Short Rural | D1385: 11 | E1385: 23 | F1385: Rosny Park | G1385: 8.676 | H1385: 4.267 | I1385: 4.267 | J1385: 4.363 | K1385: 4.363 | L1385: 0 | M1385: 0 | N1385: 0 | O1385: 0 | P1385: 0 | Q1385: 0.0016
B1386: 23348 | C1386: Urban | D1386: 11 | E1386: 23 | F1386: Rosny Park | G1386: 5.735 | H1386: 6.565 | I1386: 6.564 | J1386: 6.478 | K1386: 6.478 | L1386: 0 | M1386: 0 | N1386: 0 | O1386: 0 | P1386: 0 | Q1386: 0.0016
B1387: 26161 | C1387: Short Rural | D1387: 11 | E1387: 26 | F1387: Geilston Bay | G1387: 19.417 | H1387: 1.486 | I1387: 1.479 | J1387: 5.315 | K1387: 5.849 | L1387: 19.23 | M1387: 2.24 | N1387: 2.228 | O1387: 5.849 | P1387: 5.849 | Q1387: -0.0008
B1388: 26162 | C1388: Urban | D1388: 11 | E1388: 26 | F1388: Geilston Bay | G1388: 2.003 | H1388: 2.149 | I1388: 2.138 | J1388: 5.601 | K1388: 6.516 | L1388: 3.57 | M1388: 3.383 | N1388: 3.365 | O1388: 6.516 | P1388: 6.516 | Q1388: -0.0008
B1389: 26163 | C1389: Urban | D1389: 11 | E1389: 26 | F1389: Geilston Bay | G1389: 2.695 | H1389: 1.366 | I1389: 1.359 | J1389: 5.33 | K1389: 6.249 | L1389: 4.76 | M1389: 4.312 | N1389: 4.29 | O1389: 6.249 | P1389: 6.249 | Q1389: -0.0008
B1390: 26164 | C1390: Short Rural | D1390: 11 | E1390: 26 | F1390: Geilston Bay | G1390: 14.348 | H1390: 2.796 | I1390: 2.782 | J1390: 5.506 | K1390: 5.887 | L1390: 12.95 | M1390: 4.252 | N1390: 4.23 | O1390: 5.887 | P1390: 5.887 | Q1390: -0.0008
B1391: 26165 | C1391: Urban | D1391: 11 | E1391: 26 | F1391: Geilston Bay | G1391: 8.955 | H1391: 2.053 | I1391: 2.043 | J1391: 5.601 | K1391: 6.764 | L1391: 8.42 | M1391: 3.383 | N1391: 3.365 | O1391: 6.764 | P1391: 6.764 | Q1391: -0.0008
B1392: 26166 | C1392: Urban | D1392: 11 | E1392: 26 | F1392: Geilston Bay | G1392: 3.583 | H1392: 0 | I1392: 0 | J1392: 5.315 | K1392: 6.249 | L1392: 8.95 | M1392: 3.924 | N1392: 3.904 | O1392: 6.249 | P1392: 6.249 | Q1392: -0.0008
B1393: 26167 | C1393: Short Rural | D1393: 11 | E1393: 26 | F1393: Geilston Bay | G1393: 13.499 | H1393: 0 | I1393: 0 | J1393: 5.598 | K1393: 6.002 | L1393: 13.51 | M1393: 3.657 | N1393: 3.638 | O1393: 6.002 | P1393: 6.002 | Q1393: -0.0008
B1394: 26169 | C1394: Urban | D1394: 11 | E1394: 26 | F1394: Geilston Bay | G1394: 6.624 | H1394: 2.471 | I1394: 2.459 | J1394: 5.714 | K1394: 6.859 | L1394: 7.77 | M1394: 4.212 | N1394: 4.19 | O1394: 6.859 | P1394: 6.859 | Q1394: -0.0008
B1395: 27171 | C1395: Urban | D1395: 11 | E1395: 27 | F1395: Bellerive | G1395: 5.507 | H1395: 2.218 | I1395: 2.208 | J1395: 5.713 | K1395: 6.192 | L1395: 7.64 | M1395: 4.312 | N1395: 4.312 | O1395: 6.192 | P1395: 6.192 | Q1395: -0.0008
B1396: 27172 | C1396: Short Rural | D1396: 11 | E1396: 27 | F1396: Bellerive | H1396: 0 | I1396: 0 | J1396: 5.315 | K1396: 5.335 | L1396: 4.16 | M1396: 3.49 | N1396: 3.49 | O1396: 5.335 | P1396: 5.335 | Q1396: -0.0008
B1397: 27173 | C1397: Short Rural | D1397: 11 | E1397: 27 | F1397: Bellerive | G1397: 10.755 | H1397: 0.381 | I1397: 0.379 | J1397: 5.708 | K1397: 5.144 | L1397: 10.16 | M1397: 0.287 | N1397: 0.287 | O1397: 5.144 | P1397: 5.144 | Q1397: -0.0008
B1398: 27175 | C1398: Urban | D1398: 11 | E1398: 27 | F1398: Bellerive | G1398: 5.403 | H1398: 1.83 | I1398: 1.822 | J1398: 5.315 | K1398: 5.906 | L1398: 5.83 | M1398: 4.071 | N1398: 4.071 | O1398: 5.906 | P1398: 5.906 | Q1398: -0.0008
B1399: 27176 | C1399: Urban | D1399: 11 | E1399: 27 | F1399: Bellerive | G1399: 5.915 | H1399: 2.649 | I1399: 2.637 | J1399: 5.713 | K1399: 5.049 | L1399: 5.54 | M1399: 3.115 | N1399: 3.115 | O1399: 5.049 | P1399: 5.049 | Q1399: -0.0008
B1400: 27178 | C1400: Urban | D1400: 11 | E1400: 27 | F1400: Bellerive | G1400: 6.19 | H1400: 1.853 | I1400: 1.844 | J1400: 4.553 | K1400: 6.478 | L1400: 6.3 | M1400: 2.413 | N1400: 2.413 | O1400: 6.478 | P1400: 6.478 | Q1400: -0.0008
B1401: 28221 | C1401: Short Rural | D1401: 11 | E1401: 28 | F1401: Rokeby | G1401: 14.173 | H1401: 3.509 | I1401: 3.493 | J1401: 6.737 | K1401: 6.737 | L1401: 14.19 | M1401: 3.399 | N1401: 3.388 | O1401: 6.287 | P1401: 6.287 | Q1401: 0.0016
B1402: 28222 | C1402: Short Rural | D1402: 11 | E1402: 28 | F1402: Rokeby | G1402: 69.561 | H1402: 2.041 | I1402: 2.031 | J1402: 5.316 | K1402: 5.316 | L1402: 4.23 | M1402: 2.184 | N1402: 2.177 | O1402: 5.716 | P1402: 5.716 | Q1402: 0.0016
B1403: 28223 | C1403: Short Rural | D1403: 11 | E1403: 28 | F1403: Rokeby | G1403: 31.387 | H1403: 2.721 | I1403: 2.709 | J1403: 5.228 | K1403: 5.228 | L1403: 68.69 | M1403: 2.657 | N1403: 2.649 | O1403: 6.287 | P1403: 6.287 | Q1403: 0.0016
B1404: 28224 | C1404: Urban | D1404: 11 | E1404: 28 | F1404: Rokeby | G1404: 4.61 | H1404: 4.237 | I1404: 4.217 | J1404: 5.317 | K1404: 5.317 | L1404: 31.42 | M1404: 4.314 | N1404: 4.3 | O1404: 5.335 | P1404: 5.335 | Q1404: 0.0016
B1405: 28225 | C1405: Short Rural | D1405: 11 | E1405: 28 | F1405: Rokeby | G1405: 3.439 | H1405: 0.085 | I1405: 0.085 | J1405: 4.459 | K1405: 4.459 | L1405: 4.33 | M1405: 1.849 | N1405: 1.843 | O1405: 5.525 | P1405: 5.525 | Q1405: 0.0016
B1406: 28227 | D1406: 11 | E1406: 28 | F1406: Rokeby | G1406: 0 | H1406: 0 | I1406: 0 | J1406: 0 | K1406: 0 | L1406: 5.98 | M1406: 2.256 | N1406: 2.249 | O1406: 5.144 | P1406: 5.144 | Q1406: 0.0016
B1407: 28228 | C1407: Short Rural | D1407: 11 | E1407: 28 | F1407: Rokeby | G1407: 84.121 | H1407: 3.283 | I1407: 3.268 | J1407: 5.149 | K1407: 5.149 | L1407: 83.65 | M1407: 3.289 | N1407: 3.278 | O1407: 6.573 | P1407: 6.573 | Q1407: 0.0016
B1408: 28229 | C1408: Short Rural | D1408: 11 | E1408: 28 | F1408: Rokeby | G1408: 7.144 | H1408: 1.893 | I1408: 1.885 | J1408: 5.316 | K1408: 5.316 | L1408: 3.43 | M1408: 3.249 | N1408: 3.238 | O1408: 5.335 | P1408: 5.335 | Q1408: 0.0016
B1409: 28230 | C1409: Short Rural | D1409: 11 | E1409: 28 | F1409: Rokeby | G1409: 2.276 | H1409: 0.202 | I1409: 0.201 | J1409: 5.888 | K1409: 5.888 | L1409: 3.29 | M1409: 0.231 | N1409: 0.23 | O1409: 5.906 | P1409: 5.906 | Q1409: 0.0016
B1410: 28232 | C1410: Short Rural | D1410: 11 | E1410: 28 | F1410: Rokeby | H1410: 2.007 | I1410: 1.998 | J1410: 5.869 | K1410: 5.869 | Q1410: 0.0016
B1411: 29481 | C1411: Short Rural | D1411: 11 | E1411: 29 | F1411: Cambridge | G1411: 21.237 | H1411: 0.923 | I1411: 0.915 | J1411: 7.424 | K1411: 5.411 | L1411: 21.24 | M1411: 1.322 | N1411: 1.305 | O1411: 5.411 | P1411: 5.411 | Q1411: -0.0008
B1412: 29482 | C1412: Short Rural | D1412: 11 | E1412: 29 | F1412: Cambridge | G1412: 6.99 | H1412: 0.474 | I1412: 0.469 | J1412: 1.338 | K1412: 5.411 | L1412: 6.98 | M1412: 0.811 | N1412: 0.801 | O1412: 5.411 | P1412: 5.411 | Q1412: -0.0008
B1413: 29483 | C1413: Short Rural | D1413: 11 | E1413: 29 | F1413: Cambridge | G1413: 25.919 | H1413: 1.937 | I1413: 1.919 | J1413: 3.249 | K1413: 7.526 | L1413: 25.49 | M1413: 2.601 | N1413: 2.567 | O1413: 7.526 | P1413: 7.526 | Q1413: -0.0008
B1414: 29485 | C1414: Short Rural | D1414: 11 | E1414: 29 | F1414: Cambridge | G1414: 11.561 | H1414: 1.194 | I1414: 1.183 | J1414: 4.535 | K1414: 5.011 | L1414: 10.34 | M1414: 1.873 | N1414: 1.848 | O1414: 5.011 | P1414: 5.011 | Q1414: -0.0008
B1415: 29486 | C1415: Short Rural | D1415: 11 | E1415: 29 | F1415: Cambridge | G1415: 3.584 | H1415: 0.532 | I1415: 0.527 | J1415: 4.554 | K1415: 5.011 | L1415: 3.58 | M1415: 0.794 | N1415: 0.783 | O1415: 5.011 | P1415: 5.011 | Q1415: -0.0008
B1416: 29488 | C1416: Short Rural | D1416: 11 | E1416: 29 | F1416: Cambridge | G1416: 42.122 | H1416: 2.422 | I1416: 2.365 | J1416: 5.315 | K1416: 5.506 | L1416: 41.99 | M1416: 3.257 | N1416: 3.214 | O1416: 5.506 | P1416: 5.506 | Q1416: -0.0008
B1417: 29489 | C1417: Short Rural | D1417: 11 | E1417: 29 | F1417: Cambridge | G1417: 16.463 | H1417: 1.267 | I1417: 1.238 | J1417: 4.553 | K1417: 6.135 | L1417: 16.54 | M1417: 1.728 | N1417: 1.706 | O1417: 6.135 | P1417: 6.135 | Q1417: -0.0008
B1418: 29490 | C1418: Short Rural | D1418: 11 | E1418: 29 | F1418: Cambridge | G1418: 16.339 | H1418: 0.917 | I1418: 0.896 | J1418: 4.555 | K1418: 6.135 | L1418: 16.2 | M1418: 1.287 | N1418: 1.27 | O1418: 6.135 | P1418: 6.135 | Q1418: -0.0008
B1419: 29491 | C1419: Urban | D1419: 11 | E1419: 29 | F1419: Cambridge | G1419: 2.211 | H1419: 1.509 | I1419: 1.473 | J1419: 5.316 | K1419: 6.478 | L1419: 0 | M1419: 0 | N1419: 0 | O1419: 6.478 | P1419: 6.478 | Q1419: -0.0008
B1420: 29492 | C1420: Short Rural | D1420: 11 | E1420: 29 | F1420: Cambridge | G1420: 2.384 | H1420: 0.033 | I1420: 0.032 | J1420: 6.478 | K1420: 0 | L1420: 0 | M1420: 0 | N1420: 0 | O1420: 6.478 | P1420: 6.478 | Q1420: -0.0008
B1421: 30603 | C1421: Short Rural | D1421: 11 | E1421: 30 | F1421: Knights Road | G1421: 89.79 | H1421: 4.347 | I1421: 4.309 | J1421: 6.764 | K1421: 7.621 | L1421: 89.94 | M1421: 3.865 | N1421: 3.865 | O1421: 7.621 | P1421: 7.621 | Q1421: 0.0019
B1422: 30604 | C1422: Short Rural | D1422: 11 | E1422: 30 | F1422: Knights Road | G1422: 76.104 | H1422: 2.933 | I1422: 2.908 | J1422: 5.318 | K1422: 7.621 | L1422: 74.26 | M1422: 2.762 | N1422: 2.762 | O1422: 7.621 | P1422: 7.621 | Q1422: 0.0019
B1423: 30605 | C1423: Short Rural | D1423: 11 | E1423: 30 | F1423: Knights Road | G1423: 34.326 | H1423: 2.877 | I1423: 2.852 | J1423: 5.071 | K1423: 7.621 | L1423: 34.27 | M1423: 2.498 | N1423: 2.498 | O1423: 7.621 | P1423: 7.621 | Q1423: 0.0019
B1424: 30606 | C1424: Short Rural | D1424: 11 | E1424: 30 | F1424: Knights Road | G1424: 72.025 | H1424: 2.877 | I1424: 2.851 | J1424: 3.899 | K1424: 7.621 | L1424: 71.62 | M1424: 2.918 | N1424: 2.918 | O1424: 7.621 | P1424: 7.621 | Q1424: 0.0019
B1425: 30607 | C1425: Short Rural | D1425: 11 | E1425: 30 | F1425: Knights Road | G1425: 139.632 | H1425: 2.785 | I1425: 2.761 | J1425: 2.643 | K1425: 7.621 | L1425: 139.07 | M1425: 2.467 | N1425: 2.467 | O1425: 7.621 | P1425: 7.621 | Q1425: 0.0019
B1426: 30608 | C1426: Short Rural | D1426: 11 | E1426: 30 | F1426: Knights Road | G1426: 130.899 | H1426: 4.233 | I1426: 4.196 | J1426: 4.515 | K1426: 7.621 | L1426: 130.41 | M1426: 3.794 | N1426: 3.794 | O1426: 7.621 | P1426: 7.621 | Q1426: 0.0019
B1427: 31002 | C1427: Short Rural | D1427: 11 | E1427: 31 | F1427: Kermandie | G1427: 58.856 | H1427: 0.655 | I1427: 0.637 | J1427: 3.588 | K1427: 6.383 | L1427: 58.82 | M1427: 0.768 | N1427: 0.757 | O1427: 6.383 | P1427: 6.383 | Q1427: -0.0099
B1428: 31007 | C1428: Short Rural | D1428: 11 | E1428: 31 | F1428: Kermandie | G1428: 97.056 | H1428: 2.007 | I1428: 1.952 | J1428: 5.291 | K1428: 6.287 | L1428: 96.93 | M1428: 2.04 | N1428: 2.011 | O1428: 6.287 | P1428: 6.287 | Q1428: -0.0099
B1429: 31008 | C1429: Short Rural | D1429: 11 | E1429: 31 | F1429: Kermandie | G1429: 106.961 | H1429: 2.283 | I1429: 2.221 | J1429: 2.957 | K1429: 6.383 | L1429: 106.3 | M1429: 2.467 | N1429: 2.432 | O1429: 6.383 | P1429: 6.383 | Q1429: -0.0099
B1430: 32374 | C1430: Urban | D1430: 11 | E1430: 32 | F1430: Summerleas | G1430: 11.297 | H1430: 4.184 | I1430: 4.174 | J1430: 5.315 | K1430: 5.315 | L1430: 11.1 | M1430: 0 | N1430: 0 | O1430: 0 | P1430: 0 | Q1430: 0.0084
B1431: 32377 | C1431: Urban | D1431: 11 | E1431: 32 | F1431: Summerleas | G1431: 2.775 | H1431: 3.097 | I1431: 3.09 | J1431: 4.782 | K1431: 4.782 | L1431: 2.78 | M1431: 0 | N1431: 0 | O1431: 0 | P1431: 0 | Q1431: 0.0084
B1432: 32379 | C1432: Short Rural | D1432: 11 | E1432: 32 | F1432: Summerleas | G1432: 16.873 | H1432: 4.672 | I1432: 4.661 | J1432: 4.553 | K1432: 4.553 | L1432: 16.62 | M1432: 0 | N1432: 0 | O1432: 0 | P1432: 0 | Q1432: 0.0084
B1433: 33271 | C1433: Short Rural | D1433: 11 | E1433: 33 | F1433: Electrona | G1433: 148.909 | H1433: 2.019 | I1433: 2.001 | J1433: 1.712 | K1433: 6.383 | L1433: 156.54 | M1433: 2.487 | N1433: 2.468 | O1433: 6.383 | P1433: 6.383 | Q1433: -0.0224
B1434: 33272 | C1434: Short Rural | D1434: 11 | E1434: 33 | F1434: Electrona | G1434: 116.101 | H1434: 4.241 | I1434: 4.202 | J1434: 2.344 | K1434: 6.287 | L1434: 114.61 | M1434: 4.43 | N1434: 4.395 | O1434: 6.287 | P1434: 6.287 | Q1434: -0.0224
B1435: 33273 | C1435: Urban | D1435: 11 | E1435: 33 | F1435: Electrona | G1435: 0.476 | H1435: 0.142 | I1435: 0.141 | J1435: 4.535 | K1435: 6.287 | O1435: 6.287 | P1435: 6.287 | Q1435: -0.0224
B1436: 33274 | C1436: Urban | D1436: 11 | E1436: 33 | F1436: Electrona | G1436: 14.227 | H1436: 3.159 | I1436: 3.13 | J1436: 5.316 | K1436: 7.812 | L1436: 14.88 | M1436: 6.296 | N1436: 6.247 | O1436: 7.812 | P1436: 7.812 | Q1436: -0.0224
B1437: 33275 | C1437: Urban | D1437: 11 | E1437: 33 | F1437: Electrona | G1437: 5.34 | H1437: 0.158 | I1437: 0.157 | J1437: 4.571 | K1437: 6.383 | L1437: 67.72 | M1437: 3.47 | N1437: 3.443 | O1437: 6.383 | P1437: 6.383 | Q1437: -0.0224
B1438: 33276 | C1438: Short Rural | D1438: 11 | E1438: 33 | F1438: Electrona | G1438: 158.297 | H1438: 3.55 | I1438: 3.517 | J1438: 2.519 | K1438: 6.287 | L1438: 148.66 | M1438: 3.931 | N1438: 3.9 | O1438: 6.287 | P1438: 6.287 | Q1438: -0.0224
... 345 more rows

Sheet 2.5 Connections
B1: =SheetHeader -> REGULATORY REPORTING STATEMENT
B2: =dms_TradingName -> TasNetworks (D)
B3: =dms_Reg_Year_Span -> 2019-20 to 2023-24
B4: 2.5 CONNECTIONS
B6: There are THREE tables on this worksheet - each has been 'grouped' (and sub-grouped) for easy navigation. See the Instructions sheet on how to group or ungroup tables.
B8: 2.5.1 - DESCRIPTOR METRICS
B9: VOLUMES AND EXPENDITURE - ALL
B10: CONNECTION SUBCATEGORY | C10: DESCRIPTOR METRIC | D10: Unit of Measure | E10: =CONCATENATE("VOLUMES and EXPENDITURE (0's, real ", dms_DollarReal, ")") -> VOLUMES and EXPENDITURE (0's, real June 2019)
E11: =CRCP_y4 -> 2017-18 | F11: =CRCP_y5 -> 2018-19 | G11: =FRCP_y1 -> 2019-20 | H11: =FRCP_y2 -> 2020-21 | I11: =FRCP_y3 -> 2021-22 | J11: =FRCP_y4 -> 2022-23 | K11: =FRCP_y5 -> 2023-24
B12: RESIDENTIAL | C12: Underground connections | D12: 0's | E12: 1707 | F12: 1671 | G12: 1749 | H12: 1743 | I12: 1780 | J12: 1795 | K12: 1811
C13: Overhead connections | D13: 0's | E13: 919 | F13: 900 | G13: 942 | H13: 939 | I13: 958 | J13: 967 | K13: 975
C14: Distribution substations installed | D14: MVA added | E14: 7 | F14: 7 | G14: 7 | H14: 7 | I14: 7 | J14: 7 | K14: 7
C15: Distribution substations installed | D15: 0's | E15: 107 | F15: 105 | G15: 105 | H15: 105 | I15: 105 | J15: 105 | K15: 105
C16: Distribution substations installed | D16: total spend $0's | E16: 162839.2992 | F16: 153680.4017 | G16: 141262.5332 | H16: 141391.9012 | I16: 141867.3593 | J16: 142228.2114 | K16: 141904.4155
C17: Augmentation HV | D17: net circuit KM added | E17: 6 | F17: 6 | G17: 6 | H17: 6 | I17: 6 | J17: 6 | K17: 6
C18: Augmentation HV | D18: total spend $0's | E18: 140453.237 | F18: 140590.6725 | G18: 1586475.965 | H18: 1877362.318 | I18: 1870779.71 | J18: 2021529.657 | K18: 2066822.367
C19: Augmentation LV | D19: net circuit KM added | E19: 2 | F19: 2 | G19: 2 | H19: 2 | I19: 2 | J19: 2 | K19: 2
C20: Augmentation LV | D20: total spend $0's | E20: 38085.28213 | F20: 38015.71785 | G20: 528825.3216 | H20: 625787.4394 | I20: 623593.2368 | J20: 673843.2189 | K20: 688940.789
C21: Mean days to connect residential customer with LV single phase connection | D21: 0's | E21: 9 | F21: 9 | G21: 9 | H21: 9 | I21: 9 | J21: 9 | K21: 9
C22: Volume of GSL breaches for residential customers | D22: 0's | E22: 162 | F22: 192 | G22: 192 | H22: 192 | I22: 192 | J22: 192 | K22: 192
C23: Volume of customer complaints relating to connection services | D23: 0's | E23: 114 | F23: 92 | G23: 92 | H23: 92 | I23: 92 | J23: 92 | K23: 92
C24: GSL payments | D24: $0's | E24: 17190 | F24: 19515 | G24: 19515 | H24: 19515 | I24: 19515 | J24: 19515 | K24: 19515
B25: COMMERCIAL/INDUSTRIAL | C25: Underground connections | D25: 0's | E25: 307 | F25: 287 | G25: 331 | H25: 328 | I25: 349 | J25: 358 | K25: 367
C26: Overhead connections | D26: 0's | E26: 659 | F26: 615 | G26: 710 | H26: 703 | I26: 747 | J26: 766 | K26: 785
C27: Distribution substations installed | D27: MVA added | E27: 36 | F27: 39 | G27: 39 | H27: 39 | I27: 39 | J27: 39 | K27: 39
C28: Distribution substations installed | D28: 0's | E28: 202 | F28: 193 | G28: 168 | H28: 168 | I28: 168 | J28: 168 | K28: 168
C29: Distribution substations installed | D29: total spend $0's | E29: 812710.9446 | F29: 852091.5363 | G29: 787034.1134 | H29: 787754.8783 | I29: 790403.8588 | J29: 792414.3205 | K29: 790610.315
C30: Augmentation HV | D30: net circuit KM added | E30: 71 | F30: 68 | G30: 60 | H30: 60 | I30: 60 | J30: 60 | K30: 60
C31: Augmentation HV | D31: total spend $0's
C32: Augmentation LV | D32: net circuit KM added | E32: 8 | F32: 8 | G32: 7 | H32: 7 | I32: 7 | J32: 7 | K32: 7
C33: Augmentation LV | D33: total spend $0's | E33: 181620.5651 | F33: 176581.8847 | G33: 800533.3675 | H33: 857653.7316 | I33: 882674.6361 | J33: 919010.9299 | K33: 939020.7069
B34: SUBDIVISION | C34: Underground connections | D34: 0's | E34: 64.24902 | F34: 63.05299494 | G34: 60.9599431 | H34: 65.44505424 | I34: 65.14604683 | J34: 67.2391 | K34: 68.13612
C35: Overhead connections | D35: 0's | E35: 9.223561 | F35: 9.051859942 | G35: 8.75138234 | H35: 9.395262913 | I35: 9.352337541 | J35: 9.652815 | K35: 9.781591
C36: Distribution substations installed | D36: MVA added | E36: 7 | F36: 6 | G36: 5 | H36: 5 | I36: 5 | J36: 5 | K36: 5
C37: Distribution substations installed | D37: 0's | E37: 30 | F37: 27 | G37: 20 | H37: 20 | I37: 20 | J37: 20 | K37: 20
C38: Distribution substations installed | D38: total spend $0's | E38: 157697.0056 | F38: 136325.8364 | G38: 100901.8094 | H38: 100994.2152 | I38: 101333.8281 | J38: 101591.5796 | K38: 101360.2968
C39: Augmentation HV | D39: net circuit KM added | E39: 7 | F39: 6 | G39: 4 | H39: 4 | I39: 4 | J39: 4 | K39: 4
C40: Augmentation HV | D40: total spend $0's
C41: Augmentation LV | D41: net circuit KM added | E41: 22 | F41: 20 | G41: 14 | H41: 14 | I41: 14 | J41: 14 | K41: 14
C42: Augmentation LV | D42: total spend $0's | E42: 483000.63 | F42: 442916.8548 | G42: 4994893.569 | H42: 5357355.625 | I42: 5352567.01 | J42: 5534834.453 | K42: 5595969.507
C43: Cost per lot | D43: $0's
B44: EMBEDDED GENERATION | C44: Underground connections | D44: 0's | E44: 878 | F44: 889 | G44: 899 | H44: 930 | I44: 959 | J44: 987 | K44: 1014
C45: Overhead connections | D45: 0's | E45: 2635 | F45: 2668 | G45: 2698 | H45: 2790 | I45: 2878 | J45: 2962 | K45: 3042
C46: Distribution substations installed | D46: MVA added | E46: 1 | F46: 1 | G46: 1 | H46: 1 | I46: 1 | J46: 1 | K46: 1
C47: Distribution substations installed | D47: 0's | E47: 8 | F47: 8 | G47: 8 | H47: 8 | I47: 8 | J47: 8 | K47: 8
C48: Distribution substations installed | D48: total spend $0's | E48: 22397.54572 | F48: 21583.0888 | G48: 20180.36188 | H48: 20198.84303 | I48: 20266.76561 | J48: 20318.31591 | K48: 20272.05936
C49: Augmentation HV | D49: net circuit KM added | E49: 1 | F49: 1 | G49: 1 | H49: 1 | I49: 1 | J49: 1 | K49: 1
C50: Augmentation HV | D50: total spend $0's
C51: Augmentation LV | D51: net circuit KM added | E51: 0 | F51: 0 | G51: 0 | H51: 0 | I51: 0 | J51: 0 | K51: 0
C52: Augmentation LV | D52: total spend $0's | E52: 7925.261021 | F52: 8098.022738 | G52: 0 | H52: 0 | I52: 0 | J52: 0 | K52: 0
B54: VOLUMES AND EXPENDITURE - STANDARD CONTROL SERVICES
B55: CONNECTION SUBCATEGORY | C55: DESCRIPTOR METRIC | D55: Unit of Measure | E55: =CONCATENATE("VOLUMES and EXPENDITURE (0's, real ", dms_DollarReal, ")") -> VOLUMES and EXPENDITURE (0's, real June 2019)
E56: =CRCP_y4 -> 2017-18 | F56: =CRCP_y5 -> 2018-19 | G56: =FRCP_y1 -> 2019-20 | H56: =FRCP_y2 -> 2020-21 | I56: =FRCP_y3 -> 2021-22 | J56: =FRCP_y4 -> 2022-23 | K56: =FRCP_y5 -> 2023-24
B57: RESIDENTIAL | C57: Underground connections | D57: 0's | E57: 1707 | F57: 1671 | G57: 1749 | H57: 1743 | I57: 1780 | J57: 1795 | K57: 1811
C58: Overhead connections | D58: 0's | E58: 919 | F58: 900 | G58: 942 | H58: 939 | I58: 958 | J58: 967 | K58: 975
C59: Distribution substations installed | D59: MVA added | E59: 7 | F59: 7 | G59: 7 | H59: 7 | I59: 7 | J59: 7 | K59: 7
C60: Distribution substations installed | D60: 0's | E60: 107 | F60: 105 | G60: 105 | H60: 105 | I60: 105 | J60: 105 | K60: 105
C61: Distribution substations installed | D61: total spend $0's | E61: 162839.2992 | F61: 153680.4017 | G61: 141262.5332 | H61: 141391.9012 | I61: 141867.3593 | J61: 142228.2114 | K61: 141904.4155
C62: Augmentation HV | D62: net circuit KM added | E62: 6 | F62: 6 | G62: 6 | H62: 6 | I62: 6 | J62: 6 | K62: 6
C63: Augmentation HV | D63: total spend $0's
C64: Augmentation LV | D64: net circuit KM added | E64: 2 | F64: 2 | G64: 2 | H64: 2 | I64: 2 | J64: 2 | K64: 2
C65: Augmentation LV | D65: total spend $0's | E65: 38085.28213 | F65: 38015.71785 | G65: 528825.3216 | H65: 625787.4394 | I65: 623593.2368 | J65: 673843.2189 | K65: 688940.789
C66: Mean days to connect residential customer with LV single phase connection | D66: 0's | E66: 9 | F66: 9 | G66: 9 | H66: 9 | I66: 9 | J66: 9 | K66: 9
C67: Volume of GSL breaches for residential customers | D67: 0's | E67: 162 | F67: 192 | G67: 192 | H67: 192 | I67: 192 | J67: 192 | K67: 192
C68: Volume of customer complaints relating to connection services | D68: 0's | E68: 114 | F68: 92 | G68: 92 | H68: 92 | I68: 92 | J68: 92 | K68: 92
C69: GSL payments | D69: $0's | E69: 17190 | F69: 19515 | G69: 19515 | H69: 19515 | I69: 19515 | J69: 19515 | K69: 19515
B70: COMMERCIAL/INDUSTRIAL | C70: Underground connections | D70: 0's | E70: 307 | F70: 287 | G70: 331 | H70: 328 | I70: 349 | J70: 358 | K70: 367
C71: Overhead connections | D71: 0's | E71: 659 | F71: 615 | G71: 710 | H71: 703 | I71: 747 | J71: 766 | K71: 785
C72: Distribution substations installed | D72: MVA added | E72: 36 | F72: 39 | G72: 39 | H72: 39 | I72: 39 | J72: 39 | K72: 39
C73: Distribution substations installed | D73: 0's | E73: 202 | F73: 193 | G73: 168 | H73: 168 | I73: 168 | J73: 168 | K73: 168
C74: Distribution substations installed | D74: total spend $0's | E74: 812710.9446 | F74: 852091.5363 | G74: 787034.1134 | H74: 787754.8783 | I74: 790403.8588 | J74: 792414.3205 | K74: 790610.315
C75: Augmentation HV | D75: net circuit KM added | E75: 71 | F75: 68 | G75: 60 | H75: 60 | I75: 60 | J75: 60 | K75: 60
C76: Augmentation HV | D76: total spend $0's
C77: Augmentation LV | D77: net circuit KM added | E77: 8 | F77: 8 | G77: 7 | H77: 7 | I77: 7 | J77: 7 | K77: 7
C78: Augmentation LV | D78: total spend $0's | E78: 181620.5651 | F78: 176581.8847 | G78: 800533.3675 | H78: 857653.7316 | I78: 882674.6361 | J78: 919010.9299 | K78: 939020.7069
B79: SUBDIVISION | C79: Underground connections | D79: 0's | E79: 64.24902 | F79: 63.05299494 | G79: 60.9599431 | H79: 65.44505424 | I79: 65.14604683 | J79: 67.2391 | K79: 68.13612
C80: Overhead connections | D80: 0's | E80: 9.223561 | F80: 9.051859942 | G80: 8.75138234 | H80: 9.395262913 | I80: 9.352337541 | J80: 9.652815 | K80: 9.781591
C81: Distribution substations installed | D81: MVA added | E81: 7 | F81: 6 | G81: 5 | H81: 5 | I81: 5 | J81: 5 | K81: 5
C82: Distribution substations installed | D82: 0's | E82: 30 | F82: 27 | G82: 20 | H82: 20 | I82: 20 | J82: 20 | K82: 20
C83: Distribution substations installed | D83: total spend $0's | E83: 157697.0056 | F83: 136325.8364 | G83: 100901.8094 | H83: 100994.2152 | I83: 101333.8281 | J83: 101591.5796 | K83: 101360.2968
C84: Augmentation HV | D84: net circuit KM added | E84: 7 | F84: 6 | G84: 4 | H84: 4 | I84: 4 | J84: 4 | K84: 4
C85: Augmentation HV | D85: total spend $0's
C86: Augmentation LV | D86: net circuit KM added | E86: 22 | F86: 20 | G86: 14 | H86: 14 | I86: 14 | J86: 14 | K86: 14
C87: Augmentation LV | D87: total spend $0's | E87: 483000.63 | F87: 442916.8548 | G87: 4994893.569 | H87: 5357355.625 | I87: 5352567.01 | J87: 5534834.453 | K87: 5595969.507
C88: Cost per lot | D88: $0's
B89: EMBEDDED GENERATION | C89: Underground connections | D89: 0's | E89: 878 | F89: 889 | G89: 899 | H89: 930 | I89: 959 | J89: 987 | K89: 1014
C90: Overhead connections | D90: 0's | E90: 2635 | F90: 2668 | G90: 2698 | H90: 2790 | I90: 2878 | J90: 2962 | K90: 3042
C91: Distribution substations installed | D91: MVA added | E91: 1 | F91: 1 | G91: 1 | H91: 1 | I91: 1 | J91: 1 | K91: 1
C92: Distribution substations installed | D92: 0's | E92: 8 | F92: 8 | G92: 8 | H92: 8 | I92: 8 | J92: 8 | K92: 8
C93: Distribution substations installed | D93: total spend $0's | E93: 22397.54572 | F93: 21583.0888 | G93: 20180.36188 | H93: 20198.84303 | I93: 20266.76561 | J93: 20318.31591 | K93: 20272.05936
C94: Augmentation HV | D94: net circuit KM added | E94: 1 | F94: 1 | G94: 1 | H94: 1 | I94: 1 | J94: 1 | K94: 1
C95: Augmentation HV | D95: total spend $0's
C96: Augmentation LV | D96: net circuit KM added | E96: 0 | F96: 0 | G96: 0 | H96: 0 | I96: 0 | J96: 0 | K96: 0
C97: Augmentation LV | D97: total spend $0's | E97: 7925.261021 | F97: 8098.022738 | G97: 0 | H97: 0 | I97: 0 | J97: 0 | K97: 0
B101: 2.5.2 - COST METRICS BY CONNECTION CLASSIFICATION
B102: EXPENDITURE - ALL
B103: CONNECTION SUBCATEGORY | C103: CONNECTION CLASSICIATION | E103: =CONCATENATE("EXPENDITURE ($'0s, real ", dms_DollarReal,")") -> EXPENDITURE ($'0s, real June 2019)
E104: =CRCP_y4 -> 2017-18 | F104: =CRCP_y5 -> 2018-19 | G104: =FRCP_y1 -> 2019-20 | H104: =FRCP_y2 -> 2020-21 | I104: =FRCP_y3 -> 2021-22 | J104: =FRCP_y4 -> 2022-23 | K104: =FRCP_y5 -> 2023-24
B105: RESIDENTIAL | C105: Simple connection LV | E105: 798244.4523 | F105: 812288.7891 | G105: 1996864.505 | H105: 2267932.575 | I105: 2273401.711 | J105: 2416944.989 | K105: 2458281.336
C106: Complex connection LV | E106: 19448.16209 | F106: 20020.60369 | G106: 307180.5827 | H106: 415388.9437 | I106: 403440.851 | J106: 457893.952 | K106: 474669.4342
C107: Complex connection HV | E107: 856556.9846 | F107: 881769.0764 | G107: 0 | H107: 0 | I107: 0 | J107: 0 | K107: 0
B108: COMMERCIAL/INDUSTRIAL | C108: Simple connection LV | E108: 184570.1272 | F108: 182188.195 | G108: 1610937.218 | H108: 1574396.023 | I108: 1708346.725 | J108: 1743555.907 | K108: 1791374.942
C109: Complex connection HV (customer connected at LV, minor HV works) | E109: 0 | F109: 0 | G109: 5841627.771 | H109: 6435202.632 | I109: 6538061.342 | J109: 6853838.892 | K109: 6999217.205
C110: Complex connection HV (customer connected at LV, upstream asset works) | E110: 13894966 | F110: 13935053.82 | G110: 0 | H110: 0 | I110: 0 | J110: 0 | K110: 0
C111: Complex connection HV (customer connected at HV) | E111: 14508.81993 | F111: 14550.67876 | G111: 0 | H111: 0 | I111: 0 | J111: 0 | K111: 0
C112: Complex connection sub-transmission | E112: 0 | F112: 0 | G112: 0 | H112: 0 | I112: 0 | J112: 0 | K112: 0
B113: SUBDIVISION | C113: Complex connection LV | E113: 1197596.828 | F113: 1170399.678 | G113: 7390693.389 | H113: 7858369.467 | I113: 7853315.414 | J113: 8090261.115 | K113: 8166523.691
C114: Complex connection HV (no upstream asset works) | E114: 0 | F114: 0 | G114: 0 | H114: 0 | I114: 0 | J114: 0 | K114: 0
C115: Complex connection HV (with upstream asset works) | E115: 3049154.513 | F115: 2979908.911 | G115: 0 | H115: 0 | I115: 0 | J115: 0 | K115: 0
B116: EMBEDDED GENERATION | C116: Simple connection LV | E116: 0 | F116: 0 | G116: 0 | H116: 0 | I116: 0 | J116: 0 | K116: 0
C117: Complex connection HV (small capacity) | E117: 0 | F117: 0 | G117: 110170.0041 | H117: 107756.0876 | I117: 110625.0068 | J117: 110557.2425 | K117: 111053.1502
C118: Complex connection HV (large capacity) | E118: 0 | F118: 0 | G118: 0 | H118: 0 | I118: 0 | J118: 0 | K118: 0
B120: EXPENDITURE - STANDARD CONTROL SERVICES
E121: =CONCATENATE("EXPENDITURE ($'0s, real ", dms_DollarReal,")") -> EXPENDITURE ($'0s, real June 2019)
E122: =CRCP_y4 -> 2017-18 | F122: =CRCP_y5 -> 2018-19 | G122: =FRCP_y1 -> 2019-20 | H122: =FRCP_y2 -> 2020-21 | I122: =FRCP_y3 -> 2021-22 | J122: =FRCP_y4 -> 2022-23 | K122: =FRCP_y5 -> 2023-24
B123: RESIDENTIAL | C123: Simple connection LV | E123: 798244.4523 | F123: 812288.7891 | G123: 1996864.505 | H123: 2267932.575 | I123: 2273401.711 | J123: 2416944.989 | K123: 2458281.336
C124: Complex connection LV | E124: 19448.16209 | F124: 20020.60369 | G124: 307180.5827 | H124: 415388.9437 | I124: 403440.851 | J124: 457893.952 | K124: 474669.4342
C125: Complex connection HV | E125: 856556.9846 | F125: 881769.0764 | G125: 0 | H125: 0 | I125: 0 | J125: 0 | K125: 0
B126: COMMERCIAL/INDUSTRIAL | C126: Simple connection LV | E126: 184570.1272 | F126: 182188.195 | G126: 1610937.218 | H126: 1574396.023 | I126: 1708346.725 | J126: 1743555.907 | K126: 1791374.942
C127: Complex connection HV (customer connected at LV, minor HV works) | E127: 0 | F127: 0 | G127: 5841627.771 | H127: 6435202.632 | I127: 6538061.342 | J127: 6853838.892 | K127: 6999217.205
C128: Complex connection HV (customer connected at LV, upstream asset works) | E128: 13894966 | F128: 13935053.82 | G128: 0 | H128: 0 | I128: 0 | J128: 0 | K128: 0
C129: Complex connection HV (customer connected at HV) | E129: 14508.81993 | F129: 14550.67876 | G129: 0 | H129: 0 | I129: 0 | J129: 0 | K129: 0
C130: Complex connection sub-transmission | E130: 0 | F130: 0 | G130: 0 | H130: 0 | I130: 0 | J130: 0 | K130: 0
B131: SUBDIVISION | C131: Complex connection LV | E131: 1197596.828 | F131: 1170399.678 | G131: 7390693.389 | H131: 7858369.467 | I131: 7853315.414 | J131: 8090261.115 | K131: 8166523.691
C132: Complex connection HV (no upstream asset works) | E132: 0 | F132: 0 | G132: 0 | H132: 0 | I132: 0 | J132: 0 | K132: 0
C133: Complex connection HV (with upstream asset works) | E133: 3049154.513 | F133: 2979908.911 | G133: 0 | H133: 0 | I133: 0 | J133: 0 | K133: 0
B134: EMBEDDED GENERATION | C134: Simple connection LV | E134: 0 | F134: 0 | G134: 0 | H134: 0 | I134: 0 | J134: 0 | K134: 0
C135: Complex connection HV (small capacity) | E135: 0 | F135: 0 | G135: 110170.0041 | H135: 107756.0876 | I135: 110625.0068 | J135: 110557.2425 | K135: 111053.1502
C136: Complex connection HV (large capacity) | E136: 0 | F136: 0 | G136: 0 | H136: 0 | I136: 0 | J136: 0 | K136: 0
B138: EXPENDITURE - STANDARD CONTROL SERVICES - CAPITAL CONTRIBUTIONS
E139: =CONCATENATE("EXPENDITURE ($'0s, real ", dms_DollarReal,")") -> EXPENDITURE ($'0s, real June 2019)
E140: =CRCP_y4 -> 2017-18 | F140: =CRCP_y5 -> 2018-19 | G140: =FRCP_y1 -> 2019-20 | H140: =FRCP_y2 -> 2020-21 | I140: =FRCP_y3 -> 2021-22 | J140: =FRCP_y4 -> 2022-23 | K140: =FRCP_y5 -> 2023-24
B141: RESIDENTIAL | C141: Simple connection LV | E141: 467449.061 | F141: 471087.6501 | G141: 694625.0141 | H141: 735105.0853 | I141: 759306.7621 | J141: 792779.6895 | K141: 808972.1055
C142: Complex connection LV | E142: 11388.7733 | F142: 11610.96801 | G142: 106855.1802 | H142: 134640.0366 | I142: 134747.5744 | J142: 150193.3336 | K142: 156204.388
C143: Complex connection HV | E143: 501596.6688 | F143: 511382.8083 | G143: 0 | H143: 0 | I143: 0 | J143: 0 | K143: 0
B144: COMMERCIAL/INDUSTRIAL | C144: Simple connection LV | E144: 108083.5982 | F144: 105660.2157 | G144: 560377.1737 | H144: 510309.0521 | I144: 570580.7354 | J144: 571902.0156 | K144: 589506.3096
C145: Complex connection HV (customer connected at LV, minor HV works) | E145: 0 | F145: 0 | G145: 2032056.137 | H145: 2085842.512 | I145: 2183685.427 | J145: 2248120.786 | K145: 2303304.913
C146: Complex connection HV (customer connected at LV, upstream asset works) | E146: 8136841.779 | F146: 8081647.616 | G146: 0 | H146: 0 | I146: 0 | J146: 0 | K146: 0
C147: Complex connection HV (customer connected at HV) | E147: 8496.31242 | F147: 8438.679881 | G147: 0 | H147: 0 | I147: 0 | J147: 0 | K147: 0
C148: Complex connection sub-transmission | E148: 0 | F148: 0 | G148: 0 | H148: 0 | I148: 0 | J148: 0 | K148: 0
B149: SUBDIVISION | C149: Complex connection LV | E149: 701308.3665 | F149: 678774.3982 | G149: 2570910.788 | H149: 2547133.641 | I149: 2622974.844 | J149: 2653678.393 | K149: 2687442.551
C150: Complex connection HV (no upstream asset works) | E150: 0 | F150: 0 | G150: 0 | H150: 0 | I150: 0 | J150: 0 | K150: 0
C151: Complex connection HV (with upstream asset works) | E151: 1785573.842 | F151: 1728200.986 | G151: 0 | H151: 0 | I151: 0 | J151: 0 | K151: 0
B152: EMBEDDED GENERATION | C152: Simple connection LV | E152: 0 | F152: 0 | G152: 0 | H152: 0 | I152: 0 | J152: 0 | K152: 0
C153: Complex connection HV (small capacity) | E153: 0 | F153: 0 | G153: 38323.50188 | H153: 34926.98543 | I153: 36948.2944 | J153: 36263.76965 | K153: 36545.41057
C154: Complex connection HV (large capacity) | E154: 0 | F154: 0 | G154: 0 | H154: 0 | I154: 0 | J154: 0 | K154: 0
B158: 2.5.3 - VOLUMES BY CONNECTION CLASSIFICATION
B159: NEW CONNECTIONS - ALL
E160: VOLUMES (0's)
E161: =CRCP_y4 -> 2017-18 | F161: =CRCP_y5 -> 2018-19 | G161: =FRCP_y1 -> 2019-20 | H161: =FRCP_y2 -> 2020-21 | I161: =FRCP_y3 -> 2021-22 | J161: =FRCP_y4 -> 2022-23 | K161: =FRCP_y5 -> 2023-24
B162: RESIDENTIAL | C162: Simple connection LV | E162: 2626 | F162: 2571 | G162: 2690 | H162: 2682 | I162: 2738 | J162: 2762 | K162: 2786
C163: Complex connection LV | E163: 353 | F163: 337 | G163: 310 | H163: 368 | I163: 364 | J163: 392 | K163: 403
C164: Complex connection HV | E164: - | F164: - | G164: - | H164: - | I164: - | J164: - | K164: -
B165: COMMERCIAL/INDUSTRIAL | C165: Simple connection LV | E165: 878 | F165: 819 | G165: 946 | H165: 938 | I165: 997 | J165: 1022 | K165: 1047
C166: Complex connection HV (customer connected at LV, minor HV works) | E166: 203 | F166: 197 | G166: 187 | H166: 209 | I166: 208 | J166: 219 | K166: 223
C167: Complex connection HV (customer connected at LV, upstream asset works) | E167: - | F167: - | G167: - | H167: - | I167: - | J167: - | K167: -
C168: Complex connection HV (customer connected at HV) | E168: - | F168: - | G168: - | H168: - | I168: - | J168: - | K168: -
C169: Complex connection sub-transmission | E169: - | F169: - | G169: - | H169: - | I169: - | J169: - | K169: -
B170: SUBDIVISION | C170: Complex connection LV | E170: 73 | F170: 72 | G170: 70 | H170: 75 | I170: 74 | J170: 77 | K170: 78
C171: Complex connection HV (no upstream asset works) | E171: - | F171: - | G171: - | H171: - | I171: - | J171: - | K171: -
C172: Complex connection HV (with upstream asset works) | E172: - | F172: - | G172: - | H172: - | I172: - | J172: - | K172: -
B173: EMBEDDED GENERATION | C173: Simple connection LV | E173: 3514 | F173: 3558 | G173: 3598 | H173: 3720 | I173: 3837 | J173: 3949 | K173: 4056
C174: Complex connection HV (small capacity) | E174: - | F174: - | G174: - | H174: - | I174: - | J174: - | K174: -
C175: Complex connection HV (large capacity) | E175: - | F175: - | G175: - | H175: - | I175: - | J175: - | K175: -
B177: NEW CONNECTIONS - STANDARD CONTROL SERVICES
E178: VOLUMES (0's)
E179: =CRCP_y4 -> 2017-18 | F179: =CRCP_y5 -> 2018-19 | G179: =FRCP_y1 -> 2019-20 | H179: =FRCP_y2 -> 2020-21 | I179: =FRCP_y3 -> 2021-22 | J179: =FRCP_y4 -> 2022-23 | K179: =FRCP_y5 -> 2023-24
B180: RESIDENTIAL | C180: Simple connection LV | E180: 2626 | F180: 2571 | G180: 2690 | H180: 2682 | I180: 2738 | J180: 2762 | K180: 2786
C181: Complex connection LV | E181: 353 | F181: 337 | G181: 310 | H181: 368 | I181: 364 | J181: 392 | K181: 403
C182: Complex connection HV | E182: - | F182: - | G182: - | H182: - | I182: - | J182: - | K182: -
B183: COMMERCIAL/INDUSTRIAL | C183: Simple connection LV | E183: 878 | F183: 819 | G183: 946 | H183: 938 | I183: 997 | J183: 1022 | K183: 1047
C184: Complex connection HV (customer connected at LV, minor HV works) | E184: 203 | F184: 197 | G184: 187 | H184: 209 | I184: 208 | J184: 219 | K184: 223
C185: Complex connection HV (customer connected at LV, upstream asset works) | E185: - | F185: - | G185: - | H185: - | I185: - | J185: - | K185: -
C186: Complex connection HV (customer connected at HV) | E186: - | F186: - | G186: - | H186: - | I186: - | J186: - | K186: -
C187: Complex connection sub-transmission | E187: - | F187: - | G187: - | H187: - | I187: - | J187: - | K187: -
B188: SUBDIVISION | C188: Complex connection LV | E188: 73 | F188: 72 | G188: 70 | H188: 75 | I188: 74 | J188: 77 | K188: 78
C189: Complex connection HV (no upstream asset works) | E189: - | F189: - | G189: - | H189: - | I189: - | J189: - | K189: -
C190: Complex connection HV (with upstream asset works) | E190: - | F190: - | G190: - | H190: - | I190: - | J190: - | K190: -
B191: EMBEDDED GENERATION | C191: Simple connection LV | E191: 3514 | F191: 3558 | G191: 3598 | H191: 3720 | I191: 3837 | J191: 3949 | K191: 4056
C192: Complex connection HV (small capacity) | E192: - | F192: - | G192: - | H192: - | I192: - | J192: - | K192: -
C193: Complex connection HV (large capacity) | E193: - | F193: - | G193: - | H193: - | I193: - | J193: - | K193: -
B195: EXISTING CONNECTIONS
E196: VOLUMES (0's)
E197: =CRCP_y4 -> 2017-18 | F197: =CRCP_y5 -> 2018-19 | G197: =FRCP_y1 -> 2019-20 | H197: =FRCP_y2 -> 2020-21 | I197: =FRCP_y3 -> 2021-22 | J197: =FRCP_y4 -> 2022-23 | K197: =FRCP_y5 -> 2023-24
B198: RESIDENTIAL | C198: Simple connection LV | E198: 2626 | F198: 2571
C199: Complex connection LV | E199: 353 | F199: 337
C200: Complex connection HV | E200: - | F200: -
B201: COMMERCIAL/INDUSTRIAL | C201: Simple connection LV | E201: 878 | F201: 819
C202: Complex connection HV (customer connected at LV, minor HV works) | E202: 203 | F202: 197
C203: Complex connection HV (customer connected at LV, upstream asset works) | E203: - | F203: -
C204: Complex connection HV (customer connected at HV) | E204: - | F204: -
C205: Complex connection sub-transmission | E205: - | F205: -
B206: SUBDIVISION | C206: Complex connection LV | E206: 73 | F206: 72
C207: Complex connection HV (no upstream asset works) | E207: - | F207: -
C208: Complex connection HV (with upstream asset works) | E208: - | F208: -
B209: EMBEDDED GENERATION | C209: Simple connection LV | E209: 3514 | F209: 3558
C210: Complex connection HV (small capacity) | E210: - | F210: -
C211: Complex connection HV (large capacity) | E211: - | F211: -

Sheet 2.6 Non-network
B1: =SheetHeader -> REGULATORY REPORTING STATEMENT
B2: =dms_TradingName -> TasNetworks (D)
B3: =dms_Reg_Year_Span -> 2019-20 to 2023-24
B4: 2.6 NON NETWORK EXPENDITURE
B6: There are THREE tables on this worksheet - each has been 'grouped' (and sub-grouped) for easy navigation. See the Instructions sheet on how to group or ungroup tables.
B8: 2.6.1 - NON-NETWORK EXPENDITURE
E9: =CONCATENATE("EXPENDITURE ($'0s, real ", dms_DollarReal,")") -> EXPENDITURE ($'0s, real June 2019)
B10: SERVICE SUBCATEGORY | C10: ASSET CATEGORY | E10: =CRCP_y4 -> 2017-18 | F10: =CRCP_y5 -> 2018-19 | G10: =FRCP_y1 -> 2019-20 | H10: =FRCP_y2 -> 2020-21 | I10: =FRCP_y3 -> 2021-22 | J10: =FRCP_y4 -> 2022-23 | K10: =FRCP_y5 -> 2023-24
B11: OPEX
B12: IT & COMMUNICATIONS | C12: Total IT and communications | E12: 11612328.74 | F12: 11612328.74 | G12: 11612328.74 | H12: 11612328.74 | I12: 11612328.74 | J12: 11612328.74 | K12: 11612328.74
B13: MOTOR VEHICLES | C13: Car | E13: 1103242.926 | F13: 1103242.926 | G13: 1103242.926 | H13: 1103242.926 | I13: 1103242.926 | J13: 1103242.926 | K13: 1103242.926
C14: Light commercial vehicle | E14: 4045224.062 | F14: 4045224.062 | G14: 4045224.062 | H14: 4045224.062 | I14: 4045224.062 | J14: 4045224.062 | K14: 4045224.062
C15: Elevated work platform (LCV) | E15: 0 | F15: 0 | G15: 0 | H15: 0 | I15: 0 | J15: 0 | K15: 0
C16: Elevated work platform (HCV) | E16: 0 | F16: 0 | G16: 0 | H16: 0 | I16: 0 | J16: 0 | K16: 0
C17: Heavy commercial vehicle | E17: 367747.642 | F17: 367747.642 | G17: 367747.642 | H17: 367747.642 | I17: 367747.642 | J17: 367747.642 | K17: 367747.642
B18: BUILDINGS AND PROPERTY | C18: Total buildings and property expenditure | E18: 3468575.937 | F18: 3468575.937 | G18: 3468575.937 | H18: 3468575.937 | I18: 3468575.937 | J18: 3468575.937 | K18: 3468575.937
B19: OTHER | C19: Other expenditure | E19: 0 | F19: 0 | G19: 0 | H19: 0 | I19: 0 | J19: 0 | K19: 0
B20: OTHER - DNSP nominated | C20: Office furniture and equipment
C21: Plant and equipment
C22: Crane borer plant HCV
C23: Other fleet assets
C24: EWP Hired
C25: Car Hired
C26: LCV Hired
C27: Other Hire
B31: CAPEX
B32: IT & COMMUNICATIONS | C32: Total IT and communications | E32: 14950044.4 | F32: 12283322.46 | G32: 23055350.38 | H32: 18330496.35 | I32: 12666397.99 | J32: 28904104.87 | K32: 30336707.1
B33: MOTOR VEHICLES | C33: Car | E33: 367899.0102 | F33: 364373.8744 | G33: 901947.2453 | H33: 835011.275 | I33: 854076.2657 | J33: 722963.1968 | K33: 984730.9842
C34: Light commercial vehicle | E34: 1026244.608 | F34: 1016411.334 | G34: 1254131.758 | H34: 1161059.212 | I34: 1187568.534 | J34: 1005259.575 | K34: 1369240.17
C35: Elevated work platform (LCV) | E35: 0 | F35: 0 | G35: 0 | H35: 0 | I35: 0 | J35: 0 | K35: 0
C36: Elevated work platform (HCV) | E36: 1019811.956 | F36: 1051659.116 | G36: 560995.9687 | H36: 519362.9246 | I36: 531221.0271 | J36: 449670.9104 | K36: 612486.0575
C37: Heavy commercial vehicle | E37: 164046.3334 | F37: 149904.6715 | G37: 328861.1199 | H37: 304455.4374 | I37: 311406.7688 | J37: 263601.3224 | K37: 359045.0949
B38: BUILDINGS AND PROPERTY | C38: Total buildings and property expenditure | E38: 216166.9011 | F38: 201311.2987 | G38: 4976499.447 | H38: 3411976.656 | I38: 1315009.481 | J38: 1136481.224 | K38: 526427.8256
B39: OTHER | C39: Other expenditure | E39: ='[4]2.6 Non-network Distribution'!E39 -> 1738326.463 | F39: ='[4]2.6 Non-network Distribution'!F39 -> 2614000.91 | G39: ='[4]2.6 Non-network Distribution'!G39 -> 781909.2865 | H39: ='[4]2.6 Non-network Distribution'!H39 -> 783918.7468 | I39: ='[4]2.6 Non-network Distribution'!I39 -> 795692.1569 | J39: ='[4]2.6 Non-network Distribution'!J39 -> 795034.8164 | K39: ='[4]2.6 Non-network Distribution'!K39 -> 794295.9918
B40: OTHER - DNSP nominated
B54: 2.6.2 - ANNUAL DESCRIPTOR METRICS
B55: IT & COMMUNICATIONS
E56: VOLUMES (0's)
E57: =CRCP_y4 -> 2017-18 | F57: =CRCP_y5 -> 2018-19 | G57: =FRCP_y1 -> 2019-20 | H57: =FRCP_y2 -> 2020-21 | I57: =FRCP_y3 -> 2021-22 | J57: =FRCP_y4 -> 2022-23 | K57: =FRCP_y5 -> 2023-24
B58: Employee numbers | E58: 588 | F58: 588 | G58: 588 | H58: 588 | I58: 588 | J58: 588 | K58: 588
B59: User numbers | E59: 453 | F59: 453 | G59: 453 | H59: 453 | I59: 453 | J59: 453 | K59: 453
B60: Number of devices | E60: 944 | F60: 944 | G60: 944 | H60: 944 | I60: 944 | J60: 944 | K60: 944
B62: MOTOR VEHICLES
E63: VOLUMES (0's or %)
B64: ASSET CATEGORY | C64: DESCRIPTOR METRIC | D64: Units | E64: =CRCP_y4 -> 2017-18 | F64: =CRCP_y5 -> 2018-19 | G64: =FRCP_y1 -> 2019-20 | H64: =FRCP_y2 -> 2020-21 | I64: =FRCP_y3 -> 2021-22 | J64: =FRCP_y4 -> 2022-23 | K64: =FRCP_y5 -> 2023-24
B65: CAR | C65: Average kilometres travelled | D65: 0's | E65: 2678105 | F65: 2678105 | G65: 2678105 | H65: 2678105 | I65: 2678105 | J65: 2678105 | K65: 2678105
C66: Number purchased | D66: 0's | E66: 13 | F66: 5 | G66: 18 | H66: 37 | I66: 21 | J66: 7 | K66: 13
C67: Number leased | D67: 0's
C68: Number in fleet | D68: 0's | E68: 110 | F68: 110 | G68: 110 | H68: 110 | I68: 110 | J68: 110 | K68: 110
C69: Proportion of total fleet expenditure allocated as regulatory expenditure | D69: % | E69: 0.6724 | F69: 0.6724 | G69: 0.6724 | H69: 0.6724 | I69: 0.6724 | J69: 0.6724 | K69: 0.6724
B70: LIGHT COMMERCIAL VEHICLE | C70: Average kilometres travelled | D70: 0's | E70: 4115136 | F70: 4115136 | G70: 4115136 | H70: 4115136 | I70: 4115136 | J70: 4115136 | K70: 4115136
C71: Number purchased | D71: 0's | E71: 28 | F71: 5 | G71: 30 | H71: 42 | I71: 30 | J71: 33 | K71: 28
C72: Number leased | D72: 0's
C73: Number in fleet | D73: 0's | E73: 169 | F73: 169 | G73: 169 | H73: 169 | I73: 169 | J73: 169 | K73: 169
C74: Proportion of total fleet expenditure allocated as regulatory expenditure | D74: % | E74: 0.6724 | F74: 0.6724 | G74: 0.6724 | H74: 0.6724 | I74: 0.6724 | J74: 0.6724 | K74: 0.6724
B75: ELEVATED WORK PLATFORM (LCV) | C75: Average kilometres travelled | D75: 0's
C76: Number purchased | D76: 0's
C77: Number leased | D77: 0's
C78: Number in fleet | D78: 0's
C79: Proportion of total fleet expenditure allocated as regulatory expenditure | D79: %
B80: ELEVATED WORK PLATFORM (HCV) | C80: Average kilometres travelled | D80: 0's | E80: 2353400 | F80: 2353400 | G80: 2353400 | H80: 2353400 | I80: 2353400 | J80: 2353400 | K80: 2353400
C81: Number purchased | D81: 0's | E81: 0 | F81: 0 | G81: 9 | H81: 3 | I81: 3 | J81: 3 | K81: 7
C82: Number leased | D82: 0's
C83: Number in fleet | D83: 0's | E83: 34 | F83: 34 | G83: 34 | H83: 34 | I83: 34 | J83: 34 | K83: 34
C84: Proportion of total fleet expenditure allocated as regulatory expenditure | D84: % | E84: 0.6724 | F84: 0.6724 | G84: 0.6724 | H84: 0.6724 | I84: 0.6724 | J84: 0.6724 | K84: 0.6724
B85: HEAVY COMMERCIAL VEHICLE | C85: Average kilometres travelled | D85: 0's | E85: 1145328 | F85: 1145328 | G85: 1145328 | H85: 1145328 | I85: 1145328 | J85: 1145328 | K85: 1145328
C86: Number purchased | D86: 0's | E86: 1 | F86: 5 | G86: 1 | H86: 3 | I86: 3 | J86: 0 | K86: 1
C87: Number leased | D87: 0's
C88: Number in fleet | D88: 0's | E88: 23 | F88: 23 | G88: 23 | H88: 23 | I88: 23 | J88: 23 | K88: 23
C89: Proportion of total fleet expenditure allocated as regulatory expenditure | D89: % | E89: 0.6724 | F89: 0.6724 | G89: 0.6724 | H89: 0.6724 | I89: 0.6724 | J89: 0.6724 | K89: 0.6724
B93: 2.6.4 - INFORMATION & COMMUNICATIONS TECHNOLOGY - CAPEX BY PURPOSE
E94: =CONCATENATE("EXPENDITURE ($'0s, real ", dms_DollarReal,")") -> EXPENDITURE ($'0s, real June 2019)
E95: =CRCP_y4 -> 2017-18 | F95: =CRCP_y5 -> 2018-19 | G95: =FRCP_y1 -> 2019-20 | H95: =FRCP_y2 -> 2020-21 | I95: =FRCP_y3 -> 2021-22 | J95: =FRCP_y4 -> 2022-23 | K95: =FRCP_y5 -> 2023-24
B96: ICT CAPABILITY GROWTH
B97: Customer Information Systems | E97: 422441.7048 | F97: 2079886.64 | G97: 675437.8134 | H97: 0 | I97: 535164.5218 | J97: 0 | K97: 0
B98: Digital Customer Engagement | E98: 372811.3669 | F98: 0 | G98: 1422777.199 | H98: 0 | I98: 547565.2253 | J98: 1634291.819 | K98: 136372.5057
B99: IT Infrastructure, Security & Support | E99: 2634597.567 | F99: 2607917.236 | G99: 6241264.823 | H99: 8179820.478 | I99: 5696823.652 | J99: 5270024.267 | K99: 4662774.424
B100: Mobility | E100: 502646.4079 | F100: 0 | G100: 1314477.835 | H100: 432212.1379 | I100: 479412.516 | J100: 431956.3248 | K100: 416298.9709
B101: Data Warehouses, Bus Intelligence & Analytics | E101: 0 | F101: 290575.7367 | G101: 554717.144 | H101: 503031.5659 | I101: 557965.8864 | J101: 502733.837 | K101: 484510.9724
B102: Enterprise Architecture Evolution | E102: 0 | F102: 0 | G102: 277358.572 | H102: 251515.783 | I102: 278982.9432 | J102: 251366.9185 | K102: 242255.4862
B103: ICT ASSET EXTENSIONS
B104: Digital Customer Engagement | E104: 25942.01802 | F104: 0 | G104: 99003.71884 | H104: 0 | I104: 38102.23669 | J104: 113721.9291 | K104: 9489.458517
B105: Finance, HR, Asset & Works Systems | E105: 49625.6569 | F105: 16366.51383 | G105: 28301.42528 | H105: 26130.36869 | I105: 5058.380976 | J105: 0 | K105: 0
B106: Market Systems | E106: 3780261.05 | F106: 3645290.973 | G106: 3509367.982 | H106: 2615689.387 | I106: 2488489.223 | J106: 17192243.53 | K106: 18791021.78
B110: ICT ASSET REMEDITATION
B111: Business Systems Upgrades | E111: 98701.3329 | F111: 314686.2584 | G111: 995183.8917 | H111: 413695.0946 | I111: 1406171.262 | J111: 413450.2411 | K111: 398463.6872
B112: Enterprise Information Management | E112: 0 | F112: 0 | G112: 3262780.457 | H112: 2640222.44 | I112: 0 | J112: 0 | K112: 0
B113: Finance, HR, Asset & Works Systems | E113: 510788.6691 | F113: 168457.8168 | G113: 291301.8841 | H113: 268955.558 | I113: 52065.07778 | J113: 0 | K113: 0
B114: Outage Management | E114: 547168.3252 | F114: 818997.9251 | G114: 725286.73 | H114: 0 | I114: 0 | J114: 1977393.542 | K114: 3320148.075
B117: ICT ASSET REPLACEMENT
B118: Finance, HR, Asset & Works Systems | E118: 5695994.562 | F118: 1878535.814 | G118: 3248415.731 | H118: 2999223.532 | I118: 580597.0607 | J118: 0 | K118: 0
B119: Outage Management | E119: 309065.7377 | F119: 462607.5492 | G119: 409675.173 | H119: 0 | I119: 0 | J119: 1116922.464 | K119: 1875371.74

Sheet 2.10 Overheads
B1: =SheetHeader -> REGULATORY REPORTING STATEMENT
B2: =dms_TradingName -> TasNetworks (D)
B3: =dms_Reg_Year_Span -> 2019-20 to 2023-24
B4: 2.10 OVERHEADS
B6: There are TWO tables on this worksheet. Each table has been 'grouped' (and sub-grouped) for easy navigation. See the Instructions sheet on how to group or ungroup data.
B8: 2.10.1 - NETWORK OVERHEADS EXPENDITURE
D9: =CONCATENATE("EXPENDITURE ($0's, real ", dms_DollarReal,")") -> EXPENDITURE ($0's, real June 2019)
D10: =CRCP_y4 -> 2017-18 | E10: =CRCP_y5 -> 2018-19 | F10: =FRCP_y1 -> 2019-20 | G10: =FRCP_y2 -> 2020-21 | H10: =FRCP_y3 -> 2021-22 | I10: =FRCP_y4 -> 2022-23 | J10: =FRCP_y5 -> 2023-24
B11: OPEX
B12: Standard Control Services | C12: Total | D12: 18438053.33 | E12: 18416865.53 | F12: 18416138.64 | G12: 18416138.64 | H12: 18416138.64 | I12: 18416138.64 | J12: 18416138.64
B13: Alternative Control Services | C13: Total
B14: CAPEX
B15: Standard Control Services | C15: Total | D15: 22114482.25 | E15: 21602938.74 | F15: 19754029.78 | G15: 19630620.94 | H15: 19385037.37 | I15: 19141909.63 | J15: 18901213.16
B16: Alternative Control Services | C16: Total | D16: 430366.0873 | E16: 430366.0873 | F16: 430366.0873 | G16: 426555.1476 | H16: 418971.3775 | I16: 411463.4451 | J16: 404030.592
B17: OTHER DISTRIBUTION SERVICES
B18: Negotiated Services | C18: Total | D18: 0 | E18: 0 | F18: 0 | G18: 0 | H18: 0 | I18: 0 | J18: 0
B19: Unregulated Distribution Services | C19: Total | D19: 758214.9406 | E19: 739259.5671 | F19: 249809.9425 | G19: 249809.9425 | H19: 249809.9425 | I19: 249809.9425 | J19: 249809.9425
B23: 2.10.2 - CORPORATE OVERHEADS EXPENDITURE
D24: =CONCATENATE("EXPENDITURE ($0's, real ", dms_DollarReal,")") -> EXPENDITURE ($0's, real June 2019)
D25: =CRCP_y4 -> 2017-18 | E25: =CRCP_y5 -> 2018-19 | F25: =FRCP_y1 -> 2019-20 | G25: =FRCP_y2 -> 2020-21 | H25: =FRCP_y3 -> 2021-22 | I25: =FRCP_y4 -> 2022-23 | J25: =FRCP_y5 -> 2023-24
B26: OPEX
B27: Standard Control Services | C27: Total | D27: 23626405.66 | E27: 23061401.32 | F27: 22639181.54 | G27: 22234794.2 | H27: 21430063.39 | I27: 20633379.89 | J27: 19844663.23
B28: Alternative Control Services | C28: Total
B29: CAPEX
B30: Standard Control Services | C30: Total | D30: 1778616.055 | E30: 1737473.807 | F30: 9243972.02 | G30: 9186222.396 | H30: 9071300.644 | I30: 8957528.109 | J30: 8844893.3
B31: Alternative Control Services | C31: Total | D31: 473292.8737 | E31: 473292.8737 | F31: 473292.8737 | G31: 469101.8124 | H31: 460761.6006 | I31: 452504.7909 | J31: 444330.5493
B32: OTHER DISTRIBUTION SERVICES
B33: Negotiated Services | C33: Total | D33: 0 | E33: 0 | F33: 0 | G33: 0 | H33: 0 | I33: 0 | J33: 0
B34: Unregulated Distribution Services | C34: Total | D34: 591306.7952 | E34: 576524.1253 | F34: 233101.4627 | G34: 233101.4627 | H34: 233101.4627 | I34: 233101.4627 | J34: 233101.4627

Sheet 2.11 Labour
B1: =SheetHeader -> REGULATORY REPORTING STATEMENT
B2: =dms_TradingName -> TasNetworks (D)
B3: =dms_Reg_Year_Span -> 2019-20 to 2023-24
B4: 2.11 LABOUR
B6: Table numbering on this worksheet starts at 2.11.3.
B8: 2.11.3 - LABOUR / NON-LABOUR EXPENDITURE SPLIT - STANDARD CONTROL SERVICES
C9: EXPENDITURE
C10: ($0's, nominal) | H10: =CONCATENATE("($0's, real ", dms_DollarReal,")") -> ($0's, real June 2019)
C11: =PRCP_y4 -> 2012-13 | D11: =PRCP_y5 -> 2013-14 | E11: =CRCP_y1 -> 2014-15 | F11: =CRCP_y2 -> 2015-16 | G11: =CRCP_y3 -> 2016-17 | H11: =CRCP_y4 -> 2017-18 | I11: =CRCP_y5 -> 2018-19 | J11: =FRCP_y1 -> 2019-20 | K11: =FRCP_y2 -> 2020-21 | L11: =FRCP_y3 -> 2021-22 | M11: =FRCP_y4 -> 2022-23 | N11: =FRCP_y5 -> 2023-24
B12: OPEX
B13: In-house labour expenditure | C13: 21173825.31 | D13: 21868326.94 | E13: 14968295.91 | F13: 16306167.71 | G13: 21821056.24 | H13: 19144428.88 | I13: 18784430.78 | J13: 17871356.69 | K13: 17578778.47 | L13: 17484598.02 | M13: 17578403.25 | N13: 17812552.46
B14: Labour expenditure outsourced to related parties | C14: 0 | D14: 0 | E14: 0 | F14: 0 | G14: 0 | H14: 0 | I14: 0 | J14: 0 | K14: 0 | L14: 0 | M14: 0 | N14: 0
B15: Labour expenditure outsourced to unrelated parties | C15: 427565.63 | D15: 843672.97 | E15: 380637.81 | F15: 414659.3576 | G15: 554900.779 | H15: 486835.2101 | I15: 477680.6015 | J15: 516954.9425 | K15: 584742.352 | L15: 578298.1241 | M15: 570221.9727 | N15: 560945.2469
B16: Controllable non-labour expenditure | C16: 42639940.98 | D16: 45339364.95 | E16: 41589065.25 | F16: 45306311.21 | G16: 60629301.92 | H16: 53192354.49 | I16: 52192108.05 | J16: 56483282.2 | K16: 63889837.52 | L16: 63185731.39 | M16: 62303318.82 | N16: 61289729.67
B17: Uncontrollable non-labour expenditure | C17: 7816396.636 | D17: 6943602.664 | E17: 7287891.647 | F17: 7939286.085 | G17: 10624422.08 | H17: 9321202.908 | I17: 9145923.958 | J17: 7586151.851 | K17: 7586151.851 | L17: 7586151.851 | M17: 7586151.851 | N17: 7586151.851
B18: Total | C18: =SUM(C13:C17) -> 72057728.56 | D18: =SUM(D13:D17) -> 74994967.52 | E18: 64225890.62 | F18: 69966424.36 | G18: 93629681.03 | H18: 82144821.49 | I18: =SUM(I13:I17) -> 80600143.38 | J18: 82457745.68 | K18: 89639510.19 | L18: 88834779.39 | M18: 88038095.89 | N18: 87249379.22
B19: CAPEX
B20: In-house labour expenditure | C20: 19324967.85 | D20: 21162171.06 | E20: 17564581.32 | F20: 19991909.92 | G20: 24435993.63 | H20: 22508855.1 | I20: 20559782.12 | J20: 19161475.16 | K20: 19159734.38 | L20: 18259362.5 | M20: 17710970.21 | N20: 18834190.69
B21: Labour expenditure outsourced to related parties | C21: 0 | D21: 0 | E21: 0 | F21: 0 | G21: 0 | H21: 0 | I21: 0 | J21: 0 | K21: 0 | L21: 0 | M21: 0 | N21: 0
B22: Labour expenditure outsourced to unrelated parties | C22: 1112022.6 | D22: 2715629.95 | E22: 183365.55 | F22: 208705.6612 | G22: 255099.6992 | H22: 234981.3252 | I22: 214633.9664 | J22: 311788.1681 | K22: 301017.321 | L22: 275325.7839 | M22: 302512.1949 | N22: 299827.4803
B23: Controllable non-labour expenditure | C23: 75943411.4 | D23: 89564504.4 | E23: 82043710.02 | F23: 93381699.81 | G23: 114139901.1 | H23: 105138286.4 | I23: 96034216.35 | J23: 139504165.6 | K23: 134684938.3 | L23: 123189709.2 | M23: 135353793.5 | N23: 134152564.9
B24: Uncontrollable non-labour expenditure | C24: 4095853.424 | D24: 1130227.506 | E24: 1066437.553 | F24: 1213813.361 | G24: 1483636.915 | H24: 1366630.261 | I24: 1248291.851 | J24: 1813331.953 | K24: 1750689.675 | L24: 1601270.005 | M24: 1759383.727 | N24: 1743769.668
B25: Total | C25: =SUM(C20:C24) -> 100476255.3 | D25: =SUM(D20:D24) -> 114572532.9 | E25: 100858094.4 | F25: 114796128.8 | G25: 140314631.4 | H25: 129248753.1 | I25: =SUM(I20:I24) -> 118056924.3 | J25: =SUM(J20:J24) -> 160790760.9 | K25: =SUM(K20:K24) -> 155896379.7 | L25: =SUM(L20:L24) -> 143325667.4 | M25: =SUM(M20:M24) -> 155126659.7 | N25: =SUM(N20:N24) -> 155030352.7

Sheet 2.14 Forecast price changes
B1: =SheetHeader -> REGULATORY REPORTING STATEMENT
B2: =dms_TradingName -> TasNetworks (D)
B3: =dms_Reg_Year_Span -> 2019-20 to 2023-24
B4: 2.14 FORECAST PRICE CHANGES
B6: There is ONE table on this worksheet. It has been grouped for easy navigation. See the Instructions sheet on how to group or ungroup data.
B8: Instructions
B9: =CONCATENATE(dms_TradingName, " must provide all forecast price changes used to forecast opex and capex, including forecast changes in CPI. Forecast price changes must be expressed in real terms, except for CPI. "&"If the same escalators are not used for capex and opex, report capex and opex escalators separately. Add additional rows as required. If price changes for a given year were not used to forecast either opex or capex enter '0' for that year.") -> TasNetworks (D) must provide all forecast price changes used to forecast opex and capex, including forecast changes in CPI. Forecast price changes must be expressed in real terms, except for CPI. If the same escalators are not used for capex and opex, report capex and opex escalators separately. Add additional rows as required. If price changes for a given year were not used to forecast either opex or capex enter '0' for that year.
B11: 2.14.2 - FORECAST CAPEX AND OPEX PRICE CHANGES
C12: Price changes (% YoY real) Current regulatory period | E12: Price changes (%YoY real) Forthcoming regulatory period
C13: Forecast
C14: =CRCP_y4 -> 2017-18 | D14: =CRCP_y5 -> 2018-19 | E14: =FRCP_y1 -> 2019-20 | F14: =FRCP_y2 -> 2020-21 | G14: =FRCP_y3 -> 2021-22 | H14: =FRCP_y4 -> 2022-23 | I14: =FRCP_y5 -> 2023-24
B15: OPEX
B16: WPI | C16: 0 | D16: 0 | E16: 0 | F16: 0.0049 | G16: 0.0049 | H16: 0.0049 | I16: 0.0049
B19: CAPEX
B20: WPI (labour component) | C20: 0 | D20: 0 | E20: 0 | F20: 0.0049 | G20: 0.0049 | H20: 0.0049 | I20: 0.0049

Sheet 2.16 Opex Summary
B1: =SheetHeader -> REGULATORY REPORTING STATEMENT
B2: =dms_TradingName -> TasNetworks (D)
B3: =dms_Reg_Year_Span -> 2019-20 to 2023-24
B4: 2.16 OPEX SUMMARY
B6: There are FOUR tables on this worksheet. Each table has been 'grouped' (and 'sub-grouped') for easy navigation. See the Instructions sheet on how to group or ungroup data.
B8: Instructions | J8: IMPORTANT!
B9: =CONCATENATE("Complete the tables below in accordance with the regulatory information notice. ",dms_TradingName,"'s total forecast opex must reconcile to Table 2.16.1 (and if ",dms_TradingName," owns any dual function assets Table 2.16.3). If ",dms_TradingName," did not forecast its total opex using a Base Year approach, total forecast opex must reconcile to Table 2.16.2 (and if ",dms_TradingName," owns any dual function assets Table 2.16.4).") -> Complete the tables below in accordance with the regulatory information notice. TasNetworks (D)'s total forecast opex must reconcile to Table 2.16.1 (and if TasNetworks (D) owns any dual function assets Table 2.16.3). If TasNetworks (D) did not forecast its total opex using a Base Year approach, total forecast opex must reconcile to Table 2.16.2 (and if TasNetworks (D) owns any dual function assets Table 2.16.4). | J9: =CONCATENATE("Has ",dms_TradingName," used a base-step-trend model to derive its opex forecast? ") -> Has TasNetworks (D) used a base-step-trend model to derive its opex forecast? | L9: Yes
B10: =CONCATENATE("If ",dms_TradingName," does not own any dual function assets,Table 2.16.3 and 2.16.4 may be left blank.") -> If TasNetworks (D) does not own any dual function assets,Table 2.16.3 and 2.16.4 may be left blank. | J10: Yes / No
B11: The total step changes in Table 2.16.1 and Table 2.16.3 must "&"reconcile (in each year) to the total step changes for each year in Table 2.17.1 and Table 2.17.3 of worksheet '2.17 Step Changes', respectively.") | J11: Please nominate the base year. | L11: 2017-18
B14: 2.16.1 - STANDARD CONTROL SERVICES - OPEX BY DRIVER
C15: EXPENDITURE
C16: =CONCATENATE("Forecast ($0's, real ", dms_DollarReal,")") -> Forecast ($0's, real June 2019)
C17: =CRCP_y1 -> 2014-15 | D17: =CRCP_y2 -> 2015-16 | E17: =CRCP_y3 -> 2016-17 | F17: =CRCP_y4 -> 2017-18 | G17: =CRCP_y5 -> 2018-19 | H17: =FRCP_y1 -> 2019-20 | I17: =FRCP_y2 -> 2020-21 | J17: =FRCP_y3 -> 2021-22 | K17: =FRCP_y4 -> 2022-23 | L17: =FRCP_y5 -> 2023-24
B18: Base year total opex, excluding category specific | F18: 75116123.63 | G18: 75116123.63 | H18: 73571445.52 | I18: 73571445.52 | J18: 73571445.52 | K18: 73571445.52 | L18: 73571445.52
B19: Increment from base year to final year | G19: -1544678.104
B20: Price growth | H20: 0 | I20: 225179.516 | J20: 452586.6525 | K20: 682222.9212 | L20: 914522.3666
B21: Output growth | H21: 280129.2603 | I21: 549527.4903 | J21: 803178.5813 | K21: 1055997.896 | L21: 1343418.103
B22: Productivity growth | H22: -1579980.949 | I22: -2478946.035 | J22: -3764735.071 | K22: -5043874.154 | L22: -6352310.471
B23: Step changes | H23: 2600000 | I23: 2600000 | J23: 2600000 | K23: 2600000 | L23: 2600000
B24: Category specific | F24: 7028697.862 | G24: 7028697.862 | H24: 7586151.851 | I24: 7586151.851 | J24: 7586151.851 | K24: 7586151.851 | L24: 7586151.851
B25: Total opex | C25: =SUM(C18:C24) -> 0 | D25: =SUM(D18:D24) -> 0 | E25: =SUM(E18:E24) -> 0 | F25: 82144821.49 | G25: 80600143.38 | H25: 82457745.68 | I25: 82053358.34 | J25: 81248627.54 | K25: 80451944.04 | L25: 79663227.37
B28: 2.16.2 - STANDARD CONTROL SERVICES - OPEX BY CATEGORY
C29: EXPENDITURE
C30: =CONCATENATE("Forecast ($0's, real ", dms_DollarReal,")") -> Forecast ($0's, real June 2019)
C31: =CRCP_y1 -> 2014-15 | D31: =CRCP_y2 -> 2015-16 | E31: =CRCP_y3 -> 2016-17 | F31: =CRCP_y4 -> 2017-18 | G31: =CRCP_y5 -> 2018-19 | H31: =FRCP_y1 -> 2019-20 | I31: =FRCP_y2 -> 2020-21 | J31: =FRCP_y3 -> 2021-22 | K31: =FRCP_y4 -> 2022-23 | L31: =FRCP_y5 -> 2023-24
B32: Vegetation management
B33: Maintenance
B34: Emergency response
B35: Non-network
B36: Metering
B37: Network overheads
B38: Corporate overheads
B39: Total opex | C39: =SUM(C32:C38) -> 0 | D39: =SUM(D32:D38) -> 0 | E39: 0 | F39: 0 | G39: 0 | H39: =SUM(H32:H38) -> 0 | I39: 0 | J39: 0 | K39: 0 | L39: 0
B42: 2.16.3 - DUAL FUNCTION ASSETS - OPEX BY DRIVER
C43: EXPENDITURE
C44: =CONCATENATE("Forecast ($0's, real ", dms_DollarReal,")") -> Forecast ($0's, real June 2019)
C45: =CRCP_y1 -> 2014-15 | D45: =CRCP_y2 -> 2015-16 | E45: =CRCP_y3 -> 2016-17 | F45: =CRCP_y4 -> 2017-18 | G45: =CRCP_y5 -> 2018-19 | H45: =FRCP_y1 -> 2019-20 | I45: =FRCP_y2 -> 2020-21 | J45: =FRCP_y3 -> 2021-22 | K45: =FRCP_y4 -> 2022-23 | L45: =FRCP_y5 -> 2023-24
B46: Base year total opex, excluding category specific
B47: Increment from base year to final year
B48: Price growth
B49: Output growth
B50: Productivity growth
B51: Step changes
B52: Category specific
B53: Total opex | C53: =SUM(C46:C52) -> 0 | D53: =SUM(D46:D52) -> 0 | E53: 0 | F53: 0 | G53: 0 | H53: =SUM(H46:H52) -> 0 | I53: 0 | J53: 0 | K53: 0 | L53: 0
B56: 2.16.4 - DUAL FUNCTION ASSETS - OPEX BY CATEGORY
C57: EXPENDITURE
C58: =CONCATENATE("Forecast ($0's, real ", dms_DollarReal,")") -> Forecast ($0's, real June 2019)
C59: =CRCP_y1 -> 2014-15 | D59: =CRCP_y2 -> 2015-16 | E59: =CRCP_y3 -> 2016-17 | F59: =CRCP_y4 -> 2017-18 | G59: =CRCP_y5 -> 2018-19 | H59: =FRCP_y1 -> 2019-20 | I59: =FRCP_y2 -> 2020-21 | J59: =FRCP_y3 -> 2021-22 | K59: =FRCP_y4 -> 2022-23 | L59: =FRCP_y5 -> 2023-24
B60: Vegetation management
B61: Maintenance
B62: Emergency response
B63: Non-network
B64: Metering
B65: Network overheads
B66: Corporate overheads
B67: Total opex | C67: =SUM(C60:C66) -> 0 | D67: =SUM(D60:D66) -> 0 | E67: 0 | F67: 0 | G67: 0 | H67: =SUM(H60:H66) -> 0 | I67: 0 | J67: 0 | K67: 0 | L67: 0

Sheet 2.17 Step Changes
B1: =SheetHeader -> REGULATORY REPORTING STATEMENT
B2: =dms_TradingName -> TasNetworks (D)
B3: =dms_Reg_Year_Span -> 2019-20 to 2023-24
B4: 2.17 STEP CHANGES
B6: There are FIVE tables on this worksheet. Each table has been 'grouped' (and 'sub-grouped') for easy navigation. See the Instructions sheet on how to group or ungroup data.
B8: Instructions
B9: =CONCATENATE("Complete the Tables below in accordance with the regulatory information notice. If ",dms_TradingName," does not own any dual function assets,Table 2.17.3 and 2.17.4 may be left blank."&" The total step changes in Table 2.17.1 and Table 2.17.3 must reconcile (in each year) to the total step changes for each year in Table 2.16.1 and Table 2.16.3 of worksheet '2.16 Opex Summary', respectively.") -> Complete the Tables below in accordance with the regulatory information notice. If TasNetworks (D) does not own any dual function assets,Table 2.17.3 and 2.17.4 may be left blank. The total step changes in Table 2.17.1 and Table 2.17.3 must reconcile (in each year) to the total step changes for each year in Table 2.16.1 and Table 2.16.3 of worksheet '2.16 Opex Summary', respectively.
B10: The total category specific forecast in Table 2.17.5 must reconcile (in each year) to the total category specific forecasts for each year in Table 2.16.1 and Table 2.16.3 of worksheet '2.16 Opex Summary'.
B12: 2.17.1 - STEP CHANGES FOR STANDARD CONTROL SERVICES - FORECAST OPEX
E13: EXPENDITURE
E14: =CONCATENATE("Forecast ($0's, real ", dms_DollarReal, ")") -> Forecast ($0's, real June 2019)
B15: Step change | C15: Description | E15: =CRCP_y4 -> 2017-18 | F15: =CRCP_y5 -> 2018-19 | G15: =FRCP_y1 -> 2019-20 | H15: =FRCP_y2 -> 2020-21 | I15: =FRCP_y3 -> 2021-22 | J15: =FRCP_y4 -> 2022-23 | K15: =FRCP_y5 -> 2023-24
B16: Damage to assets | E16: 0 | F16: 0 | G16: 190000 | H16: 190000 | I16: 190000 | J16: 190000 | K16: 190000
B17: Ring fencing costs | E17: 0 | F17: 0 | G17: 1210000 | H17: 1210000 | I17: 1210000 | J17: 1210000 | K17: 1210000
B18: Compliance Voltage issues | E18: 0 | F18: 0 | G18: 1000000 | H18: 1000000 | I18: 1000000 | J18: 1000000 | K18: 1000000
B19: Capex/Opex trade-off (DMIS) | E19: 0 | F19: 0 | G19: 200000 | H19: 200000 | I19: 200000 | J19: 200000 | K19: 200000
B26: Total | E26: =SUM(E16:E25) -> 0 | F26: 0 | G26: 2600000 | H26: 2600000 | I26: 2600000 | J26: 2600000 | K26: 2600000
B27: Check | G27: =IF(G$26-'2.16 Opex Summary'!H$23=0,"OK","Error") -> OK | H27: =IF(H$26-'2.16 Opex Summary'!I$23=0,"OK","Error") -> OK | I27: =IF(I$26-'2.16 Opex Summary'!J$23=0,"OK","Error") -> OK | J27: =IF(J$26-'2.16 Opex Summary'!K$23=0,"OK","Error") -> OK | K27: =IF(K$26-'2.16 Opex Summary'!L$23=0,"OK","Error") -> OK
B29: 2.17.2 - STEP CHANGES FOR STANDARD CONTROL SERVICES - FORECAST CAPEX
E30: EXPENDITURE
E31: =CONCATENATE("Forecast ($0's, real ", dms_DollarReal, ")") -> Forecast ($0's, real June 2019)
B32: Step change | C32: Description | E32: =CRCP_y4 -> 2017-18 | F32: =CRCP_y5 -> 2018-19 | G32: =FRCP_y1 -> 2019-20 | H32: =FRCP_y2 -> 2020-21 | I32: =FRCP_y3 -> 2021-22 | J32: =FRCP_y4 -> 2022-23 | K32: =FRCP_y5 -> 2023-24
B43: Total | E43: =SUM(E33:E42) -> 0 | F43: 0 | G43: 0 | H43: 0 | I43: 0 | J43: 0 | K43: 0
B45: 2.17.3 - STEP CHANGES FOR DUAL FUNCTION ASSETS - FORECAST OPEX
E46: EXPENDITURE
E47: =CONCATENATE("Forecast ($0's, real ", dms_DollarReal, ")") -> Forecast ($0's, real June 2019)
B48: Step change | C48: Description | E48: =CRCP_y4 -> 2017-18 | F48: =CRCP_y5 -> 2018-19 | G48: =FRCP_y1 -> 2019-20 | H48: =FRCP_y2 -> 2020-21 | I48: =FRCP_y3 -> 2021-22 | J48: =FRCP_y4 -> 2022-23 | K48: =FRCP_y5 -> 2023-24
B59: Total | E59: =SUM(E49:E58) -> 0 | F59: 0 | G59: 0 | H59: 0 | I59: 0 | J59: 0 | K59: 0
B60: Check | G60: =IF(G$26-'2.16 Opex Summary'!H$51=0,"OK","Error") -> Error | H60: =IF(H$26-'2.16 Opex Summary'!I$51=0,"OK","Error") -> Error | I60: =IF(I$26-'2.16 Opex Summary'!J$51=0,"OK","Error") -> Error | J60: =IF(J$26-'2.16 Opex Summary'!K$51=0,"OK","Error") -> Error | K60: =IF(K$26-'2.16 Opex Summary'!L$51=0,"OK","Error") -> Error
B62: 2.17.4 - STEP CHANGES FOR DUAL FUNCTION ASSETS - FORECAST CAPEX
E63: EXPENDITURE
E64: =CONCATENATE("Forecast ($0's, real ", dms_DollarReal, ")") -> Forecast ($0's, real June 2019)
B65: Step change | C65: Description | E65: =CRCP_y4 -> 2017-18 | F65: =CRCP_y5 -> 2018-19 | G65: =FRCP_y1 -> 2019-20 | H65: =FRCP_y2 -> 2020-21 | I65: =FRCP_y3 -> 2021-22 | J65: =FRCP_y4 -> 2022-23 | K65: =FRCP_y5 -> 2023-24
B76: Total | E76: =SUM(E66:E75) -> 0 | F76: 0 | G76: 0 | H76: 0 | I76: 0 | J76: 0 | K76: 0
B79: 2.17.5 - FORECAST CATEGORY SPECIFIC OPEX
D80: EXPENDITURE
D81: =CONCATENATE("Forecast ($0's, real ", dms_DollarReal, ")") -> Forecast ($0's, real June 2019)
B82: Category | C82: Description | D82: =CRCP_y3 -> 2016-17 | E82: =CRCP_y4 -> 2017-18 | F82: =CRCP_y5 -> 2018-19 | G82: =FRCP_y1 -> 2019-20 | H82: =FRCP_y2 -> 2020-21 | I82: =FRCP_y3 -> 2021-22 | J82: =FRCP_y4 -> 2022-23 | K82: =FRCP_y5 -> 2023-24
B83: ='[5]14.4.9'!A9 -> GSL | E83: 2389666.825 | F83: 2389666.825 | G83: 2947120.814 | H83: 2947120.814 | I83: 2947120.814 | J83: 2947120.814 | K83: 2947120.814
B84: ='[5]14.4.9'!A10 -> NEM levy | E84: 622184.5098 | F84: 622184.5098 | G84: 622184.5098 | H84: 622184.5098 | I84: 622184.5098 | J84: 622184.5098 | K84: 622184.5098
B85: ='[5]14.4.9'!A11 -> ESI levy | E85: 4016846.527 | F85: 4016846.527 | G85: 4016846.527 | H85: 4016846.527 | I85: 4016846.527 | J85: 4016846.527 | K85: 4016846.527
B93: Total | D93: =SUM(D90:D92) -> 0 | E93: 0 | F93: 0 | G93: 0 | H93: 0 | I93: 0 | J93: 0 | K93: 0

Sheet 3.1 Revenue
B1: =SheetHeader -> REGULATORY REPORTING STATEMENT
B2: =dms_TradingName -> TasNetworks (D)
B3: =dms_Reg_Year_Span -> 2019-20 to 2023-24
B4: 3.1 REVENUE
B6: There are THREE tables on this worksheet. Each table has been 'grouped' (and 'sub-grouped') for easy navigation. See the Instructions sheet on how to group or ungroup data.
B8: 3.1.1 - REVENUE GROUPING BY CHARGEABLE QUANTITY
C9: Standard control services | K9: Alternative control services
C10: REVENUE | K10: REVENUE
C11: =CONCATENATE("Forecast ($0's, real ", dms_DollarReal,")") -> Forecast ($0's, real June 2019) | K11: =CONCATENATE("Forecast ($0's, real ", dms_DollarReal,")") -> Forecast ($0's, real June 2019)
C12: =CRCP_y4 -> 2017-18 | D12: =CRCP_y5 -> 2018-19 | E12: =FRCP_y1 -> 2019-20 | F12: =FRCP_y2 -> 2020-21 | G12: =FRCP_y3 -> 2021-22 | H12: =FRCP_y4 -> 2022-23 | I12: =FRCP_y5 -> 2023-24 | K12: =CRCP_y4 -> 2017-18 | L12: =CRCP_y5 -> 2018-19 | M12: =FRCP_y1 -> 2019-20 | N12: =FRCP_y2 -> 2020-21 | O12: =FRCP_y3 -> 2021-22 | P12: =FRCP_y4 -> 2022-23 | Q12: =FRCP_y5 -> 2023-24
A13: DREV0101 | B13: Revenue from Fixed Customer Charges | C13: 57617934.89 | D13: 62632085.23 | E13: 64116561.04 | F13: 65535364.75 | G13: 66748005.79 | H13: 67985116.72 | I13: 69253851.06
A14: DREV0102 | B14: Revenue from Energy Delivery charges where time of use is not a determinant | C14: 133137408.1 | D14: 134010197.2 | E14: 130735889.6 | F14: 128001117.3 | G14: 128526755.6 | H14: 128895251.7 | I14: 129284732
A15: DREV0103 | B15: Revenue from On–Peak Energy Delivery charges | C15: 20532468.91 | D15: 21254602.29 | E15: 23068167.88 | F15: 25971365.52 | G15: 27331638.52 | H15: 28860776.91 | I15: 30652104.66
A16: DREV0104 | B16: Revenue from Shoulder period Energy Delivery Charges | C16: 4534953.323 | D16: 5184195.44 | E16: 5321544.975 | F16: 5525457.369 | G16: 5450765.598 | H16: 5692144.29 | I16: 5967817.706
A17: DREV0105 | B17: Revenue from Off–Peak Energy Delivery charges | C17: 2754497.596 | D17: 2818908.27 | E17: 3599135.165 | F17: 4583297.208 | G17: 5057782.761 | H17: 5490323.213 | I17: 5987917.817
A18: DREV0106 | B18: Revenue from controlled load customer charges | C18: 550333.3052 | D18: 525917.5083 | E18: 510916.8236 | F18: 495821.8238 | G18: 480565.2469 | H18: 464651.5954 | I18: 448333.0675
A19: DREV0107 | B19: Revenue from unmetered supplies | C19: 2122739.598 | D19: 2069155.777 | E19: 1995571.035 | F19: 1958262.85 | G19: 1992594.625 | H19: 2024684.112 | I19: 2048891.485
A20: DREV0108 | B20: Revenue from Contracted Maximum Demand charges | C20: 431872.5641 | D20: 413088.3391 | E20: 436752.0094 | F20: 442772.654 | G20: 449392.2621 | H20: 445424.5994 | I20: 451054.9415
A21: DREV0109 | B21: Revenue from Measured Maximum Demand charges | C21: 14686364 | D21: 15464111.79 | E21: 16881739.38 | F21: 19282702.8 | G21: 21567962.25 | H21: 23547165.62 | I21: 25410346.85
A22: DREV0110 | B22: Revenue from metering charges | K22: 13704253.35 | L22: 12981748.96 | M22: 18252934.38 | N22: 17718156.64 | O22: 17180014.77 | P22: 16647113.4 | Q22: 16119411.93
A23: DREV0111 | B23: Revenue from connection charges | K23: 2204975.871 | L23: 2248184.569 | M23: 1443568.85 | N23: 1470450.661 | O23: 1497833.058 | P23: 1525725.365 | Q23: 1554137.075
A24: DREV0112 | B24: Revenue from public lighting charges | K24: 6407054.965 | L24: 6535971.147 | M24: 6783043.142 | N24: 6783043.142 | O24: 6783043.142 | P24: 6783043.142 | Q24: 6783043.142
A25: DREV0113 | B25: Revenue from other Sources | K25: 4955869.704 | L25: 4911630.171 | M25: 5526004.345 | N25: 5440364.956 | O25: 5349794.483 | P25: 5253821.89 | Q25: 5152383.584
A26: DREV01 | B26: Total revenue by chargeable quantity | C26: =SUM(C13:C25) -> 236368572.3 | D26: =SUM(D13:D25) -> 244372261.9 | E26: 246666277.9 | F26: 251796162.2 | G26: 257605462.7 | H26: 263405538.8 | I26: 269505049.6 | K26: =SUM(K13:K25) -> 27272153.89 | L26: =SUM(L13:L25) -> 26677534.85 | M26: 32005550.71 | N26: 31412015.4 | O26: 30810685.45 | P26: 30209703.8 | Q26: 29608975.73
B29: 3.1.2 - REVENUE GROUPING BY CUSTOMER TYPE OR CLASS
C30: Standard control services | K30: Alternative control services
C31: REVENUE | K31: REVENUE
C32: =CONCATENATE("Forecast ($0's, real ", dms_DollarReal,")") -> Forecast ($0's, real June 2019) | K32: =CONCATENATE("Forecast ($0's, real ", dms_DollarReal,")") -> Forecast ($0's, real June 2019)
C33: =CRCP_y4 -> 2017-18 | D33: =CRCP_y5 -> 2018-19 | E33: =FRCP_y1 -> 2019-20 | F33: =FRCP_y2 -> 2020-21 | G33: =FRCP_y3 -> 2021-22 | H33: =FRCP_y4 -> 2022-23 | I33: =FRCP_y5 -> 2023-24 | K33: =CRCP_y4 -> 2017-18 | L33: =CRCP_y5 -> 2018-19 | M33: =FRCP_y1 -> 2019-20 | N33: =FRCP_y2 -> 2020-21 | O33: =FRCP_y3 -> 2021-22 | P33: =FRCP_y4 -> 2022-23 | Q33: =FRCP_y5 -> 2023-24
A34: DREV0201 | B34: Revenue from residential Customers | C34: 144157962.2 | D34: 150317048.5 | E34: 152130580.3 | F34: 154592915.7 | G34: 157748676.6 | H34: 160976989.8 | I34: 164345580.4
A35: DREV0202 | B35: Revenue from Non residential customers not on demand tariffs | C35: 62079530.41 | D35: 62910709.78 | E35: 62448992.17 | F35: 63084269.89 | G35: 63922832.26 | H35: 65033684.22 | I35: 66403952.53
A36: DREV0203 | B36: Revenue from Non-residential low voltage demand tariff customers | C36: 19233059.55 | D36: 20051716.49 | E36: 21061353.17 | F36: 23012336.13 | G36: 24677443.06 | H36: 26137211.89 | I36: 27337933.59
A37: DREV0204 | B37: Revenue from Non-residential high voltage demand tariff customers | C37: 8377572.972 | D37: 8508076.943 | E37: 8511463.463 | F37: 8627275.882 | G37: 8740013.391 | H37: 8706251.492 | I37: 8839150.161
A38: DREV0205 | B38: Revenue from unmetered supplies | C38: 2520447.193 | D38: 2584710.206 | E38: 2513888.822 | F38: 2479364.605 | G38: 2516497.396 | H38: 2551401.335 | I38: 2578432.953
A39: DREV0206 | B39: Revenue from Other Customers
A40: DREV02 | B40: Total revenue by customer class | C40: =SUM(C34:C39) -> 236368572.3 | D40: =SUM(D34:D39) -> 244372261.9 | E40: 246666277.9 | F40: 251796162.2 | G40: 257605462.7 | H40: 263405538.8 | I40: 269505049.6 | K40: =SUM(K34:K39) -> 0 | L40: =SUM(L34:L39) -> 0 | M40: 0 | N40: 0 | O40: 0 | P40: 0 | Q40: 0
B43: 3.1.3 - REVENUE (penalties) ALLOWED (deducted) THROUGH INCENTIVE SCHEMES
C44: Standard control services | K44: Alternative control services
C45: REVENUE | K45: REVENUE
C46: =CONCATENATE("Forecast ($0's, real ", dms_DollarReal,")") -> Forecast ($0's, real June 2019) | K46: =CONCATENATE("Forecast ($0's, real ", dms_DollarReal,")") -> Forecast ($0's, real June 2019)
C47: =CRCP_y4 -> 2017-18 | D47: =CRCP_y5 -> 2018-19 | E47: =FRCP_y1 -> 2019-20 | F47: =FRCP_y2 -> 2020-21 | G47: =FRCP_y3 -> 2021-22 | H47: =FRCP_y4 -> 2022-23 | I47: =FRCP_y5 -> 2023-24 | K47: =CRCP_y4 -> 2017-18 | L47: =CRCP_y5 -> 2018-19 | M47: =FRCP_y1 -> 2019-20 | N47: =FRCP_y2 -> 2020-21 | O47: =FRCP_y3 -> 2021-22 | P47: =FRCP_y4 -> 2022-23 | Q47: =FRCP_y5 -> 2023-24
A48: DREV0301 | B48: EBSS | C48: 12412655.67 | D48: 12412655.67 | E48: -11263626.56 | F48: -11263626.56 | G48: -11263626.56 | H48: 12298627.34 | I48: 0
A49: DREV0302 | B49: STPIS | C49: 2029534.5 | D49: 10192644
A50: DREV0303 | B50: F-Factor
A51: DREV0304 | B51: S-Factor True up
A52: DREV0305 | B52: Other | D52: -122675 | E52: 379587.3252 | F52: 384965.8901 | G52: 390087.2275 | H52: 410751.018 | I52: 405251.6654
A53: DREV03 | B53: Total revenue of incentive schemes | C53: =SUM(C48:C52) -> 14442190.17 | D53: =SUM(D48:D52) -> 22482624.67 | E53: -10884039.23 | F53: -10878660.67 | G53: -10873539.33 | H53: 12709378.36 | I53: 405251.6654 | K53: =SUM(K48:K52) -> 0 | L53: =SUM(L48:L52) -> 0 | M53: 0 | N53: 0 | O53: 0 | P53: 0 | Q53: 0

Sheet 3.2 Operating expenditure
B1: =SheetHeader -> REGULATORY REPORTING STATEMENT
B2: =dms_TradingName -> TasNetworks (D)
B3: =dms_Reg_Year_Span -> 2019-20 to 2023-24
B4: 3.2 OPERATING EXPENDITURE
B6: There are THREE tables on this worksheet. Both ROWS and COLUMNS have been grouped for ease of navigation. see the Instructions sheet on how to group or ungroup tables.
B8: Instructions
B9: =CONCATENATE("Forecasts for opex in table 3.2.1 are to be for the opex categories that ",dms_TradingName," has reported in its response to its annual reporting RIN.") -> Forecasts for opex in table 3.2.1 are to be for the opex categories that TasNetworks (D) has reported in its response to its annual reporting RIN.
B11: 3.2.1 - OPEX CATEGORIES
B12: CURRENT OPEX CATEGORIES AND COST ALLOCATIONS
C13: Standard control services | K13: Alternative control services
C14: EXPENDITURE | K14: EXPENDITURE
C15: =CONCATENATE("Forecast ($0's, real ",dms_DollarReal,")") -> Forecast ($0's, real June 2019) | K15: =CONCATENATE("Forecast ($0's, real ",dms_DollarReal,")") -> Forecast ($0's, real June 2019)
C16: =CRCP_y4 -> 2017-18 | D16: =CRCP_y5 -> 2018-19 | E16: =FRCP_y1 -> 2019-20 | F16: =FRCP_y2 -> 2020-21 | G16: =FRCP_y3 -> 2021-22 | H16: =FRCP_y4 -> 2022-23 | I16: =FRCP_y5 -> 2023-24 | K16: =CRCP_y4 -> 2017-18 | L16: =CRCP_y5 -> 2018-19 | M16: =FRCP_y1 -> 2019-20 | N16: =FRCP_y2 -> 2020-21 | O16: =FRCP_y3 -> 2021-22 | P16: =FRCP_y4 -> 2022-23 | Q16: =FRCP_y5 -> 2023-24
A17: DOPEX0101 | B17: Overhead network and structures | C17: 5993713.086 | D17: 5993713.086 | E17: 6349964.681 | F17: 6349964.681 | G17: 6349964.681 | H17: 6349964.681 | I17: 6349964.681
A18: DOPEX0102 | B18: Underground network | C18: 93852.12908 | D18: 93852.12908 | E18: 93852.12908 | F18: 93852.12908 | G18: 93852.12908 | H18: 93852.12908 | I18: 93852.12908
A19: DOPEX0103 | B19: Ground mounted substations | C19: 579217.6507 | D19: 579217.6507 | E19: 579217.6507 | F19: 579217.6507 | G19: 579217.6507 | H19: 579217.6507 | I19: 579217.6507
A20: DOPEX0104 | B20: Zone substations | C20: 780385.4274 | D20: 780385.4274 | E20: 780385.4274 | F20: 780385.4274 | G20: 780385.4274 | H20: 780385.4274 | I20: 780385.4274
A21: DOPEX0105 | B21: Decommissioned assets | C21: 0 | D21: 0 | E21: 0 | F21: 0 | G21: 0 | H21: 0 | I21: 0
A22: DOPEX0106 | B22: Connection assets | C22: 0 | D22: 0 | E22: 0 | F22: 0 | G22: 0 | H22: 0 | I22: 0
A23: DOPEX0107 | B23: Other network asset maintenance - routine costs (itemise in table 3) | C23: 804729.118 | D23: 804729.118 | E23: 1404729.118 | F23: 1404729.118 | G23: 1404729.118 | H23: 1404729.118 | I23: 1404729.118
A24: DOPEX0108 | B24: Emergency and unscheduled power system response & repair | C24: 0 | D24: 0 | E24: 0 | F24: 0 | G24: 0 | H24: 0 | I24: 0
A25: DOPEX0109 | B25: Vegetation management | C25: 23759887.55 | D25: 23759887.55 | E25: 23759887.55 | F25: 23759887.55 | G25: 23759887.55 | H25: 23759887.55 | I25: 23759887.55
A26: DOPEX0110 | B26: Connection asset repair | C26: 442347.1853 | D26: 442347.1853 | E26: 442347.1853 | F26: 442347.1853 | G26: 442347.1853 | H26: 442347.1853 | I26: 442347.1853
A27: DOPEX0111 | B27: Other non network asset maintenance - routine costs (itemise in table 3) | C27: 0 | D27: 0 | E27: 0 | F27: 0 | G27: 0 | H27: 0 | I27: 0
A28: DOPEX0112 | B28: Overhead network & structures | C28: 2334286.543 | D28: 2334286.543 | E28: 2334286.543 | F28: 2334286.543 | G28: 2334286.543 | H28: 2334286.543 | I28: 2334286.543
A29: DOPEX0113 | B29: Underground network | C29: 428826.4703 | D29: 428826.4703 | E29: 428826.4703 | F29: 428826.4703 | G29: 428826.4703 | H29: 428826.4703 | I29: 428826.4703
A30: DOPEX0114 | B30: Ground mounted substations | C30: 487852.3599 | D30: 487852.3599 | E30: 487852.3599 | F30: 487852.3599 | G30: 487852.3599 | H30: 487852.3599 | I30: 487852.3599
A31: DOPEX0115 | B31: Zone substations | C31: 76817.84052 | D31: 76817.84052 | E31: 76817.84052 | F31: 76817.84052 | G31: 76817.84052 | H31: 76817.84052 | I31: 76817.84052
A32: DOPEX0116 | B32: Decommissioned assets | C32: 548649.2181 | D32: 548649.2181 | E32: 548649.2181 | F32: 548649.2181 | G32: 548649.2181 | H32: 548649.2181 | I32: 548649.2181
A33: DOPEX0117 | B33: Connection assets | C33: 0 | D33: 0 | E33: 0 | F33: 0 | G33: 0 | H33: 0 | I33: 0
A34: DOPEX0118 | B34: Other network asset maintenance - non-routine costs (itemise in table 3) | C34: 489392.975 | D34: 489392.975 | E34: 489392.975 | F34: 489392.975 | G34: 489392.975 | H34: 489392.975 | I34: 489392.975
A35: DOPEX0119 | B35: Emergency and unscheduled power system response & repair | C35: 9463030.946 | D35: 9463030.946 | E35: 9556631.04 | F35: 9556631.04 | G35: 9556631.04 | H35: 9556631.04 | I35: 9556631.04
A36: DOPEX0120 | B36: Vegetation management | C36: 1323144.936 | D36: 1323144.936 | E36: 1323144.936 | F36: 1323144.936 | G36: 1323144.936 | H36: 1323144.936 | I36: 1323144.936
A37: DOPEX0121 | B37: Connection asset repair | C37: 49257.61813 | D37: 49257.61813 | E37: 49257.61813 | F37: 49257.61813 | G37: 49257.61813 | H37: 49257.61813 | I37: 49257.61813
A38: DOPEX0122 | B38: Other non-network asset maintenance- non-routine costs (itemise in table 3) | C38: 51063.36874 | D38: 51063.36874 | E38: 51063.36874 | F38: 51063.36874 | G38: 51063.36874 | H38: 51063.36874 | I38: 51063.36874
A39: DOPEX0123 | B39: Public Lighting | K39: 2149047.499 | L39: 2222219.603 | M39: 2310204.651 | N39: 2326399.122 | O39: 2160374.257 | P39: 2176568.728 | Q39: 2192542.941
A40: DOPEX0124 | B40: Metering | K40: 2501285.562 | L40: 2464985.138 | M40: 2031153.215 | N40: 1985408.635 | O40: 1867750.273 | P40: 1978989.783 | Q40: 1898443.712
A41: DOPEX0125 | B41: Fee Based | K41: 3979176.244 | L41: 3981234.51 | M41: 3395500.316 | N41: 3321571.845 | O41: 3247389.61 | P41: 3172878.551 | Q41: 3098243.06
A42: DOPEX0126 | B42: Quoted Services | K42: 1845130.902 | L42: 1845130.902 | M42: 3589419.773 | N42: 3589419.773 | O42: 3589419.773 | P42: 3589419.773 | Q42: 3589419.773
A43: DOPEX0127 | B43: Negotiated services | C43: 0 | D43: 0 | E43: 0 | F43: 0 | G43: 0 | H43: 0 | I43: 0
A44: DOPEX0128 | B44: Network management | C44: 4413852.096 | D44: 4413852.096 | E44: 4413852.096 | F44: 4413852.096 | G44: 4413852.096 | H44: 4413852.096 | I44: 4413852.096
A45: DOPEX0129 | B45: GSL payments | C45: 2420297.743 | D45: 2420297.743 | E45: 2947120.814 | F45: 2947120.814 | G45: 2947120.814 | H45: 2947120.814 | I45: 2947120.814
A46: DOPEX0130 | B46: Customer Service | C46: 3298849.363 | D46: 3298849.363 | E46: 3298849.363 | F46: 3298849.363 | G46: 3298849.363 | H46: 3298849.363 | I46: 3298849.363
A47: DOPEX0131 | B47: Regulatory compliance expenditure | C47: 665435.739 | D47: 665435.739 | E47: 915435.739 | F47: 915435.739 | G47: 915435.739 | H47: 915435.739 | I47: 915435.739
A48: DOPEX0132 | B48: Electrical safety levy | C48: 4016846.527 | D48: 4016846.527 | E48: 4016846.527 | F48: 4016846.527 | G48: 4016846.527 | H48: 4016846.527 | I48: 4016846.527
A49: DOPEX0133 | B49: NEM levy | C49: 622184.5098 | D49: 622184.5098 | E49: 622184.5098 | F49: 622184.5098 | G49: 622184.5098 | H49: 622184.5098 | I49: 622184.5098
A50: DOPEX0134 | B50: Other network division management costs (itemise in table 3) | C50: 1075413.82 | D50: 1075413.82 | E50: 1075413.82 | F50: 1075413.82 | G50: 1075413.82 | H50: 1075413.82 | I50: 1075413.82
A51: DOPEX0135 | B51: System operations | C51: 1358410.393 | D51: 1358410.393 | E51: 1358410.393 | F51: 1358410.393 | G51: 1358410.393 | H51: 1358410.393 | I51: 1358410.393
A52: DOPEX0136 | B52: Corporate and shared services costs | C52: 16567076.88 | D52: 15022398.77 | E52: 15053029.69 | F52: 14648642.35 | G52: 13843911.54 | H52: 13047228.04 | I52: 12258511.38
A53: DOPEX0137 | B53: NEM and contestability related costs | C53: 0 | D53: 0 | E53: 0 | F53: 0 | G53: 0 | H53: 0 | I53: 0
A54: DOPEX0138 | B54: Other Non-network division management costs (itemise in table 3) | C54: 0 | D54: 0 | E54: 0 | F54: 0 | G54: 0 | H54: 0 | I54: 0
A55: DOPEX0139 | B55: Advertising/Marketing | C55: 0 | D55: 0 | E55: 0 | F55: 0 | G55: 0 | H55: 0 | I55: 0
A56: DOPEX0140
A57: DOPEX0141
A58: DOPEX0142
A59: DOPEX0143
A60: DOPEX0144
A61: DOPEX0145
A62: DOPEX0146
A63: DOPEX0147
A64: DOPEX0148
A65: DOPEX0149
A66: DOPEX01 | B66: Total opex | C66: =SUM(C17:C65) -> 82144821.49 | D66: =SUM(D17:D65) -> 80600143.38 | E66: 82457449.06 | F66: 82053061.72 | G66: 81248330.91 | H66: 80451647.41 | I66: 79662930.75 | K66: =SUM(K17:K65) -> 10474640.21 | L66: =SUM(L17:L65) -> 10513570.15 | M66: 11326277.96 | N66: 11222799.37 | O66: 10864933.91 | P66: 10917856.84 | Q66: 10778649.49
B69: 3.2.2 - OPEX CONSISTENCY
B70: OPEX CONSISTENCY - CURRENT COST ALLOCATION APPROACH
C71: Standard control services | K71: Alternative control services
C72: EXPENDITURE | K72: EXPENDITURE
C73: =CONCATENATE("Forecast ($0's, real ",dms_DollarReal,")") -> Forecast ($0's, real June 2019) | K73: =CONCATENATE("Forecast ($0's, real ",dms_DollarReal,")") -> Forecast ($0's, real June 2019)
C74: =CRCP_y4 -> 2017-18 | D74: =CRCP_y5 -> 2018-19 | E74: =FRCP_y1 -> 2019-20 | F74: =FRCP_y2 -> 2020-21 | G74: =FRCP_y3 -> 2021-22 | H74: =FRCP_y4 -> 2022-23 | I74: =FRCP_y5 -> 2023-24 | K74: =CRCP_y4 -> 2017-18 | L74: =CRCP_y5 -> 2018-19 | M74: =FRCP_y1 -> 2019-20 | N74: =FRCP_y2 -> 2020-21 | O74: =FRCP_y3 -> 2021-22 | P74: =FRCP_y4 -> 2022-23 | Q74: =FRCP_y5 -> 2023-24
A75: DOPEX0201 | B75: Opex for network services | C75: 81653216.68 | D75: 80108538.58 | E75: 81965844.26 | F75: 81561456.92 | G75: 80756726.11 | H75: 79960042.61 | I75: 79171325.95 | K75: 4680328.94 | L75: 4660182.913 | M75: 6159777.252 | N75: 6083373.607 | O75: 6006544.396 | P75: 5929355.76 | Q75: 5852031.368
A76: DOPEX0202 | B76: Opex for metering | K76: 2501285.562 | L76: 2464985.138 | M76: 2031153.215 | N76: 1985408.635 | O76: 1867750.273 | P76: 1978989.783 | Q76: 1898443.712
A77: DOPEX0203 | B77: Opex for connection services | C77: 491604.8035 | D77: 491604.8035 | E77: 491604.8035 | F77: 491604.8035 | G77: 491604.8035 | H77: 491604.8035 | I77: 491604.8035 | K77: 1143978.205 | L77: 1166182.499 | M77: 825142.8369 | N77: 827618.0106 | O77: 830264.9865 | P77: 832942.564 | Q77: 835631.4651
A78: DOPEX0204 | B78: Opex for public lighting | K78: 2149047.499 | L78: 2222219.603 | M78: 2310204.651 | N78: 2326399.122 | O78: 2160374.257 | P78: 2176568.728 | Q78: 2192542.941
A79: DOPEX0205 | B79: Opex for amounts payable for easement levy or similar direct charges on DNSP
A80: DOPEX0207 | B80: Opex for transmission connection point planning
B83: 3.2.4 - OPEX FOR HIGH VOLTAGE CUSTOMERS
C84: End user costs (not standard control services)
C85: EXPENDITURE
C86: =CONCATENATE("Forecast ($0's, real ",dms_DollarReal,")") -> Forecast ($0's, real June 2019)
C87: =CRCP_y4 -> 2017-18 | D87: =CRCP_y5 -> 2018-19 | E87: =FRCP_y1 -> 2019-20 | F87: =FRCP_y2 -> 2020-21 | G87: =FRCP_y3 -> 2021-22 | H87: =FRCP_y4 -> 2022-23 | I87: =FRCP_y5 -> 2023-24
A88: DOPEX0401 | B88: Opex for high voltage customers | C88: 297231.4247 | D88: 300515.7498 | E88: 310368.7252 | F88: 313653.0503 | G88: 316937.3755 | H88: 321863.8632 | I88: 326790.3509

Sheet 3.3 Assets (RAB)
B1: =SheetHeader -> REGULATORY REPORTING STATEMENT
B2: =dms_TradingName -> TasNetworks (D)
B3: =dms_Reg_Year_Span -> 2019-20 to 2023-24
B4: 3.3 ASSETS
B6: There are FOUR tables on this worksheet. Both ROWS and COLUMNS in each have been grouped (and sub-grouped) for ease of navigation. see the Instructions sheet on how to group or ungroup tables.
B8: 3.3.1 - REGULATORY ASSET BASE VALUES
C9: Network services | K9: Standard control services | S9: Alternative control services
C10: =CONCATENATE("Forecast ($0's, real ", dms_DollarReal,")") -> Forecast ($0's, real June 2019) | K10: =CONCATENATE("Forecast ($0's, real ", dms_DollarReal,")") -> Forecast ($0's, real June 2019) | S10: =CONCATENATE("Forecast ($0's, real ", dms_DollarReal,")") -> Forecast ($0's, real June 2019)
C11: =CRCP_y4 -> 2017-18 | D11: =CRCP_y5 -> 2018-19 | E11: =FRCP_y1 -> 2019-20 | F11: =FRCP_y2 -> 2020-21 | G11: =FRCP_y3 -> 2021-22 | H11: =FRCP_y4 -> 2022-23 | I11: =FRCP_y5 -> 2023-24 | K11: =CRCP_y4 -> 2017-18 | L11: =CRCP_y5 -> 2018-19 | M11: =FRCP_y1 -> 2019-20 | N11: =FRCP_y2 -> 2020-21 | O11: =FRCP_y3 -> 2021-22 | P11: =FRCP_y4 -> 2022-23 | Q11: =FRCP_y5 -> 2023-24 | S11: =CRCP_y4 -> 2017-18 | T11: =CRCP_y5 -> 2018-19 | U11: =FRCP_y1 -> 2019-20 | V11: =FRCP_y2 -> 2020-21 | W11: =FRCP_y3 -> 2021-22 | X11: =FRCP_y4 -> 2022-23 | Y11: =FRCP_y5 -> 2023-24
B12: For total asset base:
A13: DRAB0101 | B13: Opening value | C13: 1598375869 | D13: 1645602362 | E13: 1668903983 | F13: 1723609095 | G13: 1767388103 | H13: 1792804938 | I13: 1826840523 | K13: 1689899808 | L13: 1736348689 | M13: 1755821140 | N13: 1815150630 | O13: 1862853570 | P13: 1891781392 | Q13: 1929166468 | S13: =S74+S88 -> 56035143.54 | T13: =S18 -> 51357240.15 | U13: 44992273.05 | V13: 35715706.07 | W13: 26421620.17 | X13: 17239688.27 | Y13: 8756471.516
A14: DRAB0102 | B14: Inflation addition | C14: 0 | D14: 0 | E14: 0 | F14: 0 | G14: 0 | H14: 0 | I14: 0 | K14: 0 | L14: 0 | M14: 0 | N14: 0 | O14: 0 | P14: 0 | Q14: 0 | S14: =S75+S89 -> 0
A15: DRAB0103 | B15: Straight line depreciation | C15: -73054972.47 | D15: -93313529.33 | E15: -92758483.75 | F15: -97945940.45 | G15: -103356119.8 | H15: -106526340.6 | I15: -110388074 | K15: -79394014.3 | L15: -98807280.02 | M15: -97954015.72 | N15: -103433052.8 | O15: -109123018.7 | P15: -112571580.8 | Q15: -116620760.3 | S15: -6265523.069 | T15: -6299918.655 | U15: -9313001.03 | V15: -9294085.904 | W15: -9181931.9 | X15: -8483216.752 | Y15: -8477724.364
A16: DRAB0105 | B16: Actual additions (recognised in RAB) | C16: 120281465.8 | D16: 116615149.8 | E16: 147463596.5 | F16: 141724947.7 | G16: 128772954.9 | H16: 140561926.4 | I16: 140577093.9 | K16: 125842895.6 | L16: 118279731.3 | M16: 157283505.2 | N16: 151135993.5 | O16: 138050840.4 | P16: 149956656.5 | Q16: 149671119.3 | S16: 1652462.327 | T16: -1826.857566 | U16: 36434.04848 | V16: 0 | W16: 0 | X16: 0 | Y16: 0
A17: DRAB0106 | B17: Disposals | C17: 0 | D17: 0 | E17: 0 | F17: 0 | G17: 0 | H17: 0 | I17: 0 | K17: 0 | L17: 0 | M17: 0 | N17: 0 | O17: 0 | P17: 0 | Q17: 0 | S17: -64842.64739 | T17: -63221.58121 | U17: 0 | V17: 0 | W17: 0 | X17: 0 | Y17: 0
A18: DRAB0107 | B18: Closing value | C18: =SUM(C13+C14+C15+C16+C17) -> 1645602362 | D18: 1668903983 | E18: 1723609095 | F18: 1767388103 | G18: 1792804938 | H18: 1826840523 | I18: 1857029543 | K18: =SUM(K13+K14+K15+K16+K17) -> 1736348689 | L18: 1755821140 | M18: 1815150630 | N18: 1862853570 | O18: 1891781392 | P18: 1929166468 | Q18: 1962216827 | S18: =SUM(S13+S14+S15+S16+S17) -> 51357240.15 | T18: 44992273.05 | U18: 35715706.07 | V18: 26421620.17 | W18: 17239688.27 | X18: 8756471.516 | Y18: 278747.1524
B21: 3.3.2 - ASSET VALUE ROLL FORWARD
C22: Network services | K22: Standard control services | S22: Alternative control services
C23: =CONCATENATE("Forecast ($0's, real ", dms_DollarReal,")") -> Forecast ($0's, real June 2019) | K23: =CONCATENATE("Forecast ($0's, real ", dms_DollarReal,")") -> Forecast ($0's, real June 2019) | S23: =CONCATENATE("Forecast ($0's, real ", dms_DollarReal,")") -> Forecast ($0's, real June 2019)
C24: =CRCP_y4 -> 2017-18 | D24: =CRCP_y5 -> 2018-19 | E24: =FRCP_y1 -> 2019-20 | F24: =FRCP_y2 -> 2020-21 | G24: =FRCP_y3 -> 2021-22 | H24: =FRCP_y4 -> 2022-23 | I24: =FRCP_y5 -> 2023-24 | K24: =CRCP_y4 -> 2017-18 | L24: =CRCP_y5 -> 2018-19 | M24: =FRCP_y1 -> 2019-20 | N24: =FRCP_y2 -> 2020-21 | O24: =FRCP_y3 -> 2021-22 | P24: =FRCP_y4 -> 2022-23 | Q24: =FRCP_y5 -> 2023-24 | S24: =CRCP_y4 -> 2017-18 | T24: =CRCP_y5 -> 2018-19 | U24: =FRCP_y1 -> 2019-20 | V24: =FRCP_y2 -> 2020-21 | W24: =FRCP_y3 -> 2021-22 | X24: =FRCP_y4 -> 2022-23 | Y24: =FRCP_y5 -> 2023-24
B25: For overhead network assets less than 33kV:
A26: DRAB0201 | B26: Opening value | C26: 716822745.8 | D26: 725903104.2 | E26: 755210490.1 | F26: 784456214.7 | G26: 808466770.9 | H26: 828232695.4 | I26: 837221552.4 | K26: 716822745.8 | L26: 725903104.2 | M26: 755210490.1 | N26: 784456214.7 | O26: 808466770.9 | P26: 828232695.4 | Q26: 837221552.4 | T26: 0 | U26: 0 | V26: 0 | W26: 0 | X26: 0 | Y26: 0
A27: DRAB0202 | B27: Inflation addition | C27: 0 | D27: 0 | E27: 0 | F27: 0 | G27: 0 | H27: 0 | I27: 0 | K27: 0 | L27: 0 | M27: 0 | N27: 0 | O27: 0 | P27: 0 | Q27: 0
A28: DRAB0203 | B28: Straight line depreciation | C28: -38339443.42 | D28: -39609088.11 | E28: -41156726.87 | F28: -43161856.98 | G28: -45077355.33 | H28: -46929370.22 | I28: -48530507.86 | K28: -38339443.42 | L28: -39609088.11 | M28: -41156726.87 | N28: -43161856.98 | O28: -45077355.33 | P28: -46929370.22 | Q28: -48530507.86
A29: DRAB0205 | B29: Actual additions (recognised in RAB) | C29: 47419801.78 | D29: 68916473.98 | E29: 70402451.49 | F29: 67172413.24 | G29: 64843279.79 | H29: 55918227.22 | I29: 54083011.52 | K29: 47419801.78 | L29: 68916473.98 | M29: 70402451.49 | N29: 67172413.24 | O29: 64843279.79 | P29: 55918227.22 | Q29: 54083011.52
A30: DRAB0206 | B30: Disposals | C30: 0 | D30: 0 | E30: 0 | F30: 0 | G30: 0 | H30: 0 | I30: 0 | K30: 0 | L30: 0 | M30: 0 | N30: 0 | O30: 0 | P30: 0 | Q30: 0
A31: DRAB0207 | B31: Closing value | C31: =SUM(C26+C27+C28+C29+C30) -> 725903104.2 | D31: 755210490.1 | E31: 784456214.7 | F31: 808466770.9 | G31: 828232695.4 | H31: 837221552.4 | I31: 842774056.1 | K31: =SUM(K26+K27+K28+K29+K30) -> 725903104.2 | L31: 755210490.1 | M31: 784456214.7 | N31: 808466770.9 | O31: 828232695.4 | P31: 837221552.4 | Q31: 842774056.1 | S31: =SUM(S26+S27+S28+S29+S30) -> 0 | T31: 0 | U31: 0 | V31: 0 | W31: 0 | X31: 0 | Y31: 0
B32: For underground network assets less than 33kV:
A33: DRAB0301 | B33: Opening value | C33: 400420920.6 | D33: 402225282.2 | E33: 400572830.4 | F33: 409970588.1 | G33: 420189570.3 | H33: 429571760.9 | I33: 439164676.4 | K33: 400420920.6 | L33: 402225282.2 | M33: 400572830.4 | N33: 409970588.1 | O33: 420189570.3 | P33: 429571760.9 | Q33: 439164676.4 | T33: 0 | U33: 0 | V33: 0 | W33: 0 | X33: 0 | Y33: 0
A34: DRAB0302 | B34: Inflation addition | C34: 0 | D34: 0 | E34: 0 | F34: 0 | G34: 0 | H34: 0 | I34: 0 | K34: 0 | L34: 0 | M34: 0 | N34: 0 | O34: 0 | P34: 0 | Q34: 0
A35: DRAB0303 | B35: Straight line depreciation | C35: -10695530.32 | D35: -10900604.12 | E35: -11084496.09 | F35: -11424786.19 | G35: -11784373.57 | H35: -12136032.74 | I35: -12497035.29 | K35: -10695530.32 | L35: -10900604.12 | M35: -11084496.09 | N35: -11424786.19 | O35: -11784373.57 | P35: -12136032.74 | Q35: -12497035.29
A36: DRAB0305 | B36: Actual additions (recognised in RAB) | C36: 12499891.95 | D36: 9248152.351 | E36: 20482253.79 | F36: 21643768.31 | G36: 21166564.23 | H36: 21728948.22 | I36: 23253928.15 | K36: 12499891.95 | L36: 9248152.351 | M36: 20482253.79 | N36: 21643768.31 | O36: 21166564.23 | P36: 21728948.22 | Q36: 23253928.15
A37: DRAB0306 | B37: Disposals | C37: 0 | D37: 0 | E37: 0 | F37: 0 | G37: 0 | H37: 0 | I37: 0 | K37: 0 | L37: 0 | M37: 0 | N37: 0 | O37: 0 | P37: 0 | Q37: 0
A38: DRAB0307 | B38: Closing value | C38: =SUM(C33+C34+C35+C36+C37) -> 402225282.2 | D38: 400572830.4 | E38: 409970588.1 | F38: 420189570.3 | G38: 429571760.9 | H38: 439164676.4 | I38: 449921569.3 | K38: =SUM(K33+K34+K35+K36+K37) -> 402225282.2 | L38: 400572830.4 | M38: 409970588.1 | N38: 420189570.3 | O38: 429571760.9 | P38: 439164676.4 | Q38: 449921569.3 | S38: =SUM(S33+S34+S35+S36+S37) -> 0 | T38: 0 | U38: 0 | V38: 0 | W38: 0 | X38: 0 | Y38: 0
B39: For distribution substations and transformers:
A40: DRAB0401 | B40: Opening value | C40: 257009073 | D40: 261643602.3 | E40: 261961468.7 | F40: 266403414.6 | G40: 271292128.7 | H40: 277261732.8 | I40: 282884490.4 | K40: 257009073 | L40: 261643602.3 | M40: 261961468.7 | N40: 266403414.6 | O40: 271292128.7 | P40: 277261732.8 | Q40: 282884490.4 | T40: 0 | U40: 0 | V40: 0 | W40: 0 | X40: 0 | Y40: 0
A41: DRAB0402 | B41: Inflation addition | C41: 0 | D41: 0 | E41: 0 | F41: 0 | G41: 0 | H41: 0 | I41: 0 | K41: 0 | L41: 0 | M41: 0 | N41: 0 | O41: 0 | P41: 0 | Q41: 0
A42: DRAB0403 | B42: Straight line depreciation | C42: -12784326.92 | D42: -13212988.75 | E42: -13628229.59 | F42: -14078553.7 | G42: -14551234.11 | H42: -15062630.82 | I42: -15578128.25 | K42: -12784326.92 | L42: -13212988.75 | M42: -13628229.59 | N42: -14078553.7 | O42: -14551234.11 | P42: -15062630.82 | Q42: -15578128.25
A43: DRAB0405 | B43: Actual additions (recognised in RAB) | C43: 17418856.21 | D43: 13530855.18 | E43: 18070175.48 | F43: 18967267.84 | G43: 20520838.2 | H43: 20685388.34 | I43: 23376329.42 | K43: 17418856.21 | L43: 13530855.18 | M43: 18070175.48 | N43: 18967267.84 | O43: 20520838.2 | P43: 20685388.34 | Q43: 23376329.42
A44: DRAB0406 | B44: Disposals | C44: 0 | D44: 0 | E44: 0 | F44: 0 | G44: 0 | H44: 0 | I44: 0 | K44: 0 | L44: 0 | M44: 0 | N44: 0 | O44: 0 | P44: 0 | Q44: 0
A45: DRAB0407 | B45: Closing value | C45: =SUM(C40+C41+C42+C43+C44) -> 261643602.3 | D45: 261961468.7 | E45: 266403414.6 | F45: 271292128.7 | G45: 277261732.8 | H45: 282884490.4 | I45: 290682691.5 | K45: =SUM(K40+K41+K42+K43+K44) -> 261643602.3 | L45: 261961468.7 | M45: 266403414.6 | N45: 271292128.7 | O45: 277261732.8 | P45: 282884490.4 | Q45: 290682691.5 | S45: =SUM(S40+S41+S42+S43+S44) -> 0 | T45: 0 | U45: 0 | V45: 0 | W45: 0 | X45: 0 | Y45: 0
B46: For overhead network assets 33kV and above:
A47: DRAB0501 | B47: Opening value | C47: 12716259.83 | D47: 12424047.45 | E47: 12136273.46 | F47: 11886320.51 | G47: 11656635.91 | H47: 11426490.58 | I47: 11194527.65 | K47: 12716259.83 | L47: 12424047.45 | M47: 12136273.46 | N47: 11886320.51 | O47: 11656635.91 | P47: 11426490.58 | Q47: 11194527.65 | T47: 0 | U47: 0 | V47: 0 | W47: 0 | X47: 0 | Y47: 0
A48: DRAB0502 | B48: Inflation addition | C48: 0 | D48: 0 | E48: 0 | F48: 0 | G48: 0 | H48: 0 | I48: 0 | K48: 0 | L48: 0 | M48: 0 | N48: 0 | O48: 0 | P48: 0 | Q48: 0
A49: DRAB0503 | B49: Straight line depreciation | C49: -478414.4685 | D49: -482080.2767 | E49: -486127.4859 | F49: -490836.0217 | G49: -496042.5137 | H49: -501343.6206 | I49: -506714.177 | K49: -478414.4685 | L49: -482080.2767 | M49: -486127.4859 | N49: -490836.0217 | O49: -496042.5137 | P49: -501343.6206 | Q49: -506714.177
A50: DRAB0505 | B50: Actual additions (recognised in RAB) | C50: 186202.095 | D50: 194306.2873 | E50: 236174.53 | F50: 261151.4213 | G50: 265897.1881 | H50: 269380.6926 | I50: 324801.8311 | K50: 186202.095 | L50: 194306.2873 | M50: 236174.53 | N50: 261151.4213 | O50: 265897.1881 | P50: 269380.6926 | Q50: 324801.8311
A51: DRAB0506 | B51: Disposals | C51: 0 | D51: 0 | E51: 0 | F51: 0 | G51: 0 | H51: 0 | I51: 0 | K51: 0 | L51: 0 | M51: 0 | N51: 0 | O51: 0 | P51: 0 | Q51: 0
A52: DRAB0507 | B52: Closing value | C52: =SUM(C47+C48+C49+C50+C51) -> 12424047.45 | D52: 12136273.46 | E52: 11886320.51 | F52: 11656635.91 | G52: 11426490.58 | H52: 11194527.65 | I52: 11012615.31 | K52: =SUM(K47+K48+K49+K50+K51) -> 12424047.45 | L52: 12136273.46 | M52: 11886320.51 | N52: 11656635.91 | O52: 11426490.58 | P52: 11194527.65 | Q52: 11012615.31 | S52: =SUM(S47+S48+S49+S50+S51) -> 0 | T52: 0 | U52: 0 | V52: 0 | W52: 0 | X52: 0 | Y52: 0
B53: For underground network assets 33kV and above:
A54: DRAB0601 | B54: Opening value | C54: 10334169.82 | D54: 10017435.67 | E54: 9709654.483 | F54: 9411959.007 | G54: 9155733.653 | H54: 8856931.549 | I54: 8557969.374 | K54: 10334169.82 | L54: 10017435.67 | M54: 9709654.483 | N54: 9411959.007 | O54: 9155733.653 | P54: 8856931.549 | Q54: 8557969.374 | T54: 0 | U54: 0 | V54: 0 | W54: 0 | X54: 0 | Y54: 0
A55: DRAB0602 | B55: Inflation addition | C55: 0 | D55: 0 | E55: 0 | F55: 0 | G55: 0 | H55: 0 | I55: 0 | K55: 0 | L55: 0 | M55: 0 | N55: 0 | O55: 0 | P55: 0 | Q55: 0
A56: DRAB0603 | B56: Straight line depreciation | C56: -316734.1557 | D56: -316734.1557 | E56: -316832.0852 | F56: -317150.0189 | G56: -318162.2152 | H56: -318483.8621 | I56: -318808.1935 | K56: -316734.1557 | L56: -316734.1557 | M56: -316832.0852 | N56: -317150.0189 | O56: -318162.2152 | P56: -318483.8621 | Q56: -318808.1935
A57: DRAB0605 | B57: Actual additions (recognised in RAB) | C57: 0 | D57: 8952.970083 | E57: 19136.6094 | F57: 60924.66453 | G57: 19360.11185 | H57: 19521.68688 | I57: 51308.39469 | K57: 0 | L57: 8952.970083 | M57: 19136.6094 | N57: 60924.66453 | O57: 19360.11185 | P57: 19521.68688 | Q57: 51308.39469
A58: DRAB0606 | B58: Disposals | C58: 0 | D58: 0 | E58: 0 | F58: 0 | G58: 0 | H58: 0 | I58: 0 | K58: 0 | L58: 0 | M58: 0 | N58: 0 | O58: 0 | P58: 0 | Q58: 0
A59: DRAB0607 | B59: Closing value | C59: =SUM(C54+C55+C56+C57+C58) -> 10017435.67 | D59: 9709654.483 | E59: 9411959.007 | F59: 9155733.653 | G59: 8856931.549 | H59: 8557969.374 | I59: 8290469.575 | K59: =SUM(K54+K55+K56+K57+K58) -> 10017435.67 | L59: 9709654.483 | M59: 9411959.007 | N59: 9155733.653 | O59: 8856931.549 | P59: 8557969.374 | Q59: 8290469.575 | S59: =SUM(S54+S55+S56+S57+S58) -> 0 | T59: 0 | U59: 0 | V59: 0 | W59: 0 | X59: 0 | Y59: 0
B60: Zone substations and transformers
A61: DRAB0701 | B61: Opening value | C61: 48703595.75 | D61: 49002250.25 | E61: 55813356.14 | F61: 56000242.67 | G61: 59335275.8 | H61: 58269285.67 | I61: 61817119.55 | K61: 48703595.75 | L61: 49002250.25 | M61: 55813356.14 | N61: 56000242.67 | O61: 59335275.8 | P61: 58269285.67 | Q61: 61817119.55 | T61: 0 | U61: 0 | V61: 0 | W61: 0 | X61: 0 | Y61: 0
A62: DRAB0702 | B62: Inflation addition | C62: 0 | D62: 0 | E62: 0 | F62: 0 | G62: 0 | H62: 0 | I62: 0 | K62: 0 | L62: 0 | M62: 0 | N62: 0 | O62: 0 | P62: 0 | Q62: 0
A63: DRAB0703 | B63: Straight line depreciation | C63: -1790738.159 | D63: -1842156.167 | E63: -2046020.354 | F63: -2101666.288 | G63: -2237153.452 | H63: -2266339.836 | I63: -2411233.98 | K63: -1790738.159 | L63: -1842156.167 | M63: -2046020.354 | N63: -2101666.288 | O63: -2237153.452 | P63: -2266339.836 | Q63: -2411233.98
A64: DRAB0705 | B64: Actual additions (recognised in RAB) | C64: 2089392.658 | D64: 8653262.055 | E64: 2232906.881 | F64: 5436699.42 | G64: 1171163.321 | H64: 5814173.716 | I64: 600596.4862 | K64: 2089392.658 | L64: 8653262.055 | M64: 2232906.881 | N64: 5436699.42 | O64: 1171163.321 | P64: 5814173.716 | Q64: 600596.4862
A65: DRAB0706 | B65: Disposals | C65: 0 | D65: 0 | E65: 0 | F65: 0 | G65: 0 | H65: 0 | I65: 0 | K65: 0 | L65: 0 | M65: 0 | N65: 0 | O65: 0 | P65: 0 | Q65: 0
A66: DRAB0707 | B66: Closing value | C66: =SUM(C61+C62+C63+C64+C65) -> 49002250.25 | D66: 55813356.14 | E66: 56000242.67 | F66: 59335275.8 | G66: 58269285.67 | H66: 61817119.55 | I66: 60006482.05 | K66: =SUM(K61+K62+K63+K64+K65) -> 49002250.25 | L66: 55813356.14 | M66: 56000242.67 | N66: 59335275.8 | O66: 58269285.67 | P66: 61817119.55 | Q66: 60006482.05 | S66: =SUM(S61+S62+S63+S64+S65) -> 0 | T66: 0 | U66: 0 | V66: 0 | W66: 0 | X66: 0 | Y66: 0
B67: For easements:
A68: DRAB0801 | B68: Opening value | C68: 1456163.644 | D68: 1456163.644 | E68: 2309906.697 | F68: 2309906.697 | G68: 2309906.697 | H68: 2309906.697 | I68: 2309906.697 | K68: 1456163.644 | L68: 1456163.644 | M68: 2309906.697 | N68: 2309906.697 | O68: 2309906.697 | P68: 2309906.697 | Q68: 2309906.697 | T68: 0 | U68: 0 | V68: 0 | W68: 0 | X68: 0 | Y68: 0
A69: DRAB0802 | B69: Inflation addition | C69: 0 | D69: 0 | E69: 0 | F69: 0 | G69: 0 | H69: 0 | I69: 0 | K69: 0 | L69: 0 | M69: 0 | N69: 0 | O69: 0 | P69: 0 | Q69: 0
A70: DRAB0803 | B70: Actual additions (recognised in RAB) | C70: 0 | D70: 853743.0537 | E70: 0 | F70: 0 | G70: 0 | H70: 0 | I70: -92691.30567 | K70: 0 | L70: 0 | M70: 0 | N70: 0 | O70: 0 | P70: 0 | Q70: 0
A71: DRAB0804 | B71: Disposals | C71: 0 | D71: 0 | E71: 0 | F71: 0 | G71: 0 | H71: 0 | I71: 0 | K71: 0 | L71: 853743.0537 | M71: 0 | N71: 0 | O71: 0 | P71: 0 | Q71: -92691.30567
A72: DRAB0805 | B72: Closing value | C72: =SUM(C68+C69+C70+C71) -> 1456163.644 | D72: =SUM(D68+D69+D70+D71) -> 2309906.697 | E72: =SUM(E68+E69+E70+E71) -> 2309906.697 | F72: 2309906.697 | G72: 2309906.697 | H72: 2309906.697 | I72: 2217215.392 | K72: =SUM(K68+K69+K70+K71) -> 1456163.644 | L72: =SUM(L68+L69+L70+L71) -> 2309906.697 | M72: =SUM(M68+M69+M70+M71) -> 2309906.697 | N72: 2309906.697 | O72: 2309906.697 | P72: 2309906.697 | Q72: 2217215.392 | S72: =SUM(S68+S69+S70+S71) -> 0 | T72: =SUM(T68+T69+T70+T71) -> 0 | U72: =SUM(U68+U69+U70+U71) -> 0 | V72: 0 | W72: 0 | X72: 0 | Y72: 0
B73: For meters:
A74: DRAB0901 | B74: Opening value | C74: 0 | D74: 0 | E74: 0 | F74: 0 | G74: 0 | H74: 0 | I74: 0 | K74: 0 | L74: 0 | M74: 0 | N74: 0 | O74: 0 | P74: 0 | Q74: 0 | S74: 50162834.27 | T74: =S79 -> 45984598.88 | U74: 41064693.99 | V74: 32905575.73 | W74: 24746457.47 | X74: 16587339.22 | Y74: 8428220.959
A75: DRAB0902 | B75: Inflation addition | C75: 0 | D75: 0 | E75: 0 | F75: 0 | G75: 0 | H75: 0 | I75: 0 | K75: 0 | L75: 0 | M75: 0 | N75: 0 | O75: 0 | P75: 0 | Q75: 0
A76: DRAB0903 | B76: Straight line depreciation | C76: 0 | D76: 0 | E76: 0 | F76: 0 | G76: 0 | H76: 0 | I76: 0 | K76: 0 | L76: 0 | M76: 0 | N76: 0 | O76: 0 | P76: 0 | Q76: 0 | S76: -4878687.572 | T76: -4919904.894 | U76: -8159118.258 | V76: -8159118.258 | W76: -8159118.258 | X76: -8159118.258 | Y76: -8159118.258
A77: DRAB0905 | B77: Actual additions (recognised in RAB) | C77: 0 | D77: 0 | E77: 0 | F77: 0 | G77: 0 | H77: 0 | I77: 0 | K77: 0 | L77: 0 | M77: 0 | N77: 0 | O77: 0 | P77: 0 | Q77: 0 | S77: 700452.1852 | T77: 0 | U77: 0 | V77: 0 | W77: 0 | X77: 0 | Y77: 0
A78: DRAB0906 | B78: Disposals | C78: 0 | D78: 0 | E78: 0 | F78: 0 | G78: 0 | H78: 0 | I78: 0 | K78: 0 | L78: 0 | M78: 0 | N78: 0 | O78: 0 | P78: 0 | Q78: 0
A79: DRAB0907 | B79: Closing value | C79: =SUM(C74+C75+C76+C77+C78) -> 0 | D79: 0 | E79: 0 | F79: 0 | G79: 0 | H79: 0 | I79: 0 | K79: =SUM(K74+K75+K76+K77+K78) -> 0 | L79: 0 | M79: 0 | N79: 0 | O79: 0 | P79: 0 | Q79: 0 | S79: =SUM(S74+S75+S76+S77+S78) -> 45984598.88 | T79: 41064693.99 | U79: 32905575.73 | V79: 24746457.47 | W79: 16587339.22 | X79: 8428220.959 | Y79: 269102.7008
B80: For “other” asset items with long lives:
A81: DRAB1001 | B81: Opening value | C81: 57147640.55 | D81: 57695797.04 | E81: 57160643.2 | F81: 61100275.08 | G81: 62479086.65 | H81: 62620330.86 | I81: 61582286.24 | K81: 148671579.4 | L81: 148151483.6 | M81: 141790559.3 | N81: 150361839.7 | O81: 155666914.1 | P81: 159401409.6 | Q81: 161754553 | T81: 0 | U81: 0 | V81: 0 | W81: 0 | X81: 0 | Y81: 0
A82: DRAB1002 | B82: Inflation addition | C82: 0 | D82: 0 | E82: 0 | F82: 0 | G82: 0 | H82: 0 | I82: 0 | K82: 0 | L82: 0 | M82: 0 | N82: 0 | O82: 0 | P82: 0 | Q82: 0
A83: DRAB1003 | B83: Straight line depreciation | C83: -2847509.042 | D83: -2931073.209 | E83: -3002484.419 | F83: -3175487.85 | G83: -3288984.857 | H83: -3374469.077 | I83: -3432694.758 | K83: -9186550.869 | L83: -8424823.897 | M83: -8198016.388 | N83: -8662600.198 | O83: -9055883.773 | P83: -9419709.255 | Q83: -9665381.029
A84: DRAB1005 | B84: Actual additions (recognised in RAB) | C84: 3395665.535 | D84: 2395919.365 | E84: 6942116.305 | F84: 4554299.422 | G84: 3430229.059 | H84: 2336424.466 | I84: 2574224.231 | K84: 8666455.07 | L84: 2063899.587 | M84: 16769296.83 | N84: 13967674.54 | O84: 12790379.32 | P84: 11772852.61 | Q84: 12893018.96
A85: DRAB1006 | B85: Disposals | C85: 0 | D85: 0 | E85: 0 | F85: 0 | G85: 0 | H85: 0 | I85: 0 | K85: 0 | L85: 0 | M85: 0 | N85: 0 | O85: 0 | P85: 0 | Q85: 0
A86: DRAB1007 | B86: Closing value | C86: =SUM(C81+C82+C83+C84+C85) -> 57695797.04 | D86: 57160643.2 | E86: 61100275.08 | F86: 62479086.65 | G86: 62620330.86 | H86: 61582286.24 | I86: 60723815.72 | K86: =SUM(K81+K82+K83+K84+K85) -> 148151483.6 | L86: 141790559.3 | M86: 150361839.7 | N86: 155666914.1 | O86: 159401409.6 | P86: 161754553 | Q86: 164982190.9 | S86: =SUM(S81+S82+S83+S84+S85) -> 0 | T86: 0 | U86: 0 | V86: 0 | W86: 0 | X86: 0 | Y86: 0
B87: For “other” asset items with short lives:
A88: DRAB1101 | B88: Opening value | C88: 93765299.75 | D88: 125234679.3 | E88: 114029359.3 | F88: 122070173.9 | G88: 122502993.9 | H88: 114255803.1 | I88: 122107994.8 | K88: 93765299.75 | L88: 125525319.6 | M88: 116316600.8 | N88: 124350143.6 | O88: 124780634.2 | P88: 116451178.7 | Q88: 124261672.2 | S88: 5872309.268 | T88: =S93 -> 5372641.264 | U88: 3927579.064 | V88: 2810130.34 | W88: 1675162.694 | X88: 652349.0513 | Y88: 328250.5574
A89: DRAB1102 | B89: Inflation addition | C89: 0 | D89: 0 | E89: 0 | F89: 0 | G89: 0 | H89: 0 | I89: 0 | K89: 0 | L89: 0 | M89: 0 | N89: 0 | O89: 0 | P89: 0 | Q89: 0
A90: DRAB1103 | B90: Straight line depreciation | C90: -5802275.985 | D90: -24018804.54 | E90: -21037566.87 | F90: -23195603.41 | G90: -25602813.74 | H90: -25937670.46 | I90: -27112951.47 | K90: -5802275.985 | L90: -24018804.54 | M90: -21037566.87 | N90: -23195603.41 | O90: -25602813.74 | P90: -25937670.46 | Q90: -27112951.47 | S90: -1386835.498 | T90: -1380013.761 | U90: -1153882.772 | V90: -1134967.646 | W90: -1022813.642 | X90: -324098.4939 | Y90: -318606.1059
A91: DRAB1105 | B91: Actual additions (recognised in RAB) | C91: 37271655.55 | D91: 12813484.54 | E91: 29078381.43 | F91: 23628423.4 | G91: 17355623 | H91: 33789862.11 | I91: 36405585.21 | K91: 37562295.83 | L91: 14810085.79 | M91: 29071109.59 | N91: 23626094.02 | O91: 17273358.21 | P91: 33748163.98 | Q91: 35180815.83 | S91: 952010.1415 | T91: -1826.857566 | U91: 36434.04848 | V91: 0 | W91: 0 | X91: 0 | Y91: 0
A92: DRAB1106 | B92: Disposals | C92: 0 | D92: 0 | E92: 0 | F92: 0 | G92: 0 | H92: 0 | I92: 0 | S92: -64842.64739 | T92: -63221.58121 | U92: 0 | V92: 0 | W92: 0 | X92: 0 | Y92: 0
A93: DRAB1107 | B93: Closing value | C93: =SUM(C88+C89+C90+C91+C92) -> 125234679.3 | D93: 114029359.3 | E93: 122070173.9 | F93: 122502993.9 | G93: 114255803.1 | H93: 122107994.8 | I93: 131400628.5 | K93: =SUM(K88+K89+K90+K91+K92) -> 125525319.6 | L93: 116316600.8 | M93: 124350143.6 | N93: 124780634.2 | O93: 116451178.7 | P93: 124261672.2 | Q93: 132329536.5 | S93: =SUM(S88+S89+S90+S91+S92) -> 5372641.264 | T93: 3927579.064 | U93: 2810130.34 | V93: 1675162.694 | W93: 652349.0513 | X93: 328250.5574 | Y93: 9644.451529
B97: 3.3.3 - TOTAL DISAGGREGATED RAB ASSET VALUES
C98: Network services | K98: Standard control services | S98: Alternative control services
C99: =CONCATENATE("Forecast ($0's, real ", dms_DollarReal,")") -> Forecast ($0's, real June 2019) | K99: =CONCATENATE("Forecast ($0's, real ", dms_DollarReal,")") -> Forecast ($0's, real June 2019) | S99: =CONCATENATE("Forecast ($0's, real ", dms_DollarReal,")") -> Forecast ($0's, real June 2019)
C100: =CRCP_y4 -> 2017-18 | D100: =CRCP_y5 -> 2018-19 | E100: =FRCP_y1 -> 2019-20 | F100: =FRCP_y2 -> 2020-21 | G100: =FRCP_y3 -> 2021-22 | H100: =FRCP_y4 -> 2022-23 | I100: =FRCP_y5 -> 2023-24 | K100: =CRCP_y4 -> 2017-18 | L100: =CRCP_y5 -> 2018-19 | M100: =FRCP_y1 -> 2019-20 | N100: =FRCP_y2 -> 2020-21 | O100: =FRCP_y3 -> 2021-22 | P100: =FRCP_y4 -> 2022-23 | Q100: =FRCP_y5 -> 2023-24 | S100: =CRCP_y4 -> 2017-18 | T100: =CRCP_y5 -> 2018-19 | U100: =FRCP_y1 -> 2019-20 | V100: =FRCP_y2 -> 2020-21 | W100: =FRCP_y3 -> 2021-22 | X100: =FRCP_y4 -> 2022-23 | Y100: =FRCP_y5 -> 2023-24
A101: DRAB1201 | C101: 721362925 | D101: 740556797.1 | E101: 769833352.4 | F101: 796461492.8 | G101: 818349733.2 | H101: 832727123.9 | I101: 839997804.2 | K101: 721362925 | L101: 740556797.1 | M101: 769833352.4 | N101: 796461492.8 | O101: 818349733.2 | P101: 832727123.9 | Q101: 839997804.2
C102: 401323101.4 | D102: 401399056.3 | E102: 405271709.3 | F102: 415080079.2 | G102: 424880665.6 | H102: 434368218.7 | I102: 444543122.8 | K102: 401323101.4 | L102: 401399056.3 | M102: 405271709.3 | N102: 415080079.2 | O102: 424880665.6 | P102: 434368218.7 | Q102: 444543122.8
C103: 259326337.6 | D103: 261802535.5 | E103: 264182441.7 | F103: 268847771.7 | G103: 274276930.8 | H103: 280073111.6 | I103: 286783590.9 | K103: 259326337.6 | L103: 261802535.5 | M103: 264182441.7 | N103: 268847771.7 | O103: 274276930.8 | P103: 280073111.6 | Q103: 286783590.9
A104: DRAB1204 | B104: Overhead assets 33kV and above (wires and towers / poles etc) | C104: 12570153.64 | D104: 12280160.46 | E104: 12011296.99 | F104: 11771478.21 | G104: 11541563.25 | H104: 11310509.12 | I104: 11103571.48 | K104: 12570153.64 | L104: 12280160.46 | M104: 12011296.99 | N104: 11771478.21 | O104: 11541563.25 | P104: 11310509.12 | Q104: 11103571.48
A105: DRAB1205 | B105: Underground assets 33kV and above (cables, ducts etc) | C105: 10175802.75 | D105: 9863545.076 | E105: 9560806.745 | F105: 9283846.33 | G105: 9006332.601 | H105: 8707450.462 | I105: 8424219.475 | K105: 10175802.75 | L105: 9863545.076 | M105: 9560806.745 | N105: 9283846.33 | O105: 9006332.601 | P105: 8707450.462 | Q105: 8424219.475
A106: DRAB1206 | B106: Zone substations | C106: 48852923 | D106: 52407803.19 | E106: 55906799.4 | F106: 57667759.23 | G106: 58802280.73 | H106: 60043202.61 | I106: 60911800.8 | K106: 48852923 | L106: 52407803.19 | M106: 55906799.4 | N106: 57667759.23 | O106: 58802280.73 | P106: 60043202.61 | Q106: 60911800.8
A107: DRAB1207 | B107: Easements | C107: 1456163.644 | D107: 1883035.17 | E107: 2309906.697 | F107: 2309906.697 | G107: 2309906.697 | H107: 2309906.697 | I107: 2263561.044 | K107: 1456163.644 | L107: 1883035.17 | M107: 2309906.697 | N107: 2309906.697 | O107: 2309906.697 | P107: 2309906.697 | Q107: 2263561.044
A108: DRAB1208 | B108: Meters | C108: 0 | D108: 0 | E108: 0 | F108: 0 | G108: 0 | H108: 0 | I108: 0 | K108: 0 | L108: 0 | M108: 0 | N108: 0 | O108: 0 | P108: 0 | Q108: 0 | S108: =(S74+S79)/2 -> 48073716.58 | T108: =(T74+T79)/2 -> 43524646.44 | U108: 36985134.86 | V108: 28826016.6 | W108: 20666898.35 | X108: 12507780.09 | Y108: 4348661.83
A109: DRAB1209 | B109: Other assets with long lives | C109: 57421718.79 | D109: 57428220.12 | E109: 59130459.14 | F109: 61789680.87 | G109: 62549708.75 | H109: 62101308.55 | I109: 61153050.98 | K109: 148411531.5 | L109: 144971021.5 | M109: 146076199.5 | N109: 153014376.9 | O109: 157534161.9 | P109: 160577981.3 | Q109: 163368371.9
A110: DRAB1210 | B110: Other assets with short lives | C110: 109499989.5 | D110: 119632019.3 | E110: 118049766.6 | F110: 122286583.9 | G110: 118379398.5 | H110: 118181899 | I110: 126754311.7 | K110: 109645309.7 | L110: 120920960.2 | M110: 120333372.2 | N110: 124565388.9 | O110: 120615906.4 | P110: 120356425.4 | Q110: 128295604.3 | S110: =(S88+S93)/2 -> 5622475.266 | T110: =(T88+T93)/2 -> 4650110.164 | U110: 3368854.702 | V110: 2242646.517 | W110: 1163755.872 | X110: 490299.8044 | Y110: 168947.5045
A111: DRAB13 | B111: Value of Capital Contributions or Contributed Assets (included in the above) | C111: 11975727.15 | D111: 11892524.64 | E111: 6076241.367 | F111: 6121596.479 | G111: 6385052.017 | H111: 6531508.147 | I111: 6662116.985 | K111: 11975727.15 | L111: 11892524.64 | M111: 6076241.367 | N111: 6121596.479 | O111: 6385052.017 | P111: 6531508.147 | Q111: 6662116.985
B114: 3.3.4 - ASSET LIVES
C115: Network services | K115: Standard control services | S115: Alternative control services
C116: Forecast ( years ) | K116: Forecast ( years ) | S116: Forecast ( years )
C117: =CRCP_y4 -> 2017-18 | D117: =CRCP_y5 -> 2018-19 | E117: =FRCP_y1 -> 2019-20 | F117: =FRCP_y2 -> 2020-21 | G117: =FRCP_y3 -> 2021-22 | H117: =FRCP_y4 -> 2022-23 | I117: =FRCP_y5 -> 2023-24 | K117: =CRCP_y4 -> 2017-18 | L117: =CRCP_y5 -> 2018-19 | M117: =FRCP_y1 -> 2019-20 | N117: =FRCP_y2 -> 2020-21 | O117: =FRCP_y3 -> 2021-22 | P117: =FRCP_y4 -> 2022-23 | Q117: =FRCP_y5 -> 2023-24 | S117: =CRCP_y4 -> 2017-18 | T117: =CRCP_y5 -> 2018-19 | U117: =FRCP_y1 -> 2019-20 | V117: =FRCP_y2 -> 2020-21 | W117: =FRCP_y3 -> 2021-22 | X117: =FRCP_y4 -> 2022-23 | Y117: =FRCP_y5 -> 2023-24
B118: Estimated service life of new assets
A119: DRAB1401 | B119: Overhead network assets less than 33kV (wires and poles) | C119: 35 | D119: 35 | E119: 35 | F119: 35 | G119: 35 | H119: 35 | I119: 35 | K119: 35 | L119: 35 | M119: 35 | N119: 35 | O119: 35 | P119: 35 | Q119: 35
A120: DRAB1402 | B120: Underground network assets less than 33kV (cables) | C120: 60 | D120: 60 | E120: 60 | F120: 60 | G120: 60 | H120: 60 | I120: 60 | K120: 60 | L120: 60 | M120: 60 | N120: 60 | O120: 60 | P120: 60 | Q120: 60
A121: DRAB1403 | B121: Distribution substations including transformers | C121: 40 | D121: 40 | E121: 40 | F121: 40 | G121: 40 | H121: 40 | I121: 40 | K121: 40 | L121: 40 | M121: 40 | N121: 40 | O121: 40 | P121: 40 | Q121: 40
A122: DRAB1404 | B122: Overhead network assets 33kV and above (wires and towers / poles etc) | C122: 50 | D122: 50 | E122: 50 | F122: 50 | G122: 50 | H122: 50 | I122: 50 | K122: 50 | L122: 50 | M122: 50 | N122: 50 | O122: 50 | P122: 50 | Q122: 50
A123: DRAB1405 | B123: Underground network assets 33kV and above(cables, ducts etc) | C123: 60 | D123: 60 | E123: 60 | F123: 60 | G123: 60 | H123: 60 | I123: 60 | K123: 60 | L123: 60 | M123: 60 | N123: 60 | O123: 60 | P123: 60 | Q123: 60
A124: DRAB1406 | B124: Zone substations and transformers | C124: 40 | D124: 40 | E124: 40 | F124: 40 | G124: 40 | H124: 40 | I124: 40 | K124: 40 | L124: 40 | M124: 40 | N124: 40 | O124: 40 | P124: 40 | Q124: 40
A125: DRAB1407 | B125: Meters | C125: 0 | D125: 0 | E125: 0 | F125: 0 | G125: 0 | H125: 0 | I125: 0 | K125: 0 | L125: 0 | M125: 0 | N125: 0 | O125: 0 | P125: 0 | Q125: 0 | S125: 15 | T125: 15 | U125: 5 | V125: 4 | W125: 3 | X125: 2 | Y125: 1
A126: DRAB1408 | B126: “Other” assets with long lives | C126: 40 | D126: 40 | E126: 40 | F126: 40 | G126: 40 | H126: 40 | I126: 40 | K126: 33.83017481 | L126: 33.83017481 | M126: 33.83017481 | N126: 33.83017481 | O126: 33.83017481 | P126: 33.83017481 | Q126: 33.83017481
A127: DRAB1409 | B127: “Other” assets with short lives | C127: 5.047732786 | D127: 5.047732786 | E127: 5.047732786 | F127: 5.047732786 | G127: 5.047732786 | H127: 5.047732786 | I127: 5.047732786 | K127: 5.306044618 | L127: 5.306044618 | M127: 5.306044618 | N127: 5.306044618 | O127: 5.306044618 | P127: 5.306044618 | Q127: 5.306044618 | S127: 6 | T127: 6 | U127: 5 | V127: 4 | W127: 3 | X127: 2 | Y127: 1
B128: Estimated residual service life
A129: DRAB1501 | B129: Overhead network assets less than 33kV (wires and poles) | C129: 21.21707958 | D129: 21.15338086 | E129: 21.55802505 | F129: 21.85028032 | G129: 22.07194249 | H129: 22.14002665 | I129: 22.21757441 | K129: 21.21707958 | L129: 21.15338086 | M129: 21.55802505 | N129: 21.85028032 | O129: 22.07194249 | P129: 22.14002665 | Q129: 22.21757441
A130: DRAB1502 | B130: Underground network assets less than 33kV (cables) | C130: 38.5880277 | D130: 38.25927712 | E130: 38.40231634 | F130: 38.5828686 | G130: 38.71540515 | H130: 38.85652753 | I130: 38.97760225 | K130: 38.5880277 | L130: 38.25927712 | M130: 38.40231634 | N130: 38.5828686 | O130: 38.71540515 | P130: 38.85652753 | Q130: 38.97760225
A131: DRAB1503 | B131: Distribution substations including transformers | C131: 29.00577248 | D131: 28.35447586 | E131: 27.80938448 | F131: 27.33878764 | G131: 26.90633836 | H131: 26.51150508 | I131: 26.18146009 | K131: 29.00577248 | L131: 28.35447586 | M131: 27.80938448 | N131: 27.33878764 | O131: 26.90633836 | P131: 26.51150508 | Q131: 26.18146009
A132: DRAB1504 | B132: Overhead network assets 33kV and above (wires and towers / poles etc) | C132: 32.68807125 | D132: 31.68807125 | E132: 30.74753584 | F132: 29.94913146 | G132: 29.02121978 | H132: 28.09983268 | I132: 27.18496899 | K132: 32.68807125 | L132: 31.68807125 | M132: 30.74753584 | N132: 29.94913146 | O132: 29.02121978 | P132: 28.09983268 | Q132: 27.18496899
A133: DRAB1505 | B133: Underground network assets 33kV and above (cables, ducts etc) | C133: 23.21666683 | D133: 23.35454729 | E133: 23.55830976 | F133: 23.80360888 | G133: 24.12134963 | H133: 24.42550574 | I133: 24.78601456 | K133: 23.21666683 | L133: 23.35454729 | M133: 23.55830976 | N133: 23.80360888 | O133: 24.12134963 | P133: 24.42550574 | Q133: 24.78601456
A134: DRAB1506 | B134: Zone substations and transformers | C134: 28.32799011 | D134: 28.94067607 | E134: 28.45533678 | F134: 28.65639601 | G134: 27.95074513 | H134: 28.24297319 | I134: 27.44598303 | K134: 28.32799011 | L134: 28.94067607 | M134: 28.45533678 | N134: 28.65639601 | O134: 27.95074513 | P134: 28.24297319 | Q134: 27.44598303
A135: DRAB1507 | B135: Meters | C135: 0 | D135: 0 | E135: 0 | F135: 0 | G135: 0 | H135: 0 | I135: 0 | K135: 0 | L135: 0 | M135: 0 | N135: 0 | O135: 0 | P135: 0 | Q135: 0 | S135: 9.914916434 | T135: 9.136580597 | U135: 5 | V135: 4 | W135: 3 | X135: 2 | Y135: 1
A136: DRAB1508 | B136: “Other” assets with long lives | C136: 16.3136313 | D136: 16.27684216 | E136: 18.19312588 | F136: 18.86023066 | G136: 19.4536568 | H136: 18.32092546 | I136: 17.61858311 | K136: 18.96296334 | L136: 18.80417912 | M136: 19.90788197 | N136: 20.41829806 | O136: 20.87364191 | P136: 20.40370201 | Q136: 20.05275524
A137: DRAB1509 | B137: “Other” assets with short lives | C137: 4.650573475 | D137: 4.739282302 | E137: 4.193902135 | F137: 3.837193457 | G137: 3.349968895 | H137: 3.077093567 | I137: 3.08208796 | K137: 4.650573475 | L137: 4.739282302 | M137: 4.193902135 | N137: 3.837193457 | O137: 3.349968895 | P137: 3.077093567 | Q137: 3.08208796 | S137: 3.612083281 | T137: 2.321314998 | U137: 2.20616527 | V137: 1.507762138 | W137: 1 | X137: 0 | Y137: 0

Sheet 3.4 Operational data
B1: =SheetHeader -> REGULATORY REPORTING STATEMENT
B2: =dms_TradingName -> TasNetworks (D)
B3: =dms_Reg_Year_Span -> 2019-20 to 2023-24
B4: 3.4 OPERATIONAL DATA
B6: There are TWO tables on this worksheet. Each table has been grouped for ease of navigation. See the Instructions sheet on how to group or ungroup tables.
B9: 3.4.1 - ENERGY DELIVERY
D10: Standard control services
D11: Forecast
C12: Units | D12: =CRCP_y4 -> 2017-18 | E12: =CRCP_y5 -> 2018-19 | F12: =FRCP_y1 -> 2019-20 | G12: =FRCP_y2 -> 2020-21 | H12: =FRCP_y3 -> 2021-22 | I12: =FRCP_y4 -> 2022-23 | J12: =FRCP_y5 -> 2023-24
A13: DOPED01 | B13: Total energy delivered | C13: GWh | D13: 4186.72529 | E13: 4196.587066 | F13: 4208.414988 | G13: 4220.219167 | H13: 4233.132297 | I13: 4246.419965 | J13: 4260.074885
B14: 3.4.1.1 - Energy grouping - delivery by chargeable quantity
A15: DOPED0201 | B15: Energy Delivery where time of use is not a determinant | C15: GWh | D15: 3090.524207 | E15: 3077.836389 | F15: 2990.637741 | G15: 2906.535064 | H15: 2860.861079 | I15: 2812.619728 | J15: 2763.044811
A16: DOPED0202 | B16: Energy Delivery at On-peak times | C16: GWh | D16: 380.1126072 | E16: 388.2069329 | F16: 418.2654007 | G16: 450.2369722 | H16: 468.1546265 | I16: 488.1183873 | J16: 509.5357707
A17: DOPED0203 | B17: Energy Delivery at Shoulder times | C17: GWh | D17: 246.17286 | E17: 251.276038 | F17: 261.100498 | G17: 263.878957 | H17: 259.906605 | I17: 263.597883 | J17: 267.814986
A18: DOPED0204 | B18: Energy Delivery at Off-peak times | C18: GWh | D18: 387.0823938 | E18: 399.5680111 | F18: 461.7159163 | G18: 525.8749488 | H18: 572.4716335 | I18: 612.3130837 | J18: 651.9669963
A19: DOPED0205 | B19: Controlled load energy deliveries | C19: GWh | D19: 52.113581 | E19: 49.991614 | F19: 47.867404 | G19: 45.734004 | H19: 43.601189 | I19: 41.470513 | J19: 39.338549
A20: DOPED0206 | B20: Energy Delivery to unmetered supplies | C20: GWh | D20: 30.719641 | E20: 29.708081 | F20: 28.828028 | G20: 27.959221 | H20: 28.137164 | I20: 28.30037 | J20: 28.373772
B21: 3.4.1.2 - Energy - received from TNSP and other DNSPs by time of receipt
A22: DOPED0301 | B22: Energy into DNSP network at On-peak times | C22: GWh | D22: 2196.764476 | E22: 2201.938926 | F22: 2208.145008 | G22: 2214.338631 | H22: 2221.114119 | I22: 2228.086126 | J22: 2235.250829
A23: DOPED0302 | B23: Energy into DNSP network at Shoulder times | C23: GWh | D23: 777.9974181 | E23: 779.8299808 | F23: 782.0279021 | G23: 784.2214114 | H23: 786.6209913 | I23: 789.0901696 | J23: 791.6275925
A24: DOPED0303 | B24: Energy into DNSP network at Off-peak times | C24: GWh | D24: 1311.905796 | E24: 1314.995973 | F24: 1318.70224 | G24: 1322.401066 | H24: 1326.447381 | I24: 1330.611058 | J24: 1334.889812
A25: DOPED0304 | B25: Energy received from TNSP and other DNSPs not included in the above categories | C25: GWh
B26: 3.4.1.3 - Energy - received into DNSP system from embedded generation by time of receipt
A27: DOPED0401 | B27: Energy into DNSP network at On-peak times from non-residential embedded generation | C27: GWh | D27: 40.31522686 | E27: 44.09366072 | F27: 47.87209458 | G27: 51.65052844 | H27: 55.4289623 | I27: 59.20739616 | J27: 62.98583002
A28: DOPED0402 | B28: Energy into DNSP network at Shoulder times from non-residential embedded generation | C28: GWh | D28: 16.12461897 | E28: 17.64749095 | F28: 19.17036292 | G28: 20.6932349 | H28: 22.21610687 | I28: 23.73897885 | J28: 25.26185082
A29: DOPED0403 | B29: Energy into DNSP network at Off-peak times from non-residential embedded generation | C29: GWh | D29: 32.27336614 | E29: 35.35597827 | F29: 38.43859041 | G29: 41.52120255 | H29: 44.60381469 | I29: 47.68642682 | J29: 50.76903896
A30: DOPED0404 | B30: Energy received from embedded generation not included in above categories from non-residential embedded generation | C30: GWh | D30: 5.87624083 | E30: 7.68400066 | F30: 9.491760489 | G30: 11.29952032 | H30: 13.10728015 | I30: 14.91503998 | J30: 16.72279981
A31: DOPED0405 | B31: Energy into DNSP network at On-peak times from residential embedded generation | C31: GWh | D31: 0.00207007135 | E31: 0.0022521427 | F31: 0.002434214051 | G31: 0.002616285401 | H31: 0.002798356751 | I31: 0.002980428101 | J31: 0.003162499452
A32: DOPED0406 | B32: Energy into DNSP network at Shoulder times from residential embedded generation | C32: GWh | D32: 0.0009072885329 | E32: 0.0009875770659 | F32: 0.001067865599 | G32: 0.001148154132 | H32: 0.001228442665 | I32: 0.001308731198 | J32: 0.001389019731
A33: DOPED0407 | B33: Energy into DNSP network at Off-peak times from residential embedded generation | C33: GWh | D33: 4.429256248e-05 | E33: 4.958512497e-05 | F33: 5.487768745e-05 | G33: 6.017024994e-05 | H33: 6.546281242e-05 | I33: 7.075537491e-05 | J33: 7.604793739e-05
A34: DOPED0408 | B34: Energy received from embedded generation not included in above categories from residential embedded generation | C34: GWh | D34: 79.39215065 | E34: 84.36884029 | F34: 89.34552994 | G34: 94.32221959 | H34: 99.29890923 | I34: 104.2755989 | J34: 109.2522885
B35: 3.4.1.4 - Energy grouping - customer type or class
A36: DOPED0501 | B36: Residential customers energy deliveries | C36: GWh | D36: 1928.663507 | E36: 1929.657124 | F36: 1930.503405 | G36: 1931.071703 | H36: 1931.907717 | I36: 1932.884414 | J36: 1933.892875
A37: DOPED0502 | B37: Non residential customers not on demand tariffs energy deliveries | C37: GWh | D37: 925.5683179 | E37: 930.3889032 | F37: 927.8379568 | G37: 917.1950754 | H37: 912.1191359 | I37: 910.2946889 | J37: 912.5908443
A38: DOPED0503 | B38: Non-residential low voltage demand tariff customers energy deliveries | C38: GWh | D38: 534.189033 | E38: 538.203193 | F38: 550.299748 | G38: 570.5388 | H38: 585.018909 | I38: 596.512685 | J38: 604.124507
A39: DOPED0504 | B39: Non-residential high voltage demand tariff customers energy deliveries | C39: GWh | D39: 767.584791 | E39: 768.629765 | F39: 770.94585 | G39: 773.454368 | H39: 775.949371 | I39: 778.427807 | J39: 781.092887
A40: DOPED0505 | B40: Other Customer Class Energy Deliveries | C40: GWh | D40: 30.719641 | E40: 29.708081 | F40: 28.828028 | G40: 27.959221 | H40: 28.137164 | I40: 28.30037 | J40: 28.373772
B44: 3.4.3 - SYSTEM DEMAND
D45: Standard control services
D46: Forecast
C47: Units | D47: =CRCP_y4 -> 2017-18 | E47: =CRCP_y5 -> 2018-19 | F47: =FRCP_y1 -> 2019-20 | G47: =FRCP_y2 -> 2020-21 | H47: =FRCP_y3 -> 2021-22 | I47: =FRCP_y4 -> 2022-23 | J47: =FRCP_y5 -> 2023-24
B48: 3.4.3.1 - Annual system maximum demand characteristics at the zone substation level – MW measure
A49: DOPSD0102 | B49: Non–coincident Summated Weather Adjusted System Annual Maximum Demand 10% POE | C49: MW | D49: 244.0539174 | E49: 240.9654201 | F49: 237.944265 | G49: 235.93726 | H49: 236.7598443 | I49: 237.5392492 | J49: 238.5594124
A50: DOPSD0103 | B50: Non–coincident Summated Weather Adjusted System Annual Maximum Demand 50% POE | C50: MW | D50: 237.8530094 | E50: 234.8429844 | F50: 231.8985906 | G50: 229.9425796 | H50: 230.7442637 | I50: 231.5038655 | J50: 232.4981084
A51: DOPSD0105 | B51: Coincident Weather Adjusted System Annual Maximum Demand 10% POE | C51: MW | D51: 238.2706141 | E51: 235.2553043 | F51: 232.305741 | G51: 230.3462957 | H51: 231.1493874 | I51: 231.9103229 | J51: 232.9063114
A52: DOPSD0106 | B52: Coincident Weather Adjusted System Annual Maximum Demand 50% POE | C52: MW | D52: 232.0697061 | E52: 229.1328687 | F52: 226.2600667 | G52: 224.3516153 | H52: 225.1338067 | I52: 225.8749391 | J52: 226.8450074
B53: 3.4.3.2 - Annual system maximum demand characteristics at the transmission connection point – MW measure
A54: DOPSD0108 | B54: Non–coincident Summated Weather Adjusted System Annual Maximum Demand 10% POE | C54: MW | D54: 1121.705034 | E54: 1107.509879 | F54: 1093.624239 | G54: 1084.399771 | H54: 1088.18048 | I54: 1091.762732 | J54: 1096.45154
A55: DOPSD0109 | B55: Non–coincident Summated Weather Adjusted System Annual Maximum Demand 50% POE | C55: MW | D55: 1096.401543 | E55: 1082.526604 | F55: 1068.954197 | G55: 1059.937815 | H55: 1063.633239 | I55: 1067.134681 | J55: 1071.71772
A56: DOPSD0111 | B56: Coincident Weather Adjusted System Annual Maximum Demand 10% POE | C56: MW | D56: 1002.991168 | E56: 990.2983348 | F56: 977.8822592 | G56: 969.6340482 | H56: 973.0146321 | I56: 976.2177615 | J56: 980.4103375
A57: DOPSD0112 | B57: Coincident Weather Adjusted System Annual Maximum Demand 50% POE | C57: MW | D57: 977.6876772 | E57: 965.3150595 | F57: 953.212217 | G57: 945.1720921 | H57: 948.4673906 | I57: 951.5897113 | J57: 955.6765169
B58: 3.4.3.3 - Annual system maximum demand characteristics at the zone substation level – MVA measure
A59: DOPSD0202 | B59: Non–coincident Summated Weather Adjusted System Annual Maximum Demand 10% POE | C59: MVA | D59: 246.4481836 | E59: 243.3293868 | F59: 240.278593 | G59: 238.2518986 | H59: 239.0825527 | I59: 239.8696039 | J59: 240.8997752
A60: DOPSD0203 | B60: Non–coincident Summated Weather Adjusted System Annual Maximum Demand 50% POE | C60: MVA | D60: 240.2472756 | E60: 237.2069512 | F60: 234.2329187 | G60: 232.2572181 | H60: 233.0669721 | I60: 233.8342202 | J60: 234.8384713
A61: DOPSD0205 | B61: Coincident Weather Adjusted System Annual Maximum Demand 10% POE | C61: MVA | D61: 240.7547244 | E61: 237.7079782 | F61: 234.727664 | G61: 232.7477903 | H61: 233.5592547 | I61: 234.3281234 | J61: 235.3344956
A62: DOPSD0206 | B62: Coincident Weather Adjusted System Annual Maximum Demand 50% POE | C62: MVA | D62: 234.5538163 | E62: 231.5855426 | F62: 228.6819896 | G62: 226.7531099 | H62: 227.543674 | I62: 228.2927397 | J62: 229.2731917
B63: 3.4.3.4 - Annual system maximum demand characteristics at the transmission connection point – MVA measure
A64: DOPSD0208 | B64: Non–coincident Summated Weather Adjusted System Annual Maximum Demand 10% POE | C64: MVA | D64: 1142.245118 | E64: 1127.79003 | F64: 1113.650123 | G64: 1104.256741 | H64: 1108.106681 | I64: 1111.754528 | J64: 1116.529196
A65: DOPSD0209 | B65: Non–coincident Summated Weather Adjusted System Annual Maximum Demand 50% POE | C65: MVA | D65: 1116.941628 | E65: 1102.806754 | F65: 1088.980081 | G65: 1079.794785 | H65: 1083.559439 | I65: 1087.126478 | J65: 1091.795375
A66: DOPSD0211 | B66: Coincident Weather Adjusted System Annual Maximum Demand 10% POE | C66: MVA | D66: 1012.233626 | E66: 999.4238297 | F66: 986.8933412 | G66: 978.5691239 | H66: 981.9808596 | I66: 985.2135054 | J66: 989.4447156
A67: DOPSD0212 | B67: Coincident Weather Adjusted System Annual Maximum Demand 50% POE | C67: MVA | D67: 986.9301352 | E67: 974.4405544 | F67: 962.223299 | G67: 954.1071678 | H67: 957.433618 | I67: 960.5854552 | J67: 964.7108949
B68: 3.4.3.5 - Power factor conversion between MVA and MW
A69: DOPSD0301 | B69: Average overall network power factor conversion between MVA and MW | C69: Factor | D69: 0.9815579187 | E69: 0.9815579187 | F69: 0.9815579187 | G69: 0.9815579187 | H69: 0.9815579187 | I69: 0.9815579187 | J69: 0.9815579187
A70: DOPSD0302 | B70: Average power factor conversion for low voltage distribution lines | C70: Factor | D70: 0.9815579187 | E70: 0.9815579187 | F70: 0.9815579187 | G70: 0.9815579187 | H70: 0.9815579187 | I70: 0.9815579187 | J70: 0.9815579187
A71: DOPSD0303 | B71: Average power factor conversion for 3.3 kV lines | C71: Factor
A72: DOPSD0304 | B72: Average power factor conversion for 6.6 kV lines | C72: Factor | D72: 0.4931257005 | E72: 0.4931257005 | F72: 0.4931257005 | G72: 0.4931257005 | H72: 0.4931257005 | I72: 0.4931257005 | J72: 0.4931257005
A73: DOPSD0305 | B73: Average power factor conversion for 7.6 kV lines | C73: Factor
A74: DOPSD0306 | B74: Average power factor conversion for 11 kV lines | C74: Factor | D74: 0.9807787114 | E74: 0.9807787114 | F74: 0.9807787114 | G74: 0.9807787114 | H74: 0.9807787114 | I74: 0.9807787114 | J74: 0.9807787114
A75: DOPSD0307 | B75: Average power factor conversion for SWER lines | C75: Factor | D75: 0.981772914 | E75: 0.981772914 | F75: 0.981772914 | G75: 0.981772914 | H75: 0.981772914 | I75: 0.981772914 | J75: 0.981772914
A76: DOPSD0308 | B76: Average power factor conversion for 22 kV lines | C76: Factor | D76: 0.981772914 | E76: 0.981772914 | F76: 0.981772914 | G76: 0.981772914 | H76: 0.981772914 | I76: 0.981772914 | J76: 0.981772914
A77: DOPSD0309 | B77: Average power factor conversion for 33 kV lines | C77: Factor | D77: 0.9900625799 | E77: 0.9900625799 | F77: 0.9900625799 | G77: 0.9900625799 | H77: 0.9900625799 | I77: 0.9900625799 | J77: 0.9900625799
A78: DOPSD0310 | B78: Average power factor conversion for 44 kV lines | C78: Factor | D78: 0.9262844378 | E78: 0.9262844378 | F78: 0.9262844378 | G78: 0.9262844378 | H78: 0.9262844378 | I78: 0.9262844378 | J78: 0.9262844378
A79: DOPSD0311 | B79: Average power factor conversion for 66 kV lines | C79: Factor
A80: DOPSD0312 | B80: Average power factor conversion for 110 kV lines | C80: Factor
A81: DOPSD0313 | B81: Average power factor conversion for 132 kV lines | C81: Factor
A82: DOPSD0314 | B82: Average power factor conversion for 220 kV lines | C82: Factor
B83: 3.4.3.6 - Demand supplied (for customers charged on this basis) – MW measure
A84: DOPSD0401 | B84: Summated Chargeable Contracted Maximum Demand | C84: MW
A85: DOPSD0402 | B85: Summated Chargeable Measured Maximum Demand | C85: MW | D85: 0.1271534247 | E85: 2.003408219 | F85: 7.310934247 | G85: 16.37553699 | H85: 23.83537534 | I85: 28.99670137 | J85: 32.25553425
B86: 3.4.3.7 - Demand supplied (for customers charged on this basis) – MVA measure
A87: DOPSD0403 | B87: Summated Chargeable Contracted Maximum Demand | C87: MVA | D87: 1.503810959 | E87: 1.5108 | F87: 1.609536986 | G87: 1.609758904 | H87: 1.610115068 | I87: 1.609413699 | J87: 1.609005479
A88: DOPSD0404 | B88: Summated Chargeable Measured Maximum Demand | C88: MVA | D88: 288.1992411 | E88: 290.7178849 | F88: 297.3801041 | G88: 304.6664877 | H88: 313.2263726 | I88: 322.254611 | J88: 331.2245562

Sheet 3.5 Physical assets
B1: =SheetHeader -> REGULATORY REPORTING STATEMENT
B2: =dms_TradingName -> TasNetworks (D)
B3: =dms_Reg_Year_Span -> 2019-20 to 2023-24
B4: 3.5 PHYSICAL ASSETS DATA
B6: There are THREE tables on this worksheet. Each table has been grouped (and sub-grouped) for ease of navigation. See the Instructions sheet on how to group or ungroup tables.
B10: 3.5.1 - NETWORK CAPACITIES VARIABLES
D11: VOLUMES
C12: Units | D12: =CRCP_y4 -> 2017-18 | E12: =CRCP_y5 -> 2018-19 | F12: =FRCP_y1 -> 2019-20 | G12: =FRCP_y2 -> 2020-21 | H12: =FRCP_y3 -> 2021-22 | I12: =FRCP_y4 -> 2022-23 | J12: =FRCP_y5 -> 2023-24
B13: Circuit length
B14: 3.5.1.1 - Overhead network length of circuit at each voltage
A15: DPA0101 | B15: Overhead low voltage distribution | C15: km | D15: 4920.393 | E15: 4920.393 | F15: 4920.393 | G15: 4920.393 | H15: 4920.393 | I15: 4920.393 | J15: 4920.393
A16: DPA0102 | B16: Overhead 2.2 kV | C16: km | D16: 0 | E16: 0 | F16: 0 | G16: 0 | H16: 0 | I16: 0 | J16: 0
A17: DPA0103 | B17: Overhead 7.6 kV | C17: km | D17: 6.077 | E17: 6.077 | F17: 6.077 | G17: 6.077 | H17: 6.077 | I17: 6.077 | J17: 6.077
A18: DPA0104 | B18: Overhead 11 kV | C18: km | D18: 0 | E18: 0 | F18: 0 | G18: 0 | H18: 0 | I18: 0 | J18: 0
A19: DPA0105 | B19: Overhead SWER | C19: km | D19: 2972.3364 | E19: 2974.3158 | F19: 2976.2952 | G19: 2978.2746 | H19: 2980.254 | I19: 2982.2334 | J19: 2984.2128
A20: DPA0106 | B20: Overhead 22 kV | C20: km | D20: 471.904 | E20: 471.904 | F20: 471.904 | G20: 471.904 | H20: 471.904 | I20: 471.904 | J20: 471.904
A21: DPA0107 | B21: Overhead 33 kV | C21: km | D21: 11768.5901 | E21: 11839.1272 | F21: 11909.6643 | G21: 11980.2014 | H21: 12050.7385 | I21: 12121.2756 | J21: 12191.8127
A22: DPA0108 | B22: Overhead 44 kV | C22: km | D22: 87.157 | E22: 87.157 | F22: 87.157 | G22: 87.157 | H22: 87.157 | I22: 87.157 | J22: 87.157
A23: DPA0109 | B23: Overhead 66 kV | C23: km | D23: 46.6646 | E23: 46.6792 | F23: 46.6938 | G23: 46.7084 | H23: 46.723 | I23: 46.7376 | J23: 46.7522
A24: DPA0110 | B24: Overhead 132 kV | C24: km | D24: 0 | E24: 0 | F24: 0 | G24: 0 | H24: 0 | I24: 0 | J24: 0
A25: DPA0111 | B25: Overhead 6.6kv | C25: km | D25: 0 | E25: 0 | F25: 0 | G25: 0 | H25: 0 | I25: 0 | J25: 0
A26: DPA0112 | B26: Overhead 110kV | C26: km | D26: 0 | E26: 0 | F26: 0 | G26: 0 | H26: 0 | I26: 0 | J26: 0
A27: DPA0113 | B27: Overhead 220kV | C27: km | D27: 0 | E27: 0 | F27: 0 | G27: 0 | H27: 0 | I27: 0 | J27: 0
A28: DPA0114 | B28: Other | C28: km | D28: 0 | E28: 0 | F28: 0 | G28: 0 | H28: 0 | I28: 0 | J28: 0
A29: DPA01 | B29: Total overhead circuit km | D29: 20200.591 | E29: 20260.51375 | F29: 20320.44225 | G29: 20380.37075 | H29: 20440.29925 | I29: 20500.22775 | J29: 20560.15625
B30: 3.5.1.2 - Underground network circuit length at each voltage
A31: DPA0201 | B31: Underground low voltage distribution | C31: km | D31: 1302.3279 | E31: 1325.3668 | F31: 1348.4057 | G31: 1371.4446 | H31: 1394.4835 | I31: 1417.5224 | J31: 1440.5613
A32: DPA0202 | B32: Underground 5 kV | C32: km | D32: 0 | E32: 0 | F32: 0 | G32: 0 | H32: 0 | I32: 0 | J32: 0
A33: DPA0203 | B33: Underground 6.6 Kv | C33: km | D33: 0.1065 | E33: 0.108 | F33: 0.1095 | G33: 0.111 | H33: 0.1125 | I33: 0.114 | J33: 0.1155
A34: DPA0204 | B34: Underground 7.6 kV | C34: km | D34: 0 | E34: 0 | F34: 0 | G34: 0 | H34: 0 | I34: 0 | J34: 0
A35: DPA0205 | B35: Underground 11 kV | C35: km | D35: 642.2572 | E35: 648.3164 | F35: 654.3756 | G35: 660.4348 | H35: 666.494 | I35: 672.5532 | J35: 678.6124
A36: DPA0206 | B36: Underground SWER | C36: km | D36: 7.1047 | E36: 8.2904 | F36: 9.4761 | G36: 10.6618 | H36: 11.8475 | I36: 13.0332 | J36: 14.2189
A37: DPA0207 | B37: Underground 22 kV | C37: km | D37: 534.0918 | E37: 538.3956 | F37: 542.6994 | G37: 547.0032 | H37: 551.307 | I37: 555.6108 | J37: 559.9146
A38: DPA0208 | B38: Underground 33 kV | C38: km | D38: 75.6252 | E38: 78.1274 | F38: 80.6296 | G38: 83.1318 | H38: 85.634 | I38: 88.1362 | J38: 90.6384
A39: DPA0209 | B39: Underground 66 kV | C39: km | D39: 0 | E39: 0 | F39: 0 | G39: 0 | H39: 0 | I39: 0 | J39: 0
A40: DPA0210 | B40: Underground 110 kV | C40: km | D40: 0 | E40: 0 | F40: 0 | G40: 0 | H40: 0 | I40: 0 | J40: 0
A41: DPA0211 | B41: Underground 132 kV | C41: km | D41: 0 | E41: 0 | F41: 0 | G41: 0 | H41: 0 | I41: 0 | J41: 0
A42: DPA0212 | B42: Other | C42: km | D42: 0 | E42: 0 | F42: 0 | G42: 0 | H42: 0 | I42: 0 | J42: 0
A43: DPA02 | B43: Total underground circuit km | D43: =SUM(D31:D42) -> 2561.5133 | E43: =SUM(E31:E42) -> 2598.6046 | F43: 2635.6959 | G43: 2672.7872 | H43: 2709.8785 | I43: 2746.9698 | J43: 2784.0611
B45: Circuit Capacity MVA
B46: 3.5.1.3 - Estimated overhead network weighted average MVA capacity by voltage class
A47: DPA0301 | B47: Overhead low voltage distribution | C47: MVA | D47: 0.134 | E47: 0.134 | F47: 0.134 | G47: 0.134 | H47: 0.134 | I47: 0.134 | J47: 0.134
A48: DPA0302 | B48: Overhead 6.6 kV | C48: MVA | D48: 7.81 | E48: 7.81 | F48: 7.81 | G48: 7.81 | H48: 7.81 | I48: 7.81 | J48: 7.81
A49: DPA0303 | B49: Overhead 7.6 kV | C49: MVA | D49: 0 | E49: 0 | F49: 0 | G49: 0 | H49: 0 | I49: 0 | J49: 0
A50: DPA0304 | B50: Overhead 11 kV | C50: MVA | D50: 4.265 | E50: 4.265 | F50: 4.265 | G50: 4.265 | H50: 4.265 | I50: 4.265 | J50: 4.265
A51: DPA0305 | B51: Overhead SWER | C51: MVA | D51: 0.67 | E51: 0.67 | F51: 0.67 | G51: 0.67 | H51: 0.67 | I51: 0.67 | J51: 0.67
A52: DPA0306 | B52: Overhead 22 kV | C52: MVA | D52: 7.379 | E52: 7.379 | F52: 7.379 | G52: 7.379 | H52: 7.379 | I52: 7.379 | J52: 7.379
A53: DPA0307 | B53: Overhead 33 kV | C53: MVA | D53: 23.162 | E53: 23.162 | F53: 23.162 | G53: 23.162 | H53: 23.162 | I53: 23.162 | J53: 23.162
A54: DPA0308 | B54: Overhead 44 kV | C54: MVA | D54: 29.703 | E54: 29.703 | F54: 29.703 | G54: 29.703 | H54: 29.703 | I54: 29.703 | J54: 29.703
A55: DPA0309 | B55: Overhead 66 kV | C55: MVA | D55: 0 | E55: 0 | F55: 0 | G55: 0 | H55: 0 | I55: 0 | J55: 0
A56: DPA0310 | B56: Overhead 110 kV | C56: MVA | D56: 0 | E56: 0 | F56: 0 | G56: 0 | H56: 0 | I56: 0 | J56: 0
A57: DPA0311 | B57: Overhead 132 kV | C57: MVA | D57: 0 | E57: 0 | F57: 0 | G57: 0 | H57: 0 | I57: 0 | J57: 0
A58: DPA0312 | B58: Overhead 220 kV | C58: MVA | D58: 0 | E58: 0 | F58: 0 | G58: 0 | H58: 0 | I58: 0 | J58: 0
A59: DPA0313 | B59: Other | C59: MVA | D59: 0.13 | E59: 0.13 | F59: 0.13 | G59: 0.13 | H59: 0.13 | I59: 0.13 | J59: 0.13
B60: 3.5.1.4 - Estimated underground network weighted average MVA capacity by voltage class
A61: DPA0401 | B61: Underground low voltage distribution | C61: MVA | D61: 0.261 | E61: 0.261 | F61: 0.261 | G61: 0.261 | H61: 0.261 | I61: 0.261 | J61: 0.261
A62: DPA0402 | B62: Underground 5 kV | C62: MVA | D62: 0 | E62: 0 | F62: 0 | G62: 0 | H62: 0 | I62: 0 | J62: 0
A63: DPA0403 | B63: Underground 6.6 kV | C63: MVA | D63: 3.211 | E63: 3.211 | F63: 3.211 | G63: 3.211 | H63: 3.211 | I63: 3.211 | J63: 3.211
A64: DPA0404 | B64: Underground 7.6 kV | C64: MVA | D64: 0 | E64: 0 | F64: 0 | G64: 0 | H64: 0 | I64: 0 | J64: 0
A65: DPA0405 | B65: Underground 11 kV | C65: MVA | D65: 5.9 | E65: 5.9 | F65: 5.9 | G65: 5.9 | H65: 5.9 | I65: 5.9 | J65: 5.9
A66: DPA0406 | B66: Underground SWER | C66: MVA | D66: 0.432 | E66: 0.432 | F66: 0.432 | G66: 0.432 | H66: 0.432 | I66: 0.432 | J66: 0.432
A67: DPA0407 | B67: Underground 12.7 kV | C67: MVA | D67: 0 | E67: 0 | F67: 0 | G67: 0 | H67: 0 | I67: 0 | J67: 0
A68: DPA0408 | B68: Underground 22 kV | C68: MVA | D68: 11.371 | E68: 11.371 | F68: 11.371 | G68: 11.371 | H68: 11.371 | I68: 11.371 | J68: 11.371
A69: DPA0409 | B69: Underground 33 kV | C69: MVA | D69: 25.95 | E69: 25.95 | F69: 25.95 | G69: 25.95 | H69: 25.95 | I69: 25.95 | J69: 25.95
A70: DPA0410 | B70: Underground 66 kV | C70: MVA | D70: 0 | E70: 0 | F70: 0 | G70: 0 | H70: 0 | I70: 0 | J70: 0
A71: DPA0411 | B71: Underground 110 kV | C71: MVA | D71: 0 | E71: 0 | F71: 0 | G71: 0 | H71: 0 | I71: 0 | J71: 0
A72: DPA0412 | B72: Underground 132 kV | C72: MVA | D72: 0 | E72: 0 | F72: 0 | G72: 0 | H72: 0 | I72: 0 | J72: 0
A73: DPA0413 | B73: Other | C73: MVA | D73: 0.476 | E73: 0.476 | F73: 0.476 | G73: 0.476 | H73: 0.476 | I73: 0.476 | J73: 0.476
B77: 3.5.2 - TRANSFORMER CAPACITIES VARIABLES
D78: VOLUMES
C79: Units | D79: =CRCP_y4 -> 2017-18 | E79: =CRCP_y5 -> 2018-19 | F79: =FRCP_y1 -> 2019-20 | G79: =FRCP_y2 -> 2020-21 | H79: =FRCP_y3 -> 2021-22 | I79: =FRCP_y4 -> 2022-23 | J79: =FRCP_y5 -> 2023-24
B80: Distribution transformer total installed capacity
A81: DPA0501 | B81: Distribution transformer capacity owned by utility | C81: MVA | D81: 3777.8175 | E81: 3840.218 | F81: 3902.6185 | G81: 3965.019 | H81: 4027.4195 | I81: 4089.82 | J81: 4152.2205
A82: DPA0502 | B82: Distribution transformer capacity owned by High Voltage Customers | C82: MVA | D82: 206.1911 | E82: 215.1902 | F82: 224.1893 | G82: 233.1884 | H82: 242.1875 | I82: 251.1866 | J82: 260.1857
A83: DPA0503 | B83: Cold spare capacity included in DPA0501 | C83: MVA | D83: 45.5573 | E83: 50.3536 | F83: 55.1499 | G83: 59.9462 | H83: 64.7425 | I83: 69.5388 | J83: 74.3351
B84: Zone substation transformer capacity
A85: DPA0601 | B85: Total installed capacity for first step transformation where there are two steps to reach distribution voltage | C85: MVA | D85: 0 | E85: 0 | F85: 0 | G85: 0 | H85: 0 | I85: 0 | J85: 0
A86: DPA0602 | B86: Total installed capacity for second step transformation where there are two steps to reach distribution voltage | C86: MVA | D86: 0 | E86: 0 | F86: 0 | G86: 0 | H86: 0 | I86: 0 | J86: 0
A87: DPA0603 | B87: Total zone substation transformer capacity where there is only a single step transformation to reach distribution voltage | C87: MVA | D87: 675 | E87: 680 | F87: 685 | G87: 690 | H87: 690 | I87: 695 | J87: 700
A88: DPA0604 | B88: Total zone substation transformer capacity | C88: MVA | D88: 675 | E88: 680 | F88: 685 | G88: 690 | H88: 690 | I88: 695 | J88: 700
A89: DPA0605 | B89: Cold spare capacity of zone substation transformers included in DPA0604 | C89: MVA | D89: 0 | E89: 0 | F89: 0 | G89: 0 | H89: 0 | I89: 0 | J89: 0
B93: 3.5.3 - PUBLIC LIGHTING
D94: VOLUMES
C95: Units | D95: =CRCP_y4 -> 2017-18 | E95: =CRCP_y5 -> 2018-19 | F95: =FRCP_y1 -> 2019-20 | G95: =FRCP_y2 -> 2020-21 | H95: =FRCP_y3 -> 2021-22 | I95: =FRCP_y4 -> 2022-23 | J95: =FRCP_y5 -> 2023-24
A96: DPA0701 | B96: Public lighting luminaires | C96: 0's | D96: 43293 | E96: 43662 | F96: 44019 | G96: 44160 | H96: 44310 | I96: 44470 | J96: 44590
A97: DPA0702 | B97: Public lighting poles | C97: 0's | D97: 0 | E97: 0 | F97: 0 | G97: 0 | H97: 0 | I97: 0 | J97: 0

Sheet 3.6 Quality of service
B1: =SheetHeader -> REGULATORY REPORTING STATEMENT
B2: =dms_TradingName -> TasNetworks (D)
B3: =dms_Reg_Year_Span -> 2019-20 to 2023-24
B4: 3.6 QUALITY OF SERVICE DATA
B7: 3.6.2 - ENERGY NOT SUPPLIED
D8: Forecast
C9: Units | D9: =CRCP_y4 -> 2017-18 | E9: =CRCP_y5 -> 2018-19 | F9: =FRCP_y1 -> 2019-20 | G9: =FRCP_y2 -> 2020-21 | H9: =FRCP_y3 -> 2021-22 | I9: =FRCP_y4 -> 2022-23 | J9: =FRCP_y5 -> 2023-24
A10: DQS0201 | B10: Energy Not Supplied (planned) | C10: GWh | D10: 0.7121719572 | E10: 0.7933439143 | F10: 0.8745158715 | G10: 0.9556878287 | H10: 1.036859786 | I10: 1.118031743 | J10: 1.1992037
A11: DQS0202 | B11: Energy Not Supplied (unplanned) | C11: GWh | D11: 1.036 | E11: 1.036 | F11: 1.036 | G11: 1.036 | H11: 1.036 | I11: 1.036 | J11: 1.036
A12: DQS02 | B12: Total | D12: =SUM(D10:D11) -> 1.748171957 | E12: =SUM(E10:E11) -> 1.829343914 | F12: 1.910515872 | G12: 1.991687829 | H12: 2.072859786 | I12: 2.154031743 | J12: 2.2352037
B14: 3.6.3 - SYSTEM LOSSES
D15: Forecast
C16: Units | D16: =CRCP_y4 -> 2017-18 | E16: =CRCP_y5 -> 2018-19 | F16: =FRCP_y1 -> 2019-20 | G16: =FRCP_y2 -> 2020-21 | H16: =FRCP_y3 -> 2021-22 | I16: =FRCP_y4 -> 2022-23 | J16: =FRCP_y5 -> 2023-24
A17: DQS03 | B17: System losses | C17: % | D17: 0.04358807157 | E17: 0.04299968517 | F17: 0.04242899688 | G17: 0.04189042529 | H17: 0.04138538974 | I17: 0.04087772608 | J17: 0.04036944546
B19: 3.6.4 - CAPACITY UTILISATION
D20: Forecast
C21: Units | D21: =CRCP_y4 -> 2017-18 | E21: =CRCP_y5 -> 2018-19 | F21: =FRCP_y1 -> 2019-20 | G21: =FRCP_y2 -> 2020-21 | H21: =FRCP_y3 -> 2021-22 | I21: =FRCP_y4 -> 2022-23 | J21: =FRCP_y5 -> 2023-24
A22: DQS04 | B22: Overall utilisation | C22: % | D22: 0.3497496296 | E22: 0.3532661765 | F22: 0.3593720588 | G22: 0.3626569343 | H22: 0.3683722628 | I22: 0.3715826087 | J22: 0.3776550725

Sheet 3.7 Operating Environment
B1: =SheetHeader -> REGULATORY REPORTING STATEMENT
B2: =dms_TradingName -> TasNetworks (D)
B3: =dms_Reg_Year_Span -> 2019-20 to 2023-24
B4: 3.7 OPERATING ENVIRONMENT FACTORS
B6: There are THREE tables on this worksheet. Each table has been grouped (and sub-grouped) for ease of navigation. See the Instructions sheet on how to group or ungroup tables.
A8: DOEF01 | B8: 3.7.1 - DENSITY FACTORS
D9: Forecast
C10: Units | D10: =CRCP_y4 -> 2017-18 | E10: =CRCP_y5 -> 2018-19 | F10: =FRCP_y1 -> 2019-20 | G10: =FRCP_y2 -> 2020-21 | H10: =FRCP_y3 -> 2021-22 | I10: =FRCP_y4 -> 2022-23 | J10: =FRCP_y5 -> 2023-24
A11: DOEF0101 | B11: Customer density | C11: Customer / km | D11: ='6.2 Reliability & Cust serv'!C104/'3.7 Operating Environment'!D36 -> 13.95123404
A12: DOEF0102 | B12: Energy density | C12: MWh/customer | D12: =('3.4 Operational data'!D13*1000)/'6.2 Reliability & Cust serv'!C104 -> 14.65504066
A13: DOEF0103 | B13: Demand density | C13: kVA / customer | D13: 0.8263682027
A15: DOEF02 | B15: 3.7.2 - TERRAIN FACTORS
D16: Forecast
C17: Units | D17: =CRCP_y4 -> 2017-18 | E17: =CRCP_y5 -> 2018-19 | F17: =FRCP_y1 -> 2019-20 | G17: =FRCP_y2 -> 2020-21 | H17: =FRCP_y3 -> 2021-22 | I17: =FRCP_y4 -> 2022-23 | J17: =FRCP_y5 -> 2023-24
A18: DOEF0201 | B18: Rural proportion | C18: % | D18: 0.924
A19: DOEF0202 | B19: Urban and CBD vegetation maintenance spans | C19: 0's | D19: 2702.646464
A20: DOEF0203 | B20: Rural vegetation maintenance spans | C20: 0's | D20: 35906.58874
A21: DOEF0204 | B21: Total vegetation maintenance spans | C21: 0's | D21: 38609.2352
A22: DOEF0205 | B22: Total number of spans | C22: 0's | D22: 236983.289
A23: DOEF0206 | B23: Average urban and CBD vegetation maintenance span cycle | C23: Years | D23: 1
A24: DOEF0207 | B24: Average rural vegetation maintenance span cycle | C24: Years | D24: 1
A25: DOEF0208 | B25: Average number of trees per urban and CBD vegetation maintenance span | C25: Trees | D25: 6.8
A26: DOEF0209 | B26: Average number of trees per rural vegetation maintenance span | C26: Trees | D26: 21.8
A27: DOEF0210 | B27: Average number of defects per urban and CBD vegetation maintenance span | C27: Defects | D27: 3.2
A28: DOEF0211 | B28: Average number of defects per rural vegetation maintenance span | C28: Defects | D28: 4.8
A29: DOEF0212 | B29: Tropical proportion | C29: Spans | D29: -
A30: DOEF0213 | B30: Standard vehicle access | C30: km | D30: 765.4206 | E30: 780.9912 | F30: 796.5618 | G30: 812.1324 | H30: 827.703 | I30: 843.2736 | J30: 858.8442
A31: DOEF0214 | B31: Bushfire risk | C31: Spans | D31: 9618.841
A33: DOEF03 | B33: 3.7.3 - SERVICE AREA FACTORS
D34: Forecast
C35: Units | D35: =CRCP_y4 -> 2017-18 | E35: =CRCP_y5 -> 2018-19 | F35: =FRCP_y1 -> 2019-20 | G35: =FRCP_y2 -> 2020-21 | H35: =FRCP_y3 -> 2021-22 | I35: =FRCP_y4 -> 2022-23 | J35: =FRCP_y5 -> 2023-24
A36: DOEF0301 | B36: Route Line length | C36: km | D36: 20477.4 | E36: 20525.8 | F36: 20574.2 | G36: 20622.6 | H36: 20671 | I36: 20719.4 | J36: 20767.8

Sheet 4.1 Public lighting
B1: =SheetHeader -> REGULATORY REPORTING STATEMENT
B2: =dms_TradingName -> TasNetworks (D)
B3: =dms_Reg_Year_Span -> 2019-20 to 2023-24
B4: 4.1 PUBLIC LIGHTING
B6: There are TWO tables on this worksheet. Each table has been grouped (and sub-grouped) for ease of navigation. See the Instructions sheet on how to group or ungroup tables.
B8: 4.1.2 - DESCRIPTOR METRICS ANNUALLY
D9: VOLUMES & EXPENDITURE
C10: Units | D10: =CRCP_y4 -> 2017-18 | E10: =CRCP_y5 -> 2018-19 | F10: =FRCP_y1 -> 2019-20 | G10: =FRCP_y2 -> 2020-21 | H10: =FRCP_y3 -> 2021-22 | I10: =FRCP_y4 -> 2022-23 | J10: =FRCP_y5 -> 2023-24
B11: LIGHT INSTALLATION
B12: Number of lights installed | C12: 0's | D12: 410 | E12: 410 | F12: 410 | G12: 410 | H12: 410 | I12: 410 | J12: 410
B13: Number of poles installed | C13: 0's | D13: 0 | E13: 0 | F13: 0 | G13: 0 | H13: 0 | I13: 0 | J13: 0
B14: Total expenditure | C14: $0's | D14: 355353.4468 | E14: 355353.4468 | F14: 408368.4941 | G14: 408368.4941 | H14: 408368.4941 | I14: 408368.4941 | J14: 408368.4941
B15: LIGHT REPLACEMENT
B16: Number of lights replaced | C16: 0's | D16: 4610 | E16: 4600 | F16: 4590 | G16: 4580 | H16: 1580 | I16: 1570 | J16: 1570
B17: Number of poles replaced | C17: 0's | D17: 50 | E17: 50 | F17: 55 | G17: 55 | H17: 60 | I17: 60 | J17: 65
B18: Total expenditure | C18: $0's | D18: 3164480.691 | E18: 3158345.364 | F18: 3191984.422 | G18: 2981733.296 | H18: 1403734.577 | I18: 1397717.659 | J18: 1426852.988
B19: LIGHT MAINTENANCE
B20: Number of lights maintained | C20: 0's | D20: 7650 | E20: 7613 | F20: 7906 | G20: 7969 | H20: 7800 | I20: 7863 | J20: 7925
B21: Number of poles maintained | C21: 0's | D21: 0 | E21: 0 | F21: 0 | G21: 0 | H21: 0 | I21: 0 | J21: 0
B22: Total expenditure | C22: $0's | D22: 2149047.499 | E22: 2222219.603 | F22: 2310204.651 | G22: 2326399.122 | H22: 2160374.257 | I22: 2176568.728 | J22: 2192542.941
B23: QUALITY OF SUPPLY
B24: Mean days to rectify/replace public lighting assets | C24: days | D24: 8 | E24: 8 | F24: 8 | G24: 8 | H24: 8 | I24: 8 | J24: 8
B25: GSO breaches | C25: 0's | D25: 30 | E25: 0 | F25: 0 | G25: 0 | H25: 0 | I25: 0 | J25: 0
B26: GSL payments | C26: $0's | D26: 900 | E26: 0 | F26: 0 | G26: 0 | H26: 0 | I26: 0 | J26: 0
B27: Customer complaints | C27: 0's | D27: 54 | E27: 30 | F27: 30 | G27: 30 | H27: 30 | I27: 30 | J27: 30
B31: 4.1.3 - COST METRICS
D32: =CONCATENATE("AVERAGE UNIT COST ($0's, real ",dms_DollarReal, ")") -> AVERAGE UNIT COST ($0's, real June 2019)
D33: =CRCP_y4 -> 2017-18 | E33: =CRCP_y5 -> 2018-19 | F33: =FRCP_y1 -> 2019-20 | G33: =FRCP_y2 -> 2020-21 | H33: =FRCP_y3 -> 2021-22 | I33: =FRCP_y4 -> 2022-23 | J33: =FRCP_y5 -> 2023-24
B34: LIGHT INSTALLATION
B35: Light type
B37: 250w Sodium | C37: 0 | D37: 969.0090727 | E37: 969.0090727 | F37: 964.7026471 | G37: 964.7026471 | H37: 964.7026471 | I37: 964.7026471 | J37: 964.7026471
B38: 18w LED | C38: 0 | D38: 704.8228919 | E38: 704.8228919 | F38: 769.1312963 | G38: 769.1312963 | H38: 769.1312963 | I38: 769.1312963 | J38: 769.1312963
B39: 14w LED | D39: 0 | E39: 0 | F39: 659.8442379 | G39: 659.8442379 | H39: 659.8442379 | I39: 659.8442379 | J39: 659.8442379
B90: LIGHT REPLACEMENT
B91: Light type
B93: 250w Sodium | C93: 0 | D93: 767.4545981 | E93: 767.4545981 | F93: 673.555173 | G93: 630.5629007 | H93: 860.5042288 | I93: 862.2732199 | J93: 880.2472459
B94: 18w LED | C94: 0 | D94: 558.2193031 | E94: 558.2193031 | F94: 537.0072995 | G94: 502.730725 | H94: 686.0567191 | I94: 687.4670878 | J94: 701.797292
B95: 14w LED | F95: 460.7030997 | G95: 431.2969369 | H95: 588.5738562 | I95: 589.7838234 | J95: 602.0778267
B151: LIGHT MAINTENANCE
B152: Light Type
B154: 250w Sodium | C154: 0 | D154: 453.1505306 | E154: 453.1505306 | F154: 435.8557172 | G154: 435.8557172 | H154: 435.8557172 | I154: 435.8557172 | J154: 435.8557172
B155: 18w LED | C155: 0 | D155: 141.0643497 | E155: 141.0643497 | F155: 132.7225559 | G155: 132.7225559 | H155: 132.7225559 | I155: 132.7225559 | J155: 132.7225559
B156: 14w LED | F156: 144.3918528 | G156: 144.3918528 | H156: 144.3918528 | I156: 144.3918528 | J156: 144.3918528

Sheet 4.2 Metering
B1: =SheetHeader -> REGULATORY REPORTING STATEMENT
B2: =dms_TradingName -> TasNetworks (D)
B3: =dms_Reg_Year_Span -> 2019-20 to 2023-24
B4: 4.2 METERING
B6: There are TWO tables on this worksheet. Each table has been 'grouped' (and 'sub-grouped') for easy navigation. See the Instructions sheet on how to group or ungroup data.
B8: 4.2.1 - METERING DESCRIPTOR METRIC
E9: VOLUMES (0's)
B10: ASSET CATEGORY | C10: ASSET SUBCATEGORY | E10: =CRCP_y4 -> 2017-18 | F10: =CRCP_y5 -> 2018-19 | G10: =FRCP_y1 -> 2019-20 | H10: =FRCP_y2 -> 2020-21 | I10: =FRCP_y3 -> 2021-22 | J10: =FRCP_y4 -> 2022-23 | K10: =FRCP_y5 -> 2023-24
B11: Meter Type 4 | C11: Single phase meter population | E11: 0 | F11: 0 | G11: 0 | H11: 0 | I11: 0 | J11: 0 | K11: 0
C12: Multi phase meter population | E12: 0 | F12: 0 | G12: 0 | H12: 0 | I12: 0 | J12: 0 | K12: 0
C13: Current transformer connected meter population | E13: 0 | F13: 0 | G13: 0 | H13: 0 | I13: 0 | J13: 0 | K13: 0
C14: Direct connect meter population | E14: 0 | F14: 0 | G14: 0 | H14: 0 | I14: 0 | J14: 0 | K14: 0
B15: Meter Type 5 | C15: Single phase meter population | E15: 0 | F15: 0 | G15: 0 | H15: 0 | I15: 0 | J15: 0 | K15: 0
C16: Multi phase meter population | E16: 0 | F16: 0 | G16: 0 | H16: 0 | I16: 0 | J16: 0 | K16: 0
C17: Current transformer connected meter population | E17: 0 | F17: 0 | G17: 0 | H17: 0 | I17: 0 | J17: 0 | K17: 0
C18: Direct connect meter population | E18: 0 | F18: 0 | G18: 0 | H18: 0 | I18: 0 | J18: 0 | K18: 0
B19: Meter Type 6 | C19: Single phase meter population | E19: 375568.5 | F19: 353919.5 | G19: 331345.5 | H19: 307846.5 | I19: 284347.5 | J19: 260848.5 | K19: 237349.5
C20: Multi phase meter population | E20: 35547.5 | F20: 33909.5 | G20: 32200.5 | H20: 30421.5 | I20: 28642.5 | J20: 26863.5 | K20: 25084.5
C21: Current transformer connected meter population | E21: 2464 | F21: 2351 | G21: 2232 | H21: 2109 | I21: 1986 | J21: 1863 | K21: 1740
C22: Direct connect meter population | E22: 413580 | F22: 390180 | G22: 365778 | H22: 340377 | I22: 314976 | J22: 289575 | K22: 264174
B25: 4.2.2 - COST METRICS
B26: EXPENDITURE
E27: =CONCATENATE("EXPENDITURE ($0's, real ",dms_DollarReal,")") -> EXPENDITURE ($0's, real June 2019)
B28: SERVICE SUBCATEGORY | C28: METER TYPE | E28: =CRCP_y4 -> 2017-18 | F28: =CRCP_y5 -> 2018-19 | G28: =FRCP_y1 -> 2019-20 | H28: =FRCP_y2 -> 2020-21 | I28: =FRCP_y3 -> 2021-22 | J28: =FRCP_y4 -> 2022-23 | K28: =FRCP_y5 -> 2023-24
B29: Meter purchase | D29: Meter Type 4
D30: Meter Type 5
D31: Meter Type 6 | E31: 981718.4034 | F31: 0
B32: Meter testing | D32: Meter Type 4
D33: Meter Type 5
D34: Meter Type 6 | E34: 281095.5422 | F34: 313428.4779 | G34: 42535.15509 | H34: 77336.64562 | I34: 58002.48422 | J34: 232009.9369 | K34: 232009.9369
B35: Meter investigation | D35: Meter Type 4
D36: Meter Type 5
D37: Meter Type 6 | E37: 47121.80322 | F37: 45551.60125
B38: Scheduled meter reading | D38: Meter Type 4
D39: Meter Type 5
D40: Meter Type 6 | E40: 1658746.251 | F40: 1603454.36 | G40: 1612387.507 | H40: 1554802.239 | I40: 1497216.971 | J40: 1439631.703 | K40: 1382046.435
B41: Special meter reading | D41: Meter Type 4
D42: Meter Type 5
D43: Meter Type 6 | E43: 164673.8824 | F43: 159185.5227 | G43: 145114.8757 | H43: 139932.2015 | I43: 134749.5274 | J43: 129566.8533 | K43: 124384.1791
B44: New meter installation | D44: Meter Type 4
D45: Meter Type 5
D46: Meter Type 6 | E46: 158092.8889 | F46: 0
B47: Meter replacement | D47: Meter Type 4
D48: Meter Type 5
D49: Meter Type 6 | E49: 395233.2717 | F49: 0
B50: Meter maintenance | D50: Meter Type 4
D51: Meter Type 5
D52: Meter Type 6 | E52: 349648.0833 | F52: 343365.1762 | G52: 231115.6774 | H52: 213337.5484 | I52: 177781.2903 | J52: 177781.2903 | K52: 160003.1613
B53: Remote meter reading | D53: Meter Type 4
B54: Remote meter re-configuration | D54: Meter Type 4
B55: Other metering | D55: Meter Type 4
D56: Meter Type 5
D57: Meter Type 6
D58: Meter Type 7
B59: IT infrastructure capex | D59: Meter Type 4
B60: IT infrastructure opex | D60: Meter Type 4
B61: Communications infrastructure capex | D61: Meter Type 4
B62: Communications infrastructure opex | D62: Meter Type 4
B64: VOLUMES
E65: VOLUMES (0's)
